Workbook

Sheet Design Regulator
A1: LM5143-Q1 Synchronous Buck Controller Design Tool
O2: http://www.ti.com/product/lm5175
A3: About | C3: xx | F3: = Input Box | O3: TERMS OF USE
A5: Step 1: Operating Specifications
D7: Input Voltage – Min, VIN(min) | E7: 9 | F7: V
D8: Input Voltage – Nom, VIN(nom) | E8: 12 | F8: V
D9: Input Voltage – Max, VIN(max) | E9: 16 | F9: V
D10: Output Voltage, VOUT | E10: 3.3 | F10: V | I10: Output Voltage, VOUT2 | J10: 5 | K10: V
D11: Full Load Output Current, IOUT | E11: 28 | F11: A | I11: Full Load Output Current, IOUT2 | J11: 7 | K11: A
D12: Switching Frequency, FSW | E12: 440 | F12: kHz
D13: Frequency Set Resistor, RT | E13: =IF('Standard Value Calculator'!O4/1000>288,"N/A",'Standard Value Calculator'!O4/1000) -> 49.9 | F13: kΩ
D14: Ambient Temperature, TA | E14: 25 | F14: °C
A16: Step 2: Current Sense Resistors
D17: Required IOCP Setpoint at VIN(nom) | E17: 44 | F17: A | I17: Required IOCP Setpoint at VIN(nom) | J17: 10 | K17: A
D18: Recommended Sense Resistance | E18: =Rs_ideal*1000 -> 3.138447576 | F18: mΩ | I18: Recommended Sense Resistance | J18: =Rs2_ideal*1000 -> 4.887572743 | K18: mΩ
D19: Sense Resistance, RS | E19: 2.5 | F19: mΩ | I19: Sense Resistance, RS2 | J19: 7 | K19: mΩ
D20: Min Inductor Sat Current, ILO(SAT) | E20: ='Variable Management'!B95 -> 29.2 | F20: A | I20: Min Inductor Sat Current, ILO2(SAT) | J20: ='Variable Management'!D95 -> 10.42857143 | K20: A
D21: Max power loss in shunt | E21: ='Variable Management'!B105 -> 1.975096723 | F21: W | I21: Max power loss in shunt RS2 | J21: ='Variable Management'!D105 -> 0.3446143253 | K21: W
D22: VIN(min) | E22: ='Variable Management'!B97 -> 56.20091426 | F22: A | I22: VIN(min) | J22: ='Variable Management'!D97 -> 6.673023056 | K22: A
C23: IOUT(typ) at OCP Inception: | D23: VIN(nom) | E23: ='Variable Management'!B98 -> 55.8801852 | F23: A | H23: IOUT2(typ) at OCP Inception: | I23: VIN(nom) | J23: ='Variable Management'!D98 -> 5.492732344 | K23: A
D24: VIN(max) | E24: ='Variable Management'!B99 -> 55.63923004 | F24: A | I24: VIN(max) | J24: ='Variable Management'!D99 -> 4.605412207 | K24: A
A26: Step 3: Buck Inductances
D27: Ch1 Recommended Inductance | E27: =Lopt*1000000 -> 0.78125 | F27: µH | I27: Ch2 Recommended Inductance | J27: =Lopt2*1000000 -> 3.314393939 | K27: µH
D28: Ch1 Inductance, LO1 | E28: 2.2 | F28: µH | I28: Ch2 Inductance, LO2 | J28: 0.68 | K28: µH
D29: Ch1 Inductor DCR | E29: 2.8 | F29: mΩ | I29: Ch2 Inductor DCR | J29: 5 | K29: mΩ
D30: DIL as a % at VIN(nom) | E30: ='Variable Management'!B68*100 -> 17.99867712 | F30: % | I30: DIL2 as a % at VIN(nom) | J30: ='Variable Management'!D68*100 -> 141.0239739 | K30: %
A32: Step 4: Output Capacitors
D33: =IF(MODE=1,"Ch1 Output Voltage Ripple Spec","Output Voltage Ripple Spec") -> Output Voltage Ripple Spec | E33: 50 | F33: mVpk-pk | I33: Ch2 Output Voltage Ripple Spec | J33: 50 | K33: mVpk-pk
D34: =IF(MODE=1,"Ch1 Minimum Output Capacitance","Minimum Output Capacitance") -> Minimum Output Capacitance | E34: ='Variable Management'!B121 -> 14.31712952 | F34: µF | I34: Ch2 Minimum Output Capacitance | J34: ='Variable Management'!D121 -> 56.08908051 | K34: µF
D35: Output Capacitance (derated), COUT | E35: =47*12 -> 564 | F35: µF | I35: Ch2 Output Cap (derated), COUT2 | J35: 100 | K35: µF | L35: =CHOOSE(SCH_MODE,"","** For Single-Output Operation in 2-Phase Mode, tie MODE to VDDA and use FB1 to set VOUT **","** For Single-Output Operation in 3-Phase Mode, tie both MODE pins to VDDA. Use FB1 of master IC to set VOUT. Connect FB2 of master IC to AGND. Connect FB2 of slave IC to VDDA to configure it as a slave **","** For Single-Output Operation in 4-Phase Mode, tie both MODE pins to VDDA. Use FB1 of master IC to set VOUT. Connect FB2 of master IC to AGND. Connect FB2 of slave IC to VDDA to configure it as a slave **") -> ** For Single-Output Operation in 2-Phase Mode, tie MODE to VDDA and use FB1 to set VOUT **
D36: =IF(MODE=1,"Ch1 Maximum Permitted ESR","Maximum Permitted ESR") -> Maximum Permitted ESR | E36: ='Variable Management'!B125 -> 19.83633382 | F36: mΩ | I36: Ch2 Maximum Permitted ESR | J36: ='Variable Management'!D125 -> 4.1932576 | K36: mΩ
D37: =IF(MODE=1,"Ch1 Output Capacitor ESR","Output Capacitor ESR") -> Output Capacitor ESR | E37: 5 | F37: mΩ | I37: Ch2 Output Capacitor ESR | J37: 2 | K37: mΩ | L37: =CHOOSE(SCH_MODE,"","** Tie VCCX to GND if not used **","** Slave controller (CNTRL2) not shown **","** Slave controller (CNTRL2) not shown **") -> ** Tie VCCX to GND if not used ** | Q37: =IF(SCH_MODE=1,"** Tie VCCX to GND if not used **","") -> 
D38: Resulting Output Voltage Ripple (max) | E38: ='Variable Management'!B127*1000 -> 12.66284559 | F38: mVpk-pk | I38: Resulting Output Voltage Ripple (max) | J38: ='Variable Management'!D127*1000 -> 34.29717711 | K38: mVpk-pk | L38: =IF(OR(SCH_MODE=3,SCH_MODE=4),"** Tie VCCX to GND if not used **","") -> 
D39: Output Capacitor RMS Current (max) | E39: ='Variable Management'!B114 -> 0.7969656393 | F39: A (rms) | I39: Output Capacitor RMS Current (max) | J39: ='Variable Management'!D114 -> 3.362002544 | K39: A (rms)
A41: Step 5: Input Capacitors
D42: Input Voltage Ripple Spec | E42: 300 | F42: mVpk-pk
D43: Minimum Input Capacitance | E43: ='Variable Management'!B145 -> 26.51515152 | F43: µF
D44: Input Capacitance, CIN | E44: 1000 | F44: µF
D45: Maximum Permitted ESR | E45: ='Variable Management'!B150 -> 18.98817584 | F45: mΩ
D46: Input Capacitor ESR | E46: 10 | F46: mΩ
D47: Resulting Input Voltage Ripple (max) | E47: ='Variable Management'!B155*1000 -> 161.7583952 | F47: mVpk-pk
D48: Input Capacitor RMS Current (max) | E48: ='Variable Management'!B138 -> 7 | F48: A (rms)
A50: Step 6: Soft-start, Hiccup, Dither, DEMB, MODE
D51: Soft-Start Time, tSS | E51: 2 | F51: ms
D52: Soft-Start Capacitance, CSS | E52: =IF(Tss>0.5/1000,Css_u*1000000000,"N/A") -> 68 | F52: nF
D53: Hiccup Fault Time, tRES | E53: 12 | F53: ms
D54: RES Capacitance, CRES | E54: =IF(Tres>1/1000,Cres_u*1000000000,"N/A") -> 220 | F54: nF
D55: Modulating Frequency | E55: 9 | F55: =IF(DITHER=1,"kHz","") -> kHz
D56: =IF(DITHER=1,"DITH Capacitance, Cd","*Tie DITH to VDDA") -> DITH Capacitance, Cd | E56: =IF(DITHER=1,IF(E55>0,'Standard Value Calculator'!O22*1000000000,"N/A"),"") -> 10 | F56: =IF(DITHER=1,"nF","") -> nF
D57: =IF(DEMB=1,"* Tie DEMB to VDDA","*Tie DEMB to AGND") -> * Tie DEMB to VDDA
D58: =IF(MODE=2,"* Tie MODE to VDDA","* Tie MODE to AGND") -> * Tie MODE to VDDA
A60: Step 7: Compensation Design
D61: =IF(MODE=1,"Ch1 Load Pole Frequency","Load Pole Frequency") -> Load Pole Frequency | E61: =Fp_dominant -> 2975.079756 | F61: Hz | I61: Ch2 Load Pole Frequency | J61: =Fp_dominant_Ch2 -> 3098.544225 | K61: Hz
D62: =IF(MODE=1,"Ch1 ESR Zero Frequency","ESR Zero Frequency") -> ESR Zero Frequency | E62: =Fesr/1000 -> 56.43792315 | F62: kHz | I62: Ch2 ESR Zero Frequency | J62: =Fesr_Ch2/1000 -> 795.7747164 | K62: kHz
D63: =IF(MODE=1,"Ch1 Desired Crossover Frequency","Desired Crossover Frequency") -> Desired Crossover Frequency | E63: 50 | F63: =" kHz " -> kHz | I63: Ch2 Desired Crossover Frequency | J63: 60 | K63: =" kHz " -> kHz
D64: =IF(MODE=1,"Ch1 Error Amp Pole Frequency","Error Amp Pole Frequency") -> Error Amp Pole Frequency | E64: =Fp1_u -> 0.9209377017 | F64: Hz | I64: Ch2 Error Amp Pole Frequency | J64: =Fp1_u_Ch2 -> 2.071614636 | K64: Hz
D65: =CHOOSE(Ch1_VOUT,"* Tie FB1 to VDDA for Ch1 3.3V Out","* Tie FB1 to AGND for Ch1 5V Out",IF(MODE=1,"Ch1 Upper Feedback Resistor","Upper Feedback Resistor")) -> * Tie FB1 to VDDA for Ch1 3.3V Out | E65: 75 | F65: kΩ | I65: =CHOOSE(Ch2_VOUT,"* Tie FB2 to VDDA for Ch2 3.3V Out","* Tie FB2 to AGND for Ch2 5V Out","Ch2 Upper Feedback Resistor") -> * Tie FB2 to AGND for Ch2 5V Out | J65: 115 | K65: kΩ
D66: =IF(Ch1_VOUT=3,IF(MODE=1,"Ch1 Lower Feedback Resistor","Lower Feedback Resistor"),"") ->  | E66: =IF(Vout=Vref,"OPEN",Rfb2_u/1000) -> 16.5 | F66: =IF(Vout=Vref,"","kΩ") -> kΩ | I66: =IF(Ch2_VOUT=3,"Ch2 Lower Feedback Resistor","") ->  | J66: =IF(Vout2=Vref,"OPEN",Rfb4_u/1000) -> 15.8 | K66: =IF(Vout=Vref,"","kΩ") -> kΩ
A68: Compensation Components
B69: Calculated / | C69: Std Values | D69: =C69 -> Std Values | F69: Actual P/Z Frequencies
A70: RC1 | B70: =Rcea1/1000 -> 12.1815255 | C70: ='Standard Value Calculator'!O30 -> 12.1 | D70: 6.8 | E70: kΩ | F70: =Fp1_u -> 0.9209377017 | G70: Hz (FPEA)
A71: CC1 | B71: =Cc1ea*1000000000 -> 2.613054387 | C71: ='Standard Value Calculator'!O31 -> 2.7 | D71: =C71 -> 2.7 | E71: nF | F71: =Fz1_u/1000 -> 8.668569895 | G71: kHz (FZCOMP)
A72: CC2 | B72: =IF(Cc2ea<0,"N/A",Cc2ea*1000000000000) -> 199.6671107 | C72: ='Standard Value Calculator'!O32 -> 180 | D72: 180 | E72: pF | F72: =Fp2_u/1000 -> 110.4896827 | G72: kHz (FPCOMP)
A73: RC2 | B73: =Rcea2/1000 -> 21.99114855 | C73: ='Standard Value Calculator'!O34 -> 22.1 | D73: 22.1 | E73: kΩ | F73: =Fp1_u_Ch2 -> 2.071614636 | G73: Hz (FPEA2)
A74: CC3 | B74: =Cc3ea*1000000000 -> 1.20620457 | C74: ='Standard Value Calculator'!O35 -> 1.2 | D74: 1.2 | E74: nF | F74: =Fz1_u_Ch2/1000 -> 6.00131762 | G74: kHz (FZCOMP2)
A75: CC4 | B75: =IF(Cc4ea<0,"N/A",Cc4ea*1000000000000) -> 1.065499616 | C75: =IF(1,'Standard Value Calculator'!O36) -> 1 | D75: 1 | E75: pF | F75: =Fp2_u_Ch2/1000 -> 219.3531611 | G75: kHz (FPCOMP2) | N75: ** Specify Inductor Core Loss ** | O75: 0.15 | P75: W
A77: Efficiency / Power Loss Analyzer
A79: Step 8: Efficiency
F80: =IF(MODE=1,"Ch1 Power MOSFETs","Power MOSFETs") -> Power MOSFETs | G80: (Q1, Q2) | I80: =IF(MODE=1,"Ch2 Power MOSFETs ","Power MOSFETs ") -> Power MOSFETs | J80: (Q3, Q4)
E81: BUK9Y8R7-60E/BUK9Y3R5-40E | H81: IPC50N04S5L-5R5
E82: High-side | F82: Low-side | H82: High-side | I82: Low-side
D83: On-State Resistance, RDS(on) | E83: 8.7 | F83: 3.8 | G83: mΩ | H83: 5.7 | I83: 5.7 | J83: mΩ
D84: Total Gate Charge, QG | E84: 31 | F84: 30.2 | G84: nC | H84: 9 | I84: 9 | J84: nC
D85: Gate-Drain Charge, QGD | E85: 9.7 | F85: 8.6 | G85: nC | H85: 3.6 | I85: 3.6 | J85: nC
D86: Gate-Source Charge, QGS | E86: 9 | F86: 9.7 | G86: nC | H86: 2.7 | I86: 2.7 | J86: nC
D87: Output Charge, QOSS | F87: 6 | G87: nC | I87: 6 | J87: nC
D88: Output Capacitance, COSS | E88: 295 | F88: 487 | G88: pF | H88: 300 | I88: 300 | J88: pF
D89: Gate Resistance, RG | E89: 0.5 | F89: 0.5 | G89: Ω | H89: 0.5 | I89: 0.5 | J89: Ω
D90: Transconductance, gFS | E90: 50 | F90: 50 | G90: S | H90: 50 | I90: 50 | J90: S
D91: Gate-Source Threshold Voltage, VTH | E91: 2.9 | F91: 2.9 | G91: V | H91: 2.9 | I91: 2.9 | J91: V
D92: Body Diode Forward Voltage, VBD | E92: 0.7 | F92: 0.7 | G92: V | H92: 0.7 | I92: 0.7 | J92: V
D93: Body Diode Rev Recovery Charge, QRR | F93: 19.4 | G93: nC | I93: 22 | J93: nC
D94: Thermal Resistance, θJA | E94: 50 | F94: 50 | G94: °C/W | H94: 50 | I94: 50 | J94: °C/W
A96: External Schottky Diode (if applicable) | E96: =CHOOSE(MODE,"Ch1","") ->  | F96: =CHOOSE(MODE,"Ch2","") -> 
D97: Schottky Fwd Voltage, VFWDsch | E97: 0 | F97: 0 | G97: V
D98: Schottky Rev Recovery Charge, QRRsch | E98: 0 | F98: 0 | G98: nC
A102: Step 9: IC Power Loss
D103: IC Power Dissipation | E103: ='Variable Management'!B322 -> 0.646272 | F103: W
D104: IC Junction Temperature (estimate) | E104: ='Variable Management'!B324 -> 47.4902656 | F104: °C

Sheet BOM & Schematic
A37: ** Tie DEMB to VDDA for FPWM, AGND for DCM ** | I37: =IF(OR(SCH_MODE=3,SCH_MODE=4),"** Slave controller (CNTRL2) not shown **","** Tie VCCX to GND if not used **") -> ** Tie VCCX to GND if not used **
A38: ** Tie MODE to VDDA for Single, AGND for Dual Outputs ** | I38: =IF(OR(SCH_MODE=3,SCH_MODE=4),"** Tie VCCX to GND if not used **","") -> 
A39: ** For Dual-Output Operation, tie FB1/FB2 to to VDDA for Fixed 3.3V, AGND for Fixed 5V Output **
A40: ** For Single-Output Operation in 2-Phase Mode, tie MODE to VDDA and use FB1 to set VOUT. Connect FB2 to AGND to disable EA of channel 2 **
A41: ** For Single-Output Operation in 3-Phase or 4-Phase Mode, tie all MODE pins to VDDA. Use FB1 of master IC to set VOUT. Connect FB2 of master IC to AGND. Connect FB2 of slave IC to VDDA to configure it as a slave **
A42: =CHOOSE(MODE,"VIN = "&VIN_min&" V to "&VIN_max&" V, VOUT1 = "&Vout&" V, IOUT1 = "&Iout&"A"&", VOUT2 = "&Vout2&" V, IOUT2 = "&Iout2&" A, Fsw = "&Fsw/1000&" kHz, Current Limit = "&ROUNDUP(Ilimit_DC,0)&" A","VIN = "&VIN_min&" V to "&VIN_max&" V, VOUT = "&Vout&" V, IOUT = "&Iout&" A, Fsw = "&Fsw/1000&" kHz, Current Limit = "&ROUNDUP(Ilimit_DC,0)&" A") -> VIN = 9 V to 16 V, VOUT = 3.3 V, IOUT = 28 A, Fsw = 440 kHz, Current Limit = 44 A
A43: High Efficiency Synchronous Buck Regulator BOM
A44: Count | B44: Ref Des | C44: Value | D44: Description | H44: Size | I44: Part Number | J44: MFR
A45: 2 | B45: CBOOT1, CBOOT2 | C45: 0.1 | D45: =C45 -> 0.1 | H45: 0603 | I45: Std | J45: Std
A46: 1 | B46: CC1 | C46: ='Design Regulator'!D71 -> 2.7 | D46: 2.7 | H46: 0603 | I46: Std | J46: Std
A47: 1 | B47: CC2 | C47: ='Design Regulator'!D72 -> 180 | D47: 180 | H47: 0603 | I47: Std | J47: Std
A48: 1 | B48: CC3 | C48: =IF(MODE=1,'Variable Management'!E354,"N/A") -> N/A | D48: =C48 -> N/A | H48: =IF(MODE=1,"0603","-") -> - | I48: =IF(MODE=1,"Std","-") -> - | J48: =IF(MODE=1,"Std","-") -> -
A49: 1 | B49: CC4 | C49: =IF(MODE=1,'Variable Management'!E355,"N/A") -> N/A | D49: N/A | H49: =IF(MODE=1,"0603","-") -> - | I49: =IF(MODE=1,"Std","-") -> - | J49: =IF(MODE=1,"Std","-") -> -
A50: 1 | B50: CRES | C50: =Cres_u*1000000000 -> 220 | D50: 220 | H50: 0603 | I50: Std | J50: Std
A51: 1 | B51: CDITH | C51: =Cdither*1000000000 -> 10 | D51: 10 | H51: 0603 | I51: Std | J51: Std
A52: =ROUNDUP('Design Regulator'!E44/10,0) -> 100 | B52: CIN | C52: 10 | D52: 10 | H52: 1210 | I52: Std | J52: Std
A53: =ROUNDUP('Design Regulator'!E35/47,0) -> 12 | B53: COUT | C53: 47 | D53: 47 | H53: 1210 | I53: Std | J53: Std
A54: 2 | B54: CSS1, CSS2 | C54: ='Design Regulator'!E52 -> 68 | D54: 68 | H54: 0603 | I54: Std | J54: Std
A55: 3 | B55: CVCC1, CVCC2, CVCCX | C55: 2.2 | D55: 2.2 | H55: 0603 | I55: Std | J55: Std
A56: 1 | B56: CVDDA | C56: 0.47 | D56: 0.47 | H56: 0603 | I56: Std | J56: Std
A57: 2 | B57: DBOOT1, DBOOT2 | C57: See description | D57: Schottky Diode, 60V, 200mA | H57: - | I57: - | J57: Various
A58: 1 | B58: LO1 | C58: ='Design Regulator'!E28 -> 2.2 | D58: ="Inductor, "&Lf*1000000&"µH, "&Rdcr*1000&"mΩ, >"&ROUNDUP(Ilimit_DC*1.3/SCH_MODE,0)&"A" -> Inductor, 2.2µH, 2.8mΩ, >29A | H58: - | I58: - | J58: Various
A59: 1 | B59: LO2 | C59: =IF(MODE=1,'Design Regulator'!J28,'Design Regulator'!E28) -> 2.2 | D59: =IF(MODE=1,"Inductor, "&Lo_2*1000000&"µH, "&Rdcr2*1000&"mΩ, >"&ROUNDUP(Ilimit2_DC*1.3,0)&"A","Inductor, "&Lf*1000000&"µH, "&Rdcr*1000&"mΩ, >"&ROUNDUP(Ilimit_DC*1.3/SCH_MODE,0)&"A") -> Inductor, 2.2µH, 2.8mΩ, >29A | H59: - | I59: - | J59: Various
A60: 2 | B60: Q1, Q2 | C60: See description | D60: ='Design Regulator'!E83 -> 8.7 | H60: Std | I60: ='Design Regulator'!E81 -> BUK9Y8R7-60E/BUK9Y3R5-40E | J60: -
A61: 2 | B61: Q3, Q4 | C61: See description | D61: ='Design Regulator'!H83 -> 5.7 | H61: Std | I61: =IF(MODE=1,'Design Regulator'!H81,'Design Regulator'!E81) -> BUK9Y8R7-60E/BUK9Y3R5-40E | J61: -
A62: 1 | B62: RC1 | C62: ='Design Regulator'!D70 -> 6.8 | D62: =C62 -> 6.8 | H62: 0603 | I62: Std | J62: Std
A63: 1 | B63: RC2 | C63: =IF(MODE=1,'Variable Management'!E353,"N/A") -> N/A | D63: =C63 -> N/A | H63: =IF(MODE=1,"0603","-") -> - | I63: =IF(MODE=1,"Std","-") -> - | J63: =IF(MODE=1,"Std","-") -> -
A64: 1 | B64: RS1 | C64: =Rs*1000 -> 2.5 | D64: 2.5 | H64: 0508 | I64: Std | J64: Std
A65: 1 | B65: RS2 | C65: =IF(MODE=1,Rs_Ch2*1000,Rs*1000) -> 2.5 | D65: =C65 -> 2.5 | H65: 0508 | I65: Std | J65: Std
A66: 1 | B66: RT | C66: ='Design Regulator'!E13 -> 49.9 | D66: 49.9 | H66: 0603 | I66: Std | J66: Std
A67: 1 | B67: RFB1 | C67: ='Design Regulator'!E65 -> 75 | D67: 75 | H67: 0603 | I67: Std | J67: Std
A68: 1 | B68: RFB2 | C68: ='Design Regulator'!E66 -> 16.5 | D68: 16.5 | H68: 0603 | I68: Std | J68: Std
A69: 1 | B69: RFB3 | C69: =IF(MODE=1,'Design Regulator'!J65,"N/A") -> N/A | D69: =C69 -> N/A | H69: =IF(MODE=1,"0603","-") -> - | I69: =IF(MODE=1,"Std","-") -> - | J69: =IF(MODE=1,"Std","-") -> -
A70: 1 | B70: RFB4 | C70: =IF(MODE=1,'Design Regulator'!J66,"N/A") -> N/A | D70: N/A | H70: =IF(MODE=1,"0603","-") -> - | I70: =IF(MODE=1,"Std","-") -> - | J70: =IF(MODE=1,"Std","-") -> -
A71: 2 | B71: RPGOOD1, RPGOOD2 | C71: 100 | D71: 100 | H71: 0603 | I71: Std | J71: Std
A72: 2 | B72: RPG1, RPG2 | C72: 100 | D72: 100 | H72: 0603 | I72: Std | J72: Std
A73: 1 | B73: RDEMB | C73: 100 | D73: 100 | H73: 0603 | I73: Std | J73: Std
A74: 1 | B74: RVIN | C74: 2.2 | D74: 2.2 | H74: 0603 | I74: Std | J74: Std
A75: 1 | B75: U1 | C75: LM5143-Q1 | D75: IC, LM5143-Q1, Buck PWM Controller, 3.5V–65V Input | H75: VQFN-40 | I75: LM5143QRGWQ1 | J75: TI
A78: NOTES:
A79: ** For information on TI NexFETTM MOSFETs, see ** | D79: http://www.ti.com/nexfet | E79: **
A80: ** Inductor saturation current should be higher than the peak inductor current at the OCP setpoint for all input voltages and operating temperatures **
A81: ** Effective input and output capacitances should be appropriately derated for applied voltage and temperature, particularly with ceramics **

Sheet EVM
A1: LM5143-Q1 Quickstart Design Tool
B6: LM5143-Q1EVM-2100 PCB Layout

Sheet Variable Management (hidden)
A1: EXCEL Variables Names/Calculations
B2: Input from user =
B3: Output =
B4: Constant
A5: Variable Name | B5: Value | C5: STD Units | E5: Notes | I5: Iteration
A6: Step 1: Operational Specs
A7: VIN_min | B7: ='Design Regulator'!E7 -> 9 | C7: V | D7: Minimum input voltage | I7: 1
A8: VIN_nom | B8: ='Design Regulator'!E8 -> 12 | C8: V | D8: Nominal input voltage | K8: =CHOOSE(SCH_MODE,"Efficiency vs. IOUT (Ch1)","Efficiency vs. IOUT - 2 Ph","Efficiency vs. IOUT - 3 Ph","Efficiency vs. IOUT - 4 Ph") -> Efficiency vs. IOUT - 2 Ph | L8: 1 | N8: DITHER Enabled | O8: 1 | T8: Dual Outputs | U8: 1 | W8: FPWM | X8: 1 | Z8: =CHOOSE(SCH_MODE,"Bode Plot (Ch1)","Bode Plot - 2 Ph","Bode Plot - 3 Ph","Bode Plot - 4 Ph") -> Bode Plot - 2 Ph | AA8: 1
A9: VIN_max | B9: ='Design Regulator'!E9 -> 16 | C9: V | D9: Maximum input voltage | K9: =IF(MODE=1,"Efficiency vs. IOUT (Ch2)","N/A - Do Not Use") -> N/A - Do Not Use | L9: 2 | N9: DITHER Disabled | O9: 2 | T9: Single Output – 2 Phases | U9: 2 | W9: DEM | X9: 2 | Z9: =IF(MODE=1,"Bode Plot (Ch2)","N/A - Do Not Use") -> N/A - Do Not Use | AA9: 2
K10: PLOT_TYPE | L10: 1 | N10: DITHER Yes/No | O10: 1 | P10: 1 = Yes, 2 = No | T10: Single Output – 3 Phases | U10: 3 | W10: FPWM/DEM | X10: 1 | Z10: BODE_PLOT_TYPE | AA10: 1
A11: Vout | B11: ='Design Regulator'!E10 -> 3.3 | C11: V | D11: Output voltage - channel 1 | T11: Single Output – 4 Phases | U11: 4
A12: Iout | B12: ='Design Regulator'!E11 -> 28 | C12: A | D12: Output current - channel 1 | I12: 1 | T12: Single/Dual Yes/No | U12: 2
A13: Vout2 | B13: ='Design Regulator'!J10 -> 5 | C13: V | D13: Output voltage - channel 2 | I13: 1 | K13: 3.3V | L13: 1 | N13: 3.3V | O13: 1 | T13: MODE (Single/Dual), DUAL = 1, SINGLE = 2 | U13: =IF(U12=1,1,2) -> 2 | W13: VCCX Connected | X13: 1
A14: Iout2 | B14: ='Design Regulator'!J11 -> 7 | C14: A | D14: Output current - channel 2 | K14: 5V | L14: 2 | N14: 5V | O14: 2 | T14: SINGLE OUTPUT (1 = YES) | U14: =IF(U12=1,2,1) -> 1 | W14: No External VCC | X14: 2
K15: Adjustable | L15: 3 | N15: Adjustable | O15: 3 | T15: Number of Phases | U15: =SCH_MODE -> 2 | W15: Ext_VCC | X15: 2
A16: Rout | B16: =Vout/Iout -> 0.1178571429 | C16: W | D16: Load resistance - Channel 1 | K16: Ch1 Output Setting | L16: =IF(Vout=3.3,1,IF(Vout=5,2,3)) -> 1 | N16: Ch2 Output Setting | O16: =IF(Vout2=3.3,1,IF(Vout2=5,2,3)) -> 2
A17: Rout2 | B17: =Vout2/Iout2 -> 0.7142857143 | C17: W
A18: Pout | B18: =CHOOSE(MODE,Vout*Iout+Vout2*Iout2,Vout*Iout) -> 92.4 | C18: W | D18: Output power
A20: Efficiency | B20: 0.9 | D20: Estimate of efficiency
A21: Pin | B21: =Pout/Efficiency -> 102.6666667 | C21: W | D21: Calculate input power assuming finite efficiency | L21: =Vout -> 3.3
A23: Iin_Vinmin | B23: =Pin/VIN_min -> 11.40740741 | C23: A
A24: Iin_Vinnom | B24: =Pin/VIN_nom -> 8.555555556 | C24: A | D24: Input currents at min, nom, max Vin
A25: Iin_Vinmax | B25: =Pin/VIN_max -> 6.416666667 | C25: A
A27: Fsw | B27: ='Design Regulator'!E12*1000 -> 440000 | C27: Hz | D27: Nominal switching frequency - determines RT resistor (SYNCIN must be 80-120% of this)
A28: Tsw | B28: =1/Fsw -> 2.272727273e-06 | C28: sec | D28: Switching period | I28: 1
A29: Vref | B29: 0.6 | C29: V | D29: Reference voltage
A30: Rt | B30: =22*1000/(Fsw/1000000) -> 50000 | C30: W | D30: Frequency set resistor
A33: Step 2: Buck Inductor | B33: Channel 1 | D33: Channel 2
A34: Don1 | B34: =Vout/VIN_nom -> 0.275 | F34: Ideal Duty Cycle at VIN(nom)
A35: Doff1 | B35: =1-34:34 -> 0.725 | F35: Ideal 1- Duty Cycle at VIN(nom)
A37: D_Vinmin | B37: =Vout/VIN_min -> 0.3666666667 | D37: =Vout2/VIN_min -> 0.5555555556
A38: D_Vinnom | B38: =Vout/VIN_nom -> 0.275 | D38: =Vout2/VIN_nom -> 0.4166666667
A39: D_Vinmax | B39: =Vout/VIN_max -> 0.20625 | D39: =Vout2/VIN_max -> 0.3125
A41: L_Vinnom | B41: =(VIN_nom-Vout)*D1_Vinnom/(Fsw*(Iout/Number_of_Phases)*0.35) -> 1.109693878e-06 | C41: H | D41: =(VIN_nom-Vout2)*D2_Vinnom/(Fsw*Iout2*0.35) -> 2.705627706e-06 | E41: H | F41: Calculated inductance for 35% ripple at VIN(nom)
A42: L_slopecomp | B42: =1000*Vout*Rs/24/Fsw -> 7.8125e-07 | C42: H | D42: =1000*Vout2*Rs_Ch2/24/Fsw -> 3.314393939e-06 | E42: H | F42: Calculated inductance based on one times inductor downslope
A44: Lopt | B44: =B42 -> 7.8125e-07 | C44: H | D44: =D42 -> 3.314393939e-06 | E44: H | F44: min of calculated inductances at VIN(min) and VIN(nom)
A46: Lo | B46: ='Design Regulator'!E28/1000000 -> 2.2e-06 | C46: H | D46: ='Design Regulator'!J28/1000000 -> 6.8e-07 | E46: H | F46: Chosen inductance
A47: Rdcr | B47: ='Design Regulator'!E29/1000 -> 0.0028 | C47: W | D47: ='Design Regulator'!J29/1000 -> 0.005 | E47: W | F47: Chosen inductor DCR
A49: Don2 | B49: =(Vout+Iout*(Rdcr+Rs))/(Vin+Iout*Rs) -> 0.2857000829
A50: Doff2 | B50: =1-_Don2 -> 0.7142999171
A52: D_Vinmin_2 | B52: =CHOOSE(MODE,(Vout+Iout*(Rdcr+Rs))/(VIN_min+Iout*Rs),(Vout+Iout/Number_of_Phases*(Rdcr+Rs))/(VIN_min+Iout/Number_of_Phases*Rs)) -> 0.3734587714 | D52: =(Vout2+Iout2*(Rdcr2+Rs_Ch2))/(VIN_min+Iout2*Rs_Ch2) -> 0.5618300365 | F52: Duty cycles adjusted for DCR/shunt voltage drops
A53: D_Vinnom_2 | B53: =CHOOSE(MODE,(Vout+Iout*(Rdcr+Rs))/(VIN_nom+Iout*Rs),(Vout+Iout/Number_of_Phases*(Rdcr+Rs))/(VIN_nom+Iout/Number_of_Phases*Rs)) -> 0.2803656003 | D53: =(Vout2+Iout2*(Rdcr2+Rs_Ch2))/(VIN_nom+Iout2*Rs_Ch2) -> 0.4219437298 | F53: need to include RDS(on) later
A54: D_Vinmax_2 | B54: =CHOOSE(MODE,(Vout+Iout*(Rdcr+Rs))/(VIN_max+Iout*Rs),(Vout+Iout/Number_of_Phases*(Rdcr+Rs))/(VIN_max+Iout/Number_of_Phases*Rs)) -> 0.2104271905 | D54: =(Vout2+Iout2*(Rdcr2+Rs_Ch2))/(VIN_max+Iout2*Rs_Ch2) -> 0.3167798617
A56: Iripple_Vinmin | B56: =MAX(0,(VIN_min-Vout)*D1_Vinmin_2/(Fsw*Lf)) -> 2.199085741 | C56: A | D56: =MAX(0.1,(VIN_min-Vout2)*D2_Vinmin_2/(Fsw*Lo_2)) -> 7.511096744 | E56: A
A57: Iripple_Vinnom | B57: =MAX(0,(VIN_nom-Vout)*D1_Vinnom_2/(Fsw*Lf)) -> 2.519814796 | C57: A | D57: =MAX(0,(VIN_nom-Vout2)*D2_Vinnom_2/(Fsw*Lo_2)) -> 9.87167817 | E57: A
A58: Iripple_Vinmax | B58: =MAX(0,(VIN_max-Vout)*D1_Vinmax_2/(Fsw*Lf)) -> 2.760769958 | C58: A | D58: =MAX(0,(VIN_max-Vout2)*D2_Vinmax_2/(Fsw*Lo_2)) -> 11.64631844 | E58: A
A60: Ishunt_rms_Vinmin | B60: =SQRT((Iout/Number_of_Phases)^2+(Iripple_Vinmin^2)/12) -> 14.0143854 | C60: A | D60: =SQRT(Iout2^2+(Iripple2_Vinmin^2)/12) -> 7.328122624 | E60: A
A61: Ishunt_rms_Vinnom | B61: =SQRT((Iout/Number_of_Phases)^2+(Iripple_Vinnom^2)/12) -> 14.01888449 | C61: A | D61: =SQRT(Iout2^2+(Iripple2_Vinnom^2)/12) -> 7.557832746 | E61: A
A62: Ishunt_rms_Vinmax | B62: =SQRT((Iout/Number_of_Phases)^2+(Iripple_Vinmax^2)/12) -> 14.02266573 | C62: A | D62: =SQRT(Iout2^2+(Iripple2_Vinmax^2)/12) -> 7.765504562 | E62: A
A63: Max shunt power loss at full load | B63: =B61^2*Rs -> 0.4913228055 | C63: W | D63: =D61^2*Rs -> 0.1428020896 | E63: W | F63: Note this is power loss at full load - not loss near OCP!
A65: Max inductor ripple current | B65: =MAX(B56:B58) -> 2.760769958 | C65: A | D65: =MAX(D56:D58) -> 11.64631844 | E65: A | F65: Ripple current at Vin(max)
B67: =B56/(Iout/Number_of_Phases) -> 0.1570775529 | D67: =D56/Iout2 -> 1.073013821
A68: % ripple current | B68: =B57/(Iout/Number_of_Phases) -> 0.1799867712 | D68: =D57/Iout2 -> 1.410239739
B69: =B58/(Iout/Number_of_Phases) -> 0.1971978542 | D69: =D58/Iout2 -> 1.663759778
A71: Inductor copper temerature | B71: 100 | C71: °C | D71: 100 | E71: °C
A72: DCR at hot | B72: =Rdcr*(1+0.0039*(B71-25)) -> 0.003619 | C72: W | D72: =Rdcr2*(1+0.0039*(D71-25)) -> 0.0064625 | E72: W
A75: Step 3: Sense Resistors, Slope Comp, Current Limit
A77: Ilimit_DC | B77: ='Design Regulator'!E17 -> 44 | C77: A | D77: ='Design Regulator'!J17 -> 10 | E77: A | F77: Chosen OCP level - based on output current
A79: Ilimit_inductor_Vinmin | B79: =CHOOSE(MODE,Ilimit_DC+Iripple_Vinmin/2,Ilimit_DC/Number_of_Phases+Iripple_Vinmin/2) -> 23.09954287 | C79: A | D79: =Ilimit2_DC+Iripple2_Vinmin/2 -> 13.75554837 | E79: A | F79: Peak inductor current at current limit inception
A80: Ilimit_inductor_Vinnom | B80: =CHOOSE(MODE,Ilimit_DC+Iripple_Vinnom/2,Ilimit_DC/Number_of_Phases+Iripple_Vinnom/2) -> 23.2599074 | C80: A | D80: =Ilimit2_DC+Iripple2_Vinnom/2 -> 14.93583908 | E80: A
A81: Ilimit_inductor_Vinmax | B81: =CHOOSE(MODE,Ilimit_DC+Iripple_Vinmax/2,Ilimit_DC/Number_of_Phases+Iripple_Vinmax/2) -> 23.38038498 | C81: A | D81: =Ilimit2_DC+Iripple2_Vinmax/2 -> 15.82315922 | E81: A
A84: CS threshold_min | B84: 0.066 | C84: V
A85: CS threshold | B85: 0.073 | C85: V
A86: CS threshold_max | B86: 0.08 | C86: V
A88: Shunt required to get OCP at VIN(min) | B88: =Buck_CS_threshold/B79 -> 0.003160235699 | C88: W | D88: =Buck_CS_threshold/D79 -> 0.00530694946 | E88: W
A89: Shunt required to get OCP at VIN(nom) | B89: =Buck_CS_threshold/B80 -> 0.003138447576 | C89: W | D89: =Buck_CS_threshold/D80 -> 0.004887572743 | E89: W
A90: Shunt required to get OCP at VIN(max) | B90: =Buck_CS_threshold/B81 -> 0.003122275363 | C90: W | D90: =Buck_CS_threshold/D81 -> 0.004613490832 | E90: W
A92: Rs_ideal | B92: =B89 -> 0.003138447576 | C92: W | D92: =D89 -> 0.004887572743 | E92: W | F92: Ideal Rs for the required OCP -- based on 73mV CL threshold
A93: Rs | B93: ='Design Regulator'!E19/1000 -> 0.0025 | C93: W | D93: ='Design Regulator'!J19/1000 -> 0.007 | E93: W | F93: Selected (starndard value) current limit sense resistor
A95: Current limit - peak | B95: =Buck_CS_threshold/Rs -> 29.2 | C95: A | D95: =Buck_CS_threshold/Rs_Ch2 -> 10.42857143 | E95: A | F95: Peak inductor current limit = min sat current
A97: Iout_OCP_Vinmin | B97: =Number_of_Phases*(Buck_CS_threshold/Rs-Iripple_Vinmin/2) -> 56.20091426 | C97: A | D97: =Buck_CS_threshold/Rs_Ch2-Iripple2_Vinmin/2 -> 6.673023056 | E97: A | F97: Current limit setpoints (i.e. IOUT) after standard components are selected
A98: Iout_OCP_Vinnom | B98: =Number_of_Phases*(Buck_CS_threshold/Rs-Iripple_Vinnom/2) -> 55.8801852 | C98: A | D98: =Buck_CS_threshold/Rs_Ch2-Iripple2_Vinnom/2 -> 5.492732344 | E98: A
A99: Iout_OCP_Vinmax | B99: =Number_of_Phases*(Buck_CS_threshold/Rs-Iripple_Vinmax/2) -> 55.63923004 | C99: A | D99: =Buck_CS_threshold/Rs_Ch2-Iripple2_Vinmax/2 -> 4.605412207 | E99: A
A101: Irms_OCP_Vinmin | B101: =SQRT((Iout_OCP_Vinmin/Number_of_Phases)^2+(Iripple_Vinmin^2)/12) -> 28.10762688 | C101: A | D101: =SQRT(Iout2_OCP_Vinmin^2+(Iripple2_Vinmin^2)/12) -> 7.016453371 | E101: A
A102: Irms_OCP_Vinnom | B102: =SQRT((Iout_OCP_Vinnom/Number_of_Phases)^2+(Iripple_Vinnom^2)/12) -> 27.94955987 | C102: A | D102: =SQRT(Iout2_OCP_Vinnom^2+(Iripple2_Vinnom^2)/12) -> 6.187967714 | E102: A
A103: Irms_OCP_Vinmax | B103: =SQRT((Iout_OCP_Vinmax/Number_of_Phases)^2+(Iripple_Vinmax^2)/12) -> 27.83102826 | C103: A | D103: =SQRT(Iout2_OCP_Vinmax^2+(Iripple2_Vinmax^2)/12) -> 5.702006901 | E103: A
A105: Pshunt_Vinmin | B105: =B101^2*Rs -> 1.975096723 | C105: W | D105: =D101^2*Rs_Ch2 -> 0.3446143253 | E105: W | F105: Max power dissipations in shunt
A106: Pshunt_Vinnom | B106: =B102^2*Rs -> 1.952944742 | C106: W | D106: =D102^2*Rs_Ch2 -> 0.268036611 | E106: W
A107: Pshunt_Vinmax | B107: =B103^2*Rs -> 1.936415335 | C107: W | D107: =D103^2*Rs_Ch2 -> 0.2275901789 | E107: W
A110: Step 4: Output Capacitor
A111: Icoutrms_VINmin | B111: =Iripple_Vinmin/SQRT(12) -> 0.6348213723 | C111: A | D111: =Iripple2_Vinmin/SQRT(12) -> 2.168266864 | E111: A | F111: Output Cap RMS current
A112: Icoutrms_VINnom | B112: =Iripple_Vinnom/SQRT(12) -> 0.7274078755 | C112: A | D112: =Iripple2_Vinnom/SQRT(12) -> 2.849708024 | E112: A
A113: Icoutrms_VINmax | B113: =Iripple_Vinmax/SQRT(12) -> 0.7969656393 | C113: A | D113: =Iripple2_Vinmax/SQRT(12) -> 3.362002544 | E113: A
A114: Max Cout rms current | B114: =MAX(B111:B113) -> 0.7969656393 | C114: A | D114: =MAX(D111:D113) -> 3.362002544 | E114: A
A116: Vripple1 | B116: ='Design Regulator'!E33/1000 -> 0.05 | C116: V | D116: ='Design Regulator'!J33/1000 -> 0.05 | E116: V | F116: Output voltage ripple spec(pk-pk)
A118: Output Ripple Spec (pk-pk) | B118: =Vo1_ripple*1000 -> 50 | C118: mV | D118: =Vo2_ripple*1000 -> 50 | E118: mV | F118: Vout ripple spec at Vin(nom)
A120: Coutmin | B120: =Iripple_Vinnom/(Fsw*8*Vo1_ripple) -> 1.431712952e-05 | C120: F | D120: =Iripple2_Vinnom/(Fsw*8*Vo2_ripple) -> 5.608908051e-05 | E120: F | F120: Minimum output capacitnace | H120: =Vo2_ripple -> 0.05 | I120: 1
A121: Reported Coutmin | B121: =IF(Cout_min*1000000<2,2.2,Cout_min*1000000) -> 14.31712952 | C121: uF | D121: =IF(Cout2_min*1000000<2,2.2,Cout2_min*1000000) -> 56.08908051 | E121: uF
A122: Cout | B122: ='Design Regulator'!E35/1000000 -> 0.000564 | C122: F | D122: ='Design Regulator'!J35/1000000 -> 0.0001 | E122: F | F122: Chosen output capacitance | I122: 1
A123: Resrmax | B123: =SQRT((Vo1_ripple/Iripple_Vinnom)^2-(1/(Fsw*Cout*8))^2) -> 0.01983633382 | C123: W | D123: =SQRT((Vo2_ripple/Iripple2_Vinnom)^2-(1/(Fsw*Cout2*8))^2) -> 0.0041932576 | E123: W | F123: Max ESR before ripple exceeds Vripple1 | I123: 1
A125: Reported Cout ESR max | B125: =IF(OR(CoutEsrMax>0.3,CoutEsrMax<0,(ISERROR(CoutEsrMax))),"N/A",CoutEsrMax*1000) -> 19.83633382 | C125: mΩ | D125: =IF(OR(Cout2EsrMax>0.3,Cout2EsrMax<0,(ISERROR(Cout2EsrMax))),"N/A",Cout2EsrMax*1000) -> 4.1932576 | E125: mΩ
A126: CoutEsr | B126: ='Design Regulator'!E37/1000 -> 0.005 | C126: W | D126: ='Design Regulator'!J37/1000 -> 0.002 | E126: W | F126: Chosen ESR | I126: 1 | K126: =ISERROR(CoutEsrMax) -> FALSE | L126: =ISERROR(B125) -> FALSE
A127: Vripple | B127: =Iripple_Vinnom*SQRT(Cout_ESR^2+(1/(8*Fsw*Cout))^2) -> 0.01266284559 | C127: Vp-p | D127: =Iripple2_Vinnom*SQRT(Cout2_ESR^2+(1/(8*Fsw*Cout2))^2) -> 0.03429717711 | E127: Vp-p | L127: =OR(CoutEsrMax>0.3,CoutEsrMax<0) -> FALSE
K128: =OR(TRUE,FALSE,TRUE) -> TRUE
A129: Step 5: Input Capacitor
K130: Two channels operating at full load
A131: Icinrms_VINmin | B131: =SQRT(D1_Vinmin_2*(Iout^2*(1-D1_Vinmin_2)+Iripple_Vinmin^2/12)) -> 13.54978081 | C131: A | D131: =SQRT(D2_Vinmin_2*(Iout2^2*(1-D2_Vinmin_2)+Iripple2_Vinmin^2/12)) -> 3.834586347 | E131: A | F131: Calculate input cap rms current with one output unloaded | K131: =SQRT(Iout^2*D1_Vinmin*(1-D1_Vinmin)+Iout2^2*D2_Vinmin*(1-D2_Vinmin)-2*Iout*Iout2*D1_Vinmin*D2_Vinmin) -> 10.69154506 | L131: A | M131: =SQRT(Iout^2*D1_Vinmin*(1-D1_Vinmin)+Iout2^2*D2_Vinmin*(1-D2_Vinmin)-2*Iout*Iout2*(0.5-D2_Vinmin*(1-D1_Vinmin))) -> 11.66562958 | N131: A
A132: Icinrms_VINnom | B132: =SQRT(D1_Vinnom_2*(Iout^2*(1-D1_Vinnom_2)+Iripple_Vinnom^2/12)) -> 12.58287568 | C132: A | D132: =SQRT(D2_Vinnom_2*(Iout2^2*(1-D2_Vinnom_2)+Iripple2_Vinnom^2/12)) -> 3.92147797 | E132: A | K132: =SQRT(Iout^2*D1_Vinnom*(1-D1_Vinnom)+Iout2^2*D2_Vinnom*(1-D2_Vinnom)-2*Iout*Iout2*D1_Vinnom*D2_Vinnom) -> 11.1041909 | L132: A
A133: Icinrms_VINmax | B133: =SQRT(D1_Vinmax_2*(Iout^2*(1-D1_Vinmax_2)+Iripple_Vinmax^2/12)) -> 11.41899132 | C133: A | D133: =SQRT(D2_Vinmax_2*(Iout2^2*(1-D2_Vinmax_2)+Iripple2_Vinmax^2/12)) -> 3.766386969 | E133: A | K133: =SQRT(Iout^2*D1_Vinmax*(1-D1_Vinmax)+Iout2^2*D2_Vinmax*(1-D2_Vinmax)-2*Iout*Iout2*D1_Vinmax*D2_Vinmax) -> 10.65885049 | L133: A
A134: Max Cin rms current | B134: =MAX(B131:B133,D131:D133) -> 13.54978081 | C134: A | K134: =MAX(K131:K133) -> 11.1041909 | L134: A
F135: =Number_of_Phases*D1_Vinnom -> 0.55 | G135: N*D
A136: Icinrms - multiphase | B136: =Iout*SQRT((D1_Vinnom-F136/Number_of_Phases)*((F136+1)/Number_of_Phases-D1_Vinnom)) -> 6.96491206 | C136: A | F136: =FLOOR(Number_of_Phases*D1_Vinnom,1) -> 0 | G136: floor(N*D)
A137: Icinrms - multiphase - max | B137: =Iout/2/Number_of_Phases -> 7 | C137: A
A138: Final result | B138: =CHOOSE(MODE,B134,B137) -> 7 | C138: A | D138: …report this
A140: Vinripple1 | B140: ='Design Regulator'!E42/1000 -> 0.3 | C140: Vp-p | F140: Input voltage ripple spec (pk-pk)
A142: Cinmin_Vinmax | B142: =Iout/Number_of_Phases*D1_Vinmax*(1-D1_Vinmax)/(Vinripple1*Fsw) -> 1.736328125e-05 | C142: F | F142: Calculate cap at Vinmax and 50% duty cycle (Vin = 2*Vout)
A143: Cinmin_50%D | B143: =MAX(Iout/Number_of_Phases*0.5*(1-0.5)/(Vinripple1*Fsw),Iout2*0.5*(1-0.5)/(Vinripple1*Fsw)) -> 2.651515152e-05 | C143: F | F143: Buck 50% typically worst case
A144: Cinmin | B144: =IF(VIN_max<2*Vout,B142,B143) -> 2.651515152e-05 | C144: F
A145: Reported Cinmin | B145: =IF(Cinmin*1000000<10,10,Cinmin*1000000) -> 26.51515152 | C145: uF | F145: …report this
A146: Cin | B146: ='Design Regulator'!E44/1000000 -> 0.001 | C146: F | F146: Input capacitance
A147: CinEsrMax_Vinmax | B147: =-(Iout/Number_of_Phases*D1_Vinmax*(1-D1_Vinmax)/(Cin*Fsw)-Vinripple1)/(Iout/Number_of_Phases+Iripple_Vinmax/2) -> 0.0191666864 | C147: W
A148: CinEsrMax_50%D | B148: =-(Iout/Number_of_Phases*0.5*(1-0.5)/(Cin*Fsw)-Vinripple1)/(Iout/Number_of_Phases+Iripple_Vinmax/2) -> 0.01898817584 | C148: W | F148: Calculate ESR at Vinmax and 50% duty cycle (Vin = 2*Vout)
A149: CinEsrMax | B149: =IF(VIN_max<2*Vout,B147,B148) -> 0.01898817584 | C149: W
A150: Reported Cin ESR max | B150: =IF(OR(CinEsrMax>0.3,CinEsrMax<0),"N/A",CinEsrMax*1000) -> 18.98817584 | C150: mΩ | F150: …report this
A151: RCinEsr | B151: ='Design Regulator'!E46/1000 -> 0.01 | C151: W | F151: Input capacitance series resistance (ESR)
A153: Vinripple2_Vinmax | B153: =Iout/Number_of_Phases*D1_Vinmax_2*(1-D1_Vinmax_2)/(Cin*Fsw)+(Iout/Number_of_Phases+Iripple_Vinmax/2)*RCinEsr -> 0.159090364 | C153: Vp-p
A154: Vinripple2_50%D | B154: =Iout/Number_of_Phases*0.5*(1-0.5)/(Cin*Fsw)+(Iout/Number_of_Phases+Iripple_Vinmax/2)*RCinEsr -> 0.1617583952 | C154: Vp-p | F154: Calculate ripple at Vinmax and 50% duty cycle (Vin = 2*Vout)
A155: Vinripple2 | B155: =IF(VIN_max<2*Vout,B153,B154) -> 0.1617583952 | C155: Vp-p | F155: …report highest of these
B157: =Iout*D1_Vinmax_2*(1-D1_Vinmax_2)/(Cin*Fsw) -> 0.01057302833 | C157: Vp-p
A159: Step 6a: Soft Start
A160: Tss | B160: ='Design Regulator'!E51/1000 -> 0.002 | C160: s | D160: Soft-start time
A161: Iss | B161: =Cout*Vout/Tss -> 0.9306 | C161: A | D161: Load cap current during soft start
A162: Css | B162: =0.00002*Tss/0.6 -> 6.666666667e-08 | C162: F
A163: Css_u | B163: ='Standard Value Calculator'!B4 -> 6.8e-08 | C163: F
A165: Step 6b: Other Components - Dither, Hiccup, DEMB, MODE
A166: Tres | B166: ='Design Regulator'!E53/1000 -> 0.012 | C166: s | D166: Hiccup time
A167: Cres | B167: =0.00002*Tres/1.2 -> 2e-07 | C167: F
A168: Cres_u | B168: ='Standard Value Calculator'!G4 -> 2.2e-07 | C168: F
A170: RPG1/2 | B170: 100 | C170: kΩ
A171: RFB1/2 | C171: W | E171: Tie to VDDA or AGND for 3.3V/5V output, respectively.
A172: R_MODE | C172: W | E172: Tie to VDDA or AGND for Single/Dual operation, respectively.
A173: R_DEMB | C173: W | E173: Tie to VDDA or AGND for FPWM/DEM, respectively.
A175: Dither Modulation Frequency | B175: ='Design Regulator'!E55*1000 -> 9000 | C175: Hz
A176: Cdither_calculated | B176: =10*10^-6/Fdither/0.12 -> 9.259259259e-09 | C176: F
A177: Cdither_stdvalue | B177: ='Standard Value Calculator'!O22 -> 1e-08 | C177: F
A180: Step 7: Compensation
A181: Pi | B181: 3.14159265 | D181: p
A182: CS Amp Gain | B182: 12
A183: Ri | B183: =Rs*CSAmp_gain -> 0.03 | C183: W | D183: =Rs_Ch2*CSAmp_gain -> 0.084 | E183: W | F183: Current Sense effective resistance = shunt resistor Rs * CS amp gain
A184: gm | B184: 0.0012 | C184: S | F184: Error Amp Transconductance
A186: Se_ext | B186: =B190/Ri*1000 -> 4266666.667 | C186: A/s | D186: =B190/Ri_Ch2*1000 -> 1523809.524 | E186: A/s | F186: Slope Comp Slope - referred to inductor current
A187: Sn | B187: =(Vin-Vout)/Lf -> 3954545.455 | C187: A/s | D187: =(Vin-Vout2)/Lo_2 -> 10294117.65 | E187: A/s | F187: On-time Slope
A188: Sf | B188: =Vout/Lf -> 1500000 | C188: A/s | D188: =Vout2/Lo_2 -> 7352941.176 | E188: A/s | F188: Off-time Slope
K189: Tsw | L189: Tsw (us) | M189: Slope comp amplitude
A190: Se_int | B190: =(Fsw/1000)/220*64 -> 128 | C190: mV/μs | F190: Slope Comp Slope - referred to IC | K190: =Ts -> 2.272727273e-06 | L190: =Ts*1000000 -> 2.272727273 | M190: =B190*L190 -> 290.9090909 | N190: mV
A191: Sn_int | B191: =Sn*Ri/1000 -> 118.6363636 | C191: mV/μs | D191: =Sn_Ch2*Ri_Ch2/1000 -> 864.7058824 | E191: mV/μs | F191: etc
A192: Sf_int | B192: =Sf*Ri/1000 -> 45 | C192: mV/μs | D192: =Sf_Ch2*Ri_Ch2/1000 -> 617.6470588 | E192: mV/μs | F192: etc
A194: mc_buck | B194: =1+Se_ext/Sn -> 2.078927203 | D194: =1+Se_ext_Ch2/Sn_Ch2 -> 1.148027211 | F194: mc = 1 + Se/Sf for peak current-mode buck
A195: k_buck | B195: =mc_buck*(1-D1_Vinnom_2) -> 1.49606753 | D195: =mc_buck_Ch2*(1-D2_Vinnom_2) -> 0.6636243276 | F195: mc*(1-d)
A197: mc | B197: =1+Se_ext/Sn -> 2.078927203 | D197: =1+Se_ext_Ch2/Sn_Ch2 -> 1.148027211
A198: k | B198: =mc_buck*(1-D1_Vinnom_2) -> 1.49606753 | D198: =mc_buck_Ch2*(1-D2_Vinnom_2) -> 0.6636243276
A199: Q | B199: =1/Pi/(k-0.5) -> 0.3195665726 | D199: =1/Pi/(k_Ch2-0.5) -> 1.945370173 | F199: 1/(Pi*(k-0.5)) | H199: Q = 2/Pi = 0.636 gives ideal one-cycle damping
A201: Error Amp (EA)
A202: GBW | B202: 6 | C202: MHz | F202: EA gain-bandwidth product
A203: Cbw | B203: =gm/(2*Pi*GBW*1000000) -> 3.183098865e-11 | C203: F | F203: EA effective bandwidth limiting capacitance = gm/(2*Pi*GBW)
A204: RoEA | B204: 64000000 | C204: W | F204: EA output resistance
A205: AEA | B205: =gm*RoEA -> 76800 | C205: V/V | F205: EA DC gain = gm*RoEA
A206: Afb | B206: =Vref/Vout -> 0.1818181818 | C206: V/V | D206: =Vref/Vout2 -> 0.12 | E206: V/V | F206: Feedback gain from Vout to FB
A207: Acs | B207: =1/Ri -> 33.33333333 | D207: =1/Ri_Ch2 -> 11.9047619 | F207: Acs = 1/Ri
A208: Am_buck | B208: =(Ro/Number_of_Phases)/Ri/((1+Ro/Number_of_Phases*(k-0.5)/(Fsw*Lf))) -> 1.851986393 | D208: =Ro_Ch2/Ri_Ch2/((1+Ro_Ch2*(k_Ch2-0.5)/(Fsw*Lo_2))) -> 6.114812531
A209: Am | B209: =(Ro*Number_of_Phases)/Ri/((1+Ro*Number_of_Phases*(k-0.5)/(Fsw*Lf))) -> 6.3234073 | D209: =Ro_Ch2/Ri_Ch2/((1+Ro_Ch2*(k_Ch2-0.5)/(Fsw*Lo_2))) -> 6.114812531 | F209: Buck modulator gain
A211: Scaling factor to calculate Rcomp - buck | B211: =2*Pi*Ri/gm -> 157.0796325 | F211: 2*Pi*Ri/gm -- scaling factor to calculate Rcomp given desired buck crossover frequency
A212: DC Gain is Adc = AEA*Afb*Am
A214: Ro | B214: =Rout -> 0.1178571429 | C214: W | D214: =Rout2 -> 0.7142857143 | E214: W | F214: Output Resistance
A216: Fp_load_buck | B216: =1/(2*Pi*Ro*Cout)+(k-0.5)/(2*Pi*Fsw*Lf*Cout/Number_of_Phases) -> 2975.079756 | C216: Hz | D216: =1/(2*Pi*Ro_Ch2*Cout2)+(k_Ch2-0.5)/(2*Pi*Fsw*Lo_2*Cout2) -> 3098.544225 | E216: Hz | F216: Buck dominant pole frequency -- note slope comp influence
A217: Fp_dominant | B217: =Fload_u -> 2975.079756 | C217: Hz | D217: =Fload_u_Ch2 -> 3098.544225 | E217: Hz
B218: =Cbw -> 3.183098865e-11
A219: Fp_EA | B219: =1/(2*Pi*(RoEA+Rcea1_u)*Cc1ea_u) -> 0.9209377017 | C219: Hz | D219: =1/(2*Pi*(RoEA+Rcea2_u)*Cc3ea_u) -> 2.071614636 | E219: Hz | F219: Error Amp LF pole -- related to amplifier ouptut resistance and comp cap
A220: Fp_HF | B220: =1/(2*Pi*Rcea1_u*(Cc2ea_u+Cbw)) -> 110489.6827 | C220: Hz | D220: =1/(2*Pi*Rcea2_u*(Cc4ea_u+Cbw)) -> 219353.1611 | E220: Hz | F220: Error Amp HF pole cancels zero related to Output Cap ESR
A221: Fesr | B221: =1/(2*Pi*Cout*Cout_ESR) -> 56437.92315 | C221: Hz | D221: =1/(2*Pi*Cout2*Cout2_ESR) -> 795774.7164 | E221: Hz | F221: Cout ESR zero frequency
A222: F_mod | B222: =Fsw/2 -> 220000 | C222: Hz | F222: Zero-order sample-and-hold effects of current-mode control modeled as pole at Fsw/2
A224: Desired Crossover Frequency | B224: ='Design Regulator'!E63*1000 -> 50000 | C224: Hz | D224: ='Design Regulator'!J63*1000 -> 60000 | E224: Hz
A225: Rcea1 | B225: =Fcross*Cout/Number_of_Phases*2*Pi*Ri/(gm*Afb) -> 12181.5255 | C225: W | D225: =Fcross_Ch2*Cout2*2*Pi*Ri_Ch2/(gm*Afb_Ch2) -> 21991.14855 | E225: W | F225: This component will largely determine the crossover frequency
A226: Cc1ea, Cc3ea | B226: =10/(Rcea1*Fcross*2*Pi) -> 2.613054387e-09 | C226: F | D226: =10/(Rcea2*Fcross_Ch2*2*Pi) -> 1.20620457e-09 | E226: F | F226: This along with Rcea1 will set a zero at Fcrossover/5 to optimize phase margin
A227: Cc2ea, Cc4ea | B227: =MAX(1/(Rcea1*2*Pi*Fesr)-Cbw,1/(Rcea1*2*Pi*(Fsw/2))-Cbw) -> 1.996671107e-10 | C227: F | D227: =MAX(1/(Rcea2*2*Pi*Fesr_Ch2)-Cbw,1/(Rcea2*2*Pi*(Fsw/2))-Cbw) -> 1.065499616e-12 | E227: F | F227: This along with Rcea1 places a pole at the output cap ESR zero
A229: Chosen Compensation Components from the standard value sheet
A230: Rcea1_u | B230: ='Design Regulator'!D70*1000 -> 6800 | C230: W | D230: ='Design Regulator'!D73*1000 -> 22100 | E230: W | F230: =1/(Rcea1*2*Pi*(Fsw/2))-Cbw -> 2.755661106e-11
A231: Cc1ea_u | B231: ='Design Regulator'!D71*0.000000001 -> 2.7e-09 | C231: F | D231: ='Design Regulator'!D74*0.000000001 -> 1.2e-09 | E231: F
A232: Cc2ea_u | B232: ='Design Regulator'!D72*0.000000000001 -> 1.8e-10 | C232: F | D232: ='Design Regulator'!D75*0.000000000001 -> 1e-12 | E232: F
A234: Resulting Pole/Zero Locations | F234: =Cout -> 0.000564 | G234: =Cout_ESR -> 0.005
A235: Fz1 | B235: =1/(2*Pi*Rcea1_u*Cc1ea_u) -> 8668.569895 | C235: Hz | D235: =1/(2*Pi*Rcea2_u*Cc3ea_u) -> 6001.31762 | E235: Hz | F235: This zero is set at or close to the dominant load pole
A236: Fp2 | B236: =1/(2*Pi*Rcea1_u*(Cc1ea_u*(Cc2ea_u+Cbw)/(Cc1ea_u+Cc2ea_u+Cbw))) -> 119158.2526 | C236: Hz | D236: =1/(2*Pi*Rcea2_u*(Cc3ea_u*(Cc4ea_u+Cbw)/(Cc3ea_u+Cc4ea_u+Cbw))) -> 225354.4787 | E236: Hz | F236: This pole cancels the zero from the Output Cap ESR
A238: Rfb1 | B238: ='Design Regulator'!E65*1000 -> 75000 | C238: W | D238: ='Design Regulator'!J65*1000 -> 115000 | E238: W | F238: Upper Feedback Resistance - chosen by user
A239: Rfb2 | B239: =IF(Vout=Vref,100000000,Vref*B238/((Vout-Vref))) -> 16666.66667 | C239: W | D239: =IF(Vout2=Vref,100000000,Vref*D238/((Vout2-Vref))) -> 15681.81818 | E239: W | F239: Lower Feedback Resistance
A240: Rfb2_u | B240: =IF(Vout=Vref,"N/A",'Standard Value Calculator'!O11) -> 16500 | C240: W | D240: =IF(Vout2=Vref,"N/A",'Standard Value Calculator'!O13) -> 15800 | E240: W | F240: Std Value Lower Feedback Resistance
A243: Other Input Variables
A244: Rfets | B244: 0 | C244: W | D244: Series resistance due to FETs
A245: Diode loss eq res | B245: =0.00000002*Fsw*0.6*4/Iripple1 -> 
A246: Fet loss eq res | B246: =_Don2*RdsonTop+Doff2*RdsonBot -> 
A247: cap loss eq res | B247: =B248*Vin^2*Fsw/2/(((Iripple1/SQRT(3))^2)) -> 
A248: Sw cap | B248: 5e-09
A250: Step 8: Efficiency
A251: VAR | B251: 0
A252: Design
A253: Ta | B253: ='Design Regulator'!E14 -> 25 | C253: °C | D253: Ambient Temperature
A254: Components
A255: LTc | B255: =4000/1000000 -> 0.004 | C255: %/°C | D255: Inductor DCR Temp Co
A256: θCA | B256: 20 | C256: °C/W | D256: Inductor Core to Ambient Thermal Resistance
A257: RCinEsr | B257: =RCinEsr -> 0.01 | C257: W | D257: Input Capacitor ESR
A259: Controller Characteristics
... 105 more rows

Sheet Stability Calculations (hidden)
A2: Divider Network & EA Poles/Zeros | E2: Modulator | J2: Power Stage Poles/Zeros | M2: Complex Pole Pair | P2: Total System
B3: Afb1 | C3: =Afb -> 0.1818181818 | D3: V/V | E3: Acs | F3: =Acs -> 33.33333333 | G3: A/V | H3: gm | I3: =gm -> 0.0012 | J3: z_ESR | K3: =Fesr -> 56437.92315 | L3: Hz | M3: p3 | N3: =Fsw/2 -> 220000 | O3: Hz | P3: Adc | Q3: =Am*Afb*AEA -> 88297.76011 | R3: V/V
B4: EA zero, z1 | C4: =Fz1_u -> 8668.569895 | D4: Hz | E4: Am | F4: =Am -> 6.3234073 | G4: V/V | J4: p_dom | K4: =Fp_dominant -> 2975.079756 | L4: Hz | M4: pterm1 | N4: =Q*pole3 -> 70304.64597 | P4: Crossover | Q4: =AE7 -> 29.512 | R4: kHz
B5: EA pole, p1 | C5: =Fp1_u -> 0.9209377017 | D5: Hz | E5: Q | F5: =Q -> 0.3195665726 | M5: pterm2 | N5: =pole3^2 -> 48400000000 | P5: Phase Margin | Q5: =AE9 -> 68.89499608 | R5: °
B6: Aea | C6: =AEA -> 76800 | D6: V/V | E6: mc | F6: =mc -> 2.078927203 | P6: radconv | Q6: =180/Pi -> 57.29577958 | AD6: XOVER SEARCH
B7: EA pole, p2 | C7: =Fp2_u -> 110489.6827 | D7: Hz | E7: k | F7: =k -> 1.49606753 | AD7: xover | AE7: =SUM(AD12:AD613)/1000 -> 29.512
AD9: phase margin | AE9: =SUM(AE13:AE613) -> 68.89499608
A10: Freq (Hz) | C10: Power Stage | I10: Error Amplifier | O10: Sampling Double Pole | Q10: System Response | X10: ERROR AMP Response | AA10: PLANT Response
C11: p_dom | E11: z_ESR | G11: z_RHP | I11: p1 | K11: z1 | M11: p2 | O11: p3
C12: Gain(V/V) | D12: Phase(rad) | E12: Gain(V/V) | F12: Phase(rad) | G12: Gain(V/V) | H12: Phase(rad) | I12: Gain(V/V) | J12: Phase(rad) | K12: Gain(V/V) | L12: Phase(rad) | M12: Gain(V/V) | N12: Phase(rad) | O12: Gain(V/V) | P12: Phase(rad) | Q12: Gain (dB) | R12: Phase (°) | S12: Phase Margin (°) | V12: Fsquare | X12: Gain(dB) | Y12: Phase(Deg) | AA12: Gain(dB) | AB12: Phase(Deg)
A13: 1 | B13: =A13/1000 -> 0.001 | C13: =SQRT(1+(A13/pole1)^2) -> 1.000000056 | D13: =ATAN(A13/pole1) -> 0.00033612543 | E13: =SQRT(1+(A13/Zero1)^2) -> 1 | F13: =ATAN(A13/Zero1) -> 1.771858254e-05 | G13: =IF(VIN_nom>Vout,1,SQRT(1+(A13/z_RHP)^2)) -> 1 | H13: =IF(VIN_nom>Vout,0,-ATAN(A13/z_RHP)) -> 0 | I13: =SQRT(1+(A13/Pole2)^2) -> 1.476167248 | J13: =ATAN(A13/Pole2) -> 0.8265331257 | K13: =SQRT(1+(A13/Zero2)^2) -> 1.000000007 | L13: =ATAN(A13/Zero2) -> 0.0001153592816 | M13: =SQRT(1+(A13/pole4)^2) -> 1 | N13: =ATAN(A13/pole4) -> 9.050618807e-06 | O13: =SQRT((1-(V13/pterm2))^2+(A13/pterm1)^2) -> 1 | P13: =IF((ATAN((A13/pterm1)/(1-A13^2/pterm2))>0),ATAN((A13/pterm1)/(1-A13^2/pterm2)),PI()+ATAN((A13/pterm1)/(1-A13^2/pterm2))) -> 1.422381105e-05 | Q13: =20*LOG10(((E13*K13*G13)/(C13*I13*O13*M13))*Adc) -> 95.536282 | R13: =((F13+L13+H13)-(D13+J13+P13+N13))*radconv -> -47.36982708 | S13: =IF(R13>0,R13,R13+180) -> 132.6301729 | U13: =IF(Q13<0,A13,1000000000) -> 1000000000 | V13: =A13^2 -> 1 | X13: =20*LOG10((K13/(I13*M13))*AEA) -> 94.32451315 | Y13: =(L13-(J13+N13))*radconv -> -47.35076874 | AA13: =20*LOG10((E13*G13/(C13*O13))*Acs*Am) -> 46.47659754 | AB13: =(F13+H13-(D13+P13))*radconv -> -0.01905833289 | AD13: =SUM((Q14<0)*(Q13>0))*A13 -> 0 | AE13: =IF(AD13>0,S11,0) -> 0
A14: 1.0965 | B14: =A14/1000 -> 0.0010965 | C14: 1.000000068 | D14: 0.0003685615312 | E14: 1 | F14: 1.942842576e-05 | G14: 1 | H14: 0 | I14: 1.554866552 | J14: 0.8722018992 | K14: 1.000000008 | L14: 0.0001264914522 | M14: 1 | N14: 9.924003522e-06 | O14: 1 | P14: 1.559640881e-05 | Q14: 95.08513079 | R14: -49.9877064 | S14: 130.0122936 | U14: =IF(Q14<0,A14,1000000000) -> 1000000000 | V14: =A14^2 -> 1.20231225 | X14: 93.87336204 | Y14: -49.96680894 | AA14: 46.47659744 | AB14: -0.02089746185 | AD14: =SUM((Q15<0)*(Q14>0))*A14 -> 0 | AE14: 0
A15: 1.2023 | B15: 0.0012023 | C15: 1.000000082 | D15: 0.0004041235977 | E15: 1 | F15: 2.130305179e-05 | G15: 1 | H15: 0 | I15: 1.644498444 | J15: 0.9171462435 | K15: 1.00000001 | L15: 0.000138696464 | M15: 1 | N15: 1.088155899e-05 | O15: 1 | P15: 1.710128802e-05 | Q15: 94.59832377 | R15: -52.56419958 | S15: 127.4358004 | U15: 1000000000 | V15: 1.44552529 | X15: 93.38655515 | Y15: -52.54128575 | AA15: 46.47659732 | AB15: -0.02291383324 | AD15: 0 | AE15: 0
A16: 1.3183 | B16: 0.0013183 | C16: 1.000000098 | D16: 0.000443114142 | E16: 1 | F16: 2.335840737e-05 | G16: 1 | H16: 0 | I16: 1.746173778 | J16: 0.9610241776 | K16: 1.000000012 | L16: 0.0001520781404 | M16: 1 | N16: 1.193143077e-05 | O16: 1 | P16: 1.87512501e-05 | Q16: 94.07724374 | R16: -55.07972424 | S16: 124.9202758 | U16: 1000000000 | V16: 1.73791489 | X16: 92.86547526 | Y16: -55.05459964 | AA16: 46.47659718 | AB16: -0.02512459954 | AD16: 0 | AE16: 0
A17: 1.4454 | B17: 0.0014454 | C17: 1.000000118 | D17: 0.0004858356766 | E17: 1 | F17: 2.561043921e-05 | G17: 1 | H17: 0 | I17: 1.86099175 | J17: 1.003507066 | K17: 1.000000014 | L17: 0.0001667403048 | M17: 1 | N17: 1.308176442e-05 | O17: 1 | P17: 2.055909649e-05 | Q17: 93.52410388 | R17: -57.51546256 | S17: 122.4845374 | U17: 1000000000 | V17: 2.08918116 | X17: 92.31233556 | Y17: -57.48791565 | AA17: 46.47659701 | AB17: -0.02754691322 | AD17: 0 | AE17: 0
A18: 1.5849 | B18: 0.0015849 | C18: 1.000000142 | D18: 0.0005327251636 | E18: 1 | F18: 2.808218147e-05 | G18: 1 | H18: 0 | I18: 1.99040567 | J18: 1.044412313 | K18: 1.000000017 | L18: 0.0001828329242 | M18: 1 | N18: 1.434432575e-05 | O18: 1 | P18: 2.254331813e-05 | Q18: 92.94016065 | R18: -59.86096955 | S18: 120.1390304 | U18: 1000000000 | V18: 2.51190801 | X18: 91.72839254 | Y18: -59.830764 | AA18: 46.4765968 | AB18: -0.03020555006 | AD18: 0 | AE18: 0
A19: 1.7378 | B19: 0.0017378 | C19: 1.000000171 | D19: 0.0005841187278 | E19: 1 | F19: 3.079135274e-05 | G19: 1 | H19: 0 | I19: 2.135586641 | J19: 1.08348101 | K19: 1.00000002 | L19: 0.0002004713578 | M19: 1 | N19: 1.572816536e-05 | O19: 1 | P19: 2.471813883e-05 | Q19: 92.32864852 | R19: -62.10142369 | S19: 117.8985763 | U19: 1000000000 | V19: 3.01994884 | X19: 91.11688066 | Y19: -62.06830412 | AA19: 46.47659655 | AB19: -0.03311956835 | AD19: 0 | AE19: 0
A20: 1.9055 | B20: 0.0019055 | C20: 1.000000205 | D20: 0.0006404869434 | E20: 1.000000001 | F20: 3.376275903e-05 | G20: 1 | H20: 0 | I20: 2.298068754 | J20: 1.120593688 | K20: 1.000000024 | L20: 0.0002198171085 | M20: 1 | N20: 1.724595414e-05 | O20: 1 | P20: 2.710347195e-05 | Q20: 91.69173181 | R20: -64.22999814 | S20: 115.7700019 | U20: 1000000000 | V20: 3.63093025 | X20: 90.47996425 | Y20: -64.19368249 | AA20: 46.47659625 | AB20: -0.03631564969 | AD20: 0 | AE20: 0
A21: 2.0893 | B21: 0.0020893 | C21: 1.000000247 | D21: 0.0007022667719 | E21: 1.000000001 | F21: 3.70194345e-05 | G21: 1 | H21: 0 | I21: 2.479283195 | J21: 1.155629724 | K21: 1.000000029 | L21: 0.0002410201434 | M21: 1 | N21: 1.890945787e-05 | O21: 1 | P21: 2.971780841e-05 | Q21: 91.03246911 | R21: -66.23979848 | S21: 113.7602015 | U21: 1000000000 | V21: 4.36517449 | X21: 89.82070192 | Y21: -66.19997991 | AA21: 46.47659589 | AB21: -0.03981856981 | AD21: 0 | AE21: 0
A22: 2.2909 | B22: 0.0022909 | C22: 1.000000296 | D22: 0.0007700296244 | E22: 1.000000001 | F22: 4.059150073e-05 | G22: 1 | H22: 0 | I22: 2.681048436 | J22: 1.188568542 | K22: 1.000000035 | L22: 0.0002642765732 | M22: 1 | N22: 2.073406262e-05 | O22: 1 | P22: 3.258532872e-05 | Q22: 90.35289826 | R22: -68.12966795 | S22: 111.870332 | U22: 1000000000 | V22: 5.24822281 | X22: 89.1411315 | Y22: -68.08600722 | AA22: 46.47659546 | AB22: -0.04366072776 | AD22: 0 | AE22: 0
A23: 2.5119 | B23: 0.0025119 | C23: 1.000000356 | D23: 0.0008443132987 | E23: 1.000000001 | F23: 4.450730747e-05 | G23: 1 | H23: 0 | I23: 2.905083047 | J23: 1.219383923 | K23: 1.000000042 | L23: 0.0002897709726 | M23: 1 | N23: 2.273424938e-05 | O23: 1.000000001 | P23: 3.572879096e-05 | Q23: 89.65581997 | R23: -69.89812501 | S23: 110.101875 | U23: 1000000000 | V23: 6.30964161 | X23: 88.44405372 | Y23: -69.85025239 | AA23: 46.47659494 | AB23: -0.04787261671 | AD23: 0 | AE23: 0
A24: 2.7542 | B24: 0.0027542 | C24: 1.000000429 | D24: 0.0009257564297 | E24: 1.000000001 | F24: 4.880052001e-05 | G24: 1 | H24: 0 | I24: 3.15340645 | J24: 1.248107887 | K24: 1.00000005 | L24: 0.0003177225241 | M24: 1 | N24: 2.492721431e-05 | O24: 1.000000001 | P24: 3.917522037e-05 | Q24: 88.94339142 | R24: -71.54702892 | S24: 108.4529711 | U24: 1000000000 | V24: 7.58561764 | X24: 87.7316258 | Y24: -71.49453847 | AA24: 46.47659431 | AB24: -0.05249044729 | AD24: 0 | AE24: 0
A25: 3.02 | B25: 0.00302 | C25: 1.000000515 | D25: 0.001015098488 | E25: 1.000000001 | F25: 5.351011924e-05 | G25: 1 | H25: 0 | I25: 3.428350578 | J25: 1.27480788 | K25: 1.000000061 | L25: 0.0003483850179 | M25: 1 | N25: 2.733286879e-05 | O25: 1.000000001 | P25: 4.295590934e-05 | Q25: 88.21728528 | R25: -73.08027254 | S25: 106.9197275 | U25: 1000000000 | V25: 9.1204 | X25: 87.00552041 | Y25: -73.02271639 | AA25: 46.47659356 | AB25: -0.05755614754 | AD25: 0 | AE25: 0
A26: 3.3113 | B26: 0.0033113 | C26: 1.000000619 | D26: 0.001113011719 | E26: 1.000000002 | F26: 5.867154232e-05 | G26: 1 | H26: 0 | I26: 3.732044356 | J26: 1.299532092 | K26: 1.000000073 | L26: 0.0003819891723 | M26: 1 | N26: 2.996931405e-05 | O26: 1.000000001 | P26: 4.70993055e-05 | Q26: 87.48005306 | R26: -74.5006429 | S26: 105.4993571 | U26: 1000000000 | V26: 10.96470769 | X26: 86.26828909 | Y26: -74.43753506 | AA26: 46.47659266 | AB26: -0.06310783377 | AD26: 0 | AE26: 0
A27: 3.6308 | B27: 0.0036308 | C27: 1.000000745 | D27: 0.001220403651 | E27: 1.000000002 | F27: 6.433262942e-05 | G27: 1 | H27: 0 | I27: 4.067349614 | J27: 1.322389139 | K27: 1.000000088 | L27: 0.000418846457 | M27: 1.000000001 | N27: 3.286098675e-05 | O27: 1.000000001 | P27: 5.164381312e-05 | Q27: 86.73275795 | R27: -75.81439828 | S27: 104.1856017 | U27: 1000000000 | V27: 13.18270864 | X27: 85.52099507 | Y27: -75.74520132 | AA27: 46.47659157 | AB27: -0.06919696298 | AD27: 0 | AE27: 0
A28: 3.9811 | B28: 0.0039811 | C28: 1.000000895 | D28: 0.001338148201 | E28: 1.000000002 | F28: 7.053944886e-05 | G28: 1 | H28: 0 | I28: 4.437032986 | J28: 1.343467551 | K28: 1.000000105 | L28: 0.0004592568057 | M28: 1.000000001 | N28: 3.603141852e-05 | O28: 1.000000001 | P28: 5.662641412e-05 | Q28: 85.97713373 | R28: -77.02664474 | S28: 102.9733553 | U28: 1000000000 | V28: 15.84915721 | X28: 84.76537216 | Y28: -76.95077166 | AA28: 46.47659026 | AB28: -0.0758730862 | AD28: 0 | AE28: 0
A29: 4.3652 | B29: 0.0043652 | C29: 1.000001076 | D29: 0.001467253729 | E29: 1.000000003 | F29: 7.734515638e-05 | G29: 1 | H29: 0 | I29: 4.844289401 | J29: 1.362872771 | K29: 1.000000127 | L29: 0.0005035662957 | M29: 1.000000001 | N29: 3.95077612e-05 | O29: 1.000000002 | P29: 6.208977993e-05 | Q29: 85.21438389 | R29: -78.14346268 | S29: 101.8565373 | U29: 1000000000 | V29: 19.05497104 | X29: 84.00262389 | Y29: -78.0602693 | AA29: 46.47658869 | AB29: -0.08319337757 | AD29: 0 | AE29: 0
A30: 4.7863 | B30: 0.0047863 | C30: 1.000001294 | D30: 0.001608795818 | E30: 1.000000004 | F30: 8.480645144e-05 | G30: 1 | H30: 0 | I30: 5.292534074 | J30: 1.38070823 | K30: 1.000000152 | L30: 0.0005521440758 | M30: 1.000000001 | N30: 4.331897677e-05 | O30: 1.000000002 | P30: 6.807942674e-05 | Q30: 84.44571057 | R30: -79.17081967 | S30: 100.8291803 | U30: 1000000000 | V30: 22.90866769 | X30: 83.23395246 | Y30: -79.07960085 | AA30: 46.47658681 | AB30: -0.09121882266 | AD30: 0 | AE30: 0
A31: 5.2481 | B31: 0.0052481 | C31: 1.000001556 | D31: 0.001764018106 | E31: 1.000000004 | F31: 9.298889279e-05 | G31: 1 | H31: 0 | I31: 5.785723084 | J31: 1.397084756 | K31: 1.000000183 | L31: 0.0006054169745 | M31: 1.000000001 | N31: 4.749855253e-05 | O31: 1.000000002 | P31: 7.464798266e-05 | Q31: 83.67182895 | R31: -80.11511378 | S31: 99.88488622 | U31: 1000000000 | V31: 27.54255361 | X31: 82.46007311 | Y31: -80.01509384 | AA31: 46.47658453 | AB31: -0.1000199358 | AD31: 0 | AE31: 0
A32: 5.7544 | B32: 0.0057544 | C32: 1.000001871 | D32: 0.001934197835 | E32: 1.000000005 | F32: 0.000101959811 | G32: 1 | H32: 0 | I32: 6.327928344 | J32: 1.412101466 | K32: 1.00000022 | L32: 0.0006638233555 | M32: 1.000000001 | N32: 5.208088082e-05 | O32: 1.000000003 | P32: 8.184949816e-05 | Q32: 82.89374836 | R32: -80.98207321 | S32: 99.01792679 | U32: 1000000000 | V32: 33.11311936 | X32: 81.68199525 | Y32: -80.87240407 | AA32: 46.47658181 | AB32: -0.1096691368 | AD32: 0 | AE32: 0
A33: 6.3096 | B33: 0.0063096 | C33: 1.000002249 | D33: 0.002120813913 | E33: 1.000000006 | F33: 0.000111797168 | G33: 1 | H33: 0 | I33: 6.923872257 | J33: 1.425861589 | K33: 1.000000265 | L33: 0.0007278707978 | M33: 1.000000002 | N33: 5.710578436e-05 | O33: 1.000000003 | P33: 8.974655801e-05 | Q33: 82.11199558 | R33: -81.77766957 | S33: 98.22233043 | U33: 1000000000 | V33: 39.81105216 | X33: 80.90024575 | Y33: -81.65741929 | AA33: 46.47657852 | AB33: -0.1202502796 | AD33: 0 | AE33: 0
A34: 6.9183 | B34: 0.0069183 | C34: 1.000002704 | D34: 0.002325412458 | E34: 1.000000008 | F34: 0.000122582469 | G34: 1 | H34: 0 | I34: 7.578500352 | J34: 1.438458156 | K34: 1.000000318 | L34: 0.000798089952 | M34: 1.000000002 | N34: 6.261489601e-05 | O34: 1.000000004 | P34: 9.840459175e-05 | Q34: 81.32730753 | R34: -82.50729285 | S34: 97.49270715 | U34: 1000000000 | V34: 47.86287489 | X34: 80.11556165 | Y34: -82.37544183 | AA34: 46.47657458 | AB34: -0.1318510293 | AD34: 0 | AE34: 0
A35: 7.5858 | B35: 0.0075858 | C35: 1.000003251 | D35: 0.002549774857 | E35: 1.000000009 | F35: 0.0001344096227 | G35: 1 | H35: 0 | I35: 8.297518646 | J35: 1.4499847 | K35: 1.000000383 | L35: 0.0008750922188 | M35: 1.000000002 | N35: 6.865618404e-05 | O35: 1.000000005 | P35: 0.0001078989855 | Q35: 80.5400041 | R35: -83.17637079 | S35: 96.82362921 | U35: 1000000000 | V35: 57.54436164 | X35: 79.32826297 | Y35: -83.0317984 | AA35: 46.47656983 | AB35: -0.1445723906 | AD35: 0 | AE35: 0
A36: 8.3176 | B36: 0.0083176 | C36: 1.000003908 | D36: 0.002795749698 | E36: 1.000000011 | F36: 0.0001473760811 | G36: 1 | H36: 0 | I36: 9.086856268 | J36: 1.460523916 | K36: 1.00000046 | L36: 0.0009595120704 | M36: 1.000000003 | N36: 7.527942685e-05 | O36: 1.000000006 | P36: 0.0001183079704 | Q36: 79.75069064 | R36: -83.78971275 | S36: 96.21028725 | U36: 1000000000 | V36: 69.18246976 | X36: 78.5389552 | Y36: -83.63119357 | AA36: 46.47656413 | AB36: -0.1585191784 | AD36: 0 | AE36: 0
A37: 9.1201 | B37: 0.0091201 | C37: 1.000004699 | D37: 0.003065488047 | E37: 1.000000013 | F37: 0.0001615952433 | G37: 1 | H37: 0 | I37: 9.953419968 | J37: 1.470158557 | K37: 1.000000553 | L37: 0.001052087801 | M37: 1.000000003 | N37: 8.25425484e-05 | O37: 1.000000007 | P37: 0.0001297225786 | Q37: 78.95951118 | R37: -84.35214312 | S37: 95.64785688 | U37: 1000000000 | V37: 83.17622401 | X37: 77.7477826 | Y37: -84.17832976 | AA37: 46.47655727 | AB37: -0.1738133583 | AD37: 0 | AE37: 0
A38: 10 | B38: 0.01 | C38: 1.000005649 | D38: 0.003361241768 | E38: 1.000000016 | F38: 0.0001771858236 | G38: 1 | H38: 0 | I38: 10.90444745 | J38: 1.478961597 | K38: 1.000000665 | L38: 0.001153592309 | M38: 1.000000004 | N38: 9.050618782e-05 | O38: 1.000000008 | P38: 0.0001422381098 | Q38: 78.1668772 | R38: -84.86792992 | S38: 95.13207008 | U38: 1000000000 | V38: 100 | X38: 76.95515686 | Y38: -84.67734731 | AA38: 46.47654903 | AB38: -0.1905826109 | AD38: 0 | AE38: 0
A39: 10.965 | B39: 0.010965 | C39: 1.000006792 | D39: 0.003685598791 | E39: 1.000000019 | F39: 0.0001942842552 | G39: 1 | H39: 0 | I39: 11.94826345 | J39: 1.487004138 | K39: 1.0000008 | L39: 0.001264913854 | M39: 1.000000005 | N39: 9.92400349e-05 | O39: 1.00000001 | P39: 0.0001559640873 | Q39: 77.37284593 | R39: -85.3412468 | S39: 94.6587532 | U39: 1000000000 | V39: 120.231225 | X39: 76.16113551 | Y39: -85.13227313 | AA39: 46.47653912 | AB39: -0.208973672 | AD39: 0 | AE39: 0
A40: 12.023 | B40: 0.012023 | C40: 1.000008166 | D40: 0.004041214197 | E40: 1.000000023 | F40: 0.0002130305147 | G40: 1 | H40: 0 | I40: 13.09341488 | J40: 1.494347613 | K40: 1.000000962 | L40: 0.001386963759 | M40: 1.000000006 | N40: 0.0001088155895 | O40: 1.000000012 | P40: 0.0001710128791 | Q40: 76.57787262 | R40: -85.77571601 | S40: 94.22428399 | U40: 1000000000 | V40: 144.552529 | X40: 75.36617412 | Y40: -85.54657893 | AA40: 46.4765272 | AB40: -0.2291370847 | AD40: 0 | AE40: 0
A41: 13.183 | B41: 0.013183 | C41: 1.000009817 | D41: 0.004431112709 | E41: 1.000000027 | F41: 0.0002335840695 | G41: 1 | H41: 0 | I41: 14.34964412 | J41: 1.501051658 | K41: 1.000001156 | L41: 0.001520780244 | M41: 1.000000007 | N41: 0.0001193143072 | O41: 1.000000014 | P41: 0.0001875124995 | Q41: 75.78209595 | R41: -86.17487118 | S41: 93.82512882 | U41: 1000000000 | V41: 173.791489 | X41: 74.57041178 | Y41: -85.92362683 | AA41: 46.47651287 | AB41: -0.2512443505 | AD41: 0 | AE41: 0
A42: 14.454 | B42: 0.014454 | C42: 1.000011802 | D42: 0.004858318924 | E42: 1.000000033 | F42: 0.0002561043865 | G42: 1 | H42: 0 | I42: 15.72669798 | J42: 1.507167261 | K42: 1.00000139 | L42: 0.001667401518 | M42: 1.000000009 | N42: 0.0001308176435 | O42: 1.000000017 | P42: 0.0002055909629 | Q42: 74.98615244 | R42: -86.54175039 | S42: 93.45824961 | U42: 1000000000 | V42: 208.918116 | X42: 73.77448547 | Y42: -86.26628342 | AA42: 46.47649566 | AB42: -0.2754669642 | AD42: 0 | AE42: 0
A43: 15.849 | B43: 0.015849 | C43: 1.00001419 | D43: 0.005327201746 | E43: 1.000000039 | F43: 0.0002808218074 | G43: 1 | H43: 0 | I43: 17.23866216 | J43: 1.512754601 | K43: 1.000001671 | L43: 0.001828327225 | M43: 1.00000001 | N43: 0.0001434432565 | O43: 1.00000002 | P43: 0.0002254331786 | Q43: 74.18881391 | R43: -86.8799701 | S43: 93.1200299 | U43: 1000000000 | V43: 251.190801 | X43: 72.97716766 | Y43: -86.57791746 | AA43: 46.47647495 | AB43: -0.3020526424 | AD43: 0 | AE43: 0
A44: 17.378 | B44: 0.017378 | C44: 1.00001706 | D44: 0.005841121511 | E44: 1.000000047 | F44: 0.0003079135178 | G44: 1 | H44: 0 | I44: 18.89637611 | J44: 1.517851395 | K44: 1.000002009 | L44: 0.002004710919 | M44: 1.000000012 | N44: 0.0001572816523 | O44: 1.000000024 | P44: 0.0002471813849 | Q44: 73.39129262 | R44: -87.19182097 | S44: 92.80817903 | U44: 1000000000 | V44: 301.994884 | X44: 72.17967126 | Y44: -86.86062905 | AA44: 46.47645005 | AB44: -0.3311919157 | AD44: 0 | AE44: 0
A45: 19.055 | B45: 0.019055 | C45: 1.000020511 | D45: 0.006404782731 | E45: 1.000000057 | F45: 0.0003376275776 | G45: 1 | H45: 0 | I45: 20.7150187 | J45: 1.522503404 | K45: 1.000002416 | L45: 0.00219816758 | M45: 1.000000015 | N45: 0.0001724595397 | O45: 1.000000029 | P45: 0.0002710347149 | Q45: 72.59313009 | R45: -87.48010643 | S45: 92.51989357 | U45: 1000000000 | V45: 363.093025 | X45: 71.38153866 | Y45: -87.1169549 | AA45: 46.47642012 | AB45: -0.3631515296 | AD45: 0 | AE45: =IF(AD45>0,S43,0) -> 0
A46: 20.893 | B46: 0.020893 | C46: 1.000024659 | D46: 0.007022553429 | E46: 1.000000069 | F46: 0.0003701943282 | G46: 1 | H46: 0 | I46: 22.70868812 | J46: 1.526746073 | K46: 1.000002905 | L46: 0.002410196814 | M46: 1.000000018 | N46: 0.0001890945765 | O46: 1.000000035 | P46: 0.0002971780781 | Q46: 71.794964 | R46: -87.74702583 | S46: 92.25297417 | U46: 1000000000 | V46: 436.517449 | X46: 70.58340856 | Y46: -87.34884668 | AA46: 46.47638414 | AB46: -0.3981791504 | AD46: 0 | AE46: 0
A47: 22.909 | B47: 0.022909 | C47: 1.000029647 | D47: 0.007700145576 | E47: 1.000000082 | F47: 0.0004059149853 | G47: 1 | H47: 0 | I47: 24.89582439 | J47: 1.530618139 | K47: 1.000003492 | L47: 0.002642759641 | M47: 1.000000021 | N47: 0.0002073406233 | O47: 1.000000042 | P47: 0.0003258532793 | Q47: 70.99623649 | R47: -87.99501895 | S47: 92.00498105 | U47: 1000000000 | V47: 524.822281 | X47: 69.78472431 | Y47: -87.5584203 | AA47: 46.47634087 | AB47: -0.4365986458 | AD47: 0 | AE47: 0
A48: 25.119 | B48: 0.025119 | C48: 1.000035643 | D48: 0.008442934375 | E48: 1.000000099 | F48: 0.0004450730456 | G48: 1 | H48: 0 | I48: 27.29378594 | J48: 1.534149748 | K48: 1.000004198 | L48: 0.002897701697 | M48: 1.000000026 | N48: 0.0002273424899 | O48: 1.000000051 | P48: 0.0003572878991 | Q48: 70.19744519 | R48: -88.22602031 | S48: 91.77397969 | U48: 1000000000 | V48: 630.964161 | X48: 68.98598502 | Y48: -87.74730552 | AA48: 46.47628887 | AB48: -0.4787147885 | AD48: 0 | AE48: 0
A49: 27.542 | B49: 0.027542 | C49: 1.00004285 | D49: 0.009257302489 | E49: 1.000000119 | F49: 0.0004880051617 | G49: 1 | H49: 0 | I49: 29.92318873 | J49: 1.537371205 | K49: 1.000005047 | L49: 0.003177214657 | M49: 1.000000031 | N49: 0.000249272138 | O49: 1.000000061 | P49: 0.00039175219 | Q49: 69.39850819 | R49: -88.44201241 | S49: 91.55798759 | U49: 1000000000 | V49: 758.561764 | X49: 68.18711054 | Y49: -87.91712294 | AA49: 46.47622635 | AB49: -0.5248894739 | AD49: 0 | AE49: 0
A50: 30.2 | B50: 0.0302 | C50: 1.00005152 | D50: 0.01015063973 | E50: 1.000000143 | F50: 0.0005351011418 | G50: 1 | H50: 0 | I50: 32.8079071 | J50: 1.540311148 | K50: 1.000006069 | L50: 0.003483836225 | M50: 1.000000037 | N50: 0.0002733286812 | O50: 1.000000073 | P50: 0.0004295590753 | Q50: 68.59902871 | R50: -88.6449212 | S50: 91.3550788 | U50: 1000000000 | V50: 912.04 | X50: 67.38770626 | Y50: -88.0693795 | AA50: 46.47615115 | AB50: -0.5755417015 | AD50: 0 | AE50: 0
A51: 33.113 | B51: 0.033113 | C51: 1.000061938 | D51: 0.01112966222 | E51: 1.000000172 | F51: 0.0005867153565 | G51: 1 | H51: 0 | I51: 35.96964703 | J51: 1.542991526 | K51: 1.000007296 | L51: 0.003819873329 | M51: 1.000000045 | N51: 0.0002996931316 | O51: 1.000000088 | P51: 0.000470993031 | Q51: 67.79979595 | R51: -88.83626318 | S51: 91.16373682 | U51: 1000000000 | V51: 1096.470769 | X51: 66.58856386 | Y51: -88.20521091 | AA51: 46.47606079 | AB51: -0.6310522724 | AD51: 0 | AE51: 0
A52: 36.308 | B52: 0.036308 | C52: 1.000074467 | D52: 0.01220343674 | E52: 1.000000207 | F52: 0.0006433262063 | G52: 1 | H52: 0 | I52: 39.43771404 | J52: 1.54543717 | K52: 1.000008772 | L52: 0.004188440322 | M52: 1.000000054 | N52: 0.0003286098558 | O52: 1.000000106 | P52: 0.0005164380996 | Q52: 67.00018887 | R52: -89.0178107 | S52: 90.9821893 | U52: 1000000000 | V52: 1318.270864 | X52: 65.78906545 | Y52: -88.32587543 | AA52: 46.47595212 | AB52: -0.6919352686 | AD52: 0 | AE52: 0
A53: 39.811 | B53: 0.039811 | C53: 1.000089528 | D53: 0.01338069137 | E53: 1.000000249 | F53: 0.0007053943727 | G53: 1 | H53: 0 | I53: 43.24033038 | J53: 1.547667707 | K53: 1.000010546 | L53: 0.004592536092 | M53: 1.000000065 | N53: 0.0003603141697 | O53: 1.000000128 | P53: 0.0005662640996 | Q53: 66.20052816 | R53: -89.19102491 | S53: 90.80897509 | U53: 1000000000 | V53: 1584.915721 | X53: 64.98953536 | Y53: -88.43233935 | AA53: 46.47582149 | AB53: -0.7586855657 | AD53: 0 | AE53: 0
A54: 43.652 | B54: 0.043652 | C54: 1.000107636 | D54: 0.01467149504 | E54: 1.000000299 | F54: 0.0007734514111 | G54: 1 | H54: 0 | I54: 47.41006202 | J54: 1.549702194 | K54: 1.000012679 | L54: 0.005035620819 | M54: 1.000000078 | N54: 0.0003950775916 | O54: 1.000000153 | P54: 0.0006208977445 | Q54: 65.40075912 | R54: -89.35738582 | S54: 90.64261418 | U54: 1000000000 | V54: 1905.497104 | X54: 64.18992338 | Y54: -88.52551175 | AA54: 46.47566443 | AB54: -0.8318740645 | AD54: 0 | AE54: 0
A55: 47.863 | B55: 0.047863 | C55: 1.000129403 | D55: 0.0160865843 | E55: 1.00000036 | F55: 0.0008480643131 | G55: 1 | H55: 0 | I55: 51.98164765 | J55: 1.551557581 | K55: 1.000015243 | L55: 0.005521385211 | M55: 1.000000094 | N55: 0.0004331897409 | O55: 1.000000184 | P55: 0.0006807941952 | Q55: 64.60100211 | R55: -89.51827857 | S55: 90.48172143 | U55: 1000000000 | V55: 2290.866769 | X55: 63.39035516 | Y55: -88.60616905 | AA55: 46.47547564 | AB55: -0.9121095163 | AD55: 0 | AE55: 0
A56: 52.481 | B56: 0.052481 | C56: 1.000155576 | D56: 0.01763836996 | E56: 1.000000432 | F56: 0.0009298886626 | G56: 1 | H56: 0 | I56: 56.99525559 | J56: 1.553250106 | K56: 1.000018326 | L56: 0.006054096518 | M56: 1.000000113 | N56: 0.0004749854899 | O56: 1.000000222 | P56: 0.0007464797314 | Q56: 63.80102844 | R56: -89.67511181 | S56: 90.32488819 | U56: 1000000000 | V56: 2754.255361 | X56: 62.59060849 | Y56: -88.67501621 | AA56: 46.47524865 | AB56: -1.0000956 | AD56: 0 | AE56: 0
A57: 57.544 | B57: 0.057544 | C57: 1.000187039 | D57: 0.01933959098 | E57: 1.00000052 | F57: 0.001019597761 | G57: 1 | H57: 0 | I57: 62.49214121 | J57: 1.554793632 | K57: 1.000022033 | L57: 0.006638137025 | M57: 1.000000136 | N57: 0.0005208087616 | O57: 1.000000267 | P57: 0.0008184948561 | Q57: 63.00105357 | R57: -89.82917071 | S57: 90.17082929 | U57: 1000000000 | V57: 3311.311936 | X57: 61.79090649 | Y57: -88.73261612 | AA57: 46.47497578 | AB57: -1.096554594 | AD57: 0 | AE57: 0
A58: 63.096 | B58: 0.063096 | C58: 1.000224868 | D58: 0.02120499207 | E58: 1.000000625 | F58: 0.001117971219 | G58: 1 | H58: 0 | I58: 68.52007518 | J58: 1.556201546 | K58: 1.000026489 | L58: 0.007278580727 | M58: 1.000000163 | N58: 0.0005710577822 | O58: 1.00000032 | P58: 0.0008974654147 | Q58: 62.20091547 | R58: -89.98179048 | S58: 90.01820952 | U58: 1000000000 | V58: 3981.105216 | X58: 60.99109645 | Y58: -88.77946798 | AA58: 46.47464772 | AB58: -1.2023225 | AD58: 0 | AE58: 0
A59: 69.183 | B59: 0.069183 | C59: 1.000270342 | D59: 0.02324997625 | E59: 1.000000751 | F59: 0.001225824082 | G59: 1 | H59: 0 | I59: 75.12900078 | J59: 1.557485494 | K59: 1.000031847 | L59: 0.007980731773 | M59: 1.000000196 | N59: 0.0006261488791 | O59: 1.000000385 | P59: 0.0009840456993 | Q59: 61.40077173 | R59: -90.13423166 | S59: 89.86576834 | U59: 1000000000 | V59: 4786.287489 | X59: 60.19134706 | Y59: -88.81595903 | AA59: 46.47425337 | AB59: -1.318272633 | AD59: 0 | AE59: 0
A60: 75.858 | B60: 0.075858 | C60: 1.000325016 | D60: 0.02549228029 | E60: 1.000000903 | F60: 0.001344095425 | G60: 1 | H60: 0 | I60: 82.37646246 | J60: 1.558656639 | K60: 1.000038289 | L60: 0.008750701054 | M60: 1.000000236 | N60: 0.0006865617336 | O60: 1.000000463 | P60: 0.001078989568 | Q60: 60.60044272 | R60: -90.28781668 | S60: 89.71218332 | U60: 1000000000 | V60: 5754.436164 | X60: 59.39149216 | Y60: -88.84240606 | AA60: 46.47377926 | AB60: -1.445410625 | AD60: 0 | AE60: 0
A61: 83.176 | B61: 0.083176 | C61: 1.000390737 | D61: 0.02795028911 | E61: 1.000001086 | F61: 0.001473759755 | G61: 1 | H61: 0 | I61: 90.32217714 | J61: 1.559724623 | K61: 1.000046032 | L61: 0.009594829202 | M61: 1.000000283 | N61: 0.0007527941277 | O61: 1.000000557 | P61: 0.001183079325 | Q61: 59.80011451 | R61: -90.44380573 | S61: 89.55619427 | U61: 1000000000 | V61: 6918.246976 | X61: 58.59173381 | Y61: -88.85902689 | AA61: 46.47320939 | AB61: -1.584778842 | AD61: 0 | AE61: 0
A62: 91.201 | B62: 0.091201 | C62: 1.000469753 | D62: 0.03064537946 | E62: 1.000001306 | F62: 0.00161595104 | G62: 1 | H62: 0 | I62: 99.03563452 | J62: 1.56069878 | K62: 1.000055343 | L62: 0.01052049373 | M62: 1.000000341 | N62: 0.0008254252984 | O62: 1.00000067 | P62: 0.001297225287 | Q62: 58.99956795 | R62: -90.60355603 | S62: 89.39644397 | U62: 1000000000 | V62: 8317.622401 | X62: 57.79187236 | Y62: -88.86596676 | AA62: 46.47252429 | AB62: -1.737589266 | AD62: 0 | AE62: 0
A63: 100 | B63: 0.1 | C63: 1.000564742 | D63: 0.03359989432 | E63: 1.00000157 | F63: 0.0017718564 | G63: 1 | H63: 0 | I63: 108.5895825 | J63: 1.56158721 | K63: 1.000066537 | L63: 0.01153541653 | M63: 1.00000041 | N63: 0.0009050616336 | O63: 1.000000805 | P63: 0.001422380439 | Q63: 58.19890756 | R63: -90.76839075 | S63: 89.23160925 | U63: 1000000000 | V63: 10000 | X63: 56.99203549 | Y63: -88.86328211 | AA63: 46.47170077 | AB63: -1.905108641 | AD63: 0 | AE63: 0
A64: 109.65 | B64: 0.10965 | C64: 1.000678958 | D64: 0.0368394802 | E64: 1.000001887 | F64: 0.001942840132 | G64: 1 | H64: 0 | I64: 119.0676276 | J64: 1.56239764 | K64: 1.000079997 | L64: 0.01264847072 | M64: 1.000000492 | N64: 0.0009924000264 | O64: 1.000000968 | P64: 0.001559640004 | Q64: 57.3979229 | R64: -90.9397381 | S64: 89.0602619 | U64: 1000000000 | V64: 12023.1225 | X64: 56.19204093 | Y64: -88.85094712 | AA64: 46.47071067 | AB64: -2.088790987 | AD64: 0 | AE64: 0
A65: 120.23 | B65: 0.12023 | C65: 1.000816246 | D65: 0.04039038356 | E65: 1.000002269 | F65: 0.002130301957 | G65: 1 | H65: 0 | I65: 130.5555488 | J65: 1.563136677 | K65: 1.000096179 | L65: 0.01386875724 | M65: 1.000000592 | N65: 0.00108815547 | O65: 1.000001164 | P65: 0.001710127646 | Q65: 56.59683993 | R65: -91.11898426 | S65: 88.88101574 | U65: 1000000000 | V65: 14455.2529 | X65: 55.39214792 | Y65: -88.82885996 | AA65: 46.4695207 | AB65: -2.290124299 | AD65: 0 | AE65: 0
A66: 131.83 | B66: 0.13183 | C66: 1.000981269 | D66: 0.04428244938 | E66: 1.000002728 | F66: 0.002335836489 | G66: 1 | H66: 0 | I66: 143.1510692 | J66: 1.563810643 | K66: 1.000115632 | L66: 0.01520664191 | M66: 1.000000712 | N66: 0.001193142511 | O66: 1.000001399 | P66: 0.001875123486 | Q66: 55.79559246 | R66: -91.30763607 | S66: 88.69236393 | U66: 1000000000 | V66: 17379.1489 | X66: 54.5923306 | Y66: -88.79683552 | AA66: 46.46809056 | AB66: -2.510800548 | AD66: 0 | AE66: 0
A67: 144.54 | B67: 0.14454 | C67: 1.001179486 | D67: 0.04854540056 | E67: 1.000003279 | F67: 0.002561038322 | G67: 1 | H67: 0 | I67: 156.9519128 | J67: 1.564424905 | K67: 1.000139002 | L67: 0.01667248564 | M67: 1.000000856 | N67: 0.001308175696 | O67: 1.000001682 | P67: 0.00205590764 | Q67: 54.99463635 | R67: -91.50713915 | S67: 88.49286085 | U67: 1000000000 | V67: 20891.8116 | X67: 53.79309198 | Y67: -88.75463443 | AA67: 46.46637306 | AB67: -2.752504714 | AD67: 0 | AE67: 0
A68: 158.49 | B68: 0.15849 | C68: 1.001417975 | D68: 0.05322221192 | E68: 1.000003943 | F68: 0.002808210766 | G68: 1 | H68: 0 | I68: 172.0992368 | J68: 1.564985693 | K68: 1.000167125 | L68: 0.01828125579 | M68: 1.000001029 | N68: 0.001434431591 | O68: 1.000002022 | P68: 0.002254329164 | Q68: 54.19256645 | R68: -91.71949643 | S68: 88.28050357 | U68: 1000000000 | V68: 25119.0801 | X68: 52.99308809 | Y68: -88.70182339 | AA68: 46.46430706 | AB68: -3.017673045 | AD68: 0 | AE68: 0
A69: 173.78 | B69: 0.17378 | C69: 1.001704521 | D69: 0.05834558233 | E69: 1.000004741 | F69: 0.003079125544 | G69: 1 | H69: 0 | I69: 188.7016243 | J69: 1.565496931 | K69: 1.000200924 | L69: 0.02004445113 | M69: 1.000001237 | N69: 0.001572815239 | O69: 1.000002431 | P69: 0.002471810392 | Q69: 53.39044263 | R69: -91.94617931 | S69: 88.05382069 | U69: 1000000000 | V69: 30199.4884 | X69: 52.19344591 | Y69: -88.63802029 | AA69: 46.46182541 | AB69: -3.30815903 | AD69: 0 | AE69: 0
A70: 190.55 | B70: 0.19055 | C70: 1.002049019 | D70: 0.06396133706 | E70: 1.0000057 | F70: 0.003376263075 | G70: 1 | H70: 0 | I70: 206.9110919 | J70: 1.565963314 | K70: 1.000241569 | L70: 0.02197817174 | M70: 1.000001487 | N70: 0.001724593704 | O70: 1.000002923 | P70: 0.002710342592 | Q70: 52.58764813 | R70: -92.18920458 | S70: 87.81079542 | U70: 1000000000 | V70: 36309.3025 | X70: 51.39363402 | Y70: -88.56264434 | AA70: 46.45884281 | AB70: -3.626560236 | AD70: 0 | AE70: 0
A71: 208.93 | B71: 0.20893 | C71: 1.002462861 | D71: 0.07011158144 | E71: 1.000006852 | F71: 0.003701926541 | G71: 1 | H71: 0 | I71: 226.8687983 | J71: 1.566388479 | K71: 1.000290411 | L71: 0.02409734943 | M71: 1.000001788 | N71: 0.001890943534 | O71: 1.000003514 | P71: 0.002971774774 | Q71: 51.78466807 | R71: -92.45037876 | S71: 87.54962124 | U71: 1000000000 | V71: 43651.7449 | X71: 50.59423557 | Y71: -88.47511566 | AA71: 46.45526119 | AB71: -3.975263101 | AD71: 0 | AE71: 0
A72: 229.09 | B72: 0.22909 | C72: 1.002960347 | D72: 0.07685132151 | E72: 1.000008238 | F72: 0.004059127782 | G72: 1 | H72: 0 | I72: 248.7593359 | J72: 1.566776366 | K72: 1.00034915 | L72: 0.02642150797 | M72: 1.00000215 | N72: 0.002073403291 | O72: 1.000004225 | P72: 0.003258524873 | Q72: 50.98077903 | R72: -92.73201491 | S72: 87.26798509 | U72: 1000000000 | V72: 52482.2281 | X72: 49.7946501 | Y72: -88.3746297 | AA72: 46.45095763 | AB72: -4.35738521 | AD72: 0 | AE72: 0
A73: 251.19 | B73: 0.25119 | C73: 1.003557997 | D73: 0.08423157645 | E73: 1.000009904 | F73: 0.004450701362 | G73: 1 | H73: 0 | I73: 272.7564392 | J73: 1.567130044 | K73: 1.000419748 | L73: 0.02896899173 | M73: 1.000002584 | N73: 0.002273421021 | O73: 1.000005079 | P73: 0.003572868552 | Q73: 50.17630856 | R73: -93.03621176 | S73: 86.96378824 | U73: 1000000000 | V73: 63096.4161 | X73: 48.99534683 | Y73: -88.26039404 | AA73: 46.44579042 | AB73: -4.775817723 | AD73: 0 | AE73: 0
A74: 275.42 | B74: 0.27542 | C74: 1.004275985 | D74: 0.09231255538 | E74: 1.000011907 | F74: 0.004880013266 | G74: 1 | H74: 0 | I74: 299.066418 | J74: 1.567452582 | K74: 1.000504611 | L74: 0.03176156884 | M74: 1.000003107 | N74: 0.002492716269 | O74: 1.000006106 | P74: 0.003917508138 | Q74: 49.37098449 | R74: -93.36540824 | S74: 86.63459176 | U74: 1000000000 | V74: 75856.1764 | X74: 48.19622632 | Y74: -88.1314359 | AA74: 46.43958686 | AB74: -5.233972344 | AD74: 0 | AE74: 0
A75: 302 | B75: 0.302 | C75: 1.005138924 | D75: 0.1011633623 | E75: 1.000014317 | F75: 0.005350960857 | G75: 1 | H75: 0 | I75: 327.928158 | J75: 1.567746874 | K75: 1.000606677 | L75: 0.03482441871 | M75: 1.000003735 | N75: 0.002733280073 | O75: 1.000007342 | P75: 0.00429557261 | Q75: 48.56419378 | R75: -93.72235692 | S75: 86.27764308 | U75: 1000000000 | V75: 91204 | X75: 47.39688569 | Y75: -87.9865925 | AA75: 46.43213679 | AB75: -5.735764413 | AD75: 0 | AE75: 0
A76: 331.13 | B76: 0.33113 | C76: 1.006174916 | D76: 0.1108450056 | E76: 1.000017212 | F76: 0.005867086917 | G76: 1 | H76: 0 | I76: 359.558828 | J76: 1.568015137 | K76: 1.000729313 | L76: 0.03818035592 | M76: 1.000004491 | N76: 0.002996922433 | O76: 1.000008826 | P76: 0.004709906395 | Q76: 47.75649114 | R76: -94.10943687 | S76: 85.89056313 | U76: 1000000000 | V76: 109647.0769 | X76: 46.59811869 | Y76: -87.82478742 | AA76: 46.42320114 | AB76: -6.284649448 | AD76: 0 | AE76: 0
A77: 363.08 | B77: 0.36308 | C77: =SQRT(1+(A77/pole1)^2) -> 1.007419409 | D77: =ATAN(A77/pole1) -> 0.1214398986 | E77: =SQRT(1+(A77/Zero1)^2) -> 1.000020693 | F77: =ATAN(A77/Zero1) -> 0.006433174202 | G77: =IF(VIN_nom>Vout,1,SQRT(1+(A77/z_RHP)^2)) -> 1 | H77: =IF(VIN_nom>Vout,0,-ATAN(A77/z_RHP)) -> 0 | I77: =SQRT(1+(A77/Pole2)^2) -> 394.251606 | J77: =ATAN(A77/Pole2) -> 1.568259873 | K77: =SQRT(1+(A77/Zero2)^2) -> 1.000876778 | L77: =ATAN(A77/Zero2) -> 0.04186018082 | M77: =SQRT(1+(A77/pole4)^2) -> 1.000005399 | N77: =ATAN(A77/pole4) -> 0.003286086848 | O77: =SQRT((1-(V77/pterm2))^2+(A77/pterm1)^2) -> 1.000010612 | P77: =IF((ATAN((A77/pterm1)/(1-A77^2/pterm2))>0),ATAN((A77/pterm1)/(1-A77^2/pterm2)),PI()+ATAN((A77/pterm1)/(1-A77^2/pterm2))) -> 0.005164349469 | Q77: =20*LOG10(((E77*K77*G77)/(C77*I77*O77*M77))*Adc) -> 46.94697096 | R77: =((F77+L77+H77)-(D77+J77+P77+N77))*radconv -> -94.52983457 | S77: =IF(R77>0,R77,R77+180) -> 85.47016543 | U77: 1000000000 | V77: 131827.0864 | X77: =20*LOG10((K77/(I77*M77))*AEA) -> 45.79932034 | Y77: =(L77-(J77+N77))*radconv -> -87.64453921 | AA77: =20*LOG10((E77*G77/(C77*O77))*Acs*Am) -> 46.41247932 | AB77: =(F77+H77-(D77+P77))*radconv -> -6.885295359 | AD77: 0 | AE77: =IF(AD77>0,S75,0) -> 0
A78: 398.11 | B78: =A78/1000 -> 0.39811 | C78: 1.008913489 | D78: 0.1330246574 | E78: 1.000024879 | F78: 0.007053827904 | G78: 1 | H78: 0 | I78: 432.2888122 | J78: 1.568483056 | K78: 1.001054029 | L78: 0.04589343627 | M78: 1.000006491 | N78: 0.003603126261 | O78: 1.000012758 | P78: 0.005662599434 | Q78: 46.1356345 | R78: -94.98644312 | S78: 85.01355688 | U78: =IF(Q78<0,A78,1000000000) -> 1000000000 | V78: =A78^2 -> 158491.5721 | X78: 45.00083845 | Y78: -87.44440319 | AA78: 46.39962474 | AB78: -7.54203993 | AD78: =SUM((Q79<0)*(Q78>0))*A78 -> 0 | AE78: 0
A79: 436.52 | B79: 0.43652 | C79: 1.010706865 | D79: 0.1456859532 | E79: 1.000029911 | F79: 0.007734361425 | G79: 1 | H79: 0 | I79: 473.9962004 | J79: 1.568686604 | K79: 1.001267093 | L79: 0.05031413384 | M79: 1.000007804 | N79: 0.003950755567 | O79: 1.000015339 | P79: 0.006208922655 | Q79: 45.32204986 | R79: -95.48248503 | S79: 84.51751497 | U79: 1000000000 | V79: 190549.7104 | X79: 44.20265827 | Y79: -87.22269597 | AA79: 46.38422029 | AB79: -8.259789058 | AD79: 0 | AE79: 0
A80: 478.63 | B80: 0.47863 | C80: 1.012858472 | D80: 0.1595129062 | E80: 1.00003596 | F80: 0.00848044186 | G80: 1 | H80: 0 | I80: 519.7212418 | J80: 1.568872217 | K80: 1.001523156 | L80: 0.05515840614 | M80: 1.000009383 | N80: 0.004331870583 | O80: 1.000018441 | P80: 0.006807869728 | Q80: 44.50589965 | R80: -96.02119575 | S80: 83.97880425 | U80: 1000000000 | V80: 229086.6769 | X80: 43.40495345 | Y80: -86.97761077 | AA80: 46.3657749 | AB80: -9.043584988 | AD80: 0 | AE80: 0
A81: 524.81 | B81: 0.52481 | C81: 1.01543964 | D81: 0.1746056752 | E81: 1.000043234 | F81: 0.009298621297 | G81: 1 | H81: 0 | I81: 569.8657 | J81: 1.569041526 | K81: 1.001830973 | L81: 0.06046789929 | M81: 1.00001128 | N81: 0.004749819536 | O81: 1.000022171 | P81: 0.007464702103 | Q81: 43.68643517 | R81: -96.60613908 | S81: 83.39386092 | U81: 1000000000 | V81: 275425.5361 | X81: 42.60756515 | Y81: -86.70704663 | AA81: 46.34369871 | AB81: -9.899092449 | AD81: 0 | AE81: 0
A82: 575.44 | B82: 0.57544 | C82: 1.0185339 | D82: 0.1910607292 | E82: 1.000051978 | F82: 0.01019562784 | G82: 1 | H82: 0 | I82: 624.8421971 | J82: 1.569195922 | K82: 1.002200886 | L82: 0.06628509513 | M82: 1.000013562 | N82: 0.005208040999 | O82: 1.000026655 | P82: 0.008184823051 | Q82: 42.86327474 | R82: -97.24060903 | S82: 82.75939097 | U82: 1000000000 | V82: 331131.1936 | X82: 41.81079523 | Y82: -86.40884623 | AA82: 46.31730821 | AB82: -10.8317628 | AD82: 0 | AE82: 0
A83: 630.96 | B83: 0.63096 | C83: 1.022241973 | D83: 0.2089851406 | E83: 1.000062491 | F83: 0.01117925111 | G83: 1 | H83: 0 | I83: 685.1285064 | J83: 1.569336746 | K83: 1.002645481 | L83: 0.07265895865 | M83: 1.000016305 | N83: 0.005710516368 | O83: 1.000032046 | P83: 0.008974488692 | Q83: 42.03554962 | R83: -97.92815206 | S83: 82.07184794 | U83: 1000000000 | V83: 398110.5216 | X83: 41.01459004 | Y83: -86.0805091 | AA83: 46.28578828 | AB83: -11.84764297 | AD83: 0 | AE83: 0
A84: 691.83 | B84: 0.69183 | C84: 1.026681852 | D84: 0.22848101 | E84: 1.000075129 | F84: 0.01225763302 | G84: 1 | H84: 0 | I84: 751.2241183 | J84: 1.569465166 | K84: 1.003179684 | L84: 0.07964020952 | M84: 1.000019603 | N84: 0.006261407781 | O84: 1.000038528 | P84: 0.009840238887 | Q84: 41.20260778 | R84: -98.67192564 | S84: 81.32807436 | U84: 1000000000 | V84: 478628.7489 | X84: 40.21923825 | Y84: -85.71943454 | AA84: 46.24819822 | AB84: -12.9524911 | AD84: 0 | AE84: 0
A85: 758.58 | B85: 0.75858 | C85: 1.031995058 | D85: 0.2496583601 | E85: 1.000090326 | F85: 0.01344015302 | G85: 1 | H85: 0 | I85: 823.7045325 | J85: 1.569582299 | K85: 1.003821631 | L85: 0.08728688693 | M85: 1.000023568 | N85: 0.006865510544 | O85: 1.000046321 | P85: 0.01078960816 | Q85: 40.36332076 | R85: -99.47514131 | S85: 80.52485869 | U85: 1000000000 | V85: 575443.6164 | X85: 39.42472158 | Y85: -85.32263598 | AA85: 46.20342788 | AB85: -14.15250533 | AD85: 0 | AE85: 0
A86: 831.76 | B86: 0.83176 | C86: 1.038346075 | D86: 0.2726152048 | E86: 1.000108593 | F86: 0.01473654137 | G86: 1 | H86: 0 | I86: 903.1669659 | J86: 1.569689112 | K86: 1.004592773 | L86: 0.09565838965 | M86: 1.000028335 | N86: 0.007527800501 | O86: 1.000055689 | P86: 0.01183041423 | Q86: 39.5168047 | R86: -100.3402424 | S86: 79.6597576 | U86: 1000000000 | V86: 691824.6976 | X86: 38.63141839 | Y86: -84.88705053 | AA86: 46.150215 | AB86: -15.45319186 | AD86: 0 | AE86: 0
A87: 912.01 | B87: 0.91201 | C87: 1.045931527 | D87: 0.2974548684 | E87: 1.000130557 | F87: 0.01615811811 | G87: 1 | H87: 0 | I87: 990.306362 | J87: 1.569786538 | K87: 1.005519217 | L87: 0.1048231949 | M87: 1.000034066 | N87: 0.008254067404 | O87: 1.000066952 | P87: 0.01297175323 | Q87: 38.6616013 | R87: -101.2694833 | S87: 78.73051665 | U87: 1000000000 | V87: 831762.2401 | X87: 37.83934463 | Y87: -84.40914003 | AA87: 46.08708536 | AB87: -16.86034332 | AD87: 0 | AE87: 0
A88: 1000 | B88: 1 | C88: 1.054978821 | D88: 0.3242613444 | E88: 1.000156962 | F88: 0.01771672866 | G88: 1 | H88: 0 | I88: 1085.85024 | J88: 1.569875389 | K88: 1.006631891 | L88: 0.1148516049 | M88: 1.000040956 | N88: 0.009050371696 | O88: 1.000080494 | P88: 0.01422314575 | Q88: 37.79644236 | R88: -102.2639091 | S88: 77.73609091 | U88: 1000000000 | V88: 1000000 | X88: 37.04888374 | Y88: -83.88527014 | AA88: 46.01238732 | AB88: -18.37863896 | AD88: 0 | AE88: 0
A89: 1096.5 | B89: 1.0965 | C89: 1.065756827 | D89: 0.3531140865 | E89: 1.000188714 | F89: 0.01942598181 | G89: 1 | H89: 0 | I89: 1190.634703 | J89: 1.569956439 | K89: 1.007968297 | L89: 0.1258232314 | M89: 1.000049242 | N89: 0.00992367775 | O89: 1.000096778 | P89: 0.01559553175 | Q89: 36.91956872 | R89: -103.323801 | S89: 76.67619898 | U89: 1000000000 | V89: 1202312.25 | X89: 36.26016343 | Y89: -83.31132277 | AA89: 45.92423399 | AB89: -20.01247825 | AD89: 0 | AE89: 0
A90: 1202.3 | B90: 1.2023 | C90: 1.078571231 | D90: 0.3840561592 | E90: 1.000226884 | F90: 0.02129983009 | G90: 1 | H90: 0 | I90: 1305.517572 | J90: 1.570030347 | K90: 1.009572538 | L90: 0.1378172363 | M90: 1.000059202 | N90: 0.01088112953 | O90: 1.000116354 | P90: 0.01710013182 | Q90: 36.0295589 | R90: -104.4473816 | S90: 75.55261845 | U90: 1000000000 | V90: 1445525.29 | X90: 35.47380632 | Y90: -82.6832095 | AA90: 45.82058128 | AB90: -21.76417206 | AD90: 0 | AE90: =IF(AD90>0,S90,0) -> 0
A91: 1318.3 | B91: 1.3183 | C91: 1.093777934 | D91: 0.4171129345 | E91: 1.00027277 | F91: 0.02335416053 | G91: 1 | H91: 0 | I91: 1431.476113 | J91: 1.570097747 | K91: 1.011497781 | L91: 0.1509217377 | M91: 1.000071177 | N91: 0.01193086464 | O91: 1.000139888 | P91: 0.01874972596 | Q91: 35.12456291 | R91: -105.6313801 | S91: 74.36861991 | U91: 1000000000 | V91: 1737914.89 | X91: 34.69022277 | Y91: -81.99638401 | AA91: 45.69916884 | AB91: -23.63499608 | AD91: 0 | AE91: 0
A92: 1445.4 | B92: 1.4454 | C92: 1.111771713 | D92: 0.4522521077 | E92: 1.000327894 | F92: 0.02560484216 | G92: 1 | H92: 0 | I92: 1569.487589 | J92: 1.570159176 | K92: 1.013805864 | L92: 0.165220326 | M92: 1.000085563 | N92: 0.01308101826 | O92: 1.00016816 | P92: 0.0205570877 | Q92: 34.20326352 | R92: -106.8694759 | S92: 73.13052413 | U92: 1000000000 | V92: 2089181.16 | X92: 33.91041951 | Y92: -81.24655382 | AA92: 45.55767271 | AB92: -25.62292205 | AD92: 0 | AE92: 0
A93: 1584.9 | B93: 1.5849 | C93: 1.133047287 | D93: 0.4894837574 | E93: 1.000394227 | F93: 0.02807480302 | G93: 1 | H93: 0 | I93: 1720.963605 | J93: 1.570215257 | K93: 1.016576548 | L93: 0.1808355967 | M93: 1.000102875 | N93: 0.01434334204 | O93: 1.000202183 | P93: 0.02254066989 | Q93: 33.26217511 | R93: -108.1556747 | S93: 71.84432527 | U93: 1000000000 | V93: 2511908.01 | X93: 33.1336989 | Y93: -80.42740373 | AA93: 45.39330491 | AB93: -27.728271 | AD93: 0 | AE93: 0
A94: 1737.8 | B94: 1.7378 | C94: 1.158099636 | D94: 0.5286602914 | E94: 1.000473941 | F94: 0.03078162711 | G94: 1 | H94: 0 | I94: 1886.990011 | J94: 1.570266382 | K94: 1.019896449 | L94: 0.1978487499 | M94: 1.00012368 | N94: 0.01572686864 | O94: 1.00024307 | P94: 0.02471464799 | Q94: 32.30073521 | R94: -109.4772126 | S94: 70.52278742 | U94: 1000000000 | V94: 3019948.84 | X94: 32.36187976 | Y94: -79.53482135 | AA94: 45.20368414 | AB94: -29.94239123 | AD94: 0 | AE94: 0
A95: 1905.5 | B95: 1.9055 | C95: 1.187528373 | D95: 0.5696586247 | E95: 1.0005698 | F95: 0.03374993882 | G95: 1 | H95: 0 | I95: 2069.086996 | J95: 1.570313022 | K95: 1.023874779 | L95: 0.2163758535 | M95: 1.0001487 | N95: 0.01724424466 | O95: 1.00029224 | P95: 0.02709887009 | Q95: 31.31659403 | R95: -110.8208648 | S95: 69.17913517 | U95: 1000000000 | V95: 3630930.25 | X95: 31.59529478 | Y95: -78.562908 | AA95: 44.98612795 | AB95: -32.25795683 | AD95: 0 | AE95: 0
A96: 2089.3 | B96: 2.0893 | C96: 1.221956947 | D96: 0.6122457456 | E96: 1.000684985 | F96: 0.03700253745 | G96: 1 | H96: 0 | I96: 2268.666164 | J96: 1.570355539 | K96: 1.028635364 | L96: 0.236509345 | M96: 1.000178768 | N96: 0.01890720455 | O96: 1.000351327 | P96: 0.02971174276 | Q96: 30.30903678 | R96: -112.1684261 | S96: 67.83157393 | U96: 1000000000 | V96: 4365174.49 | X96: 30.83548893 | Y96: -77.50706055 | AA96: 44.73837655 | AB96: -34.66136552 | AD96: 0 | AE96: 0
A97: 2290.9 | B97: 2.2909 | C97: 1.262119589 | D97: 0.656197411 | E97: 1.000823496 | F97: 0.04056922897 | G97: 1 | H97: 0 | I97: 2487.57346 | J97: 1.570394329 | K97: 1.034331722 | L97: 0.2583696576 | M97: 1.000214928 | N97: 0.02073109219 | O97: 1.000422384 | P97: 0.032577333 | Q97: 29.27627739 | R97: -113.5007208 | S97: 66.49927925 | U97: 1000000000 | V97: 5248222.81 | X97: 30.08303635 | Y97: -76.36128044 | AA97: 44.45806973 | AB97: -37.13944031 | AD97: 0 | AE97: 0
A98: 2511.9 | B98: 2.5119 | C98: 1.308764794 | D98: 0.7011834798 | E98: 1.00098996 | F98: 0.0444779542 | G98: 1 | H98: 0 | I98: 2727.546243 | J98: 1.570429697 | K98: 1.041137465 | L98: 0.2820461561 | M98: 1.00025839 | N98: 0.02273033389 | O98: 1.000507788 | P98: 0.03571825188 | Q98: 28.21842161 | R98: -114.7942517 | S98: 65.2057483 | U98: 1000000000 | V98: 6309641.61 | X98: 29.33969939 | Y98: -75.12129156 | AA98: 44.14355091 | AB98: -39.67296013 | AD98: 0 | AE98: 0
A99: 2754.2 | B99: 2.7542 | C99: 1.362727213 | D99: 0.7468644505 | E99: 1.001190037 | F99: 0.04876183598 | G99: 1 | H99: 0 | I99: 2990.647629 | J99: 1.570461951 | K99: 1.049260506 | L99: 0.3076356653 | M99: 1.000310635 | N99: 0.02492205327 | O99: 1.000610447 | P99: 0.0391613295 | Q99: 27.13550879 | R99: -116.0246574 | S99: 63.97534259 | U99: 1000000000 | V99: 7585617.64 | X99: 28.6068883 | Y99: -73.78254498 | AA99: 43.79344919 | AB99: -42.24211243 | AD99: 0 | AE99: 0
A100: 3020 | B100: 3.02 | C100: 1.42493005 | D100: 0.7928908749 | E100: 1.001430643 | F100: 0.05345913442 | G100: 1 | H100: 0 | I100: 3279.266485 | J100: 1.570491381 | K100: 1.058948597 | L100: 0.3352353712 | M100: 1.000373473 | N100: 0.02732606518 | O100: 1.000733915 | P100: 0.04293759882 | Q100: 26.02788802 | R100: -117.1670855 | S100: 62.83291455 | U100: 1000000000 | V100: 9120400 | X100: 27.88594443 | Y100: -72.34062424 | AA100: 43.40677228 | AB100: -44.82646121 | AD100: 0 | AE100: 0
A101: 3311.3 | B101: 3.3113 | C101: 1.496260709 | D101: 0.8388311752 | E101: 1.001719696 | F101: 0.05860435843 | G101: 1 | H101: 0 | I101: 3595.574513 | J101: 1.570518207 | K101: 1.070474541 | L101: 0.3648840563 | M101: 1.000448979 | N101: 0.02996034648 | O101: 1.000882265 | P101: 0.04707517314 | Q101: 24.89837477 | R101: -118.1952624 | S101: 61.80473758 | U101: 1000000000 | V101: 10964707.69 | X101: 27.17948648 | Y101: -70.79434997 | AA101: 42.98371698 | AB101: -47.40091246 | AD101: 0 | AE101: 0
A102: 3630.8 | B102: 3.6308 | C102: 1.577778993 | D102: 0.8843371799 | E102: 1.002067207 | F102: 0.06424409837 | G102: 1 | H102: 0 | I102: 3942.503505 | J102: 1.570542681 | K102: 1.084173591 | L102: 0.3966470383 | M102: 1.000539777 | N102: 0.03284916617 | O102: 1.001060646 | P102: 0.05161200632 | Q102: 23.74864712 | R102: -119.0864071 | S102: 60.91359286 | U102: 1000000000 | V102: 13182708.64 | X102: 26.48907195 | Y102: -69.14138457 | AA102: 42.52440386 | AB102: -49.94502257 | AD102: 0 | AE102: 0
A103: 3981.1 | B103: 3.9811 | C103: 1.670521699 | D103: 0.9290248581 | E103: 1.00248482 | F103: 0.07042279997 | G103: 1 | H103: 0 | I103: 4322.876671 | J103: 1.570564999 | K103: 1.100416668 | L103: 0.4305251953 | M103: 1.000648921 | N103: 0.03601583791 | O103: 1.001275054 | P103: 0.05658449494 | Q103: 22.58249115 | R103: -119.8193519 | S103: 60.18064815 | U103: 1000000000 | V103: 15849157.21 | X103: 25.81727606 | Y103: -67.38302484 | AA103: 42.03004378 | AB103: -52.43632702 | AD103: 0 | AE103: 0
A104: 4365.2 | B104: 4.3652 | C104: 1.775622875 | D104: 0.9725640198 | E104: 1.002986677 | F104: 0.07719147449 | G104: 1 | H104: 0 | I104: 4739.951561 | J104: 1.570585354 | K104: 1.119633448 | L104: 0.4664966077 | M104: 1.000780127 | N104: 0.03948722504 | O104: 1.001532775 | P104: 0.06203453604 | Q104: 21.40384481 | R104: -120.3774619 | S104: 59.62253811 | U104: 1000000000 | V104: 19054971.04 | X104: 25.16649015 | Y104: -65.5220768 | AA104: 41.50218336 | AB104: -54.8553851 | AD104: 0 | AE104: 0
A105: 4786.3 | B105: 4.7863 | C105: 1.89426198 | D105: 1.0146584 | E105: 1.003589624 | F105: 0.08460401138 | G105: 1 | H105: 0 | I105: 5197.202894 | J105: 1.570603916 | K105: 1.142306063 | L105: 0.5044878869 | M105: 1.000937827 | N105: 0.04329191076 | O105: 1.001842499 | P105: 0.06800662976 | Q105: 20.21744128 | R105: -120.7490769 | S105: 59.25092313 | U105: 1000000000 | V105: 22908667.69 | X105: 24.53933856 | Y105: -63.56439276 | AA105: 40.94293141 | AB105: -57.18468411 | AD105: 0 | AE105: 0
A106: 5248.1 | B106: 5.2481 | C106: 2.02774908 | D106: 1.055080543 | E106: 1.004314161 | F106: 0.09272225213 | G106: 1 | H106: 0 | I106: 5698.648314 | J106: 1.570620847 | K106: 1.168986656 | L106: 0.5443931067 | M106: 1.001127421 | N106: 0.04746288015 | O106: 1.002214809 | P106: 0.07455205809 | Q106: 19.02785171 | R106: -120.9285279 | S106: 59.0714721 | U106: 1000000000 | V106: 27542553.61 | X106: 23.93819123 | Y106: -61.5179411 | AA106: 40.35448918 | AB106: -59.4105868 | AD106: 0 | AE106: 0
A107: 5370.3 | B107: 5.3703 | C107: 2.063580875 | D107: 1.064896754 | E107: 1.00451695 | F107: 0.09486846927 | G107: 1 | H107: 0 | I107: 5831.339155 | J107: 1.57062484 | K107: 1.176349241 | L107: 0.5546445621 | M107: 1.001180504 | N107: 0.04856631787 | O107: 1.002319039 | P107: 0.07628336245 | Q107: 18.73070148 | R107: -120.9432686 | S107: 59.05673144 | U107: 1000000000 | V107: 28840122.09 | X107: 23.79233624 | Y107: -60.99402708 | AA107: 40.20319394 | AB107: -59.94924148 | AD107: 0 | AE107: 0
A108: 5432.85 | B108: 5.43285 | C108: 2.08199688 | D108: 1.069790358 | E108: 1.004622541 | F108: 0.09596670657 | G108: 1 | H108: 0 | I108: 5899.259057 | J108: 1.570626814 | K108: 1.180165279 | L108: 0.5598421603 | M108: 1.001208147 | N108: 0.04913108427 | O108: 1.002373315 | P108: 0.07716943562 | Q108: 18.5812805 | R108: -120.9461667 | S108: 59.05383325 | U108: 1000000000 | V108: 29515859.12 | X108: 23.71964421 | Y108: -60.72869849 | AA108: 40.12646498 | AB108: -60.21746826 | AD108: 0 | AE108: 0
A109: 5495.4 | B109: 5.4954 | C109: 2.100461868 | D109: 1.074598037 | E109: 1.004729343 | F109: 0.09706471171 | G109: 1 | H109: 0 | I109: 5967.17896 | J109: 1.570628743 | K109: 1.184012994 | L109: 0.5650061158 | M109: 1.001236109 | N109: 0.04969581931 | O109: 1.002428217 | P109: 0.07805542472 | Q109: 18.4336318 | R109: -120.9460735 | S109: 59.05392651 | U109: 1000000000 | V109: 30199421.16 | X109: 23.64824243 | Y109: -60.46529312 | AA109: 40.05021806 | AB109: -60.48078037 | AD109: 0 | AE109: 0
A110: 5559.4 | B110: 5.5594 | C110: 2.119404267 | D110: 1.079430344 | E110: 1.004839875 | F110: 0.09818792723 | G110: 1 | H110: 0 | I110: 6036.673345 | J110: 1.570630673 | K110: 1.187982368 | L110: 0.5702550128 | M110: 1.00126505 | N110: 0.05027361288 | O110: 1.002485039 | P110: 0.07896186433 | Q110: 18.2843621 | R110: -120.9429999 | S110: 59.05700008 | U110: 1000000000 | V110: 30906928.36 | X110: 23.57648964 | Y110: -60.19776915 | AA110: 39.97270116 | AB110: -60.74523078 | AD110: 0 | AE110: 0
A111: 5623.4 | B111: 5.6234 | C111: 2.138395278 | D111: 1.084176928 | E111: 1.004951673 | F111: 0.09931089425 | G111: 1 | H111: 0 | I111: 6106.16773 | J111: 1.570632558 | K111: 1.191984255 | L111: 0.575468808 | M111: 1.001294326 | N111: 0.05085137287 | O111: 1.002542516 | P111: 0.07986821392 | Q111: 18.13688225 | R111: -120.9370307 | S111: 59.06296933 | U111: 1000000000 | V111: 31622627.56 | X111: 23.50602508 | Y111: -59.93225191 | AA111: 39.89568587 | AB111: -61.00477876 | AD111: 0 | AE111: 0
A112: 5688.9 | B112: 5.6889 | C112: 2.157880388 | D112: 1.088948143 | E112: 1.005067405 | F112: 0.1004599206 | G112: 1 | H112: 0 | I112: 6177.290889 | J112: 1.570634444 | K112: 1.196113258 | L112: 0.5807685296 | M112: 1.001324633 | N112: 0.05144263892 | O112: 1.002602018 | P112: 0.08079571179 | Q112: 17.98776569 | R112: -120.9280419 | S112: 59.07195809 | U112: 1000000000 | V112: 32363583.21 | X112: 23.43521143 | Y112: -59.66258532 | AA112: 39.81738296 | AB112: -61.26545659 | AD112: 0 | AE112: 0
A113: 5754.4 | B113: 5.7544 | C113: 2.17741374 | D113: 1.093633859 | E113: 1.005184462 | F113: 0.1016086809 | G113: 1 | H113: 0 | I113: 6248.414049 | J113: 1.570636286 | K113: 1.200275625 | L113: 0.586031641 | M113: 1.001355291 | N113: 0.05203386897 | O113: 1.002662205 | P113: 0.08172311322 | Q113: 17.84045679 | R113: -120.9162572 | S113: 59.08374279 | U113: 1000000000 | V113: 33113119.36 | X113: 23.3656842 | Y113: -59.39501181 | AA113: 39.73960129 | AB113: -61.5212454 | AD113: 0 | AE113: 0
A114: 5821.4 | B114: 5.8214 | C114: 2.197442993 | D114: 1.098340588 | E114: 1.005305573 | F114: 0.1027834703 | G114: 1 | H114: 0 | I114: 6321.165983 | J114: 1.570638128 | K114: 1.204567472 | L114: 0.5913774975 | M114: 1.001387012 | N114: 0.05263860098 | O114: 1.00272448 | P114: 0.08267165194 | Q114: 17.69161048 | R114: -120.9014288 | S114: 59.09857116 | U114: 1000000000 | V114: 33888697.96 | X114: 23.29586405 | Y114: -59.12347092 | AA114: 39.66057513 | AB114: -61.77795792 | AD114: 0 | AE114: 0
A115: 5888.4 | B115: 5.8884 | C115: 2.217520047 | D115: 1.10296219 | E115: 1.00542807 | F115: 0.1039579751 | G115: 1 | H115: 0 | I115: 6393.917918 | J115: 1.570639928 | K115: 1.208893497 | L115: 0.5966852445 | M115: 1.0014191 | N115: 0.05324329445 | O115: 1.002787473 | P115: 0.08362008743 | Q115: 17.54458705 | R115: -120.8839123 | S115: 59.11608766 | U115: 1000000000 | V115: 34673254.56 | X115: 23.22732669 | Y115: -58.85410894 | AA115: 39.58208906 | AB115: -62.0298034 | AD115: 0 | AE115: 0
A116: 5957 | B116: 5.957 | C116: 2.238124736 | D116: 1.107608148 | E116: 1.00555493 | F116: 0.1051602296 | G116: 1 | H116: 0 | I116: 6468.407212 | J116: 1.570641729 | K116: 1.213357863 | L116: 0.6020803733 | M116: 1.001452334 | N116: 0.05386238797 | O116: 1.002852713 | P116: 0.08459106398 | Q116: 17.39590637 | R116: -120.8633114 | S116: 59.13668863 | U116: 1000000000 | V116: 35485849 | X116: 23.15844986 | Y116: -58.58056547 | AA116: 39.50228521 | AB116: -62.28274591 | AD116: 0 | AE116: 0
A117: 6025.6 | B117: 6.0256 | C117: 2.258776853 | D117: 1.112169245 | E117: 1.005683243 | F117: 0.106362179 | G117: 1 | H117: 0 | I117: 6542.896505 | J117: 1.570643489 | K117: 1.217857286 | L117: 0.607435792 | M117: 1.001485951 | N117: 0.05448144017 | O117: 1.002918704 | P117: 0.08556192985 | Q117: 17.24906655 | R117: -120.84013 | S117: 59.15987004 | U117: 1000000000 | V117: 36307855.36 | X117: 23.09085413 | Y117: -58.3092925 | AA117: 39.42304112 | AB117: -62.53083746 | AD117: 0 | AE117: 0
A118: 6095.8 | B118: 6.0958 | C118: 2.279958407 | D118: 1.116751084 | E118: 1.005816052 | F118: 0.1075918428 | G118: 1 | H118: 0 | I118: 6619.123159 | J118: 1.570645249 | K118: 1.222497543 | L118: 0.612875147 | M118: 1.00152075 | N118: 0.05511488764 | O118: 1.002987013 | P118: 0.08655532396 | Q118: 17.10067193 | R118: -120.8138553 | S118: 59.18614468 | U118: 1000000000 | V118: 37158777.64 | X118: 23.02297603 | Y118: -58.03403513 | AA118: 39.3425246 | AB118: -62.7798202 | AD118: 0 | AE118: 0
A119: 6166 | B119: 6.166 | C119: 2.301186942 | D119: 1.12124848 | E119: 1.005950381 | F119: 0.1088211802 | G119: 1 | H119: 0 | I119: 6695.349813 | J119: 1.570646969 | K119: 1.227173695 | L119: 0.6182732073 | M119: 1.001555951 | N119: 0.05574829083 | O119: 1.003056108 | P119: 0.08754859954 | Q119: 16.95413335 | R119: -120.7851156 | S119: 59.2148844 | U119: 1000000000 | V119: 38019556 | X119: 22.95637538 | Y119: -57.76113893 | AA119: 39.26258666 | AB119: -63.02397667 | AD119: 0 | AE119: 0
A120: 6237.8 | B120: 6.2378 | C120: 2.322946578 | D120: 1.125763256 | E120: 1.006089345 | F120: 0.1100781951 | G120: 1 | H120: 0 | I120: 6773.313826 | J120: 1.570648689 | K120: 1.231993132 | L120: 0.6237517473 | M120: 1.001592369 | N120: 0.05639608424 | O120: 1.003127592 | P120: 0.08856438987 | Q120: 16.80613839 | R120: -120.7532892 | S120: 59.24671084 | U120: 1000000000 | V120: 38910148.84 | X120: 22.88954603 | Y120: -57.48445604 | AA120: 39.18142105 | AB120: -63.26883311 | AD120: 0 | AE120: 0
A121: 6309.6 | B121: 6.3096 | C121: 2.344752682 | D121: 1.130194146 | E121: 1.006229898 | F121: 0.1113348608 | G121: 1 | H121: 0 | I121: 6851.277839 | J121: 1.570650369 | K121: 1.236849257 | L121: 0.6291874297 | M121: 1.001629208 | N121: 0.05704383027 | O121: 1.003199899 | P121: 0.08958005339 | Q121: 16.66001191 | R121: -120.7191198 | S121: 59.28088023 | U121: 1000000000 | V121: 39811052.16 | X121: 22.82398865 | Y121: -57.21022376 | AA121: 39.10085196 | AB121: -63.50889601 | AD121: 0 | AE121: 0
A122: 6383.05 | B122: 6.38305 | C122: 2.367106647 | D122: 1.134642299 | E122: 1.006375324 | F122: 0.11262004 | G122: 1 | H122: 0 | I122: 6931.033505 | J122: 1.570652048 | K122: 1.241854494 | L122: 0.6347038717 | M122: 1.001667328 | N122: 0.05770641225 | O122: 1.003274718 | P122: 0.09061892467 | Q122: 16.51242359 | R122: -120.6818583 | S122: 59.31814169 | U122: 1000000000 | V122: 40743327.3 | X122: 22.75820853 | Y122: -56.93221429 | AA122: 39.01904375 | AB122: -63.74964402 | AD122: 0 | AE122: 0
A123: 6456.5 | B123: 6.4565 | C123: 2.389506571 | D123: 1.139007141 | E123: 1.006522412 | F123: 0.1139048458 | G123: 1 | H123: 0 | I123: 7010.78917 | J123: 1.570653689 | K123: 1.246897217 | L123: 0.6401758598 | M123: 1.001705888 | N123: 0.0583689435 | O123: 1.003350398 | P123: 0.09165766022 | Q123: 16.36671604 | R123: -120.642379 | S123: 59.35762099 | U123: 1000000000 | V123: 41686392.25 | X123: 22.69369483 | Y123: -56.65674675 | AA123: 38.9378499 | AB123: -63.98563226 | AD123: 0 | AE123: 0
A124: 6531.7 | B124: 6.5317 | C124: 2.412486467 | D124: 1.143391918 | E124: 1.006674726 | F124: 0.1152198717 | G124: 1 | H124: 0 | I124: 7092.445073 | J124: 1.570655332 | K124: 1.252098451 | L124: 0.6457323875 | M124: 1.001745822 | N124: 0.0590472069 | O124: 1.003428773 | P124: 0.09272100222 | Q124: 16.21944746 | R124: -120.5997779 | S124: 59.40022207 | U124: 1000000000 | V124: 42663104.89 | X124: 22.62892354 | Y124: -56.37733689 | AA124: 38.85535262 | AB124: -64.22244104 | AD124: 0 | AE124: 0
A125: 6606.9 | B125: 6.6069 | C125: 2.43551187 | D125: 1.147693869 | E125: 1.00682878 | F125: 0.1165344976 | G125: 1 | H125: 0 | I125: 7174.100975 | J125: 1.570656937 | K125: 1.257338023 | L125: 0.651242774 | M125: 1.001786217 | N125: 0.05972541591 | O125: 1.003508049 | P125: 0.09378419872 | Q125: 16.07407418 | R125: -120.5550843 | S125: 59.44491572 | U125: 1000000000 | V125: 43651127.61 | X125: 22.56541463 | Y125: -56.10056546 | AA125: 38.77348824 | AB125: -64.45451882 | AD125: 0 | AE125: 0
A126: 6683.85 | B126: 6.68385 | C126: 2.459118878 | D126: 1.152012455 | E126: 1.006988219 | F126: 0.1178792976 | G126: 1 | H126: 0 | I126: 7257.657115 | J126: 1.570658541 | K126: 1.262738715 | L126: 0.656833882 | M126: 1.001828029 | N126: 0.06041935076 | O126: 1.003590103 | P126: 0.09487198485 | Q126: 15.92724108 | R126: -120.5072998 | S126: 59.49270018 | U126: 1000000000 | V126: 44673850.82 | X126: 22.50170183 | Y126: -55.82007005 | AA126: 38.69036795 | AB126: -64.68722977 | AD126: 0 | AE126: 0
A127: 6760.8 | B127: 6.7608 | C127: 2.482770877 | D127: 1.156248837 | E127: 1.007149479 | F127: 0.1192236695 | G127: 1 | H127: 0 | I127: 7341.213255 | J127: 1.57066011 | K127: 1.268178544 | L127: 0.6623771963 | M127: 1.001870324 | N127: 0.06111322736 | O127: 1.003673102 | P127: 0.09595961519 | Q127: 15.7823148 | R127: -120.457554 | S127: 59.54244601 | U127: 1000000000 | V127: 45708416.64 | X127: 22.43924537 | Y127: -55.5423076 | AA127: 38.60789813 | AB127: -64.91524639 | AD127: 0 | AE127: 0
A128: 6839.55 | B128: 6.83955 | C128: 2.507021391 | D128: 1.160501477 | E128: 1.007316396 | F128: 0.1205990404 | G128: 1 | H128: 0 | I128: 7426.723924 | J128: 1.570661678 | K128: 1.273785619 | L128: 0.6680009805 | M128: 1.001914107 | N128: 0.06182327399 | O128: 1.003759018 | P128: 0.09707252406 | Q128: 15.63593319 | R128: -120.4047278 | S128: 59.59527225 | U128: 1000000000 | V128: 46779444.2 | X128: 22.3765958 | Y128: -55.26086103 | AA128: 38.52416609 | AB128: -65.14386672 | AD128: 0 | AE128: 0
A129: 6918.3 | B129: 6.9183 | C129: 2.531316376 | D129: 1.164672559 | E129: 1.007485217 | F129: 0.121973953 | G129: 1 | H129: 0 | I129: 7512.234593 | J129: 1.570663211 | K129: 1.279432625 | L129: 0.6735752967 | M129: 1.001958395 | N129: 0.0625332582 | O129: 1.003845923 | P129: 0.09818526607 | Q129: 15.49146943 | R129: -120.350074 | S129: 59.64992599 | U129: 1000000000 | V129: 47862874.89 | X129: 22.31519622 | Y129: -54.98224316 | AA129: 38.44110191 | AB129: -65.36783085 | AD129: 0 | AE129: 0
A130: 6998.9 | B130: 6.9989 | C130: 2.556226826 | D130: 1.168859452 | E130: 1.007659975 | F130: 0.1233806853 | G130: 1 | H130: 0 | I130: 7599.754085 | J130: 1.570664744 | K130: 1.285253092 | L130: 0.6792296614 | M130: 1.002004246 | N130: 0.06325985605 | O130: 1.003935892 | P130: 0.09932397396 | Q130: 15.34555764 | R130: -120.2923562 | S130: 59.70764376 | U130: 1000000000 | V130: 48984601.21 | X130: 22.25361552 | Y130: -54.69999074 | AA130: 38.35677082 | AB130: -65.59236549 | AD130: 0 | AE130: 0
A131: 7079.5 | B131: 7.0795 | C131: 2.581181222 | D131: 1.17296546 | E131: 1.007836727 | F131: 0.124786927 | G131: 1 | H131: 0 | I131: 7687.273576 | J131: 1.570666242 | K131: 1.29111428 | L131: 0.6848328665 | M131: 1.002050627 | N131: 0.06398638701 | O131: 1.004026895 | P131: 0.1004625031 | Q131: 15.20157415 | R131: -120.2329473 | S131: 59.76705266 | U131: 1000000000 | V131: 50119320.25 | X131: 22.19327807 | Y131: -54.42066373 | AA131: 38.27312477 | AB131: -65.81228361 | AD131: 0 | AE131: 0
A132: 7161.95 | B132: 7.16195 | C132: 2.606752546 | D132: 1.1770843 | E132: 1.008019598 | F132: 0.1262249328 | G132: 1 | H132: 0 | I132: 7776.80189 | J132: 1.570667739 | K132: 1.297151557 | L132: 0.6905121053 | M132: 1.002098619 | N132: 0.06472952394 | O132: 1.004121058 | P132: 0.1016269778 | Q132: 15.05624006 | R132: -120.1705353 | S132: 59.82946466 | U132: 1000000000 | V132: 51293527.8 | X132: 22.13280884 | Y132: -54.13793173 | AA132: 38.18825992 | AB132: -66.03260361 | AD132: 0 | AE132: 0
A133: 7244.4 | B133: 7.2444 | C133: 2.632367234 | D133: 1.18112305 | E133: 1.008204552 | F133: 0.1276624139 | G133: 1 | H133: 0 | I133: 7866.330203 | J133: 1.570669203 | K133: 1.303230283 | L133: 0.6961385443 | M133: 1.002147165 | N133: 0.06547258929 | O133: 1.004216302 | P133: 0.1027912611 | Q133: 14.9128417 | R133: -120.1065727 | S133: 59.89342727 | U133: 1000000000 | V133: 52481331.36 | X133: 22.07357416 | Y133: -53.85821888 | AA133: 38.10409624 | AB133: -66.24835384 | AD133: 0 | AE133: 0
A134: 7328.75 | B134: 7.32875 | C134: 2.65861576 | D134: 1.185174268 | E134: 1.008395923 | F134: 0.129132472 | G134: 1 | H134: 0 | I134: 7957.921632 | J134: 1.570670666 | K134: 1.30949138 | L134: 0.7018403994 | M134: 1.002197402 | N134: 0.06623270311 | O134: 1.00431486 | P134: 0.1039821744 | Q134: 14.76810036 | R134: -120.0396395 | S134: 59.96036049 | U134: 1000000000 | V134: 53710576.56 | X134: 22.01421867 | Y134: -53.57516179 | AA134: 38.01871038 | AB134: -66.46447772 | AD134: 0 | AE134: 0
A135: 7413.1 | B135: 7.4131 | C135: 2.684907068 | D135: 1.189146209 | E135: 1.008589472 | F135: 0.130601969 | G135: 1 | H135: 0 | I135: 8049.51306 | J135: 1.570672096 | K135: 1.315794645 | L135: 0.7074878076 | M135: 1.002248218 | N135: 0.06699274029 | O135: 1.00441455 | P135: 0.1051728831 | Q135: 14.62530153 | R135: -119.9712978 | S135: 60.02870224 | U135: 1000000000 | V135: 54954051.61 | X135: 21.95608865 | Y135: -53.29521798 | AA135: 37.93404158 | AB135: -66.67607977 | AD135: 0 | AE135: 0
A136: 7499.45 | B136: 7.49945 | C136: 2.711864776 | D136: 1.193132487 | E136: 1.008789866 | F136: 0.1321057214 | G136: 1 | H136: 0 | I136: 8143.276187 | J136: 1.570673526 | K136: 1.322290414 | L136: 0.713213161 | M136: 1.002300838 | N136: 0.06777071821 | O136: 1.004517776 | P136: 0.1063916099 | Q136: 14.48108665 | R136: -119.8999821 | S136: 60.10001787 | U136: 1000000000 | V136: 56241750.3 | X136: 21.89781623 | Y136: -53.01183621 | AA136: 37.84809912 | AB136: -66.88814592 | AD136: 0 | AE136: 0
A137: 7585.8 | B137: 7.5858 | C137: 2.738864728 | D137: 1.197040232 | E137: 1.008992541 | F137: 0.1336088731 | G137: 1 | H137: 0 | I137: 8237.039315 | J137: 1.570674924 | K137: 1.328829102 | L137: 0.7188823539 | M137: 1.002354065 | N137: 0.06854861398 | O137: 1.004622187 | P137: 0.1076101174 | Q137: 14.3388226 | R137: -119.8273999 | S137: 60.17260008 | U137: 1000000000 | V137: 57544361.64 | X137: 21.84076112 | Y137: -52.73166562 | AA137: 37.76289017 | AB137: -67.09573431 | AD137: 0 | AE137: 0
A138: 7674.15 | B138: 7.67415 | C138: 2.766532474 | D138: 1.20095948 | E138: 1.009202268 | F138: 0.1351462117 | G138: 1 | H138: 0 | I138: 8332.974142 | J138: 1.570676322 | K138: 1.335563001 | L138: 0.7246252105 | M138: 1.002409153 | N138: 0.06934444102 | O138: 1.004730243 | P138: 0.1088566178 | Q138: 14.19523958 | R138: -119.7519286 | S138: 60.24807137 | U138: 1000000000 | V138: 58892578.22 | X138: 21.78361084 | Y138: -52.44830178 | AA138: 37.67645744 | AB138: -67.30362685 | AD138: 0 | AE138: 0
A139: 7762.5 | B139: 7.7625 | C139: 2.794241874 | D139: 1.204801054 | E139: 1.009414379 | F139: 0.1366829078 | G139: 1 | H139: 0 | I139: 8428.90897 | J139: 1.570677687 | K139: 1.342340505 | L139: 0.7303102615 | M139: 1.002464875 | N139: 0.0701401801 | O139: 1.004839539 | P139: 0.1101028835 | Q139: 14.05361257 | R139: -119.6753355 | S139: 60.32466448 | U139: 1000000000 | V139: 60256406.25 | X139: 21.72766775 | Y139: -52.1682431 | AA139: 37.59077352 | AB139: -67.50709241 | AD139: 0 | AE139: 0
A140: 7852.9 | B140: 7.8529 | C140: 2.822636054 | D140: 1.208653637 | E140: 1.009633878 | F140: 0.1382545881 | G140: 1 | H140: 0 | I140: 8527.069789 | J140: 1.570679053 | K140: 1.349319717 | L140: 0.7360679188 | M140: 1.002522547 | N140: 0.07095429076 | O140: 1.004952654 | P140: 0.1113778209 | Q140: 13.91068032 | R140: -119.595904 | S140: 60.40409596 | U140: 1000000000 | V140: 61668038.41 | X140: 21.67164241 | Y140: -51.88507699 | AA140: 37.5038666 | AB140: -67.71082705 | AD140: 0 | AE140: 0
A141: 7943.3 | B141: 7.9433 | C141: =SQRT(1+(A141/pole1)^2) -> 2.851071294 | D141: =ATAN(A141/pole1) -> 1.212429428 | E141: =SQRT(1+(A141/Zero1)^2) -> 1.00985587 | F141: =ATAN(A141/Zero1) -> 0.1398255811 | G141: =IF(VIN_nom>Vout,1,SQRT(1+(A141/z_RHP)^2)) -> 1 | H141: =IF(VIN_nom>Vout,0,-ATAN(A141/z_RHP)) -> 0 | I141: =SQRT(1+(A141/Pole2)^2) -> 8625.230608 | J141: =ATAN(A141/Pole2) -> 1.570680388 | K141: =SQRT(1+(A141/Zero2)^2) -> 1.356343199 | L141: =ATAN(A141/Zero2) -> 0.7417661342 | M141: =SQRT(1+(A141/pole4)^2) -> 1.002580884 | N141: =ATAN(A141/pole4) -> 0.07176830721 | O141: =SQRT((1-(V141/pterm2))^2+(A141/pterm1)^2) -> 1.005067067 | P141: =IF((ATAN((A141/pterm1)/(1-A141^2/pterm2))>0),ATAN((A141/pterm1)/(1-A141^2/pterm2)),PI()+ATAN((A141/pterm1)/(1-A141^2/pterm2))) -> 0.1126525069 | Q141: =20*LOG10(((E141*K141*G141)/(C141*I141*O141*M141))*Adc) -> 13.7697084 | R141: =((F141+L141+H141)-(D141+J141+P141+N141))*radconv -> -119.5154962 | S141: =IF(R141>0,R141,R141+180) -> 60.48450376 | U141: 1000000000 | V141: 63096014.89 | X141: =20*LOG10((K141/(I141*M141))*AEA) -> 21.61681358 | Y141: =(L141-(J141+N141))*radconv -> -51.60530948 | AA141: =20*LOG10((E141*G141/(C141*O141))*Acs*Am) -> 37.41772351 | AB141: =(F141+H141-(D141+P141))*radconv -> -67.91018677 | AD141: 0 | AE141: 0
A142: 8035.8 | B142: =A142/1000 -> 8.0358 | C142: 2.88020832 | D142: 1.216215703 | E142: 1.010085598 | F142: 0.1414323497 | G142: 1 | H142: 0 | I142: 8725.671712 | J142: 1.570681722 | K142: 1.363574947 | L142: 0.7475357658 | M142: 1.002641263 | N142: 0.07260113472 | O142: 1.005185481 | P142: 0.1139565411 | Q142: 13.62744657 | R142: -119.4323069 | S142: 60.56769314 | U142: =IF(Q142<0,A142,1000000000) -> 1000000000 | V142: =A142^2 -> 64574081.64 | X142: 21.56191581 | Y142: -51.32252791 | AA142: 37.33035945 | AB142: -68.10977895 | AD142: =SUM((Q143<0)*(Q142>0))*A142 -> 0 | AE142: 0
A143: 8128.3 | B143: 8.1283 | C143: 2.909385809 | D143: 1.219926087 | E143: 1.010317932 | F143: 0.1430383834 | G143: 1 | H143: 0 | I143: 8826.112816 | J143: 1.570683027 | K143: 1.370851607 | L143: 0.7532443338 | M143: 1.002702338 | N143: 0.07343386136 | O143: 1.005305252 | P143: 0.1152603062 | Q143: 13.48714848 | R143: -119.3482871 | S143: 60.6517129 | U143: 1000000000 | V143: 66069260.89 | X143: 21.50820328 | Y143: -51.0432375 | AA143: 37.2437739 | AB143: -68.3050496 | AD143: 0 | AE143: 0
A144: 8222.95 | B144: 8.22295 | C144: 2.939282106 | D144: 1.223646408 | E144: 1.010558362 | F144: 0.1446809778 | G144: 1 | H144: 0 | I144: 8928.888497 | J144: 1.570684331 | K144: 1.378343148 | L144: 0.7590230023 | M144: 1.002765551 | N144: 0.07428583765 | O144: 1.005429212 | P144: 0.1165940936 | Q144: 13.34557727 | R144: -119.2615485 | S144: 60.73845149 | U144: 1000000000 | V144: 67616906.7 | X144: 21.45443532 | Y144: -50.76103355 | AA144: 37.15597064 | AB144: -68.50051496 | AD144: 0 | AE144: 0
A145: 8270.275 | B145: 8.270275 | C145: 2.954245278 | D145: 1.225478319 | E145: 1.0106796 | F145: 0.1455019808 | G145: 1 | H145: 0 | I145: 8980.276338 | J145: 1.570684972 | K145: 1.382106039 | L145: 0.7618887968 | M145: 1.002797431 | N145: 0.07471178536 | O145: 1.005491725 | P145: 0.1172608795 | Q145: 13.27553173 | R145: -119.2179171 | S145: 60.7820829 | U145: 1000000000 | V145: 68397448.58 | X145: 21.42799342 | Y145: -50.62127734 | AA145: 37.11236701 | AB145: -68.59663976 | AD145: 0 | AE145: 0
A146: 8317.6 | B146: 8.3176 | C146: 2.969218264 | D146: 1.227291761 | E146: 1.010801518 | F146: 0.1463227863 | G146: 1 | H146: 0 | I146: 9031.664178 | J146: 1.570685605 | K146: 1.385880218 | L146: 0.7647390057 | M146: 1.002829493 | N146: 0.07513770592 | O146: 1.005554593 | P146: 0.1179275931 | Q146: 13.20597224 | R146: -119.1741256 | S146: 60.82587436 | U146: 1000000000 | V146: 69182469.76 | X146: 21.40184073 | Y146: -50.48241215 | AA146: 37.0689602 | AB146: -68.69171349 | AD146: 0 | AE146: 0
A147: 8366.05 | B147: 8.36605 | C147: 2.984557198 | D147: 1.229129456 | E147: 1.01092704 | F147: 0.1471628981 | G147: 1 | H147: 0 | I147: 9084.2736 | J147: 1.570686246 | K147: 1.389755715 | L147: 0.7676409079 | M147: 1.002862505 | N147: 0.07557372307 | O147: 1.005619323 | P147: 0.1186100802 | Q147: 13.13525705 | R147: -119.1291385 | S147: 60.8708615 | U147: 1000000000 | V147: 69990792.6 | X147: 21.37536177 | Y147: -50.34116409 | AA147: 37.02472397 | AB147: -68.78797441 | AD147: 0 | AE147: 0
A148: 8414.5 | B148: 8.4145 | C148: 2.999906108 | D148: 1.230948352 | E148: 1.011053276 | F148: 0.1480028008 | G148: 1 | H148: 0 | I148: 9136.883021 | J148: 1.57068688 | K148: =SQRT(1+(A148/Zero2)^2) -> 1.393642851 | L148: =ATAN(A148/Zero2) -> 0.7705266464 | M148: 1.002895709 | N148: 0.07600971144 | O148: 1.005684425 | P148: 0.1192924907 | Q148: 13.06503989 | R148: -119.0840059 | S148: 60.91599411 | U148: 1000000000 | V148: 70803810.25 | X148: 21.34917747 | Y148: -50.20084006 | AA148: 36.98069111 | AB148: -68.88316583 | AD148: 0 | AE148: 0
A149: 8462.95 | B149: 8.46295 | C149: 3.015264842 | D149: 1.232748724 | E149: 1.011180224 | F149: 0.1488424931 | G149: 1 | H149: 0 | I149: 9189.492443 | J149: 1.570687507 | K149: 1.397541527 | L149: 0.7733963081 | M149: 1.002929102 | N149: 0.07644567086 | O149: 1.005749899 | P149: 0.119974824 | Q149: 12.99531511 | R149: -119.0387386 | S149: 60.96126137 | U149: 1000000000 | V149: 71621522.7 | X149: 21.32328366 | Y149: -50.06143509 | AA149: 36.93686015 | AB149: -68.97730355 | AD149: 0 | AE149: 0
A150: 8511.4 | B150: 8.5114 | C150: 3.03063325 | D150: 1.234530842 | E150: 1.011307885 | F150: 0.1496819741 | G150: 1 | H150: 0 | I150: 9242.101864 | J150: 1.570688126 | K150: 1.401451648 | L150: 0.7762499803 | M150: 1.002962686 | N150: 0.07688160116 | O150: 1.005815745 | P150: 0.1206570798 | Q150: 12.92607716 | R150: -118.9933472 | S150: 61.00665275 | U150: 1000000000 | V150: 72443929.96 | X150: 21.29767623 | Y150: -49.92294418 | AA150: 36.89322963 | AB150: -69.07040307 | AD150: 0 | AE150: 0
A151: 8560.95 | B151: 8.56095 | C151: 3.046360433 | D151: 1.236334818 | E151: 1.011439182 | F151: 0.1505402947 | G151: 1 | H151: 0 | I151: 9295.90572 | J151: 1.570688753 | K151: 1.405462281 | L151: 0.7791519943 | M151: 1.00299723 | N151: 0.07732739846 | O151: 1.005883471 | P151: 0.1213547447 | Q151: 12.85576506 | R151: -118.9468076 | S151: 61.05319243 | U151: 1000000000 | V151: 73289864.9 | X151: 21.27177941 | Y151: -49.78224921 | AA151: 36.84881435 | AB151: -69.16455836 | AD151: 0 | AE151: 0
A152: 8610.5 | B152: 8.6105 | C152: 3.062097429 | D152: 1.238120256 | E152: 1.011571223 | F152: 0.1513983918 | G152: 1 | H152: 0 | I152: 9349.709577 | J152: 1.570689372 | K152: 1.409484683 | L152: 0.7820374688 | M152: 1.003031974 | N152: 0.07777316497 | O152: 1.005951585 | P152: 0.1220523276 | Q152: 12.78595063 | R152: -118.9001594 | S152: 61.09984061 | U152: 1000000000 | V152: 74140710.25 | X152: 21.24617365 | Y152: -49.6424997 | AA152: 36.80460567 | AB152: -69.25765968 | AD152: 0 | AE152: 0
A153: 8660.05 | B153: 8.66005 | C153: 3.077844086 | D153: 1.239887432 | E153: 1.01170401 | F153: 0.1522562643 | G153: 1 | H153: 0 | I153: 9403.513433 | J153: 1.570689984 | K153: 1.413518754 | L153: 0.7849064973 | M153: 1.003066916 | N153: 0.07821890051 | O153: 1.006020089 | P153: 0.1227498281 | Q153: 12.71662817 | R153: -118.853413 | S153: 61.14658696 | U153: 1000000000 | V153: 74996466 | X153: 21.22085479 | Y153: -49.50369031 | AA153: 36.76060208 | AB153: -69.34972273 | AD153: 0 | AE153: 0
A154: 8709.6 | B154: 8.7096 | C154: 3.093600257 | D154: 1.241636612 | E154: 1.01183754 | F154: 0.153113911 | G154: 1 | H154: 0 | I154: 9457.317289 | J154: 1.570690589 | K154: 1.417564394 | L154: 0.7877591732 | M154: 1.003102058 | N154: 0.07866460491 | O154: 1.00608898 | P154: 0.1234472457 | Q154: 12.64779205 | R154: -118.8065786 | S154: 61.19342143 | U154: 1000000000 | V154: 75857132.16 | X154: 21.1958187 | Y154: -49.36581567 | AA154: 36.71680205 | AB154: -69.4407629 | AD154: 0 | AE154: =IF(AD154>0,S154,0) -> 0
A155: 8760.325 | B155: 8.760325 | C155: 3.109739765 | D155: 1.243408904 | E155: 1.011975008 | F155: 0.1539916604 | G155: 1 | H155: 0 | I155: 9512.397019 | J155: 1.570691201 | K155: 1.42171785 | L155: 0.7906626542 | M155: 1.003138239 | N155: 0.07912084604 | O155: 1.006159908 | P155: 0.1241611151 | Q155: 12.57782161 | R155: -118.7585524 | S155: 61.24144762 | U155: 1000000000 | V155: 76743294.11 | X155: 21.17047764 | Y155: -49.22563423 | AA155: 36.67217266 | AB155: -69.53291816 | AD155: 0 | AE155: 0
A156: 8811.05 | B156: 8.81105 | C156: 3.125888939 | D156: 1.24516289 | E156: 1.012113255 | F156: 0.1548691706 | G156: 1 | H156: 0 | I156: 9567.476749 | J156: 1.570691806 | K156: 1.425883221 | L156: 0.7935491959 | M156: 1.00317463 | N156: 0.07957705417 | O156: 1.006231244 | P156: 0.1248748966 | Q156: 12.50834921 | R156: -118.7104542 | S156: 61.28954577 | U156: 1000000000 | V156: 77634602.1 | X156: 21.14542446 | Y156: -49.08642105 | AA156: 36.62775344 | AB156: -69.62403318 | AD156: 0 | AE156: 0
A157: 8861.775 | B157: 8.861775 | C157: 3.142047632 | D157: 1.246898841 | E157: 1.012252281 | F157: 0.1557464405 | G157: 1 | H157: 0 | I157: 9622.556478 | J157: 1.570692404 | K157: 1.430060404 | L157: 0.7964188982 | M157: 1.003211229 | N157: 0.08003322911 | O157: 1.006302986 | P157: 0.1255885899 | Q157: 12.43936908 | R157: -118.662294 | S157: 61.33770604 | U157: 1000000000 | V157: 78531056.15 | X157: 21.12065497 | Y157: -48.94817039 | AA157: 36.5835428 | AB157: -69.71412357 | AD157: 0 | AE157: 0
A158: 8912.5 | B158: 8.9125 | C158: 3.158215696 | D158: 1.248617022 | E158: 1.012392087 | F158: 0.1566234687 | G158: 1 | H158: 0 | I158: 9677.636208 | J158: 1.570692996 | K158: =SQRT(1+(A158/Zero2)^2) -> 1.434249295 | L158: =ATAN(A158/Zero2) -> 0.7992718614 | M158: 1.003248037 | N158: 0.08048937066 | O158: 1.006375135 | P158: 0.1263021943 | Q158: 12.37087554 | R158: -118.6140812 | S158: 61.38591884 | U158: 1000000000 | V158: 79432656.25 | X158: 21.09616508 | Y158: -48.81087652 | AA158: 36.53953915 | AB158: -69.80320464 | AD158: 0 | AE158: 0
A159: 8964.4 | B159: 8.9644 | C159: 3.174767829 | D159: 1.250356886 | E159: 1.012535936 | F159: 0.1575205612 | G159: 1 | H159: 0 | I159: 9733.991811 | J159: 1.570693594 | K159: 1.43854723 | L159: 0.8021736899 | M159: 1.003285913 | N159: 0.0809560436 | O159: 1.006449377 | P159: 0.1270322363 | Q159: 12.3012932 | R159: -118.5647069 | S159: 61.43529315 | U159: 1000000000 | V159: 80360467.36 | X159: 21.07139308 | Y159: -48.67138666 | AA159: 36.49472882 | AB159: -69.89332019 | AD159: 0 | AE159: 0
A160: 9016.3 | B160: 9.0163 | C160: 3.191329474 | D160: 1.252078696 | E160: 1.0126806 | F160: 0.158417398 | G160: 1 | H160: 0 | I160: 9790.347415 | J160: 1.570694185 | K160: 1.442857205 | L160: 0.8050582064 | M160: 1.003324008 | N160: 0.0814226812 | O160: 1.006524045 | P160: 0.1277621843 | Q160: 12.23220849 | R160: -118.5152969 | S160: 61.48470308 | U160: 1000000000 | V160: 81293665.69 | X160: 21.0469053 | Y160: -48.53288628 | AA160: 36.45013189 | AB160: -69.98241064 | AD160: 0 | AE160: 0
A161: 9068.2 | B161: 9.0682 | C161: 3.207900482 | D161: 1.253782723 | E161: 1.012826078 | F161: 0.159313978 | G161: 1 | H161: 0 | I161: 9846.703018 | J161: 1.57069477 | K161: 1.447179115 | L161: 0.8079255178 | M161: 1.003362321 | N161: 0.08188928326 | O161: 1.006599139 | P161: 0.1284920378 | Q161: 12.16361558 | R161: -118.4658607 | S161: 61.53413927 | U161: 1000000000 | V161: 82232251.24 | X161: 21.02269757 | Y161: -48.39536927 | AA161: 36.40574671 | AB161: -70.07049146 | AD161: 0 | AE161: 0
A162: 9120.1 | B162: 9.1201 | C162: 3.224480708 | D162: 1.255469231 | E162: 1.01297237 | F162: 0.1602102997 | G162: 1 | H162: 0 | I162: 9903.058621 | J162: 1.570695348 | K162: 1.451512851 | L162: 0.8107757308 | M162: 1.003400853 | N162: 0.08235584959 | O162: 1.006674658 | P162: 0.1292217962 | Q162: 12.09550874 | R162: -118.4164073 | S162: 61.58359266 | U162: 1000000000 | V162: 83176224.01 | X162: 20.99876579 | Y162: -48.25882948 | AA162: 36.36157165 | AB162: -70.15757785 | AD162: 0 | AE162: 0
A163: 9173.2 | B163: 9.1732 | C163: 3.241453687 | D163: 1.257176872 | E163: 1.013122887 | F163: 0.161127077 | G163: 1 | H163: 0 | I163: 9960.717244 | J163: 1.570695932 | K163: 1.45595892 | L163: 0.8136742599 | M163: 1.003440502 | N163: 0.08283316639 | O163: 1.006752364 | P163: 0.1299683289 | Q163: 12.02632435 | R163: -118.3658019 | S163: 61.63419811 | U163: 1000000000 | V163: 84147598.24 | X163: 20.97456206 | Y163: -48.12013773 | AA163: 36.31659098 | AB163: -70.24566416 | AD163: 0 | AE163: 0
A164: 9226.3 | B164: 9.2263 | C164: 3.258436019 | D164: 1.258866717 | E164: 1.013274255 | F164: 0.1620435811 | G164: 1 | H164: 0 | I164: 10018.37587 | J164: 1.57069651 | K164: 1.460417146 | L164: 0.8165551164 | M164: 1.003480379 | N164: 0.08331044536 | O164: 1.006830515 | P164: 0.1307147609 | Q164: 11.95763688 | R164: -118.3151968 | S164: 61.68480323 | U164: 1000000000 | V164: 85124611.69 | X164: 20.95063873 | Y164: -47.98245599 | AA164: 36.27182685 | AB164: -70.33274079 | AD164: 0 | AE164: 0
A165: 9279.4 | B165: 9.2794 | C165: 3.275427559 | D165: 1.260539036 | E165: 1.013426474 | F165: 0.1629598107 | G165: 1 | H165: 0 | I165: 10076.03449 | J165: 1.570697081 | K165: 1.464887419 | L165: 0.819418414 | M165: 1.003520485 | N165: 0.08378768629 | O165: 1.006909112 | P165: 0.1314610918 | Q165: 11.88944047 | R165: -118.2646008 | S165: 61.73539918 | U165: 1000000000 | V165: 86107264.36 | X165: 20.92699163 | Y165: -47.84577774 | AA165: 36.22727754 | AB165: -70.41882309 | AD165: 0 | AE165: 0
A166: 9332.5 | B166: 9.3325 | C166: 3.292428165 | D166: 1.262194088 | E166: 1.013579543 | F166: 0.1638757643 | G166: 1 | H166: 0 | I166: 10133.69311 | J166: 1.570697646 | K166: 1.469369629 | L166: 0.8222642662 | M166: 1.00356082 | N166: 0.08426488897 | O166: 1.006988154 | P166: 0.1322073211 | Q166: 11.82172933 | R166: -118.2140226 | S166: 61.78597741 | U166: 1000000000 | V166: 87095556.25 | X166: 20.90361666 | Y166: -47.71009647 | AA166: 36.18294137 | AB166: -70.50392613 | AD166: 0 | AE166: 0
A167: 9386.85 | B167: 9.38685 | C167: 3.309838216 | D167: 1.26387049 | E167: 1.013737096 | F167: 0.1648129926 | G167: 1 | H167: 0 | I167: 10192.70905 | J167: 1.570698217 | K167: 1.473969599 | L167: 0.8251591632 | M167: 1.003602341 | N167: 0.08475328539 | O167: 1.007069518 | P167: 0.1329710111 | Q167: 11.75292085 | R167: -118.1622807 | S167: 61.83771927 | U167: 1000000000 | V167: 88112952.92 | X167: 20.87996907 | Y167: -47.57224688 | AA167: 36.13778047 | AB167: -70.59003385 | AD167: 0 | AE167: 0
A168: 9441.2 | B168: 9.4412 | C168: 3.327257472 | D168: 1.265529343 | E168: 1.013895539 | F168: 0.1657499288 | G168: 1 | H168: 0 | I168: 10251.72498 | J168: 1.570698782 | K168: 1.478581846 | L168: 0.8280360236 | M168: 1.003644101 | N168: 0.08524164129 | O168: 1.007151348 | P168: 0.1337345934 | Q168: 11.68460876 | R168: -118.1105747 | S168: 61.8894253 | U168: 1000000000 | V168: 89136257.44 | X168: 20.85659813 | Y168: -47.43542801 | AA168: 36.09283933 | AB168: -70.67514669 | AD168: 0 | AE168: 0
A169: 9495.55 | B169: 9.49555 | C169: 3.344685788 | D169: 1.267170913 | E169: 1.014054872 | F169: 0.1666865715 | G169: 1 | H169: 0 | I169: 10310.74092 | J169: 1.570699341 | K169: 1.483206253 | L169: 0.8308949684 | M169: 1.0036861 | N169: 0.08572995643 | O169: 1.007233644 | P169: 0.1344980675 | Q169: 11.61678716 | R169: -118.0589128 | S169: 61.94108718 | U169: 1000000000 | V169: 90165469.8 | X169: 20.83349968 | Y169: -47.29963292 | AA169: 36.04811618 | AB169: -70.75927989 | AD169: 0 | AE169: 0
A170: 9549.9 | B170: 9.5499 | C170: 3.362123023 | D170: 1.26879546 | E170: 1.014215095 | F170: 0.167622919 | G170: 1 | H170: 0 | I170: 10369.75685 | J170: 1.570699893 | K170: 1.487842709 | L170: 0.8337361181 | M170: 1.003728339 | N170: 0.0862182306 | O170: 1.007316406 | P170: 0.1352614327 | Q170: 11.54945021 | R170: -118.0073031 | S170: 61.99269688 | U170: 1000000000 | V170: 91200590.01 | X170: 20.81066964 | Y170: -47.16485471 | AA170: 36.00360927 | AB170: -70.8424484 | AD170: 0 | AE170: 0
A171: 9605.525 | B171: 9.605525 | C171: 3.379978412 | D171: 1.270440756 | E171: 1.014379996 | F171: 0.1685809252 | G171: 1 | H171: 0 | I171: 10430.15725 | J171: 1.570700451 | K171: 1.492600288 | L171: 0.8366256176 | M171: 1.003771816 | N171: 0.08671791654 | O171: 1.007401593 | P171: 0.1360425924 | Q171: 11.48102942 | R171: -117.9545448 | S171: 62.04545515 | U171: 1000000000 | V171: 92266110.53 | X171: 20.78757776 | Y171: -47.02796048 | AA171: 35.95828036 | AB171: -70.92658437 | AD171: 0 | AE171: 0
A172: 9661.15 | B172: 9.66115 | C172: 3.397842854 | D172: 1.272068756 | E172: 1.014545828 | F172: 0.1695386191 | G172: 1 | H172: 0 | I172: 10490.55764 | J172: 1.570701003 | K172: 1.497370251 | L172: 0.8394967316 | M172: 1.003815544 | N172: 0.08721755907 | O172: 1.007487267 | P172: 0.1368236368 | Q172: 11.41310421 | R172: -117.9018574 | S172: 62.09814257 | U172: 1000000000 | V172: 93337819.32 | X172: 20.7647586 | Y172: -46.8921168 | AA172: 35.91317431 | AB172: -71.00974063 | AD172: 0 | AE172: 0
A173: 9716.775 | B173: 9.716775 | C173: 3.415716207 | D173: 1.273679722 | E173: 1.01471259 | F173: 0.1704959991 | G173: 1 | H173: 0 | I173: 10550.95803 | J173: 1.570701549 | K173: 1.502152479 | L173: 0.8423495882 | M173: 1.003859522 | N173: 0.08771715795 | O173: 1.007573429 | P173: 0.1376045654 | Q173: 11.34566859 | R173: -117.8492486 | S173: 62.15075138 | U173: 1000000000 | V173: 94415716.4 | X173: 20.742208 | Y173: -46.75731633 | AA173: 35.86828928 | AB173: -71.09193229 | AD173: 0 | AE173: 0
A174: 9772.4 | B174: 9.7724 | C174: 3.433598333 | D174: 1.275273913 | E174: 1.014880282 | F174: 0.1714530636 | G174: 1 | H174: 0 | I174: 10611.35843 | J174: 1.570702088 | K174: 1.506946854 | L174: 0.8451843149 | M174: 1.003903751 | N174: 0.08821671294 | O174: 1.007660079 | P174: 0.1383853774 | Q174: 11.27871668 | R174: -117.7967259 | S174: 62.20327407 | U174: 1000000000 | V174: 95499801.76 | X174: 20.7199219 | Y174: -46.62355175 | AA174: 35.82362348 | AB174: -71.17317418 | AD174: 0 | AE174: 0
A175: 9829.3 | B175: 9.8293 | C175: 3.451899275 | D175: 1.276887552 | E175: 1.01505278 | F175: 0.1724317372 | G175: 1 | H175: 0 | I175: 10673.14328 | J175: 1.570702634 | K175: 1.511863571 | L175: 0.848065392 | M175: 1.003949253 | N175: 0.08872767272 | O175: 1.007749219 | P175: 0.1391839655 | Q175: 11.21072457 | R175: -117.743096 | S175: 62.25690399 | U175: 1000000000 | V175: 96615138.49 | X175: 20.69739444 | Y175: -46.48778529 | AA175: 35.77815882 | AB175: -71.25531071 | AD175: 0 | AE175: 0
A176: 9886.2 | B176: 9.8862 | C176: 3.470209111 | D176: 1.278484166 | E176: 1.015226249 | F176: 0.1734100773 | G176: 1 | H176: 0 | I176: 10734.92813 | J176: 1.570703173 | K176: 1.516792757 | L176: 0.8509277671 | M176: 1.003995018 | N176: 0.08923858606 | O176: 1.00783887 | P176: 0.1399824303 | Q176: 11.14322645 | R176: -117.6895712 | S176: 62.31042875 | U176: 1000000000 | V176: 97736950.44 | X176: 20.67513535 | Y176: -46.35308735 | AA176: 35.7329198 | AB176: -71.33648389 | AD176: 0 | AE176: 0
A177: 9943.1 | B177: 9.9431 | C177: 3.488527699 | D177: 1.280064017 | E177: 1.015400689 | F177: 0.1743880821 | G177: 1 | H177: 0 | I177: 10796.71299 | J177: 1.570703706 | K177: 1.521734289 | L177: 0.8537715755 | M177: 1.004041044 | N177: 0.08974945269 | O177: 1.007929031 | P177: 0.1407807712 | Q177: 11.0762163 | R177: -117.6361589 | S177: 62.36384114 | U177: 1000000000 | V177: 98865237.61 | X177: 20.65314048 | Y177: -46.21945018 | AA177: 35.68790452 | AB177: -71.41670868 | AD177: 0 | AE177: 0
A178: 10000 | B178: 10 | C178: 3.506854904 | D178: 1.281627358 | E178: 1.015576101 | F178: 0.1753657501 | G178: 1 | H178: 0 | I178: 10858.49784 | J178: 1.570704233 | K178: 1.526688048 | L178: 0.8565969515 | M178: 1.004087332 | N178: 0.09026027235 | O178: 1.008019701 | P178: 0.1415789875 | Q178: 11.00968821 | R178: -117.5828658 | S178: 62.41713421 | U178: 1000000000 | V178: 100000000 | X178: 20.63140578 | Y178: -46.08686607 | AA178: 35.64311113 | AB178: -71.49599972 | AD178: 0 | AE178: 0
A179: 10058.25 | B179: 10.05825 | C179: 3.525625722 | D179: 1.283210951 | E179: 1.015756679 | F179: 0.1763662633 | G179: 1 | H179: 0 | I179: 10921.74859 | J179: 1.570704766 | K179: 1.531771881 | L179: 0.8594704083 | M179: 1.00413499 | N179: 0.09078316271 | O179: 1.008113051 | P179: 0.1423960124 | Q179: 10.94207496 | R179: -117.5284389 | S179: 62.47156111 | U179: 1000000000 | V179: 101168393.1 | X179: 20.60942075 | Y179: -45.95221909 | AA179: 35.59748291 | AB179: -71.5762198 | AD179: 0 | AE179: 0
A180: 10116.5 | B180: 10.1165 | C180: 3.544405288 | D180: 1.284777767 | E180: 1.015938274 | F180: 0.1773664198 | G180: 1 | H180: 0 | I180: 10984.99934 | J180: 1.570705294 | K180: 1.536868278 | L180: 0.8623248313 | M180: 1.004182922 | N180: 0.09130600329 | O180: 1.008206934 | P180: 0.1432129053 | Q180: 10.87495467 | R180: -117.474151 | S180: 62.52584904 | U180: 1000000000 | V180: 102343572.2 | X180: 20.58770001 | Y180: -45.81865946 | AA180: 35.55208336 | AB180: -71.65549149 | AD180: 0 | AE180: 0
A181: 10174.75 | B181: 10.17475 | C181: 3.563193463 | D181: 1.286328063 | E181: 1.016120885 | F181: 0.1783662178 | G181: 1 | H181: 0 | I181: 11048.25009 | J181: 1.570705815 | K181: 1.541977114 | L181: 0.8651603628 | M181: 1.004231129 | N181: 0.09182879383 | O181: 1.008301352 | P181: 0.1440296655 | Q181: 10.80832129 | R181: -117.4200087 | S181: 62.57999134 | U181: 1000000000 | V181: 103525537.6 | X181: 20.56623945 | Y181: -45.68617903 | AA181: 35.50691054 | AB181: -71.73382963 | AD181: 0 | AE181: 0
A182: 10233 | B182: 10.233 | C182: 3.581990113 | D182: 1.287862093 | E182: 1.016304511 | F182: 0.1793656556 | G182: 1 | H182: 0 | I182: 11111.50083 | J182: 1.57070633 | K182: 1.547098265 | L182: 0.8679771447 | M182: 1.00427961 | N182: 0.09235153402 | O182: 1.008396303 | P182: 0.1448462922 | Q182: 10.74216886 | R182: -117.3660184 | S182: 62.63398161 | U182: 1000000000 | V182: 104714289 | X182: 20.54503501 | Y182: -45.55476964 | AA182: 35.46196255 | AB182: -71.81124875 | AD182: 0 | AE182: 0
A183: 10292.5 | B183: 10.2925 | C183: 3.601198734 | D183: 1.289412504 | E183: 1.016493125 | F183: 0.1803861667 | G183: 1 | H183: 0 | I183: 11176.1089 | J183: 1.57070685 | K183: 1.552341901 | L183: 0.8708351618 | M183: 1.004329415 | N183: 0.09288543957 | O183: 1.008493843 | P183: 0.1456803047 | Q183: 10.67508731 | R183: -117.3110329 | S183: 62.68896712 | U183: 1000000000 | V183: 105935556.2 | X183: 20.52363586 | Y183: -45.42163766 | AA183: 35.41628015 | AB183: -71.88939522 | AD183: 0 | AE183: 0
A184: 10352 | B184: 10.352 | C184: 3.62041592 | D184: 1.290946461 | E184: 1.016682798 | F184: 0.181406298 | G184: 1 | H184: 0 | I184: 11240.71696 | J184: 1.570707364 | K184: 1.557598132 | L184: 0.8736739128 | M184: 1.004379506 | N184: 0.09341929201 | O184: 1.008591939 | P184: 0.1465141764 | Q184: 10.60849532 | R184: -117.2562187 | S184: 62.74378128 | U184: 1000000000 | V184: 107163904 | X184: 20.50249566 | Y184: -45.28960617 | AA184: 35.37082836 | AB184: -71.96661254 | AD184: 0 | AE184: 0
A185: 10411.5 | B185: 10.4115 | C185: 3.639641536 | D185: 1.292464215 | E185: 1.016873528 | F185: 0.1824260477 | G185: 1 | H185: 0 | I185: 11305.32502 | J185: 1.570707873 | K185: 1.56286683 | L185: 0.8764935465 | M185: 1.004429883 | N185: 0.09395309106 | O185: 1.008690592 | P185: 0.1473479067 | Q185: 10.54238683 | R185: -117.2015819 | S185: 62.79841805 | U185: 1000000000 | V185: 108399332.2 | X185: 20.48161032 | Y185: -45.15866662 | AA185: 35.3256052 | AB185: -72.04291532 | AD185: 0 | AE185: 0
A186: 10471 | B186: 10.471 | C186: 3.658875447 | D186: 1.293966015 | E186: 1.017065315 | F186: 0.1834454139 | G186: 1 | H186: 0 | I186: 11369.93308 | J186: 1.570708376 | K186: 1.56814787 | L186: 0.879294211 | M186: 1.004480547 | N186: 0.09448683641 | O186: 1.008789802 | P186: 0.1481814947 | Q186: 10.4767559 | R186: -117.1471284 | S186: 62.85287163 | U186: 1000000000 | V186: 109641841 | X186: 20.46097587 | Y186: -45.02881052 | AA186: 35.28060873 | AB186: -72.11831785 | AD186: 0 | AE186: 0
A187: 10532 | B187: 10.532 | C187: 3.678602723 | D187: 1.29548937 | E187: 1.017263034 | F187: 0.1844900783 | G187: 1 | H187: 0 | I187: 11436.16992 | J187: 1.570708885 | K187: 1.573574727 | L187: 0.8821459422 | M187: 1.004532785 | N187: 0.09503398147 | O187: 1.008892089 | P187: 0.1490359491 | Q187: 10.40996005 | R187: -117.091498 | S187: 62.90850196 | U187: 1000000000 | V187: 110923024 | X187: 20.44007754 | Y187: -44.89679665 | AA187: 35.2347112 | AB187: -72.19470139 | AD187: 0 | AE187: 0
A188: 10593 | B188: 10.593 | C188: 3.698338444 | D188: 1.296996469 | E188: 1.017461862 | F188: 0.1855343355 | G188: 1 | H188: 0 | I188: 11502.40675 | J188: 1.570709388 | K188: 1.579014294 | L188: 0.8849780484 | M188: 1.004585323 | N188: 0.09558106947 | O188: 1.008994961 | P188: 0.1498902524 | Q188: 10.34365376 | R188: -117.0360719 | S188: 62.96392814 | U188: 1000000000 | V188: 112211649 | X188: 20.41943462 | Y188: -44.7659036 | AA188: 35.18904783 | AB188: -72.27016825 | AD188: 0 | AE188: 0
A189: 10654 | B189: 10.654 | C189: 3.718082477 | D189: 1.298487565 | E189: 1.0176618 | F189: 0.1865781836 | G189: 1 | H189: 0 | I189: 11568.64359 | J189: 1.570709886 | K189: 1.584466438 | L189: 0.8877906864 | M189: 1.004638162 | N189: 0.09612810008 | O189: 1.009098418 | P189: 0.1507444037 | Q189: 10.27783094 | R189: -116.9808553 | S189: 63.01914466 | U189: 1000000000 | V189: 113507716 | X189: 20.39904304 | Y189: -44.63612238 | AA189: 35.1436166 | AB189: -72.34473296 | AD189: 0 | AE189: 0
A190: 10715 | B190: 10.715 | C190: 3.737834688 | D190: 1.299962906 | E190: 1.017862846 | F190: 0.1876216204 | G190: 1 | H190: 0 | I190: 11634.88043 | J190: 1.570710378 | K190: 1.589931031 | L190: 0.8905840123 | M190: 1.004691302 | N190: 0.09667507299 | O190: 1.009202458 | P190: 0.1515984024 | Q190: 10.21248556 | R190: -116.9258538 | S190: 63.07414624 | U190: 1000000000 | V190: 114811225 | X190: 20.37889878 | Y190: -44.50744402 | AA190: 35.09841548 | AB190: -72.41840974 | AD190: 0 | AE190: 0
A191: 10777.5 | B191: 10.7775 | C191: 3.758080959 | D191: 1.301458436 | E191: 1.018069985 | F191: 0.1886902869 | G191: 1 | H191: 0 | I191: 11702.74604 | J191: 1.570710877 | K191: 1.595542777 | L191: 0.8934261585 | M191: 1.00474606 | N191: 0.09723543587 | O191: 1.009309662 | P191: 0.1524732417 | Q191: 10.14602235 | R191: -116.8697279 | S191: 63.13027211 | U191: 1000000000 | V191: 116154506.2 | X191: 20.3585116 | Y191: -44.37673603 | AA191: 35.05233945 | AB191: -72.49299186 | AD191: 0 | AE191: 0
A192: 10840 | B192: 10.84 | C192: 3.778335545 | D192: 1.302937936 | E192: 1.018278286 | F192: 0.1897585173 | G192: 1 | H192: 0 | I192: 11770.61165 | J192: 1.570711369 | K192: 1.601167321 | L192: 0.8962483597 | M192: 1.004801134 | N192: 0.0977957375 | O192: 1.00941748 | P192: 0.1533479189 | Q192: 10.0800479 | R192: -116.8138381 | S192: 63.18616186 | U192: 1000000000 | V192: 117505600 | X192: 20.33837581 | Y192: -44.24716696 | AA192: 35.00650079 | AB192: -72.56667117 | AD192: 0 | AE192: 0
A193: 10902.5 | B193: 10.9025 | C193: 3.798598313 | D193: 1.304401655 | E193: 1.018487749 | F193: 0.1908263096 | G193: 1 | H193: 0 | I193: 11838.47726 | J193: 1.570711856 | K193: 1.606804529 | L193: 0.8990507806 | M193: 1.004856523 | N193: 0.09835597754 | O193: 1.009525909 | P193: 0.1542224333 | Q193: 10.01455605 | R193: -116.7581894 | S193: 63.24181056 | U193: 1000000000 | V193: 118864506.2 | X193: 20.31848734 | Y193: -44.11872736 | AA193: 34.9608974 | AB193: -72.63946207 | AD193: 0 | AE193: 0
A194: 10965 | B194: 10.965 | C194: 3.818869133 | D194: 1.305849838 | E194: 1.018698372 | F194: 0.1918936616 | G194: 1 | H194: 0 | I194: 11906.34287 | J194: 1.570712338 | K194: 1.612454267 | L194: 0.9018335849 | M194: 1.004912227 | N194: 0.09891615564 | O194: 1.009634951 | P194: 0.1550967838 | Q194: 9.949540736 | R194: -116.7027865 | S194: 63.29721348 | U194: 1000000000 | V194: 120231225 | X194: 20.29884221 | Y194: -43.99140785 | AA194: 34.91552722 | AB194: -72.71137867 | AD194: 0 | AE194: 0
A195: 11028.75 | B195: 11.02875 | C195: 3.839553533 | D195: 1.307311228 | E195: 1.018914403 | F195: 0.1929819047 | G195: 1 | H195: 0 | I195: 11975.56579 | J195: 1.570712823 | K195: 1.618229774 | L195: 0.9046520049 | M195: 1.004969371 | N195: 0.09948747314 | O195: 1.009746805 | P195: 0.1559884516 | Q195: 9.883709879 | R195: -116.6465334 | S195: 63.35346659 | U195: 1000000000 | V195: 121633326.6 | X195: 20.27905082 | Y195: -43.86268617 | AA195: 34.86948776 | AB195: -72.78384724 | AD195: 0 | AE195: 0
A196: 11092.5 | B196: 11.0925 | C196: 3.860246044 | D196: 1.308756954 | E196: 1.01913164 | F196: 0.1940696852 | G196: 1 | H196: 0 | I196: 12044.78872 | J196: 1.570713303 | K196: 1.624018043 | L196: 0.9074503564 | M196: 1.005026842 | N196: 0.1000587255 | O196: 1.009859296 | P196: 0.1568799472 | Q196: 9.818362408 | R196: -116.5905452 | S196: 63.40945477 | U196: 1000000000 | V196: 123043556.2 | X196: 20.25950446 | Y196: -43.73511029 | AA196: 34.82368664 | AB196: -72.85543494 | AD196: 0 | AE196: 0
A197: 11156.25 | B197: 11.15625 | C197: 3.880946538 | D197: 1.310187261 | E197: 1.019350082 | F197: 0.1951570008 | G197: 1 | H197: 0 | I197: 12114.01164 | J197: 1.570713778 | K197: 1.629818939 | L197: 0.9102288096 | M197: 1.005084641 | N197: 0.1006299123 | O197: 1.009972423 | P197: 0.1577712697 | Q197: 9.753492208 | R197: -116.5348263 | S197: 63.46517369 | U197: 1000000000 | V197: 124461914.1 | X197: 20.24019914 | Y197: -43.60867043 | AA197: 34.77812176 | AB197: -72.92615588 | AD197: 0 | AE197: 0
A198: 11220 | B198: 11.22 | C198: 3.901654887 | D198: 1.311602387 | E198: 1.019569729 | F198: 0.1962438491 | G198: 1 | H198: 0 | I198: 12183.23456 | J198: 1.570714247 | K198: 1.635632328 | L198: 0.9129875335 | M198: 1.005142768 | N198: 0.1012010333 | O198: 1.010086186 | P198: 0.158662418 | Q198: 9.689093268 | R198: -116.4793807 | S198: 63.52061925 | U198: 1000000000 | V198: 125888400 | X198: 20.22113095 | Y198: -43.48335688 | AA198: 34.73279101 | AB198: -72.99602387 | AD198: 0 | AE198: 0
A199: 11285.5 | B199: 11.2855 | C199: 3.922939752 | D199: 1.313040796 | E199: 1.019796659 | F199: 0.1973600436 | G199: 1 | H199: 0 | I199: 12254.35772 | J199: 1.570714723 | K199: 1.641618173 | L199: 0.9158016144 | M199: 1.005202833 | N199: 0.1017877631 | O199: 1.010203735 | P199: 0.159577847 | Q199: 9.62341114 | R199: -116.422702 | S199: 63.57729803 | U199: 1000000000 | V199: 127362510.2 | X199: 20.20178227 | Y199: -43.35576636 | AA199: 34.68645757 | AB199: -73.06693561 | AD199: 0 | AE199: 0
A200: 11351 | B200: 11.351 | C200: 3.944232646 | D200: 1.314463677 | E200: 1.02002486 | F200: 0.1984757399 | G200: 1 | H200: 0 | I200: 12325.48088 | J200: 1.570715194 | K200: 1.647616923 | L200: 0.918595226 | M200: 1.005263243 | N200: 0.1023744226 | O200: 1.010321955 | P200: 0.1604930902 | Q200: 9.558213952 | R200: -116.3663199 | S200: 63.63368012 | U200: 1000000000 | V200: 128845201 | X200: 20.18267577 | Y200: -43.2293443 | AA200: 34.64036688 | AB200: -73.13697558 | AD200: 0 | AE200: 0
A201: 11416.5 | B201: 11.4165 | C201: 3.965533439 | D201: 1.315871275 | E201: 1.020254329 | F201: 0.1995909358 | G201: 1 | H201: 0 | I201: 12396.60404 | J201: 1.57071566 | K201: 1.653628437 | L201: 0.9213685475 | M201: 1.005323999 | N201: 0.1029610113 | O201: 1.010440847 | P201: 0.1614081467 | Q201: 9.4934955 | R201: -116.3102383 | S201: 63.68976172 | U201: 1000000000 | V201: 130336472.2 | X201: 20.16380745 | Y201: -43.10408041 | AA201: 34.59451675 | AB201: -73.20615787 | AD201: 0 | AE201: 0
A202: 11482 | B202: 11.482 | C202: 3.986842005 | D202: 1.31726383 | E202: 1.020485067 | F202: 0.2007056288 | G202: 1 | H202: 0 | I202: 12467.7272 | J202: 1.57071612 | K202: 1.659652579 | L202: 0.9241217571 | M202: 1.005385101 | N202: 0.103547529 | O202: 1.010560409 | P202: 0.1623230154 | Q202: 9.429249688 | R202: -116.2544608 | S202: 63.74553925 | U202: 1000000000 | V202: 131836324 | X202: 20.14517338 | Y202: -42.97996447 | AA202: 34.54890501 | AB202: -73.27449628 | AD202: 0 | AE202: 0
... 433 more rows

Sheet Ch2 Stability Calculations (hidden)
A2: Divider Network & EA Poles/Zeros | E2: Modulator | J2: Power Stage Poles/Zeros | M2: Complex Pole Pair | P2: Total System
B3: Afb1 | C3: =Afb_Ch2 -> 0.12 | D3: V/V | E3: Acs | F3: =Acs_Ch2 -> 11.9047619 | G3: A/V | H3: gm | I3: =gm -> 0.0012 | J3: z_ESR | K3: =Fesr_Ch2 -> 795774.7164 | L3: Hz | M3: p3 | N3: =Fsw/2 -> 220000 | O3: Hz | P3: Adc | Q3: =Am_Ch2*Afb_Ch2*AEA -> 56354.11228 | R3: V/V
B4: EA zero, z1 | C4: =Fz1_u_Ch2 -> 6001.31762 | D4: Hz | E4: Am | F4: =Am_Ch2 -> 6.114812531 | G4: V/V | J4: p_dom | K4: =Fp_dominant_Ch2 -> 3098.544225 | L4: Hz | M4: pterm1 | N4: =Q_Ch2*pole3 -> 427981.438 | P4: Crossover | Q4: =AE7 -> 62.378 | R4: kHz
B5: EA pole, p1 | C5: =Fp1_u_Ch2 -> 2.071614636 | D5: Hz | E5: Q | F5: =Q_Ch2 -> 1.945370173 | M5: pterm2 | N5: =pole3^2 -> 48400000000 | P5: Phase Margin | Q5: =AE9 -> 66.95201921 | R5: °
B6: Aea | C6: =AEA -> 76800 | D6: V/V | E6: mc | F6: =mc_Ch2 -> 1.148027211 | P6: radconv | Q6: =180/Pi -> 57.29577958 | AD6: XOVER SEARCH
B7: EA pole, p2 | C7: =Fp2_u_Ch2 -> 219353.1611 | D7: Hz | E7: k | F7: =k_Ch2 -> 0.6636243276 | AD7: xover | AE7: =SUM(AD12:AD613)/1000 -> 62.378
AD9: phase margin | AE9: =SUM(AE13:AE613) -> 66.95201921
A10: Freq (Hz) | C10: Power Stage | I10: Error Amplifier | O10: Sampling Double Pole | Q10: System Response | X10: ERROR AMP Response | AA10: PLANT Response
C11: p_dom | E11: z_ESR | G11: z_RHP | I11: p1 | K11: z1 | M11: p2 | O11: p3
C12: Gain(V/V) | D12: Phase(rad) | E12: Gain(V/V) | F12: Phase(rad) | G12: Gain(V/V) | H12: Phase(rad) | I12: Gain(V/V) | J12: Phase(rad) | K12: Gain(V/V) | L12: Phase(rad) | M12: Gain(V/V) | N12: Phase(rad) | O12: Gain(V/V) | P12: Phase(rad) | Q12: Gain (dB) | R12: Phase (°) | S12: Phase Margin (°) | V12: Fsquare | X12: Gain(dB) | Y12: Phase(Deg) | AA12: Gain(dB) | AB12: Phase(Deg)
A13: 1 | B13: =A13/1000 -> 0.001 | C13: =SQRT(1+(A13/pole1)^2) -> 1.000000052 | D13: =ATAN(A13/pole1) -> 0.0003227321905 | E13: =SQRT(1+(A13/Zero1)^2) -> 1 | F13: =ATAN(A13/Zero1) -> 1.25663706e-06 | G13: =IF(VIN_nom>Vout,1,SQRT(1+(A13/z_RHP)^2)) -> 1 | H13: =IF(VIN_nom>Vout,0,-ATAN(A13/z_RHP)) -> 0 | I13: =SQRT(1+(A13/Pole2)^2) -> 1.110411646 | J13: =ATAN(A13/Pole2) -> 0.4497244481 | K13: =SQRT(1+(A13/Zero2)^2) -> 1.000000014 | L13: =ATAN(A13/Zero2) -> 0.0001666300726 | M13: =SQRT(1+(A13/pole4)^2) -> 1 | N13: =ATAN(A13/pole4) -> 4.558858395e-06 | O13: =SQRT((1-(V13/pterm2))^2+(A13/pterm1)^2) -> 1 | P13: =IF((ATAN((A13/pterm1)/(1-A13^2/pterm2))>0),ATAN((A13/pterm1)/(1-A13^2/pterm2)),PI()+ATAN((A13/pterm1)/(1-A13^2/pterm2))) -> 2.336549932e-06 | Q13: =20*LOG10(((E13*K13*G13)/(C13*I13*O13*M13))*Adc) -> 94.10883177 | R13: =((F13+L13+H13)-(D13+J13+P13+N13))*radconv -> -25.77657992 | S13: =IF(R13>0,R13,R13+180) -> 154.2234201 | U13: =IF(Q13<0,A13,1000000000) -> 1000000000 | V13: =A13^2 -> 1 | X13: =20*LOG10((K13/(I13*M13))*AEA) -> 96.79754436 | Y13: =(L13-(J13+N13))*radconv -> -25.75802686 | AA13: =20*LOG10((E13*G13/(C13*O13))*Acs*Am) -> 46.47659758 | AB13: =(F13+H13-(D13+P13))*radconv -> -0.0185530669 | AD13: =SUM((Q14<0)*(Q13>0))*A13 -> 0 | AE13: =IF(AD13>0,S11,0) -> 0
A14: 1.0965 | B14: =A14/1000 -> 0.0010965 | C14: 1.000000063 | D14: 0.0003538758444 | E14: 1 | F14: 1.377902536e-06 | G14: 1 | H14: 0 | I14: 1.13143962 | J14: 0.4868098087 | K14: 1.000000017 | L14: 0.0001827098743 | M14: 1 | N14: 4.99878823e-06 | O14: 1 | P14: 2.562027001e-06 | Q14: 93.94588421 | R14: -27.90230884 | S14: 152.0976912 | U14: =IF(Q14<0,A14,1000000000) -> 1000000000 | V14: =A14^2 -> 1.20231225 | X14: 96.63459689 | Y14: -27.8819654 | AA14: 46.47659749 | AB14: -0.02034343771 | AD14: =SUM((Q15<0)*(Q14>0))*A14 -> 0 | AE14: 0
A15: 1.2023 | B15: 0.0012023 | C15: 1.000000075 | D15: 0.0003880209067 | E15: 1 | F15: 1.510854737e-06 | G15: 1 | H15: 0 | I15: 1.156212638 | J15: 0.525859534 | K15: 1.00000002 | L15: 0.0002003393355 | M15: 1 | N15: 5.481115448e-06 | O15: 1 | P15: 2.809233984e-06 | Q15: 93.75775754 | R15: -30.14067375 | S15: 149.8593263 | U15: 1000000000 | V15: 1.44552529 | X15: 96.44647033 | Y15: -30.11836739 | AA15: 46.47659738 | AB15: -0.02230635199 | AD15: 0 | AE15: 0
A16: 1.3183 | B16: 0.0013183 | C16: 1.000000091 | D16: 0.0004254578359 | E16: 1 | F16: 1.656624636e-06 | G16: 1 | H16: 0 | I16: 1.18530947 | J16: 0.5667291409 | K16: 1.000000024 | L16: 0.0002196684232 | M16: 1 | N16: 6.009943022e-06 | O16: 1 | P16: 3.080273776e-06 | Q16: 93.5418766 | R16: -32.48340472 | S16: 147.5165953 | U16: 1000000000 | V16: 1.73791489 | X16: 96.23058952 | Y16: -32.45894621 | AA16: 46.47659724 | AB16: -0.02445850747 | AD16: 0 | AE16: 0
A17: 1.4454 | B17: 0.0014454 | C17: 1.000000109 | D17: 0.0004664770905 | E17: 1 | F17: 1.816343207e-06 | G17: 1 | H17: 0 | I17: 1.219347575 | J17: 0.6091918625 | K17: 1.000000029 | L17: 0.0002408471045 | M17: 1 | N17: 6.589373924e-06 | O17: 1 | P17: 3.377249272e-06 | Q17: 93.29596119 | R17: -34.9175173 | S17: 145.0824827 | U17: 1000000000 | V17: 2.08918116 | X17: 95.98467428 | Y17: -34.89070069 | AA17: 46.47659709 | AB17: -0.02681660189 | AD17: 0 | AE17: 0
A18: 1.5849 | B18: 0.0015849 | C18: 1.000000131 | D18: 0.0005114982219 | E18: 1 | F18: 1.991644076e-06 | G18: 1 | H18: 0 | I18: 1.259090859 | J18: 0.653067152 | K18: 1.000000035 | L18: 0.0002640919984 | M18: 1 | N18: 7.22533467e-06 | O18: 1 | P18: 3.703197988e-06 | Q18: 93.01737001 | R18: -37.43267897 | S18: 142.567321 | U18: 1000000000 | V18: 2.51190801 | X18: 95.70608328 | Y18: -37.40327422 | AA18: 46.47659689 | AB18: -0.02940475419 | AD18: 0 | AE18: 0
A19: 1.7378 | B19: 0.0017378 | C19: 1.000000157 | D19: 0.0005608439614 | E19: 1 | F19: 2.183783883e-06 | G19: 1 | H19: 0 | I19: 1.305254929 | J19: 0.6979925777 | K19: 1.000000042 | L19: 0.0002895697348 | M19: 1 | N19: 7.922384119e-06 | O19: 0.9999999999 | P19: 4.060456472e-06 | Q19: 92.70460442 | R19: -40.00813319 | S19: 139.9918668 | U19: 1000000000 | V19: 3.01994884 | X19: 95.39331793 | Y19: -39.97589167 | AA19: 46.47659667 | AB19: -0.03224151741 | AD19: 0 | AE19: 0
A20: 1.9055 | B20: 0.0019055 | C20: 1.000000189 | D20: 0.0006149661329 | E20: 1 | F20: 2.394521918e-06 | G20: 1 | H20: 0 | I20: 1.358697047 | J20: 0.7436548005 | K20: 1.00000005 | L20: 0.0003175135956 | M20: 1 | N20: 8.686904672e-06 | O20: 0.9999999999 | P20: 4.452295896e-06 | Q20: 92.35605842 | R20: -42.62593993 | S20: 137.3740601 | U20: 1000000000 | V20: 3.63093025 | X20: 95.04477221 | Y20: -42.59058707 | AA20: 46.47659639 | AB20: -0.03535286576 | AD20: 0 | AE20: 0
A21: 2.0893 | B21: 0.0020893 | C21: 1.000000227 | D21: 0.0006742842869 | E21: 1 | F21: 2.625491809e-06 | G21: 1 | H21: 0 | I21: 1.420262958 | J21: 0.7896484927 | K21: 1.000000061 | L21: 0.0003481401999 | M21: 1 | N21: 9.524822845e-06 | O21: 0.9999999999 | P21: 4.881753774e-06 | Q21: 91.9711356 | R21: -45.26288767 | S21: 134.7371123 | U21: 1000000000 | V21: 4.36517449 | X21: 94.65984972 | Y21: -45.22412475 | AA21: 46.47659606 | AB21: -0.03876291816 | AD21: 0 | AE21: 0
A22: 2.2909 | B22: 0.0022909 | C22: 1.000000273 | D22: 0.0007393470662 | E22: 1 | F22: 2.878829841e-06 | G22: 1 | H22: 0 | I22: 1.490942491 | J22: 0.8356217101 | K22: 1.000000073 | L22: 0.0003817328183 | M22: 1 | N22: 1.04438887e-05 | O22: 0.9999999999 | P22: 5.35280224e-06 | Q22: 91.54929268 | R22: -47.89882724 | S22: 132.1011728 | U22: 1000000000 | V22: 5.24822281 | X22: 94.23800719 | Y22: -47.85632402 | AA22: 46.47659566 | AB22: -0.04250321472 | AD22: 0 | AE22: 0
A23: 2.5119 | B23: 0.0025119 | C23: 1.000000329 | D23: 0.0008106708399 | E23: 1 | F23: 3.156546631e-06 | G23: 1 | H23: 0 | I23: 1.571698119 | J23: 0.8811627987 | K23: 1.000000088 | L23: 0.0004185580588 | M23: 1 | N23: 1.14513964e-05 | O23: 0.9999999999 | P23: 5.869179776e-06 | Q23: 91.0911275 | R23: -50.51018744 | S23: 129.4898126 | U23: 1000000000 | V23: 6.30964161 | X23: 93.77984249 | Y23: -50.463584 | AA23: 46.47659518 | AB23: -0.04660344019 | AD23: 0 | AE23: 0
A24: 2.7542 | B24: 0.0027542 | C24: 1.000000395 | D24: 0.0008888687959 | E24: 1 | F24: 3.461029791e-06 | G24: 1 | H24: 0 | I24: 1.663597092 | J24: 0.9259106415 | K24: 1.000000105 | L24: 0.000458932518 | M24: 1 | N24: 1.255600779e-05 | O24: 0.9999999999 | P24: 6.435325824e-06 | Q24: 90.59754669 | R24: -53.07629538 | S24: 126.9237046 | U24: 1000000000 | V24: 7.58561764 | X24: 93.28626226 | Y24: -53.02519653 | AA24: 46.4765946 | AB24: -0.05109884521 | AD24: 0 | AE24: 0
A25: 3.02 | B25: 0.00302 | C25: 1.000000475 | D25: 0.0009746509406 | E25: 1 | F25: 3.795043921e-06 | G25: 1 | H25: 0 | I25: 1.767818175 | J25: 0.9695519863 | K25: 1.000000127 | L25: 0.0005032227815 | M25: 1 | N25: 1.376775235e-05 | O25: 0.9999999998 | P25: 7.056380797e-06 | Q25: 90.06975734 | R25: -55.57922344 | S25: 124.4207766 | U25: 1000000000 | V25: 9.1204 | X25: 92.75847361 | Y25: -55.52319319 | AA25: 46.47659391 | AB25: -0.0560302463 | AD25: 0 | AE25: 0
A26: 3.3113 | B26: 0.0033113 | C26: 1.000000571 | D26: 0.001068662733 | E26: 1 | F26: 4.161102297e-06 | G26: 1 | H26: 0 | I26: 1.885452374 | J26: 1.011751482 | K26: 1.000000152 | L26: 0.0005517621086 | M26: 1 | N26: 1.50957478e-05 | O26: 0.9999999998 | P26: 7.737017792e-06 | Q26: 89.51019729 | R26: -57.99977592 | S26: 122.0002241 | U26: 1000000000 | V26: 10.96470769 | X26: 92.19891439 | Y26: -57.93834117 | AA26: 46.47659307 | AB26: -0.06143474925 | AD26: 0 | AE26: 0
A27: 3.6308 | B27: 0.0036308 | C27: 1.000000687 | D27: 0.001171775542 | E27: 1 | F27: 4.562597837e-06 | G27: 1 | H27: 0 | I27: 2.017859256 | J27: 1.052299952 | K27: 1.000000183 | L27: 0.0006050003994 | M27: 1 | N27: 1.655230306e-05 | O27: 0.9999999998 | P27: 8.483545496e-06 | Q27: 88.92069046 | R27: -60.32599293 | S27: 119.6740071 | U27: 1000000000 | V27: 13.18270864 | X27: 91.60940856 | Y27: -60.25863049 | AA27: 46.47659207 | AB27: -0.06736244691 | AD27: 0 | AE27: 0
A28: 3.9811 | B28: 0.0039811 | C28: 1.000000825 | D28: 0.001284828461 | E28: 1 | F28: 5.0027978e-06 | G28: 1 | H28: 0 | I28: 2.166350823 | J28: 1.090991835 | K28: 1.00000022 | L28: 0.0006633708909 | M28: 1 | N28: 1.814927115e-05 | O28: 0.9999999997 | P28: 9.302038938e-06 | Q28: 88.30393123 | R28: -62.54612082 | S28: 117.4538792 | U28: 1000000000 | V28: 15.84915721 | X28: 90.99265054 | Y28: -62.47225924 | AA28: 46.47659086 | AB28: -0.07386157669 | AD28: 0 | AE28: 0
A29: 4.3652 | B29: 0.0043652 | C29: 1.000000992 | D29: 0.001408789675 | E29: 1 | F29: 5.485472094e-06 | G29: 1 | H29: 0 | I29: 2.332396936 | J29: 1.127694838 | K29: 1.000000265 | L29: 0.0007273734714 | M29: 1 | N29: 1.990032866e-05 | O29: 0.9999999997 | P29: 1.019950777e-05 | Q29: 87.6624567 | R29: -64.65260745 | S29: 115.3473926 | U29: 1000000000 | V29: 19.05497104 | X29: 90.35117745 | Y29: -64.57161965 | AA29: 46.47658941 | AB29: -0.08098779704 | AD29: 0 | AE29: 0
A30: 4.7863 | B30: 0.0047863 | C30: 1.000001193 | D30: 0.001544691909 | E30: 1 | F30: 6.01464196e-06 | G30: 1 | H30: 0 | I30: 2.517546589 | J30: 1.162319303 | K30: 1.000000318 | L30: 0.0007975413548 | M30: 1 | N30: 2.182006393e-05 | O30: 0.9999999996 | P30: 1.118342895e-05 | Q30: 86.99895434 | R30: -66.64034551 | S30: 113.3596545 | U30: 1000000000 | V30: 22.90866769 | X30: 89.68767684 | Y30: -66.55154504 | AA30: 46.47658767 | AB30: -0.08880047679 | AD30: 0 | AE30: 0
A31: 5.2481 | B31: 0.0052481 | C31: 1.000001434 | D31: 0.001693729248 | E31: 1 | F31: 6.594956954e-06 | G31: 1 | H31: 0 | I31: 2.723564067 | J31: 1.194835997 | K31: 1.000000382 | L31: 0.0008744910693 | M31: 1 | N31: 2.392534474e-05 | O31: 0.9999999995 | P31: 1.226244771e-05 | Q31: 86.31575121 | R31: -68.50769435 | S31: 111.4923057 | U31: 1000000000 | V31: 27.54255361 | X31: 89.0044758 | Y31: -68.41032608 | AA31: 46.47658558 | AB31: -0.09736826098 | AD31: 0 | AE31: 0
A32: 5.7544 | B32: 0.0057544 | C32: 1.000001724 | D32: 0.001857128047 | E32: 1 | F32: 7.231192298e-06 | G32: 1 | H32: 0 | I32: 2.952256961 | J32: 1.225236033 | K32: 1.00000046 | L32: 0.0009588558049 | M32: 1 | N32: 2.623349474e-05 | O32: 0.9999999994 | P32: 1.344544294e-05 | Q32: 85.61541817 | R32: -70.25418001 | S32: 109.74582 | U32: 1000000000 | V32: 33.11311936 | X32: 88.30414528 | Y32: -70.14741836 | AA32: 46.47658306 | AB32: -0.1067616495 | AD32: 0 | AE32: 0
A33: 6.3096 | B33: 0.0063096 | C33: 1.000002073 | D33: 0.002036308285 | E33: 1 | F33: 7.928877194e-06 | G33: 1 | H33: 0 | I33: 3.205703267 | J33: 1.253557848 | K33: 1.000000553 | L33: 0.001051368729 | M33: 1 | N33: 2.876457292e-05 | O33: 0.9999999993 | P33: 1.474269546e-05 | Q33: 84.90003266 | R33: -71.88204549 | S33: 108.1179545 | U33: 1000000000 | V33: 39.81105216 | X33: 87.5887628 | Y33: -71.76498322 | AA33: 46.47658003 | AB33: -0.1170622737 | AD33: 0 | AE33: 0
A34: 6.9183 | B34: 0.0069183 | C34: 1.000002493 | D34: 0.002232754481 | E34: 1 | F34: 8.693792172e-06 | G34: 1 | H34: 0 | I34: 3.486075307 | J34: 1.279853521 | K34: 1.000000664 | L34: 0.001152796331 | M34: 1 | N34: 3.153955002e-05 | O34: 0.9999999991 | P34: 1.616495341e-05 | Q34: 84.17176109 | R34: -73.39431742 | S34: 106.6056826 | U34: 1000000000 | V34: 47.86287489 | X34: 86.86049488 | Y34: -73.26596195 | AA34: 46.47657639 | AB34: -0.1283554746 | AD34: 0 | AE34: 0
A35: 7.5858 | B35: 0.0075858 | C35: 1.000002997 | D35: 0.002448177045 | E35: 1 | F35: 9.532597409e-06 | G35: 1 | H35: 0 | I35: 3.795871866 | J35: 1.304205649 | K35: 1.000000799 | L35: 0.001264021743 | M35: 1.000000001 | N35: 3.4582588e-05 | O35: 0.999999999 | P35: 1.77246005e-05 | Q35: 83.43226229 | R35: -74.79577729 | S35: 105.2042227 | U35: 1000000000 | V35: 57.54436164 | X35: 86.12100046 | Y35: -74.65503771 | AA35: 46.47657201 | AB35: -0.1407395795 | AD35: 0 | AE35: 0
A36: 8.3176 | B36: 0.0083176 | C36: 1.000003603 | D36: 0.002684350913 | E36: 1 | F36: 1.045220441e-05 | G36: 1 | H36: 0 | I36: 4.137690856 | J36: 1.326698809 | K36: 1.00000096 | L36: 0.001385961417 | M36: 1.000000001 | N36: 3.791876057e-05 | O36: 0.9999999988 | P36: 1.943448774e-05 | Q36: 82.68332852 | R36: -76.09132199 | S36: 103.908678 | U36: 1000000000 | V36: 69.18246976 | X36: 85.37207194 | Y36: -75.93700537 | AA36: 46.47656675 | AB36: -0.1543166252 | AD36: 0 | AE36: 0
A37: 9.1201 | B37: 0.0091201 | C37: 1.000004332 | D37: 0.002943341453 | E37: 1 | F37: 1.146065565e-05 | G37: 1 | H37: 0 | I37: 4.514557188 | J37: 1.347438105 | K37: 1.000001155 | L37: 0.001519681769 | M37: 1.000000001 | N37: 4.157724443e-05 | O37: 0.9999999985 | P37: 2.130956907e-05 | Q37: 81.9261815 | R37: -77.28703283 | S37: 102.7129672 | U37: 1000000000 | V37: 83.17622401 | X37: 84.61493125 | Y37: -77.11782749 | AA37: 46.47656042 | AB37: -0.1692053443 | AD37: 0 | AE37: 0
A38: 10 | B38: 0.01 | C38: 1.000005208 | D38: 0.003227310812 | E38: 1 | F38: 1.25663706e-05 | G38: 1 | H38: 0 | I38: 4.929645254 | J38: 1.366524323 | K38: 1.000001388 | L38: 0.001666299199 | M38: 1.000000001 | N38: 4.558858392e-05 | O38: 0.9999999982 | P38: 2.336549937e-05 | Q38: 81.16216573 | R38: -78.38874656 | S38: 101.6112534 | U38: 1000000000 | V38: 100 | X38: 83.85092309 | Y38: -78.20321652 | AA38: 46.47655281 | AB38: -0.1855300334 | AD38: 0 | AE38: 0
A39: 10.965 | B39: 0.010965 | C39: 1.000006261 | D39: 0.00353874382 | E39: 1 | F39: 1.377902536e-05 | G39: 1 | H39: 0 | I39: 5.386609459 | J39: 1.384067549 | K39: 1.000001669 | L39: 0.00182709673 | M39: 1.000000001 | N39: 4.998788226e-05 | O39: 0.9999999978 | P39: 2.562027007e-05 | Q39: 80.39216259 | R39: -79.40284192 | S39: 100.5971581 | U39: 1000000000 | V39: 120.231225 | X39: 83.0809291 | Y39: -79.19940839 | AA39: 46.47654366 | AB39: -0.2034335393 | AD39: 0 | AE39: 0
A40: 12.023 | B40: 0.012023 | C40: 1.000007528 | D40: 0.003880189788 | E40: 1 | F40: 1.510854737e-05 | G40: 1 | H40: 0 | I40: 5.889207618 | J40: 1.400167446 | K40: 1.000002007 | L40: 0.002003390701 | M40: 1.000000002 | N40: 5.481115443e-05 | O40: 0.9999999974 | P40: 2.809233991e-05 | Q40: 79.61732701 | R40: -80.33510242 | S40: 99.66489758 | U40: 1000000000 | V40: 144.552529 | X40: 82.30610452 | Y40: -80.11204 | AA40: 46.47653267 | AB40: -0.2230624153 | AD40: 0 | AE40: 0
A41: 13.183 | B41: 0.013183 | C41: 1.000009051 | D41: 0.004254552944 | E41: 1 | F41: 1.656624636e-05 | G41: 1 | H41: 0 | I41: 6.441727569 | J41: 1.414928099 | K41: 1.000002413 | L41: 0.002196680734 | M41: 1.000000002 | N41: 6.009943015e-05 | O41: 0.9999999969 | P41: 3.080273786e-05 | Q41: 78.83840754 | R41: -81.19157503 | S41: 98.80842497 | U41: 1000000000 | V41: 173.791489 | X41: 81.52719826 | Y41: -80.94699141 | AA41: 46.47651945 | AB41: -0.2445836186 | AD41: 0 | AE41: 0
A42: 14.454 | B42: 0.014454 | C42: 1.00001088 | D42: 0.004664737409 | E42: 1 | F42: 1.816343206e-05 | G42: 1 | H42: 0 | I42: 7.048464425 | J42: 1.428441135 | K42: 1.0000029 | L42: 0.002408466435 | M42: 1.000000002 | N42: 6.589373915e-05 | O42: 0.9999999963 | P42: 3.377249285e-05 | Q42: 78.05655272 | R42: -81.977593 | S42: 98.022407 | U42: 1000000000 | V42: 208.918116 | X42: 80.74535933 | Y42: -81.7094289 | AA42: 46.47650356 | AB42: -0.2681640997 | AD42: 0 | AE42: 0
A43: 15.849 | B43: 0.015849 | C43: 1.000013081 | D43: 0.005114938058 | E43: 1 | F43: 1.991644076e-05 | G43: 1 | H43: 0 | I43: 7.71563213 | J43: 1.440823692 | K43: 1.000003487 | L43: 0.002640913906 | M43: 1.000000003 | N43: 7.225334658e-05 | O43: 0.9999999955 | P43: 3.703198005e-05 | Q43: 77.27099869 | R43: -82.69998825 | S43: 97.30001175 | U43: 1000000000 | V43: 251.190801 | X43: 79.95982441 | Y43: -82.40594324 | AA43: 46.47648445 | AB43: -0.2940450117 | AD43: 0 | AE43: 0
A44: 17.378 | B44: 0.017378 | C44: 1.000015727 | D44: 0.005608381399 | E44: 1 | F44: 2.183783883e-05 | G44: 1 | H44: 0 | I44: 8.44802006 | J44: 1.452147209 | K44: 1.000004193 | L44: 0.002895689335 | M44: 1.000000003 | N44: 7.922384102e-05 | O44: 0.9999999946 | P44: 4.060456495e-05 | Q44: 76.48331336 | R44: -83.36294665 | S44: 96.63705335 | U44: 1000000000 | V44: 301.994884 | X44: 79.17216206 | Y44: -83.04053481 | AA44: 46.47646148 | AB44: -0.3224118386 | AD44: 0 | AE44: 0
A45: 19.055 | B45: 0.019055 | C45: 1.000018909 | D45: 0.006149584582 | E45: 1 | F45: 2.394521917e-05 | G45: 1 | H45: 0 | I45: 9.252338439 | J45: 1.462504005 | K45: 1.000005041 | L45: 0.003175125393 | M45: 1.000000004 | N45: 8.68690465e-05 | O45: 0.9999999935 | P45: 4.452295926e-05 | Q45: 75.69336162 | R45: -83.97188729 | S45: 96.02811271 | U45: 1000000000 | V45: 363.093025 | X45: 78.38223794 | Y45: -83.61836303 | AA45: 46.47643385 | AB45: -0.3535242604 | AD45: 0 | AE45: 0
A46: 20.893 | B46: 0.020893 | C46: 1.000022733 | D46: 0.006742741704 | E46: 1 | F46: 2.625491809e-05 | G46: 1 | H46: 0 | I46: 10.13482546 | J46: 1.471965837 | K46: 1.00000606 | L46: 0.003481388074 | M46: 1.000000005 | N46: 9.524822816e-05 | O46: 0.9999999922 | P46: 4.881753814e-05 | Q46: 74.902042 | R46: -84.53104198 | S46: 95.46895802 | U46: 1000000000 | V46: 436.517449 | X46: 77.59095153 | Y46: -84.1434186 | AA46: 46.47640065 | AB46: -0.3876233853 | AD46: 0 | AE46: 0
A47: 22.909 | B47: 0.022909 | C47: 1.000027331 | D47: 0.007393337296 | E47: 1 | F47: 2.87882984e-05 | G47: 1 | H47: 0 | I47: 11.10364585 | J47: 1.480613626 | K47: 1.000007286 | L47: 0.003817309827 | M47: 1.000000005 | N47: 0.0001044388866 | O47: 0.9999999906 | P47: 5.352802293e-05 | Q47: 74.10902616 | R47: -85.04520462 | S47: 94.95479538 | U47: 1000000000 | V47: 524.822281 | X47: 76.79797561 | Y47: -84.62018011 | AA47: 46.47636072 | AB47: -0.4250245059 | AD47: 0 | AE47: 0
A48: 25.119 | B48: 0.025119 | C48: 1.000032859 | D48: 0.008106532595 | E48: 1 | F48: 3.15654663e-05 | G48: 1 | H48: 0 | I48: 12.16649077 | J48: 1.48851053 | K48: 1.00000876 | L48: 0.00418555639 | M48: 1.000000007 | N48: 0.0001145139635 | O48: 0.9999999887 | P48: 5.869179845e-05 | Q48: 73.31499636 | R48: -85.51814202 | S48: 94.48185798 | U48: 1000000000 | V48: 630.964161 | X48: 76.00399381 | Y48: -85.05211769 | AA48: 46.47631273 | AB48: -0.466024329 | AD48: 0 | AE48: 0
A49: 27.542 | B49: 0.027542 | C49: 1.000039504 | D49: 0.008888456216 | E49: 1.000000001 | F49: 3.461029789e-05 | G49: 1 | H49: 0 | I49: 13.33249896 | J49: 1.495721129 | K49: 1.000010531 | L49: 0.004589293283 | M49: 1.000000008 | N49: 0.0001255600773 | O49: 0.9999999864 | P49: 6.435325915e-05 | Q49: 72.5200295 | R49: -85.95373021 | S49: 94.04626979 | U49: 1000000000 | V49: 758.561764 | X49: 75.20908463 | Y49: -85.44275503 | AA49: 46.47625504 | AB49: -0.5109751743 | AD49: 0 | AE49: 0
A50: 30.2 | B50: 0.0302 | C50: 1.000047496 | D50: 0.009746203888 | E50: 1.000000001 | F50: 3.795043919e-05 | G50: 1 | H50: 0 | I50: 14.61225889 | J50: 1.502307106 | K50: 1.000012662 | L50: 0.005032185763 | M50: 1.000000009 | N50: 0.0001376775227 | O50: 0.9999999836 | P50: 7.056380917e-05 | Q50: 71.7238626 | R50: -86.3557071 | S50: 93.6442929 | U50: 1000000000 | V50: 912.04 | X50: 74.41298713 | Y50: -85.79542215 | AA50: 46.47618564 | AB50: -0.5602849582 | AD50: 0 | AE50: 0
A51: 33.113 | B51: 0.033113 | C51: 1.0000571 | D51: 0.0106862246 | E51: 1.000000001 | F51: 4.161102294e-05 | G51: 1 | H51: 0 | I51: 16.01540088 | J51: 1.508315784 | K51: 1.000015222 | L51: 0.005517565653 | M51: 1.000000011 | N51: 0.0001509574769 | O51: 0.9999999803 | P51: 7.73701795e-05 | Q51: 70.92739232 | R51: -86.72696914 | S51: 93.27303086 | U51: 1000000000 | V51: 1096.470769 | X51: 73.61660024 | Y51: -86.11264472 | AA51: 46.47610226 | AB51: -0.6143244182 | AD51: 0 | AE51: 0
A52: 36.308 | B52: 0.036308 | C52: 1.000068651 | D52: 0.01171722452 | E52: 1.000000001 | F52: 4.562597834e-05 | G52: 1 | H52: 0 | I52: 17.55493087 | J52: 1.513801422 | K52: 1.000018301 | L52: 0.006049930919 | M52: 1.000000014 | N52: 0.0001655230291 | O52: 0.9999999764 | P52: 8.483545705e-05 | Q52: 70.13009257 | R52: -87.07087493 | S52: 92.92912507 | U52: 1000000000 | V52: 1318.270864 | X52: 72.81940077 | Y52: -86.39728088 | AA52: 46.47600197 | AB52: -0.6735940509 | AD52: 0 | AE52: 0
A53: 39.811 | B53: 0.039811 | C53: 1.000082536 | D53: 0.01284758476 | E53: 1.000000001 | F53: 5.002797795e-05 | G53: 1 | H53: 0 | I53: 19.24337779 | J53: 1.518806981 | K53: 1.000022003 | L53: 0.006633612577 | M53: 1.000000016 | N53: 0.0001814927096 | O53: 0.9999999716 | P53: 9.302039213e-05 | Q53: 69.3323605 | R53: -87.39012643 | S53: 92.60987357 | U53: 1000000000 | V53: 1584.915721 | X53: 72.02178925 | Y53: -86.65155076 | AA53: 46.47588142 | AB53: -0.7385756684 | AD53: 0 | AE53: 0
A54: 43.652 | B54: 0.043652 | C54: 1.00009923 | D54: 0.01408697418 | E54: 1.000000002 | F54: 5.485472089e-05 | G54: 1 | H54: 0 | I54: 21.09520198 | J54: 1.52337441 | K54: 1.000026453 | L54: 0.007273607723 | M54: 1.00000002 | N54: 0.000199003284 | O54: 0.9999999658 | P54: 0.0001019950813 | Q54: 68.53420655 | R54: -87.68740457 | S54: 92.31259543 | U54: 1000000000 | V54: 1905.497104 | X54: 71.22378024 | Y54: -86.87757946 | AA54: 46.47573649 | AB54: -0.809825111 | AD54: 0 | AE54: 0
A55: 47.863 | B55: 0.047863 | C55: 1.000119297 | D55: 0.01544570296 | E55: 1.000000002 | F55: 6.014641953e-05 | G55: 1 | H55: 0 | I55: 23.1258315 | J55: 1.527541151 | K55: 1.000031803 | L55: 0.007975246148 | M55: 1.000000024 | N55: 0.0002182006359 | O55: 0.9999999589 | P55: 0.0001118342942 | Q55: 67.73580538 | R55: -87.96515021 | S55: 92.03484979 | U55: 1000000000 | V55: 2290.866769 | X55: 70.42555329 | Y55: -87.07721512 | AA55: 46.47556227 | AB55: -0.8879350894 | AD55: 0 | AE55: 0
A56: 52.481 | B56: 0.052481 | C56: 1.000143426 | D56: 0.01693568934 | E56: 1.000000002 | F56: 6.594956945e-05 | G56: 1 | H56: 0 | I56: 25.35310874 | J56: 1.531343198 | K56: 1.000038236 | L56: 0.008744690014 | M56: 1.000000029 | N56: 0.0002392534429 | O56: 0.9999999506 | P56: 0.0001226244834 | Q56: 66.93697449 | R56: -88.22576745 | S56: 91.77423255 | U56: 1000000000 | V56: 2754.255361 | X56: 69.62693188 | Y56: -87.2521767 | AA56: 46.47535279 | AB56: -0.9735907569 | AD56: 0 | AE56: 0
A57: 57.544 | B57: 0.057544 | C57: 1.000172432 | D57: 0.01856916722 | E57: 1.000000003 | F57: 7.231192285e-05 | G57: 1 | H57: 0 | I57: 27.79536142 | J57: 1.534811335 | K57: 1.000045969 | L57: 0.009588267144 | M57: 1.000000034 | N57: 0.0002623349415 | O57: 0.9999999406 | P57: 0.0001344544377 | Q57: 66.13796767 | R57: -88.47137081 | S57: 91.52862919 | U57: 1000000000 | V57: 3311.311936 | X57: 68.82817687 | Y57: -87.40387539 | AA57: 46.47510097 | AB57: -1.067495416 | AD57: 0 | AE57: 0
A58: 63.096 | B58: 0.063096 | C58: 1.000207307 | D58: 0.02036029714 | E58: 1.000000003 | F58: 7.928877177e-05 | G58: 1 | H58: 0 | I58: 30.47381406 | J58: 1.537975376 | K58: 1.000055267 | L58: 0.0105133038 | M58: 1.000000041 | N58: 0.0002876457214 | O58: 0.9999999286 | P58: 0.0001474269656 | Q58: 65.33865586 | R58: -88.70407421 | S58: 91.29592579 | U58: 1000000000 | V58: 3981.105216 | X58: 68.02916781 | Y58: -87.53361108 | AA58: 46.47479822 | AB58: -1.170463128 | AD58: 0 | AE58: 0
A59: 69.183 | B59: 0.069183 | C59: 1.000249229 | D59: 0.02232387277 | E59: 1.000000004 | F59: 8.69379215e-05 | G59: 1 | H59: 0 | I59: 33.41065855 | J59: 1.540861288 | K59: 1.000066445 | L59: 0.01152745779 | M59: 1.00000005 | N59: 0.0003153954899 | O59: 0.9999999142 | P59: 0.0001616495485 | Q59: 64.53922449 | R59: -88.92578921 | S59: 91.07421079 | U59: 1000000000 | V59: 4786.287489 | X59: 67.23010036 | Y59: -87.64244486 | AA59: 46.4744343 | AB59: -1.283344354 | AD59: 0 | AE59: 0
A60: 75.858 | B60: 0.075858 | C60: 1.000299635 | D60: 0.02447692998 | E60: 1.000000005 | F60: 9.532597381e-05 | G60: 1 | H60: 0 | I60: 36.63146629 | J60: 1.543494 | K60: 1.000079884 | L60: 0.01263955103 | M60: 1.00000006 | N60: 0.0003458258664 | O60: 0.9999998968 | P60: 0.000177246024 | Q60: 63.73951825 | R60: -89.13843192 | S60: 90.86156808 | U60: 1000000000 | V60: 5754.436164 | X60: 66.43083166 | Y60: -87.73131346 | AA60: 46.47399676 | AB60: -1.407118458 | AD60: 0 | AE60: 0
A61: 83.176 | B61: 0.083176 | C61: 1.000360224 | D61: 0.02683712877 | E61: 1.000000005 | F61: 0.0001045220437 | G61: 1 | H61: 0 | I61: 40.16277583 | J61: 1.545895076 | K61: 1.00009604 | L61: 0.01385873572 | M61: 1.000000072 | N61: 0.0003791875877 | O61: 0.9999998759 | P61: 0.0001943449025 | Q61: 62.93974419 | R61: -89.34374299 | S61: 90.65625701 | U61: 1000000000 | V61: 6918.246976 | X61: 65.6315835 | Y61: -87.80094231 | AA61: 46.47347085 | AB61: -1.542800685 | AD61: 0 | AE61: 0
A62: 91.201 | B62: 0.091201 | C62: 1.000433072 | D62: 0.02942500423 | E62: 1.000000007 | F62: 0.000114606556 | G62: 1 | H62: 0 | I62: 44.03547048 | J62: 1.548085409 | K62: 1.000115465 | L62: 0.01519565968 | M62: 1.000000086 | N62: 0.0004157724205 | O62: 0.9999998509 | P62: 0.0002130957238 | Q62: 62.13970211 | R62: -89.54350674 | S62: 90.45649326 | U62: 1000000000 | V62: 8317.622401 | X62: 64.8321737 | Y62: -87.85193517 | AA62: 46.47283858 | AB62: -1.69157157 | AD62: 0 | AE62: 0
A63: 100 | B63: 0.1 | C63: 1.000520645 | D63: 0.03226202233 | E63: 1.000000008 | F63: 0.0001256637053 | G63: 1 | H63: 0 | I63: 48.28188307 | J63: 1.550083143 | K63: 1.000138818 | L63: 0.01666146548 | M63: 1.000000104 | N63: 0.0004558858079 | O63: 0.9999998207 | P63: 0.0002336550372 | Q63: 61.33951357 | R63: -89.73937595 | S63: 90.26062405 | U63: 1000000000 | V63: 10000 | X63: 64.03274518 | Y63: -87.88471078 | AA63: 46.47207857 | AB63: -1.854665168 | AD63: 0 | AE63: 0
A64: 109.65 | B64: 0.10965 | C64: 1.000625945 | D64: 0.03537282527 | E64: 1.000000009 | F64: 0.0001377902528 | G64: 1 | H64: 0 | I64: 52.93917403 | J64: 1.5519056 | K64: 1.000166901 | L64: 0.01826895491 | M64: 1.000000125 | N64: 0.0004998787814 | O64: 0.9999997844 | P64: 0.0002562027581 | Q64: 60.53898428 | R64: -89.93304625 | S64: 90.06695375 | U64: 1000000000 | V64: 12023.1225 | X64: 63.23312965 | Y64: -87.89954811 | AA64: 46.4711648 | AB64: -2.033498137 | AD64: 0 | AE64: 0
A65: 120.23 | B65: 0.12023 | C65: 1.000752518 | D65: 0.03878263668 | E65: 1.000000011 | F65: 0.0001510854726 | G65: 1 | H65: 0 | I65: 58.04547042 | J65: 1.553567601 | K65: 1.000200659 | L65: 0.0200312542 | M65: 1.00000015 | N65: 0.00054811149 | O65: 0.9999997408 | P65: 0.0002809234749 | Q65: 59.7383555 | R65: -90.12608557 | S65: 89.87391443 | U65: 1000000000 | V65: 14455.2529 | X65: 62.43359912 | Y65: -87.896565 | AA65: 46.47006655 | AB65: -2.229520572 | AD65: 0 | AE65: 0
A66: 131.83 | B66: 0.13183 | C66: 1.000904663 | D66: 0.04252014267 | E66: 1.000000014 | F66: 0.0001656624621 | G66: 1 | H66: 0 | I66: 63.64420953 | J66: 1.555083332 | K66: 1.000241242 | L66: 0.02196331039 | M66: 1.000000181 | N66: 0.0006009942299 | O66: 0.9999996884 | P66: 0.0003080274784 | Q66: 58.93757648 | R66: -90.32012288 | S66: 89.67987712 | U66: 1000000000 | V66: 17379.1489 | X66: 61.63414004 | Y66: -87.87574124 | AA66: 46.46874661 | AB66: -2.444381636 | AD66: 0 | AE66: 0
A67: 144.54 | B67: 0.14454 | C67: 1.001087413 | D67: 0.04661392126 | E67: 1.000000016 | F67: 0.0001816343187 | G67: 1 | H67: 0 | I67: 69.77882971 | J67: 1.556464842 | K67: 1.000289995 | L67: 0.02408005557 | M67: 1.000000217 | N67: 0.0006589372971 | O67: 0.9999996254 | P67: 0.0003377250601 | Q67: 58.13711862 | R67: -90.51665958 | S67: 89.48334042 | U67: 1000000000 | V67: 20891.8116 | X67: 60.83526738 | Y67: -87.83693528 | AA67: 46.46716141 | AB67: -2.679724299 | AD67: 0 | AE67: 0
A68: 158.49 | B68: 0.15849 | C68: 1.001307298 | D68: 0.0511052887 | E68: 1.00000002 | F68: 0.000199164405 | G68: 1 | H68: 0 | I68: 76.51207693 | J68: 1.557726123 | K68: 1.000348662 | L68: 0.02640306336 | M68: 1.000000261 | N68: 0.0007225333413 | O68: 0.9999995496 | P68: 0.000370319974 | Q68: 57.33559454 | R68: -90.71767042 | S68: 89.28232958 | U68: 1000000000 | V68: 25119.0801 | X68: 60.03565022 | Y68: -87.77974657 | AA68: 46.46525449 | AB68: -2.937923848 | AD68: 0 | AE68: 0
A69: 173.78 | B69: 0.17378 | C69: 1.001571495 | D69: 0.056025709 | E69: 1.000000024 | F69: 0.0002183783848 | G69: 1 | H69: 0 | I69: 83.89221832 | J69: 1.558875988 | K69: 1.000419165 | L69: 0.02894888482 | M69: 1.000000314 | N69: 0.0007922382462 | O69: 0.9999994585 | P69: 0.0004060458783 | Q69: 56.53408182 | R69: -90.9245472 | S69: 89.0754528 | U69: 1000000000 | V69: 30199.4884 | X69: 59.23642817 | Y69: -87.70375797 | AA69: 46.46296382 | AB69: -3.220789229 | AD69: 0 | AE69: 0
A70: 190.55 | B70: 0.19055 | C70: 1.001889133 | D70: 0.06141927313 | E70: 1.000000029 | F70: 0.0002394521872 | G70: 1 | H70: 0 | I70: 91.98682873 | J70: 1.559924991 | K70: 1.000503947 | L70: 0.03174069705 | M70: 1.000000377 | N70: 0.0008686902487 | O70: 0.9999993489 | P70: 0.0004452298942 | Q70: 55.73198476 | R70: -91.13913808 | S70: 88.86086192 | U70: 1000000000 | V70: 36309.3025 | X70: 58.43708432 | Y70: -87.60828275 | AA70: 46.46021062 | AB70: -3.530855329 | AD70: 0 | AE70: 0
A71: 208.93 | B71: 0.20893 | C71: 1.002270719 | D71: 0.06732652685 | E71: 1.000000034 | F71: 0.0002625491749 | G71: 1 | H71: 0 | I71: 100.8586571 | J71: 1.560881299 | K71: 1.000605825 | L71: 0.03479996656 | M71: 1.000000454 | N71: 0.0009524819965 | O71: 0.9999992173 | P71: 0.0004881757788 | Q71: 54.92981147 | R71: -91.36304614 | S71: 88.63695386 | U71: 1000000000 | V71: 43651.7449 | X71: 57.63821737 | Y71: -87.49259284 | AA71: 46.45690427 | AB71: -3.870453295 | AD71: 0 | AE71: 0
A72: 229.09 | B72: 0.22909 | C72: 1.002729446 | D72: 0.07380044271 | E72: 1.000000041 | F72: 0.0002878829761 | G72: 1 | H72: 0 | I72: 110.5897605 | J72: 1.561753775 | K72: 1.000728335 | L72: 0.03815475785 | M72: 1.000000545 | N72: 0.00104438849 | O72: 0.9999990589 | P72: 0.0005352807533 | Q72: 54.12686626 | R72: -91.59826126 | S72: 88.40173874 | U72: 1000000000 | V72: 52482.2281 | X72: 56.83924525 | Y72: -87.35563251 | AA72: 46.45293119 | AB72: -4.242628747 | AD72: 0 | AE72: 0
A73: 251.19 | B73: 0.25119 | C73: 1.003280556 | D73: 0.08089021111 | E73: 1.00000005 | F73: 0.0003156546526 | G73: 1 | H73: 0 | I73: 121.25737 | J73: 1.562549312 | K73: 1.000875571 | L73: 0.04183139147 | M73: 1.000000656 | N73: 0.00114513914 | O73: 0.9999988686 | P73: 0.0005869186752 | Q73: 53.32350781 | R73: -91.8465404 | S73: 88.1534596 | U73: 1000000000 | V73: 63096.4161 | X73: 56.04065761 | Y73: -87.19633041 | AA73: 46.44816038 | AB73: -4.65020999 | AD73: 0 | AE73: 0
A74: 275.42 | B74: 0.27542 | C74: 1.003942668 | D74: 0.08865391155 | E74: 1.00000006 | F74: 0.0003461029652 | G74: 1 | H74: 0 | I74: 132.953198 | J74: 1.563274812 | K74: 1.001052542 | L74: 0.0458610757 | M74: 1.000000788 | N74: 0.001255600119 | O74: 0.9999986398 | P74: 0.0006435335021 | Q74: 52.51950119 | R74: -92.10988005 | S74: 87.89011995 | U74: 1000000000 | V74: 75856.1764 | X74: 55.24237924 | Y74: -87.01334356 | AA74: 46.44243212 | AB74: -5.096536489 | AD74: 0 | AE74: 0
A75: 302 | B75: 0.302 | C75: 1.004738499 | D75: 0.0971582504 | E75: 1.000000072 | F75: 0.0003795043739 | G75: 1 | H75: 0 | I75: 145.7834386 | J75: 1.563936783 | K75: 1.001265365 | L75: 0.05027986924 | M75: 1.000000948 | N75: 0.001376774365 | O75: 0.9999983646 | P75: 0.0007056392921 | Q75: 51.71427807 | R75: -92.39048012 | S75: 87.60951988 | U75: 1000000000 | V75: 91204 | X75: 54.44403625 | Y75: -86.80503626 | AA75: 46.43555199 | AB75: -5.585443854 | AD75: 0 | AE75: 0
A76: 331.13 | B76: 0.33113 | C76: 1.005693994 | D76: 0.10646226 | E76: 1.000000087 | F76: 0.0004161102057 | G76: 1 | H76: 0 | I76: 159.8446325 | J76: 1.564540211 | K76: 1.001521051 | L76: 0.05512032542 | M76: 1.000001139 | N76: 0.001509573634 | O76: 0.9999980339 | P76: 0.0007737033775 | Q76: 50.90844356 | R76: -92.69020802 | S76: 87.30979198 | U76: 1000000000 | V76: 109647.0769 | X76: 53.646455 | Y76: -86.56988126 | AA76: 46.42729873 | AB76: -6.120326764 | AD76: 0 | AE76: 0
A77: 363.08 | B77: 0.36308 | C77: =SQRT(1+(A77/pole1)^2) -> 1.00684189 | D77: =ATAN(A77/pole1) -> 0.1166456772 | E77: =SQRT(1+(A77/Zero1)^2) -> 1.000000104 | F77: =ATAN(A77/Zero1) -> 0.0004562597521 | G77: =IF(VIN_nom>Vout,1,SQRT(1+(A77/z_RHP)^2)) -> 1 | H77: =IF(VIN_nom>Vout,0,-ATAN(A77/z_RHP)) -> 0 | I77: =SQRT(1+(A77/Pole2)^2) -> 175.2671098 | J77: =ATAN(A77/Pole2) -> 1.565090719 | K77: =SQRT(1+(A77/Zero2)^2) -> 1.001828456 | L77: =ATAN(A77/Zero2) -> 0.0604263938 | M77: =SQRT(1+(A77/pole4)^2) -> 1.00000137 | N77: =ATAN(A77/pole4) -> 0.001655228794 | O77: =SQRT((1-(V77/pterm2))^2+(A77/pterm1)^2) -> 0.9999976362 | P77: =IF((ATAN((A77/pterm1)/(1-A77^2/pterm2))>0),ATAN((A77/pterm1)/(1-A77^2/pterm2)),PI()+ATAN((A77/pterm1)/(1-A77^2/pterm2))) -> 0.0008483566565 | Q77: =20*LOG10(((E77*K77*G77)/(C77*I77*O77*M77))*Adc) -> 50.10115504 | R77: =((F77+L77+H77)-(D77+J77+P77+N77))*radconv -> -93.01152364 | S77: =IF(R77>0,R77,R77+180) -> 86.98847636 | U77: 1000000000 | V77: 131827.0864 | X77: =20*LOG10((K77/(I77*M77))*AEA) -> 52.84907127 | Y77: =(L77-(J77+N77))*radconv -> -86.30575313 | AA77: =20*LOG10((E77*G77/(C77*O77))*Acs*Am) -> 46.41739394 | AB77: =(F77+H77-(D77+P77))*radconv -> -6.70577051 | AD77: 0 | AE77: =IF(AD77>0,S75,0) -> 0
A78: 398.11 | B78: =A78/1000 -> 0.39811 | C78: 1.008220145 | D78: 0.1277828452 | E78: 1.000000125 | F78: 0.0005002797382 | G78: 1 | H78: 0 | I78: 192.1763744 | J78: 1.56559275 | K78: 1.00219789 | L78: 0.06624004703 | M78: 1.000001647 | N78: 0.001814925123 | O78: 0.999997158 | P78: 0.0009302066713 | Q78: 49.29248608 | R78: -93.35662026 | S78: 86.64337974 | U78: =IF(Q78<0,A78,1000000000) -> 1000000000 | V78: =A78^2 -> 158491.5721 | X78: 52.05227986 | Y78: -86.01056953 | AA78: 46.40551639 | AB78: -7.346050731 | AD78: =SUM((Q79<0)*(Q78>0))*A78 -> 0 | AE78: 0
A79: 436.52 | B79: 0.43652 | C79: 1.0098747 | D79: 0.1399579995 | E79: 1.00000015 | F79: 0.0005485471544 | G79: 1 | H79: 0 | I79: 210.7172386 | J79: 1.566050613 | K79: 1.002641872 | L79: 0.07260948789 | M79: 1.00000198 | N79: 0.00199003024 | O79: 0.9999965832 | P79: 0.001019954438 | Q79: 48.48209162 | R79: -93.72790618 | S79: 86.27209382 | U79: 1000000000 | V79: 190549.7104 | X79: 51.25612262 | Y79: -85.68189384 | AA79: 46.39127917 | AB79: -8.046012339 | AD79: 0 | AE79: 0
A80: 478.63 | B80: 0.47863 | C80: 1.011860054 | D80: 0.1532580229 | E80: 1.000000181 | F80: 0.0006014641235 | G80: 1 | H80: 0 | I80: 231.0441695 | J80: 1.566468137 | K80: 1.003175321 | L80: 0.07958569676 | M80: 1.000002381 | N80: 0.002182002931 | O80: 0.9999958922 | P80: 0.001118347721 | Q80: 47.66975633 | R80: -94.12776123 | S80: 85.87223877 | U80: 1000000000 | V80: 229086.6769 | X80: 50.46084025 | Y80: -85.31710809 | AA80: 46.37422626 | AB80: -8.810653145 | AD80: 0 | AE80: 0
A81: 524.81 | B81: 0.52481 | C81: 1.014242201 | D81: 0.1677807898 | E81: 1.000000217 | F81: 0.0006594955998 | G81: 1 | H81: 0 | I81: 253.3357699 | J81: 1.566848986 | K81: 1.003816393 | L81: 0.08722722846 | M81: 1.000002862 | N81: 0.002392529909 | O81: 0.9999950612 | P81: 0.001226251133 | Q81: 46.85485403 | R81: -94.5587678 | S81: 85.4412322 | U81: 1000000000 | V81: 275425.5361 | X81: 49.66635492 | Y81: -84.91316395 | AA81: 46.35380928 | AB81: -9.645603849 | AD81: 0 | AE81: 0
A82: 575.44 | B82: 0.57544 | C82: 1.017098483 | D82: 0.1836211009 | E82: 1.000000261 | F82: 0.0007231191038 | G82: 1 | H82: 0 | I82: 277.7754699 | J82: 1.567196289 | K82: 1.004586507 | L82: 0.09559336132 | M82: 1.000003441 | N82: 0.002623343457 | O82: 0.9999940624 | P82: 0.001344552682 | Q82: 46.03714508 | R82: -95.02326313 | S82: 84.97673687 | U82: 1000000000 | V82: 331131.1936 | X82: 48.87306351 | Y82: -84.46694349 | AA82: 46.32939174 | AB82: -10.55631964 | AD82: 0 | AE82: 0
A83: 630.96 | B83: 0.63096 | C83: 1.020522233 | D83: 0.2008845613 | E83: 1.000000314 | F83: 0.0007928875532 | G83: 1 | H83: 0 | I83: 304.5756628 | J83: 1.567513064 | K83: 1.005511696 | L83: 0.1047520743 | M83: 1.000004137 | N83: 0.00287644936 | O83: 0.9999928613 | P83: 0.001474280604 | Q83: 45.21593022 | R83: -95.52371817 | S83: 84.47628183 | U83: 1000000000 | V83: 398110.5216 | X83: 48.08102704 | Y83: -83.97483968 | AA83: 46.30021335 | AB83: -11.54887849 | AD83: 0 | AE83: 0
A84: 691.83 | B84: 0.69183 | C84: 1.024622902 | D84: 0.2196727374 | E84: 1.000000378 | F84: 0.0008693789982 | G84: 1 | H84: 0 | I84: 333.9583963 | J84: 1.567801937 | K84: 1.006622772 | L84: 0.1147730517 | M84: 1.000004974 | N84: 0.003153944546 | O84: 0.9999914175 | P84: 0.001616509917 | Q84: 44.39075339 | R84: -96.06225866 | S84: 83.93774134 | U84: 1000000000 | V84: 478628.7489 | X84: 47.29066888 | Y84: -83.43313047 | AA84: 46.26539468 | AB84: -12.62912819 | AD84: 0 | AE84: 0
A85: 758.58 | B85: 0.75858 | C85: 1.029531907 | D85: 0.2400957541 | E85: 1.000000454 | F85: 0.0009532594522 | G85: 1 | H85: 0 | I85: 366.1795082 | J85: 1.568065422 | K85: 1.007957106 | L85: 0.1257354241 | M85: 1.00000598 | N85: 0.003458245015 | O85: 0.9999896815 | P85: 0.001772479265 | Q85: 43.56071795 | R85: -96.64097575 | S85: 83.35902425 | U85: 1000000000 | V85: 575443.6164 | X85: 46.50213273 | Y85: -82.8375645 | AA85: 46.22389539 | AB85: -13.80341124 | AD85: 0 | AE85: 0
A86: 831.76 | B86: 0.83176 | C86: 1.035402214 | D86: 0.262253284 | E86: 1.000000546 | F86: 0.00104522006 | G86: 1 | H86: 0 | I86: 401.5044909 | J86: 1.568305692 | K86: 1.009558772 | L86: 0.1377188924 | M86: 1.000007189 | N86: 0.003791857885 | O86: 0.9999875946 | P86: 0.001943474105 | Q86: 42.72520452 | R86: -97.26131591 | S86: 82.73868409 | U86: 1000000000 | V86: 691824.6976 | X86: 45.71598595 | Y86: -82.1838434 | AA86: 46.17452874 | AB86: -15.07747252 | AD86: 0 | AE86: 0
A87: 912.01 | B87: 0.91201 | C87: 1.042416946 | D87: 0.2862514734 | E87: 1.000000657 | F87: 0.001146065063 | G87: 1 | H87: 0 | I87: 440.242281 | J87: 1.568524848 | K87: 1.011481271 | L87: 0.1508143714 | M87: 1.000008643 | N87: 0.004157700487 | O87: 0.9999850854 | P87: 0.002130990299 | Q87: 41.88306509 | R87: -97.92447907 | S87: 82.07552093 | U87: 1000000000 | V87: 831762.2401 | X87: 44.93247124 | Y87: -81.46704568 | AA87: 46.11590403 | AB87: -16.45743338 | AD87: 0 | AE87: 0
A88: 1000 | B88: 1 | C88: 1.050788311 | D88: 0.3121793877 | E88: 1.00000079 | F88: 0.001256636399 | G88: 1 | H88: 0 | I88: 482.7162969 | J88: 1.568724715 | K88: 1.01378774 | L88: 0.1651130737 | M88: 1.000010392 | N88: 0.004558826813 | O88: 0.9999820686 | P88: 0.002336593957 | Q88: 41.03338142 | R88: -98.63066316 | S88: 81.36933684 | U88: 1000000000 | V88: 1000000 | X88: 44.15223561 | Y88: -80.68222476 | AA88: 46.04645598 | AB88: -17.9484384 | AD88: 0 | AE88: 0
A89: 1096.5 | B89: 1.0965 | C89: 1.060767705 | D89: 0.3401235192 | E89: 1.000000949 | F89: 0.001377901664 | G89: 1 | H89: 0 | I89: 529.2982285 | J89: 1.568907032 | K89: 1.016554425 | L89: 0.1807165244 | M89: 1.000012494 | N89: 0.004998746595 | O89: 0.9999784409 | P89: 0.00256208504 | Q89: 40.17479736 | R89: -99.37935529 | S89: 80.62064471 | U89: 1000000000 | V89: 1202312.25 | X89: 43.37571978 | Y89: -79.8238644 | AA89: 45.96438776 | AB89: -19.55549089 | AD89: 0 | AE89: 0
A90: 1202.3 | B90: 1.2023 | C90: 1.072641711 | D90: 0.370137127 | E90: 1.000001141 | F90: 0.001510853588 | G90: 1 | H90: 0 | I90: 580.36942 | J90: 1.569073285 | K90: 1.019870507 | L90: 0.1977218252 | M90: 1.000015021 | N90: 0.00548106056 | O90: 0.9999740798 | P90: 0.002809310497 | Q90: 39.30633346 | R90: -100.168384 | S90: 79.83161603 | U90: 1000000000 | V90: 1445525.29 | X90: 42.60390416 | Y90: -78.88669263 | AA90: 45.86773947 | AB90: -21.28169134 | AD90: 0 | AE90: =IF(AD90>0,S90,0) -> 0
A91: 1318.3 | B91: 1.3183 | C91: 1.086744861 | D91: 0.4022583964 | E91: 1.000001372 | F91: 0.001656623121 | G91: 1 | H91: 0 | I91: 636.3643144 | J91: 1.569224899 | K91: 1.023842868 | L91: 0.216234017 | M91: 1.00001806 | N91: 0.006009870665 | O91: 0.9999688369 | P91: 0.003080374641 | Q91: 38.42663593 | R91: -100.9942909 | S91: 79.00570905 | U91: 1000000000 | V91: 1737914.89 | X91: 41.83761737 | Y91: -77.86500759 | AA91: 45.75432873 | AB91: -23.12928336 | AD91: 0 | AE91: 0
A92: 1445.4 | B92: 1.4454 | C92: 1.103449549 | D92: 0.4364715025 | E92: 1.00000165 | F92: 0.001816341209 | G92: 1 | H92: 0 | I92: 697.717355 | J92: 1.569363081 | K92: 1.028594833 | L92: 0.2363457997 | M92: 1.00002171 | N92: 0.006589278557 | O92: 0.9999625382 | P92: 0.003377382215 | Q92: 37.53491003 | R92: -101.8512182 | S92: 78.14878176 | U92: 1000000000 | V92: 2089181.16 | X92: 41.07833208 | Y92: -76.75380218 | AA92: 45.62188812 | AB92: -25.09741606 | AD92: 0 | AE92: 0
A93: 1584.9 | B93: 1.5849 | C93: 1.123223253 | D93: 0.4728038528 | E93: 1.000001983 | F93: 0.001991641443 | G93: 1 | H93: 0 | I93: 765.0560709 | J93: 1.569489233 | K93: 1.034284577 | L93: 0.2581971244 | M93: 1.000026102 | N93: 0.00722520894 | O93: 0.9999549582 | P93: 0.003703373259 | Q93: 36.62830795 | R93: -102.7332179 | S93: 77.26678208 | U93: 1000000000 | V93: 2511908.01 | X93: 40.32593334 | Y93: -75.54547758 | AA93: 45.46768478 | AB93: -27.18774034 | AD93: 0 | AE93: 0
A94: 1737.8 | B94: 1.7378 | C94: 1.14653653 | D94: 0.5111306152 | E94: 1.000002384 | F94: 0.002183780411 | G94: 1 | H94: 0 | I94: 838.8631768 | J94: 1.569604237 | K94: 1.041081474 | L94: 0.2818604968 | M94: 1.000031382 | N94: 0.007922218378 | O94: 0.9999458485 | P94: 0.004060687524 | Q94: 35.70684459 | R94: -103.6293571 | S94: 76.37064291 | U94: 1000000000 | V94: 3019948.84 | X94: 39.58282358 | Y94: -74.23619117 | AA94: 45.28933118 | AB94: -29.39316592 | AD94: 0 | AE94: 0
A95: 1905.5 | B95: 1.9055 | C95: 1.173960579 | D95: 0.5513514475 | E95: 1.000002867 | F95: 0.002394517341 | G95: 1 | H95: 0 | I95: 919.8144736 | J95: 1.569709151 | K95: 1.04919726 | L95: 0.3074458824 | M95: 1.00003773 | N95: 0.008686686171 | O95: 0.9999348929 | P95: 0.004452600503 | Q95: 34.76884288 | R95: -104.5280989 | S95: 75.47190106 | U95: 1000000000 | V95: 3630930.25 | X95: 38.85003486 | Y95: -72.82006845 | AA95: 45.08411819 | AB95: -31.70803049 | AD95: 0 | AE95: 0
A96: 2089.3 | B96: 2.0893 | C96: 1.206092632 | D96: 0.5932578859 | E96: 1.000003447 | F96: 0.002625485777 | G96: 1 | H96: 0 | I96: 1008.537491 | J96: 1.569804792 | K96: 1.058868079 | L96: 0.3350170346 | M96: 1.00004536 | N96: 0.009524534823 | O96: 0.9999217272 | P96: 0.004882155307 | Q96: 33.814211 | R96: -105.4143135 | S96: 74.58568648 | U96: 1000000000 | V96: 4365174.49 | X96: 38.1298266 | Y96: -71.29384282 | AA96: 44.84969457 | AB96: -34.1204707 | AD96: 0 | AE96: 0
A97: 2290.9 | B97: 2.2909 | C97: 1.243637521 | D97: 0.6366483838 | E97: 1.000004144 | F97: 0.002878821888 | G97: 1 | H97: 0 | I97: 1105.852844 | J97: 1.569892047 | K97: 1.07038309 | L97: 0.3646603262 | M97: 1.000054536 | N97: 0.010443509 | O97: 0.9999058933 | P97: 0.005353331591 | Q97: 32.84185369 | R97: -106.2721044 | S97: 73.72789555 | U97: 1000000000 | V97: 5248222.81 | X97: 37.42358873 | Y97: -69.65306002 | AA97: 44.58357513 | AB97: -36.61904443 | AD97: 0 | AE97: 0
A98: 2511.9 | B98: 2.5119 | C98: 1.287317948 | D98: 0.6812138753 | E98: 1.000004982 | F98: 0.003156536147 | G98: 1 | H98: 0 | I98: 1212.532877 | J98: 1.569971607 | K98: 1.084062207 | L98: 0.3964016581 | M98: 1.000065565 | N98: 0.01145089588 | O98: 0.9998868612 | P98: 0.00586987759 | Q98: 31.85246597 | R98: -107.0828362 | S98: 72.91716383 | U98: 1000000000 | V98: 6309641.61 | X98: 36.73386855 | Y98: -67.89669311 | AA98: 44.28390758 | AB98: -39.18614306 | AD98: 0 | AE98: 0
A99: 2754.2 | B99: 2.7542 | C99: 1.33794176 | D99: 0.726631247 | E99: 1.000005989 | F99: 0.003461015971 | G99: 1 | H99: 0 | I99: 1329.494748 | J99: 1.570044161 | K99: 1.100281367 | L99: 0.4302573589 | M99: 1.000078824 | N99: 0.01255534802 | O99: 0.9998639821 | P99: 0.006436245699 | Q99: 30.84665963 | R99: -107.8277137 | S99: 72.17228628 | U99: 1000000000 | V99: 7585617.64 | X99: 36.06288242 | Y99: -66.02434185 | AA99: 43.94908739 | AB99: -41.80337187 | AD99: 0 | AE99: 0
A100: 3020 | B100: 3.02 | C100: 1.396404332 | D100: 0.7725617911 | E100: 1.000007201 | F100: 0.003795025702 | G100: 1 | H100: 0 | I100: 1457.800432 | J100: 1.570110362 | K100: 1.119478991 | L100: 0.466222543 | M100: 1.000094771 | N100: 0.01376688256 | O100: 0.9998364626 | P100: 0.007057593555 | Q100: 29.82530597 | R100: -108.4883589 | S100: 71.51164112 | U100: 1000000000 | V100: 9120400 | X100: 35.41275873 | Y100: -64.03689741 | AA100: 43.57785742 | AB100: -44.45146146 | AD100: 0 | AE100: 0
A101: 3311.3 | B101: 3.3113 | C101: 1.463571285 | D101: 0.8185780172 | E101: 1.000008657 | F101: 0.004161078281 | G101: 1 | H101: 0 | I101: 1598.415357 | J101: 1.570170707 | K101: 1.142121485 | L101: 0.5041951136 | M101: 1.000113934 | N101: 0.01509460128 | O101: 0.9998033935 | P101: 0.007738616477 | Q101: 28.79148132 | R101: -109.0468031 | S101: 70.95319693 | U101: 1000000000 | V101: 10964707.69 | X101: 34.78668799 | Y101: -61.94075959 | AA101: 43.1701035 | AB101: -47.10604348 | AD101: 0 | AE101: 0
A102: 3630.8 | B102: 3.6308 | C102: 1.540473686 | D102: 0.8643285878 | E102: 1.000010409 | F102: 0.004562566178 | G102: 1 | H102: 0 | I102: 1752.642855 | J102: 1.57022576 | K102: 1.168770967 | L102: 0.5440882088 | M102: 1.00013698 | N102: 0.01655079165 | O102: 0.9997636244 | P102: 0.008485653108 | Q102: 27.74710041 | R102: -109.488798 | S102: 70.51120198 | U102: 1000000000 | V102: 13182708.64 | X102: 34.18675445 | Y102: -59.74164145 | AA102: 42.72565613 | AB102: -49.74715657 | AD102: 0 | AE102: 0
A103: 3981.1 | B103: 3.9811 | C103: 1.628123457 | D103: 0.9094193936 | E103: 1.000012514 | F103: 0.005002756064 | G103: 1 | H103: 0 | I103: 1921.737986 | J103: 1.570275964 | K103: 1.200025445 | L103: 0.5857175082 | M103: 1.000164684 | N103: 0.01814727878 | O103: 0.9997158153 | P103: 0.009304817451 | Q103: 26.69583832 | R103: -109.8031899 | S103: 70.19681014 | U103: 1000000000 | V103: 15849157.21 | X103: 33.61571969 | Y103: -57.45080678 | AA103: 42.2454288 | AB103: -52.35238308 | AD103: 0 | AE103: 0
A104: 4365.2 | B104: 4.3652 | C104: 1.72762582 | D104: 0.9535043354 | E104: 1.000015045 | F104: 0.005485417075 | G104: 1 | H104: 0 | I104: 2107.148895 | J104: 1.570321752 | K104: 1.236556652 | L104: 0.6288622593 | M104: 1.000197992 | N104: 0.01989770229 | O104: 0.9996583364 | P104: 0.01020317079 | Q104: 25.64127368 | R104: -109.9837915 | S104: 70.01620846 | U104: 1000000000 | V104: 19054971.04 | X104: 33.0758807 | Y104: -55.08170993 | AA104: 41.73070315 | AB104: -54.9020816 | AD104: 0 | AE104: 0
A105: 4786.3 | B105: 4.7863 | C105: 1.840129585 | D105: 0.9962667102 | E105: 1.000018088 | F105: 0.006014569433 | G105: 1 | H105: 0 | I105: 2310.420271 | J105: 1.570363505 | K105: 1.27909049 | L105: 0.6732400726 | M105: 1.000238029 | N105: 0.02181660197 | O105: 0.9995892426 | P105: 0.01118825792 | Q105: 24.58740817 | R105: -110.029694 | S105: 69.970306 | U105: 1000000000 | V105: 22908667.69 | X105: 32.56936283 | Y105: -52.65138566 | AA105: 41.18335551 | AB105: -57.37830835 | AD105: 0 | AE105: 0
A106: 5248.1 | B106: 5.2481 | C106: 1.966907281 | D106: 1.037456231 | E106: 1.000021746 | F106: 0.006594861345 | G106: 1 | H106: 0 | I106: 2533.338159 | J106: 1.570401591 | K106: 1.328433295 | L106: 0.7185418093 | M106: 1.00028617 | N106: 0.02392078118 | O106: 0.9995061628 | P106: 0.01226881413 | Q106: 23.53776032 | R106: -109.9454872 | S106: 70.05451282 | U106: 1000000000 | V106: 27542553.61 | X106: 32.09767086 | Y106: -50.17853007 | AA106: 40.60539963 | AB106: -59.7669571 | AD106: 0 | AE106: 0
A107: 5370.3 | B107: 5.3703 | C107: 2.000968238 | D107: 1.0474769 | E107: 1.000022771 | F107: 0.006748415558 | G107: 1 | H107: 0 | I107: 2592.32596 | J107: 1.570410573 | K107: 1.341925022 | L107: 0.7299644373 | M107: 1.00029965 | N107: 0.02447754749 | O107: 0.9994828994 | P107: 0.01255479584 | Q107: 23.27656928 | R107: -109.9051633 | S107: 70.09483666 | U107: 1000000000 | V107: 28840122.09 | X107: 31.9853949 | Y107: -49.55647669 | AA107: 40.45648455 | AB107: -60.34868665 | AD107: 0 | AE107: 0
A108: 5432.85 | B108: 5.43285 | C108: 2.018478637 | D108: 1.052475024 | E108: 1.000023305 | F108: 0.006827014585 | G108: 1 | H108: 0 | I108: 2622.519797 | J108: 1.570415014 | K108: 1.348897696 | L108: 0.7357224927 | M108: 1.00030667 | N108: 0.02476253127 | O108: 0.9994707845 | P108: 0.01270118827 | Q108: 23.14537092 | R108: -109.8820896 | S108: 70.11791038 | U108: 1000000000 | V108: 29515859.12 | X108: 31.92976586 | Y108: -49.24314726 | AA108: 40.38091523 | AB108: -60.63894237 | AD108: 0 | AE108: 0
A109: 5495.4 | B109: 5.4954 | C109: 2.036038591 | D109: 1.057387056 | E109: 1.000023844 | F109: 0.006905613527 | G109: 1 | H109: 0 | I109: 2652.713634 | J109: 1.570419354 | K109: 1.355914633 | L109: 0.7414211388 | M109: 1.000313771 | N109: 0.02504751103 | O109: 0.9994585294 | P109: 0.01284758633 | Q109: 23.01581829 | R109: -109.8574814 | S109: 70.14251863 | U109: 1000000000 | V109: 30199421.16 | X109: 31.87533901 | Y109: -48.9332157 | AA109: 40.30578945 | AB109: -60.92426568 | AD109: 0 | AE109: 0
A110: 5559.4 | B110: 5.5594 | C110: 2.054055578 | D110: 1.062325907 | E110: 1.000024403 | F110: 0.006986034419 | G110: 1 | H110: 0 | I110: 2683.607409 | J110: 1.570423694 | K110: 1.363139333 | L110: 0.7471909709 | M110: 1.000321121 | N110: 0.02533909281 | O110: 0.9994458451 | P110: 0.012997384 | Q110: 22.88493164 | R110: -109.8307997 | S110: 70.16920034 | U110: 1000000000 | V110: 30906928.36 | X110: 31.82086097 | Y110: -48.61958372 | AA110: 40.22938084 | AB110: -61.21121594 | AD110: 0 | AE110: 0
A111: 5623.4 | B111: 5.6234 | C111: 2.072121796 | D111: 1.067178753 | E111: 1.000024968 | F111: 0.00706645522 | G111: 1 | H111: 0 | I111: 2714.501184 | J111: 1.570427935 | K111: 1.370408934 | L111: 0.752899777 | M111: 1.000328556 | N111: 0.02563067029 | O111: 0.999433014 | P111: 0.01314718769 | Q111: 22.75569931 | R111: -109.8026813 | S111: 70.19731874 | U111: 1000000000 | V111: 31622627.56 | X111: 31.76757399 | Y111: -48.30944237 | AA111: 40.15343549 | AB111: -61.49323888 | AD111: 0 | AE111: 0
A112: 5688.9 | B112: 5.6889 | C112: 2.090661084 | D112: 1.072058377 | E112: 1.000025553 | F112: 0.00714876079 | G112: 1 | H112: 0 | I112: 2746.119031 | J112: 1.570432177 | K112: 1.377894666 | L112: 0.7586798178 | M112: 1.000336253 | N112: 0.02592907711 | O112: 0.9994197301 | P112: 0.01330050872 | Q112: 22.62511618 | R112: -109.7725006 | S112: 70.22749943 | U112: 1000000000 | V112: 32363583.21 | X112: 31.71423746 | Y112: -47.9956109 | AA112: 40.0761889 | AB112: -61.77688966 | AD112: 0 | AE112: 0
A113: 5754.4 | B113: 5.7544 | C113: 2.109249277 | D113: 1.076852109 | E113: 1.000026145 | F113: 0.007231066262 | G113: 1 | H113: 0 | I113: 2777.736879 | J113: 1.570436321 | K113: 1.385425934 | L113: 0.7643972066 | M113: 1.000344039 | N113: 0.0262274793 | O113: 0.9994062924 | P113: 0.0134538362 | Q113: 22.49619597 | R113: -109.7409829 | S113: 70.25901715 | U113: 1000000000 | V113: 33113119.36 | X113: 31.66208079 | Y113: -47.68536333 | AA113: 39.99942535 | AB113: -62.05561952 | AD113: 0 | AE113: 0
A114: 5821.4 | B114: 5.8214 | C114: 2.128312414 | D114: 1.081668874 | E114: 1.000026757 | F114: 0.007315256491 | G114: 1 | H114: 0 | I114: 2810.078799 | J114: 1.570440465 | K114: 1.393176015 | L114: 0.77018138 | M114: 1.000352096 | N114: 0.0265327103 | O114: 0.9993923879 | P114: 0.01361068176 | Q114: 22.36600844 | R114: -109.7074431 | S114: 70.29255686 | U114: 1000000000 | V114: 33888697.96 | X114: 31.60991649 | Y114: -47.37168045 | AA114: 39.92140213 | AB114: -62.33576269 | AD114: 0 | AE114: 0
A115: 5888.4 | B115: 5.8884 | C115: 2.147424054 | D115: 1.086400011 | E115: 1.000027377 | F115: 0.007399446617 | G115: 1 | H115: 0 | I115: 2842.420719 | J115: 1.570444514 | K115: 1.400972191 | L115: 0.7759013672 | M115: 1.000360246 | N115: 0.02683793635 | O115: 0.9993783225 | P115: 0.01376753424 | Q115: 22.23748987 | R115: -109.6726696 | S115: 70.32733039 | U115: 1000000000 | V115: 34673254.56 | X115: 31.558919 | Y115: -47.06166949 | AA115: 39.84388105 | AB115: -62.61100012 | AD115: 0 | AE115: 0
A116: 5957 | B116: 5.957 | C116: 2.167041005 | D116: 1.091157559 | E116: 1.000028018 | F116: 0.007485647144 | G116: 1 | H116: 0 | I116: 2875.534984 | J116: 1.570448565 | K116: 1.409001503 | L116: 0.7816921725 | M116: 1.000368687 | N116: 0.0271504462 | O116: 0.9993637546 | P116: 0.0139281397 | Q116: 22.10759539 | R116: -109.635869 | S116: 70.36413099 | U116: 1000000000 | V116: 35485849 | X116: 31.50787864 | Y116: -46.74801841 | AA116: 39.76502692 | AB116: -62.88785059 | AD116: 0 | AE116: 0
A117: 6025.6 | B117: 6.0256 | C117: 2.186706124 | D117: 1.09582964 | E117: 1.000028667 | F117: 0.00757184756 | G117: 1 | H117: 0 | I117: 2908.649249 | J117: 1.570452525 | K117: 1.417077528 | L117: 0.7874171635 | M117: 1.000377225 | N117: 0.02746295075 | O117: 0.9993490179 | P117: 0.01408875258 | Q117: 21.97937827 | R117: -109.5979373 | S117: 70.40206269 | U117: 1000000000 | V117: 36307855.36 | X117: 31.45799364 | Y117: -46.43813263 | AA117: 39.6866948 | AB117: -63.15980469 | AD117: 0 | AE117: 0
A118: 6095.8 | B118: 6.0958 | C118: 2.206878428 | D118: 1.100524387 | E118: 1.000029339 | F118: 0.007660058365 | G118: 1 | H118: 0 | I118: 2942.535859 | J118: 1.570456484 | K118: 1.425389446 | L118: 0.7932083263 | M118: 1.000386064 | N118: 0.02778273848 | O118: 0.999333763 | P118: 0.0142531193 | Q118: 21.84987052 | R118: -109.5580301 | S118: 70.44196995 | U118: 1000000000 | V118: 37158777.64 | X118: 31.40810723 | Y118: -46.12487277 | AA118: 39.60707346 | AB118: -63.43315728 | AD118: 0 | AE118: 0
A119: 6166 | B119: 6.166 | C119: 2.227098491 | D119: 1.105133986 | E119: 1.000030019 | F119: 0.007748269051 | G119: 1 | H119: 0 | I119: 2976.422468 | J119: 1.570460353 | K119: 1.433748613 | L119: 0.798932151 | M119: 1.000395006 | N119: 0.02810252052 | O119: 0.9993183314 | P119: 0.01441749397 | Q119: 21.72204587 | R119: -109.5170973 | S119: 70.48290267 | U119: 1000000000 | V119: 38019556 | X119: 31.35936283 | Y119: -45.81546562 | AA119: 39.52799321 | AB119: -63.70163171 | AD119: 0 | AE119: 0
A120: 6237.8 | B120: 6.2378 | C120: 2.247827472 | D120: 1.109762759 | E120: 1.000030722 | F120: 0.007838490112 | G120: 1 | H120: 0 | I120: 3011.081422 | J120: 1.57046422 | K120: 1.442346322 | L120: 0.8047176083 | M120: 1.000404257 | N120: 0.0284295851 | O120: 0.9993023654 | P120: 0.01458562339 | Q120: 21.59301172 | R120: -109.474249 | S120: 70.52575098 | U120: 1000000000 | V120: 38910148.84 | X120: 31.31065482 | Y120: -45.50294433 | AA120: 39.44766707 | AB120: -63.97130469 | AD120: 0 | AE120: 0
A121: 6309.6 | B121: 6.3096 | C121: 2.268603733 | D121: 1.114306846 | E121: 1.000031433 | F121: 0.007928711045 | G121: 1 | H121: 0 | I121: 3045.740376 | J121: 1.570467999 | K121: 1.450991736 | L121: 0.8104343123 | M121: 1.000413615 | N121: 0.02875664359 | O121: 0.9992862147 | P121: 0.01475376133 | Q121: 21.46566381 | R121: -109.4304829 | S121: 70.56951707 | U121: 1000000000 | V121: 39811052.16 | X121: 31.2630737 | Y121: -45.19435692 | AA121: 39.36790028 | AB121: -64.23612601 | AD121: 0 | AE121: 0
A122: 6383.05 | B122: 6.38305 | C122: 2.289905023 | D122: 1.118869941 | E122: 1.000032169 | F122: 0.008021005167 | G122: 1 | H122: 0 | I122: 3081.19581 | J122: 1.570471777 | K122: 1.459884303 | L122: 0.8162121352 | M122: 1.000423299 | N122: 0.02909121168 | O122: 0.9992695016 | P122: 0.01492577208 | Q122: 21.33709649 | R122: -109.3848374 | S122: 70.61516263 | U122: 1000000000 | V122: 40743327.3 | X122: 31.21553126 | Y122: -44.88269786 | AA122: 39.2868754 | AB122: -64.50213951 | AD122: 0 | AE122: 0
A123: 6456.5 | B123: 6.4565 | C123: 2.311253114 | D123: 1.123348833 | E123: 1.000032914 | F123: 0.008113299152 | G123: 1 | H123: 0 | I123: 3116.651244 | J123: 1.57047547 | K123: 1.468825016 | L123: 0.8219198077 | M123: 1.000433094 | N123: 0.02942577326 | O123: 0.9992525952 | P123: 0.01509779194 | Q123: 21.21021833 | R123: -109.3383819 | S123: 70.66161811 | U123: 1000000000 | V123: 41686392.25 | X123: 31.16910047 | Y123: -44.57505283 | AA123: 39.20642803 | AB123: -64.76332906 | AD123: 0 | AE123: 0
A124: 6531.7 | B124: 6.5317 | C124: 2.333156984 | D124: 1.12784943 | E124: 1.000033685 | F124: 0.008207791966 | G124: 1 | H124: 0 | I124: 3152.95143 | J124: 1.570479164 | K124: 1.478027713 | L124: 0.827691737 | M124: 1.000443239 | N124: 0.02976829919 | O124: 0.9992350857 | P124: 0.01527391985 | Q124: 21.08202898 | R124: -109.2900542 | S124: 70.70994579 | U124: 1000000000 | V124: 42663104.89 | X124: 31.12268126 | Y124: -44.26418258 | AA124: 39.1246579 | AB124: -65.02587163 | AD124: 0 | AE124: 0
A125: 6606.9 | B125: 6.6069 | C125: 2.355107233 | D125: 1.132266221 | E125: 1.000034465 | F125: 0.008302284633 | G125: 1 | H125: 0 | I125: 3189.251615 | J125: 1.570482774 | K125: 1.487279041 | L125: 0.8333920479 | M125: 1.000453502 | N125: 0.03011081812 | O125: 0.9992173736 | P125: 0.01545005755 | Q125: 20.95553365 | R125: -109.2410236 | S125: 70.75897639 | U125: 1000000000 | V125: 43651127.61 | X125: 31.0773597 | Y125: -43.95741055 | AA125: 39.04348413 | AB125: -65.28361306 | AD125: 0 | AE125: 0
A126: 6683.85 | B126: 6.68385 | C126: 2.377614963 | D126: 1.136701288 | E126: 1.000035272 | F126: 0.008398976112 | G126: 1 | H126: 0 | I126: 3226.396553 | J126: 1.570486383 | K126: 1.49679506 | L126: 0.8391518772 | M126: 1.000464125 | N126: 0.0304613006 | O126: 0.9991990394 | P126: 0.01563030444 | Q126: 20.82780948 | R126: -109.1901957 | S126: 70.80980434 | U126: 1000000000 | V126: 44673850.82 | X126: 31.03208592 | Y126: -43.64768463 | AA126: 38.96103373 | AB126: -65.54251103 | AD126: 0 | AE126: 0
A127: 6760.8 | B127: 6.7608 | C127: 2.400168583 | D127: 1.141053089 | E127: 1.000036089 | F127: 0.008495667434 | G127: 1 | H127: 0 | I127: 3263.541491 | J127: 1.570489911 | K127: 1.506360107 | L127: 0.844838746 | M127: 1.000474871 | N127: 0.03081177559 | O127: 0.9991804931 | P127: 0.0158105618 | Q127: 20.7017815 | R127: -109.1387728 | S127: 70.86122724 | U127: 1000000000 | V127: 45708416.64 | X127: 30.98789405 | Y127: -43.34213392 | AA127: 38.87919762 | AB127: -65.79663884 | AD127: 0 | AE127: 0
A128: 6839.55 | B128: 6.83955 | C128: 2.423295948 | D128: 1.145422733 | E128: 1.000036935 | F128: 0.008594620376 | G128: 1 | H128: 0 | I128: 3301.555316 | J128: 1.570493439 | K128: 1.516198693 | L128: 0.8505841611 | M128: 1.000485995 | N128: 0.03117044098 | O128: 0.9991612933 | P128: 0.01599504669 | Q128: 20.57452244 | R128: -109.0855996 | S128: 70.91440036 | U128: 1000000000 | V128: 46779444.2 | X128: 30.94375492 | Y128: -43.03369803 | AA128: 38.79607768 | AB128: -66.05190161 | AD128: 0 | AE128: 0
A129: 6918.3 | B129: 6.9183 | C129: 2.446468708 | D129: 1.149709679 | E129: 1.00003779 | F129: 0.008693573151 | G129: 1 | H129: 0 | I129: 3339.569141 | J129: 1.570496887 | K129: 1.526086681 | L129: 0.8562553088 | M129: 1.000497248 | N129: 0.03152909835 | O129: 0.9991418713 | P129: 0.01617954282 | Q129: 20.44896129 | R129: -109.0319391 | S129: 70.96806087 | U129: 1000000000 | V129: 47862874.89 | X129: 30.90068169 | Y129: -42.7295123 | AA129: 38.71358977 | AB129: -66.30242683 | AD129: 0 | AE129: 0
A130: 6998.9 | B130: 6.9989 | C130: 2.470231517 | D130: 1.154013968 | E130: 1.000038676 | F130: 0.008794850353 | G130: 1 | H130: 0 | I130: 3378.475989 | J130: 1.570500335 | K130: 1.536257121 | L130: 0.8619838982 | M130: 1.000508899 | N130: 0.03189617293 | O130: 0.9991217628 | P130: 0.01636838491 | Q130: 20.32216897 | R130: -108.9765792 | S130: 71.02342081 | U130: 1000000000 | V130: 48984601.21 | X130: 30.85766673 | Y130: -42.4225177 | AA130: 38.62981241 | AB130: -66.55406149 | AD130: 0 | AE130: 0
A131: 7079.5 | B131: 7.0795 | C131: 2.49403922 | D131: 1.158236157 | E131: 1.000039572 | F131: 0.008896127376 | G131: 1 | H131: 0 | I131: 3417.382837 | J131: 1.570503705 | K131: 1.546477312 | L131: 0.8676369541 | M131: 1.000520684 | N131: 0.0322632389 | O131: 0.9991014216 | P131: 0.01655723904 | Q131: 20.19707581 | R131: -108.9208388 | S131: 71.07916122 | U131: 1000000000 | V131: 50119320.25 | X131: 30.81570135 | Y131: -42.11984587 | AA131: 38.54668463 | AB131: -66.80099291 | AD131: 0 | AE131: 0
A132: 7161.95 | B132: 7.16195 | C132: 2.5184385 | D132: 1.162472583 | E132: 1.000040499 | F132: 0.008999728806 | G132: 1 | H132: 0 | I132: 3457.182709 | J132: 1.570507074 | K132: 1.556982541 | L132: 0.8733427878 | M132: 1.00053288 | N132: 0.03263872108 | O132: 0.9990803727 | P132: 0.01675044052 | Q132: 20.07082939 | R132: -108.8634882 | S132: 71.13651182 | U132: 1000000000 | V132: 51293527.8 | X132: 30.77382531 | Y132: -41.81463224 | AA132: 38.46231425 | AB132: -67.04885595 | AD132: 0 | AE132: 0
A133: 7244.4 | B133: 7.2444 | C133: 2.542882112 | D133: 1.166627637 | E133: 1.000041437 | F133: 0.009103330043 | G133: 1 | H133: 0 | I133: 3496.982581 | J133: 1.570510366 | K133: 1.567537779 | L133: 0.8789719606 | M133: 1.000545216 | N133: 0.03301419406 | O133: 0.9990590802 | P133: 0.01694365489 | Q133: 19.94628076 | R133: -108.8058635 | S133: 71.19413653 | U133: 1000000000 | V133: 52481331.36 | X133: 30.73298096 | Y133: -41.51380603 | AA133: 38.37860998 | AB133: -67.29205744 | AD133: 0 | AE133: 0
A134: 7328.75 | B134: 7.32875 | C134: 2.567933564 | D134: 1.170796509 | E134: 1.000042407 | F134: 0.009209318492 | G134: 1 | H134: 0 | I134: 3537.699611 | J134: 1.570513657 | K134: 1.57838696 | L134: 0.8846527581 | M134: 1.000557983 | N134: 0.0333983099 | O134: 0.999037045 | P134: 0.01714133526 | Q134: 19.82057846 | R134: -108.7466869 | S134: 71.25331309 | U134: 1000000000 | V134: 53710576.56 | X134: 30.69222979 | Y134: -41.2105171 | AA134: 38.29365884 | AB134: -67.53616981 | AD134: 0 | AE134: 0
A135: 7413.1 | B135: 7.4131 | C135: 2.593028783 | D135: 1.17488476 | E135: 1.000043389 | F135: 0.009315306735 | G135: 1 | H135: 0 | I135: 3578.416642 | J135: 1.570516874 | K135: 1.589286382 | L135: 0.8902558159 | M135: 1.000570897 | N135: 0.03378241589 | O135: 0.9990147548 | P135: 0.01733902944 | Q135: 19.69657213 | R135: -108.6873411 | S135: 71.31265887 | U135: 1000000000 | V135: 54954051.61 | X135: 30.65249221 | Y135: -40.91167747 | AA135: 38.20939009 | AB135: -67.77566366 | AD135: 0 | AE135: 0
A136: 7499.45 | B136: 7.49945 | C136: 2.618763049 | D136: 1.178988712 | E136: 1.000044406 | F136: 0.009423807819 | G136: 1 | H136: 0 | I136: 3620.099103 | J136: 1.570520091 | K136: 1.600495207 | L136: 0.8959124945 | M136: 1.000584271 | N136: 0.03417561897 | O136: 0.9989916721 | P136: 0.01754142556 | Q136: 19.57134144 | R136: -108.6264695 | S136: 71.3735305 | U136: 1000000000 | V136: 56241750.3 | X136: 30.61282933 | Y136: -40.6102869 | AA136: 38.12382228 | AB136: -68.01618261 | AD136: 0 | AE136: 0
A137: 7585.8 | B137: 7.5858 | C137: 2.644540563 | D137: 1.183012725 | E137: 1.000045434 | F137: 0.009532308682 | G137: 1 | H137: 0 | I137: 3661.781564 | J137: 1.570523236 | K137: 1.611754531 | L137: 0.9014903172 | M137: 1.000597799 | N137: 0.03456881149 | O137: 0.9989683222 | P137: 0.01774383651 | Q137: 19.44780635 | R137: -108.5655319 | S137: 71.43446815 | U137: 1000000000 | V137: 57544361.64 | X137: 30.57416286 | Y137: -40.31340963 | AA137: 38.03895367 | AB137: -68.25212222 | AD137: 0 | AE137: 0
A138: 7674.15 | B138: 7.67415 | C138: 2.67095858 | D138: 1.187049482 | E138: 1.000046499 | F138: 0.00964332236 | G138: 1 | H138: 0 | I138: 3704.429456 | J138: 1.57052638 | K138: 1.623325811 | L138: 0.9071170675 | M138: 1.000611801 | N138: 0.03497109988 | O138: 0.9989441551 | P138: 0.01795095113 | Q138: 19.32312376 | R138: -108.5031677 | S138: 71.49683229 | U138: 1000000000 | V138: 58892578.22 | X138: 30.53559929 | Y138: -40.01425015 | AA138: 37.95283464 | AB138: -68.48891756 | AD138: 0 | AE138: 0
A139: 7762.5 | B139: 7.7625 | C139: 2.697419269 | D139: 1.191007105 | E139: 1.000047575 | F139: 0.009754335801 | G139: 1 | H139: 0 | I139: 3747.077348 | J139: 1.570529452 | K139: 1.634947756 | L139: 0.9126639963 | M139: 1.000625964 | N139: 0.03537337695 | O139: 0.9989197083 | P139: 0.01815808161 | Q139: 19.20013382 | R139: -108.4408391 | S139: 71.55916091 | U139: 1000000000 | V139: 60256406.25 | X139: 30.49801348 | Y139: -39.71965936 | AA139: 37.86743051 | AB139: -68.72117973 | AD139: 0 | AE139: 0
A140: 7852.9 | B140: 7.8529 | C140: 2.7245368 | D140: 1.194976924 | E140: 1.00004869 | F140: 0.009867924857 | G140: 1 | H140: 0 | I140: 3790.714806 | J140: 1.570532524 | K140: 1.646890693 | L140: 0.9182584209 | M140: 1.000640624 | N140: 0.03578497627 | O140: 0.9988944048 | P140: 0.01837003481 | Q140: 19.07600065 | R140: -108.3771508 | S140: 71.62284916 | U140: 1000000000 | V140: 61668038.41 | X140: 30.46053506 | Y140: -39.42288136 | AA140: 37.78077576 | AB140: -68.95426948 | AD140: 0 | AE140: 0
A141: 7943.3 | B141: 7.9433 | C141: =SQRT(1+(A141/pole1)^2) -> 2.751696422 | D141: =ATAN(A141/pole1) -> 1.198868439 | E141: =SQRT(1+(A141/Zero1)^2) -> 1.000049817 | F141: =ATAN(A141/Zero1) -> 0.009981513657 | G141: =IF(VIN_nom>Vout,1,SQRT(1+(A141/z_RHP)^2)) -> 1 | H141: =IF(VIN_nom>Vout,0,-ATAN(A141/z_RHP)) -> 0 | I141: =SQRT(1+(A141/Pole2)^2) -> 3834.352264 | J141: =ATAN(A141/Pole2) -> 1.570535527 | K141: =SQRT(1+(A141/Zero2)^2) -> 1.65888443 | L141: =ATAN(A141/Zero2) -> 0.9237721207 | M141: =SQRT(1+(A141/pole4)^2) -> 1.000655453 | N141: =ATAN(A141/pole4) -> 0.03619656346 | O141: =SQRT((1-(V141/pterm2))^2+(A141/pterm1)^2) -> 0.9988688085 | P141: =IF((ATAN((A141/pterm1)/(1-A141^2/pterm2))>0),ATAN((A141/pterm1)/(1-A141^2/pterm2)),PI()+ATAN((A141/pterm1)/(1-A141^2/pterm2))) -> 0.01858200502 | Q141: =20*LOG10(((E141*K141*G141)/(C141*I141*O141*M141))*Adc) -> 18.95355664 | R141: =((F141+L141+H141)-(D141+J141+P141+N141))*radconv -> -108.3135975 | S141: =IF(R141>0,R141,R141+180) -> 71.68640248 | U141: 1000000000 | V141: 63096014.89 | X141: =20*LOG10((K141/(I141*M141))*AEA) -> 30.4240155 | Y141: =(L141-(J141+N141))*radconv -> -39.13072386 | AA141: =20*LOG10((E141*G141/(C141*O141))*Acs*Am) -> 37.69485131 | AB141: =(F141+H141-(D141+P141))*radconv -> -69.18287366 | AD141: 0 | AE141: 0
A142: 8035.8 | B142: =A142/1000 -> 8.0358 | C142: 2.779529246 | D142: 1.202771572 | E142: 1.000050984 | F142: 0.01009774087 | G142: 1 | H142: 0 | I142: 3879.003424 | J142: 1.570538529 | K142: 1.671208226 | L142: 0.9293318118 | M142: 1.000670803 | N142: 0.03661769916 | O142: 0.9988423146 | P142: 0.01879891713 | Q142: 18.82997495 | R142: -108.2487539 | S142: 71.75124613 | U142: =IF(Q142<0,A142,1000000000) -> 1000000000 | V142: =A142^2 -> 64574081.64 | X142: 30.38760787 | Y142: -38.83647833 | AA142: 37.60767726 | AB142: -69.41227554 | AD142: =SUM((Q143<0)*(Q142>0))*A142 -> 0 | AE142: 0
A143: 8128.3 | B143: 8.1283 | C143: 2.807403574 | D143: 1.206597255 | E143: 1.000052165 | F143: 0.01021396781 | G143: 1 | H143: 0 | I143: 3923.654584 | J143: 1.570541462 | K143: 1.683582922 | L143: 0.9348099403 | M143: 1.000686329 | N143: 0.03703882186 | O143: 0.9988155143 | P143: 0.01901584747 | Q143: 18.70807833 | R143: -108.1841422 | S143: 71.81585775 | U143: 1000000000 | V143: 66069260.89 | X143: 30.35213994 | Y143: -38.54690133 | AA143: 37.52124856 | AB143: -69.63724092 | AD143: 0 | AE143: 0
A144: 8222.95 | B144: 8.22295 | C144: 2.835967479 | D144: 1.210433955 | E144: 1.000053387 | F144: 0.01033289595 | G144: 1 | H144: 0 | I144: 3969.343582 | J144: 1.570544396 | K144: 1.696296773 | L144: 0.940332493 | M144: 1.000702401 | N144: 0.03746971921 | O144: 0.9987877737 | P144: 0.01923783906 | Q144: 18.58505071 | R144: -108.1183118 | S144: 71.88168819 | U144: 1000000000 | V144: 67616906.7 | X144: 30.31678843 | Y144: -38.25533905 | AA144: 37.43357245 | AB144: -69.86297276 | AD144: 0 | AE144: 0
A145: 8270.275 | B145: 8.270275 | C145: 2.85026485 | D145: 1.212323455 | E145: 1.000054003 | F145: 0.01039235992 | G145: 1 | H145: 0 | I145: 3992.188081 | J145: 1.570545838 | K145: 1.702672881 | L145: 0.9430628 | M145: 1.000710506 | N145: 0.03768516268 | O145: 0.9987737831 | P145: 0.01934884216 | Q145: 18.52416961 | R145: -108.0855166 | S145: 71.91448335 | U145: 1000000000 | V145: 68397448.58 | X145: 30.29945972 | Y145: -38.11133058 | AA145: 37.39002006 | AB145: -69.97418606 | AD145: 0 | AE145: 0
A146: 8317.6 | B146: 8.3176 | C146: 2.864572297 | D146: 1.214194086 | E146: 1.000054623 | F146: 0.01045182381 | G146: 1 | H146: 0 | I146: 4015.03258 | J146: 1.570547263 | K146: 1.709061588 | L146: 0.9457727147 | M146: 1.000718658 | N146: 0.03790060264 | O146: 0.9987597122 | P146: 0.01945985018 | Q146: 18.46370348 | R146: -108.052808 | S146: 71.94719203 | U146: 1000000000 | V146: 69182469.76 | X146: 30.28235725 | Y146: -37.96848937 | AA146: 37.3466564 | AB146: -70.0843186 | AD146: 0 | AE146: 0
A147: 8366.05 | B147: 8.36605 | C147: 2.879230136 | D147: 1.216089919 | E147: 1.000055261 | F147: 0.01051270118 | G147: 1 | H147: 0 | I147: 4038.420134 | J147: 1.570548705 | K147: 1.715615069 | L147: 0.94852612 | M147: 1.000727052 | N147: 0.03812116036 | O147: 0.9987452238 | P147: 0.01957350217 | Q147: 18.40222462 | R147: -108.0194161 | S147: 71.98058385 | U147: 1000000000 | V147: 69990792.6 | X147: 30.26507868 | Y147: -37.82345053 | AA147: 37.30245611 | AB147: -70.19596561 | AD147: 0 | AE147: 0
A148: 8414.5 | B148: 8.4145 | C148: 2.893898219 | D148: 1.217966541 | E148: 1.000055903 | F148: 0.01057357848 | G148: 1 | H148: 0 | I148: 4061.807688 | J148: 1.570550131 | K148: =SQRT(1+(A148/Zero2)^2) -> 1.722181457 | L148: =ATAN(A148/Zero2) -> 0.9512585494 | M148: 1.000735494 | N148: 0.03834171436 | O148: 0.9987306512 | P148: 0.01968715938 | Q148: 18.34117015 | R148: -107.9861245 | S148: 72.01387546 | U148: 1000000000 | V148: 70803810.25 | X148: 30.24802936 | Y148: -37.67961237 | AA148: 37.25845096 | AB148: -70.30651218 | AD148: 0 | AE148: 0
A149: 8462.95 | B149: 8.46295 | C149: 2.908576391 | D149: 1.219824228 | E149: 1.000056548 | F149: 0.0106344557 | G149: 1 | H149: 0 | I149: 4085.195241 | J149: 1.57055154 | K149: 1.728760606 | L149: 0.9539702013 | M149: 1.000743985 | N149: 0.03856226463 | O149: 0.9987159946 | P149: 0.01980082182 | Q149: 18.28053486 | R149: -107.9529377 | S149: 72.0470623 | U149: 1000000000 | V149: 71621522.7 | X149: 30.23120544 | Y149: -37.53696351 | AA149: 37.21463959 | AB149: -70.41597419 | AD149: 0 | AE149: 0
A150: 8511.4 | B150: 8.5114 | C150: 2.923264499 | D150: 1.221663254 | E150: 1.000057198 | F150: 0.01069533284 | G150: 1 | H150: 0 | I150: 4108.582795 | J150: 1.570552934 | K150: 1.73535237 | L150: 0.9566612723 | M150: 1.000752525 | N150: 0.03878281115 | O150: 0.998701254 | P150: 0.01991448953 | Q150: 18.22031362 | R150: -107.91986 | S150: 72.08014002 | U150: 1000000000 | V150: 72443929.96 | X150: 30.21460311 | Y150: -37.39549272 | AA150: 37.17102068 | AB150: -70.52436726 | AD150: 0 | AE150: 0
A151: 8560.95 | B151: 8.56095 | C151: 2.938296206 | D151: 1.223525008 | E151: 1.000057866 | F151: 0.01075759204 | G151: 1 | H151: 0 | I151: 4132.501336 | J151: 1.570554343 | K151: 1.742106692 | L151: 0.959392357 | M151: 1.000761309 | N151: 0.03900836101 | O151: 0.9986860916 | P151: 0.02003074341 | Q151: 18.15914814 | R151: -107.8861485 | S151: 72.1138515 | U151: 1000000000 | V151: 73289864.9 | X151: 30.1978492 | Y151: -37.25201687 | AA151: 37.12660911 | AB151: -70.63413163 | AD151: 0 | AE151: 0
A152: 8610.5 | B152: 8.6105 | C152: 2.953337994 | D152: 1.225367805 | E152: 1.000058537 | F152: 0.01081985116 | G152: 1 | H152: 0 | I152: 4156.419876 | J152: 1.570555735 | K152: 1.748873907 | L152: 0.9621023261 | M152: 1.000770144 | N152: 0.0392339069 | O152: 0.9986708414 | P152: 0.02014700287 | Q152: 18.09840514 | R152: -107.8525598 | S152: 72.1474402 | U152: 1000000000 | V152: 74140710.25 | X152: 30.18131929 | Y152: -37.10974969 | AA152: 37.08239602 | AB152: -70.74281011 | AD152: 0 | AE152: 0
A153: 8660.05 | B153: 8.66005 | C153: 2.968389709 | D153: 1.22719192 | E153: 1.000059213 | F153: 0.0108821102 | G153: 1 | H153: 0 | I153: 4180.338417 | J153: 1.570557112 | K153: 1.755653866 | L153: 0.9647913841 | M153: 1.000779029 | N153: 0.03945944879 | O153: 0.9986555032 | P153: 0.02026326793 | Q153: 18.03807941 | R153: -107.819098 | S153: 72.18090202 | U153: 1000000000 | V153: 74996466 | X153: 30.16500959 | Y153: -36.96867949 | AA153: 37.03838 | AB153: -70.8504185 | AD153: 0 | AE153: 0
A154: 8709.6 | B154: 8.7096 | C154: 2.983451202 | D154: 1.228997623 | E154: 1.000059893 | F154: 0.01094436915 | G154: 1 | H154: 0 | I154: 4204.256957 | J154: 1.570558473 | K154: 1.762446423 | L154: 0.9674597338 | M154: 1.000787966 | N154: 0.03968498667 | O154: 0.9986400771 | P154: 0.02037953863 | Q154: 17.97816582 | R154: -107.785767 | S154: 72.21423304 | U154: 1000000000 | V154: 75857132.16 | X154: 30.14891635 | Y154: -36.82879466 | AA154: 36.99455964 | AB154: -70.95697231 | AD154: 0 | AE154: =IF(AD154>0,S154,0) -> 0
A155: 8760.325 | B155: 8.760325 | C155: 2.998879828 | D155: 1.230827351 | E155: 1.000060592 | F155: 0.01100810438 | G155: 1 | H155: 0 | I155: 4228.742688 | J155: 1.57055985 | K155: 1.769412952 | L155: 0.9701701179 | M155: 1.000797167 | N155: 0.03991586865 | O155: 0.9986241941 | P155: 0.02049857239 | Q155: 17.9172531 | R155: -107.7517849 | S155: 72.24821506 | U155: 1000000000 | V155: 76743294.11 | X155: 30.13266189 | Y155: -36.68680856 | AA155: 36.94990138 | AB155: -71.06497639 | AD155: 0 | AE155: 0
A156: 8811.05 | B156: 8.81105 | C156: 3.014318391 | D156: 1.232638343 | E156: 1.000061296 | F156: 0.01107183953 | G156: 1 | H156: 0 | I156: 4253.228419 | J156: 1.570561211 | K156: 1.776392378 | L156: 0.9728592236 | M156: 1.000806422 | N156: 0.04014674636 | O156: 0.9986082189 | P156: 0.02061761213 | Q156: 17.85676167 | R156: -107.7179477 | S156: 72.28205225 | U156: 1000000000 | V156: 77634602.1 | X156: 30.11662661 | Y156: -36.54604047 | AA156: 36.90544523 | AB156: -71.17190728 | AD156: 0 | AE156: 0
A157: 8861.775 | B157: 8.861775 | C157: 3.02976674 | D157: 1.234430872 | E157: 1.000062004 | F157: 0.01113557459 | G157: 1 | H157: 0 | I157: 4277.71415 | J157: 1.570562557 | K157: 1.783384549 | L157: 0.9755272618 | M157: 1.00081573 | N157: 0.04037761979 | O157: 0.9985921516 | P157: 0.02073665788 | Q157: 17.79668629 | R157: -107.684259 | S157: 72.31574097 | U157: 1000000000 | V157: 78531056.15 | X157: 30.10080673 | Y157: -36.40647832 | AA157: 36.86118973 | AB157: -71.27778071 | AD157: 0 | AE157: 0
A158: 8912.5 | B158: 8.9125 | C158: 3.045224725 | D158: 1.236205209 | E158: 1.000062716 | F158: 0.01119930955 | G158: 1 | H158: 0 | I158: 4302.199881 | J158: 1.570563888 | K158: =SQRT(1+(A158/Zero2)^2) -> 1.790389315 | L158: =ATAN(A158/Zero2) -> 0.9781744418 | M158: 1.000825092 | N158: 0.04060848891 | O158: 0.9985759922 | P158: 0.02085570968 | Q158: 17.7370218 | R158: -107.6507223 | S158: 72.34927772 | U158: 1000000000 | V158: 79432656.25 | X158: 30.08519857 | Y158: -36.26811014 | AA158: 36.8171334 | AB158: -71.38261214 | AD158: 0 | AE158: 0
A159: 8964.4 | B159: 8.9644 | C159: 3.061050602 | D159: 1.238002093 | E159: 1.000063448 | F159: 0.01126452079 | G159: 1 | H159: 0 | I159: 4327.252802 | J159: 1.570565233 | K159: 1.797569224 | L159: 0.9808615687 | M159: 1.000834725 | N159: 0.04084470143 | O159: 0.998559363 | P159: 0.02097752551 | Q159: 17.67639522 | R159: -107.6165694 | S159: 72.38343059 | U159: 1000000000 | V159: 80360467.36 | X159: 30.06944422 | Y159: -36.12776019 | AA159: 36.77226117 | AB159: -71.48880921 | AD159: 0 | AE159: 0
A160: 9016.3 | B160: 9.0163 | C160: 3.076886261 | D160: 1.239780487 | E160: 1.000064185 | F160: 0.01132973193 | G160: 1 | H160: 0 | I160: 4352.305724 | J160: 1.570566564 | K160: 1.804762009 | L160: 0.9835272958 | M160: 1.000844414 | N160: 0.04108090939 | O160: 0.9985426374 | P160: 0.02109934775 | Q160: 17.61618814 | R160: -107.5825825 | S160: 72.41741754 | U160: 1000000000 | V160: 81293665.69 | X160: 30.05390393 | Y160: -35.98863521 | AA160: 36.72759439 | AB160: -71.59394725 | AD160: 0 | AE160: 0
A161: 9068.2 | B161: 9.0682 | C161: 3.092731551 | D161: 1.241540663 | E161: 1.000064926 | F161: 0.01139494297 | G161: 1 | H161: 0 | I161: 4377.358645 | J161: 1.570567879 | K161: 1.811967517 | L161: 0.9861718405 | M161: 1.000854159 | N161: 0.04131711277 | O161: 0.9985258153 | P161: 0.02122117643 | Q161: 17.55639531 | R161: -107.5487647 | S161: 72.45123535 | U161: 1000000000 | V161: 82232251.24 | X161: 30.03857398 | Y161: -35.85072277 | AA161: 36.68313151 | AB161: -71.69804188 | AD161: 0 | AE161: 0
A162: 9120.1 | B162: 9.1201 | C162: 3.108586326 | D162: 1.24328289 | E162: 1.000065671 | F162: 0.01146015392 | G162: 1 | H162: 0 | I162: 4402.411566 | J162: 1.570569179 | K162: 1.819185597 | L162: 0.9887954176 | M162: 1.00086396 | N162: 0.04155331153 | O162: 0.9985088968 | P162: 0.02134301159 | Q162: 17.49701157 | R162: -107.515119 | S162: 72.48488098 | U162: 1000000000 | V162: 83176224.01 | X162: 30.02345074 | Y162: -35.71401055 | AA162: 36.638871 | AB162: -71.80110846 | AD162: 0 | AE162: 0
A163: 9173.2 | B163: 9.1732 | C163: 3.12481735 | D163: 1.245047097 | E163: 1.000066438 | F163: 0.01152687253 | G163: 1 | H163: 0 | I163: 4428.043746 | J163: 1.570570493 | K163: 1.826583424 | L163: 0.9914581768 | M163: 1.000874046 | N163: 0.04179496673 | O163: 0.9984914873 | P163: 0.0214676705 | Q163: 17.43667288 | R163: -107.4808766 | S163: 72.51912336 | U163: 1000000000 | V163: 84147598.24 | X163: 30.00818804 | Y163: -35.57536685 | AA163: 36.59379501 | AB163: -71.9055098 | AD163: 0 | AE163: 0
A164: 9226.3 | B164: 9.2263 | C164: 3.141058 | D164: 1.246793066 | E164: 1.000067209 | F164: 0.01159359104 | G164: 1 | H164: 0 | I164: 4453.675926 | J164: 1.570571793 | K164: 1.833994098 | L164: 0.9940994357 | M164: 1.00088419 | N164: 0.04203661705 | O164: 0.9984739767 | P164: 0.02159233628 | Q164: 17.37675175 | R164: -107.4468204 | S164: 72.55317956 | U164: 1000000000 | V164: 85124611.69 | X164: 29.99313425 | Y164: -35.43795387 | AA164: 36.54892766 | AB164: -72.00886657 | AD164: 0 | AE164: 0
A165: 9279.4 | B165: 9.2794 | C165: 3.157308126 | D165: 1.248521067 | E165: 1.000067985 | F165: 0.01166030945 | G165: 1 | H165: 0 | I165: 4479.308106 | J165: 1.570573078 | K165: 1.841417464 | L165: 0.9967194171 | M165: 1.000894392 | N165: 0.04227826245 | O165: 0.9984563653 | P165: 0.02171700896 | Q165: 17.31724292 | R165: -107.4129532 | S165: 72.58704683 | U165: 1000000000 | V165: 86107264.36 | X165: 29.97828572 | Y165: -35.30175887 | AA165: 36.50426738 | AB165: -72.1111943 | AD165: 0 | AE165: 0
A166: 9332.5 | B166: 9.3325 | C166: 3.173567583 | D166: 1.250231367 | E166: 1.000068766 | F166: 0.01172702775 | G166: 1 | H166: 0 | I166: 4504.940285 | J166: 1.570574348 | K166: 1.848853368 | L166: 0.9993183416 | M166: 1.000904653 | N166: 0.04251990292 | O166: 0.9984386528 | P166: 0.02184168858 | Q166: 17.25814123 | R166: -107.3792774 | S166: 72.62072257 | U166: 1000000000 | V166: 87095556.25 | X166: 29.96363884 | Y166: -35.16676922 | AA166: 36.45981256 | AB166: -72.21250821 | AD166: 0 | AE166: 0
A167: 9386.85 | B167: 9.38685 | C167: 3.19021931 | D167: 1.251963869 | E167: 1.000069569 | F167: 0.01179531653 | G167: 1 | H167: 0 | I167: 4531.175859 | J167: 1.570575634 | K167: 1.856477144 | L167: 1.001956868 | M167: 1.000915215 | N167: 0.04276722657 | O167: 0.9984204189 | P167: 0.02196931046 | Q167: 17.19806458 | R167: -107.3450099 | S167: 72.65499013 | U167: 1000000000 | V167: 88112952.92 | X167: 29.94885235 | Y167: -35.02983707 | AA167: 36.4145224 | AB167: -72.31517281 | AD167: 0 | AE167: 0
A168: 9441.2 | B168: 9.4412 | C168: 3.206880514 | D168: 1.253678374 | E168: 1.000070377 | F168: 0.0118636052 | G168: 1 | H168: 0 | I168: 4557.411433 | J168: 1.570576904 | K168: 1.864113739 | L168: 1.004573793 | M168: 1.000925839 | N168: 0.04301454499 | O168: 0.9984020791 | P168: 0.02209693969 | Q168: 17.13840379 | R168: -107.310948 | S168: 72.68905198 | U168: 1000000000 | V168: 89136257.44 | X168: 29.93426978 | Y168: -34.89414135 | AA168: 36.36944418 | AB168: -72.41680667 | AD168: 0 | AE168: 0
A169: 9495.55 | B169: 9.49555 | C169: 3.223551046 | D169: 1.255375151 | E169: 1.000071189 | F169: 0.01193189375 | G169: 1 | H169: 0 | I169: 4583.647007 | J169: 1.57057816 | K169: 1.871762995 | L169: 1.007169348 | M169: 1.000936525 | N169: 0.04326185815 | O169: 0.9983836336 | P169: 0.02222457634 | Q169: 17.07915359 | R169: -107.2770942 | S169: 72.72290579 | U169: 1000000000 | V169: 90165469.8 | X169: 29.91988751 | Y169: -34.75966899 | AA169: 36.32457625 | AB169: -72.51742522 | AD169: 0 | AE169: 0
A170: 9549.9 | B170: 9.5499 | C170: 3.240230764 | D170: 1.257054464 | E170: 1.000072007 | F170: 0.0120001822 | G170: 1 | H170: 0 | I170: 4609.882581 | J170: 1.570579402 | K170: 1.879424759 | L170: 1.009743757 | M170: 1.000947271 | N170: 0.04350916601 | O170: 0.9983650824 | P170: 0.02235222042 | Q170: 17.0203088 | R170: -107.2434506 | S170: 72.7565494 | U170: 1000000000 | V170: 91200590.01 | X170: 29.90570201 | Y170: -34.62640703 | AA170: 36.27991696 | AB170: -72.61704357 | AD170: 0 | AE170: 0
A171: 9605.525 | B171: 9.605525 | C171: 3.257311136 | D171: 1.258755358 | E171: 1.000072848 | F171: 0.01207007251 | G171: 1 | H171: 0 | I171: 4636.733616 | J171: 1.570580658 | K171: 1.887279052 | L171: 1.012356898 | M171: 1.000958333 | N171: 0.04376226996 | O171: 0.9983459864 | P171: 0.02248286668 | Q171: 16.96049806 | R171: -107.2092375 | S171: 72.79076245 | U171: 1000000000 | V171: 92266110.53 | X171: 29.89138388 | Y171: -34.49125885 | AA171: 36.23442435 | AB171: -72.7179787 | AD171: 0 | AE171: 0
A172: 9661.15 | B172: 9.66115 | C172: 3.274400834 | D172: 1.260438503 | E172: 1.000073694 | F172: 0.01213996271 | G172: 1 | H172: 0 | I172: 4663.584652 | J172: 1.570581899 | K172: 1.895146126 | L172: 1.014948362 | M172: 1.000969459 | N172: 0.04401536831 | O172: 0.9983267796 | P172: 0.02261352083 | Q172: 16.90110129 | R172: -107.1752488 | S172: 72.82475115 | U172: 1000000000 | V172: 93337819.32 | X172: 29.87726462 | Y172: -34.35735154 | AA172: 36.18914684 | AB172: -72.8178973 | AD172: 0 | AE172: 0
A173: 9716.775 | B173: 9.716775 | C173: 3.291499711 | D173: 1.262104165 | E173: 1.000074545 | F173: 0.01220985278 | G173: 1 | H173: 0 | I173: 4690.435688 | J173: 1.570583127 | K173: 1.903025822 | L173: 1.017518382 | M173: 1.000980649 | N173: 0.04426846101 | O173: 0.9983074621 | P173: 0.02274418291 | Q173: 16.84211323 | R173: -107.1414864 | S173: 72.8585136 | U173: 1000000000 | V173: 94415716.4 | X173: 29.86334068 | Y173: -34.22467172 | AA173: 36.14408272 | AB173: -72.91681468 | AD173: 0 | AE173: 0
A174: 9772.4 | B174: 9.7724 | C174: 3.308607626 | D174: 1.263752606 | E174: 1.000075401 | F174: 0.01227974274 | G174: 1 | H174: 0 | I174: 4717.286724 | J174: 1.570584341 | K174: 1.910917984 | L174: 1.02006719 | M174: 1.000991903 | N174: 0.04452154804 | O174: 0.9982880338 | P174: 0.02287485298 | Q174: 16.7835287 | R174: -107.107952 | S174: 72.89204804 | U174: 1000000000 | V174: 95499801.76 | X174: 29.84960858 | Y174: -34.09320612 | AA174: 36.09923029 | AB174: -73.01474584 | AD174: 0 | AE174: 0
A175: 9829.3 | B175: 9.8293 | C175: 3.326116883 | D175: 1.265421282 | E175: 1.000076281 | F175: 0.01235123454 | G175: 1 | H175: 0 | I175: 4744.753221 | J175: 1.570585568 | K175: 1.919003781 | L175: 1.022652712 | M175: 1.001003482 | N175: 0.04478043026 | O175: 0.9982680455 | P175: 0.02300852649 | Q175: 16.72401354 | R175: -107.0738865 | S175: 72.92611354 | U175: 1000000000 | V175: 96615138.49 | X175: 29.83575666 | Y175: -33.95996978 | AA175: 36.05356705 | AB175: -73.11391668 | AD175: 0 | AE175: 0
A176: 9886.2 | B176: 9.8862 | C176: 3.343635304 | D176: 1.267072477 | E176: 1.000077167 | F176: 0.01242272622 | G176: 1 | H176: 0 | I176: 4772.219719 | J176: 1.570586781 | K176: 1.9271023 | L176: 1.02521652 | M176: 1.001015128 | N176: 0.04503930647 | O176: 0.9982479413 | P176: 0.02314220845 | Q176: 16.66490995 | R176: -107.0400628 | S176: 72.95993717 | U176: 1000000000 | V176: 97736950.44 | X176: 29.82209836 | Y176: -33.82797641 | AA176: 36.00812176 | AB176: -73.21208642 | AD176: 0 | AE176: 0
A177: 9943.1 | B177: 9.9431 | C177: 3.361162746 | D177: 1.268706455 | E177: 1.000078058 | F177: 0.01249421777 | G177: 1 | H177: 0 | I177: 4799.686217 | J177: 1.57058798 | K177: 1.935213379 | L177: 1.027758854 | M177: 1.00102684 | N177: 0.04529817664 | O177: 0.9982277212 | P177: 0.02327589892 | Q177: 16.60621267 | R177: -107.0064825 | S177: 72.99351746 | U177: 1000000000 | V177: 98865237.61 | X177: 29.80863019 | Y177: -33.69721231 | AA177: 35.96289265 | AB177: -73.30927023 | AD177: 0 | AE177: 0
A178: 10000 | B178: 10 | C178: 3.37869907 | D178: 1.270323476 | E178: 1.000078954 | F178: 0.0125657092 | G178: 1 | H178: 0 | I178: 4827.152715 | J178: 1.570589165 | K178: 1.943336863 | L178: 1.030279948 | M178: 1.00103862 | N178: 0.04555704074 | O178: 0.9982073853 | P178: 0.02340959793 | Q178: 16.54791654 | R178: -106.9731469 | S178: 73.02685309 | U178: 1000000000 | V178: 100000000 | X178: 29.79534874 | Y178: -33.56766396 | AA178: 35.91787797 | AB178: -73.40548295 | AD178: 0 | AE178: 0
A179: 10058.25 | B179: 10.05825 | C179: 3.396660513 | D179: 1.271961563 | E179: 1.000079876 | F179: 0.01263889668 | G179: 1 | H179: 0 | I179: 4855.270878 | J179: 1.570590365 | K179: 1.951665769 | L179: 1.032839101 | M179: 1.001050749 | N179: 0.04582204027 | O179: 0.9981864467 | P179: 0.02354647798 | Q179: 16.48864752 | R179: -106.9392751 | S179: 73.06072492 | U179: 1000000000 | V179: 101168393.1 | X179: 29.78194211 | Y179: -33.43628739 | AA179: 35.87201557 | AB179: -73.50298769 | AD179: 0 | AE179: 0
A180: 10116.5 | B180: 10.1165 | C180: 3.414630974 | D180: 1.273582411 | E180: 1.000080804 | F180: 0.01271208403 | G180: 1 | H180: 0 | I180: 4883.389041 | J180: 1.570591551 | K180: 1.960007349 | L180: 1.035376488 | M180: 1.001062948 | N180: 0.04608703336 | O180: 0.9981653867 | P180: 0.02368336709 | Q180: 16.42978822 | R180: -106.9056621 | S180: 73.09433789 | U180: 1000000000 | V180: 102343572.2 | X180: 29.76872416 | Y180: -33.30615678 | AA180: 35.82637423 | AB180: -73.59950533 | AD180: 0 | AE180: 0
A181: 10174.75 | B181: 10.17475 | C181: 3.432610312 | D181: 1.275186285 | E181: 1.000081737 | F181: 0.01278527124 | G181: 1 | H181: 0 | I181: 4911.507205 | J181: 1.570592723 | K181: 1.968361441 | L181: 1.037892352 | M181: 1.001075217 | N181: 0.04635201998 | O181: 0.9981442052 | P181: 0.02382026533 | Q181: 16.3713334 | R181: -106.872309 | S181: 73.12769095 | U181: 1000000000 | V181: 103525537.6 | X181: 29.75569147 | Y181: -33.17725815 | AA181: 35.78095211 | AB181: -73.69505089 | AD181: 0 | AE181: 0
A182: 10233 | B182: 10.233 | C182: 3.450598388 | D182: 1.27677344 | E182: 1.000082676 | F182: 0.01285845832 | G182: 1 | H182: 0 | I182: 4939.625368 | J182: 1.570593882 | K182: 1.976727887 | L182: 1.040386936 | M182: 1.001087557 | N182: 0.04661700008 | O182: 0.9981229023 | P182: 0.02395717273 | Q182: 16.31327789 | R182: -106.8392168 | S182: 73.16078319 | U182: 1000000000 | V182: 104714289 | X182: 29.74284067 | Y182: -33.0495777 | AA182: 35.73574739 | AB182: -73.78963911 | AD182: 0 | AE182: 0
A183: 10292.5 | B183: 10.2925 | C183: 3.468981355 | D183: 1.278377657 | E183: 1.00008364 | F183: 0.01293321579 | G183: 1 | H183: 0 | I183: 4968.346926 | J183: 1.570595053 | K183: 1.985286461 | L183: 1.042913328 | M183: 1.001100234 | N183: 0.04688765969 | O183: 0.9981010168 | P183: 0.02409702759 | Q183: 16.25438353 | R183: -106.8056846 | S183: 73.19431542 | U183: 1000000000 | V183: 105935556.2 | X183: 29.72989848 | Y183: -32.92040081 | AA183: 35.68979521 | AB183: -73.88528377 | AD183: 0 | AE183: 0
A184: 10352 | B184: 10.352 | C184: 3.487373154 | D184: 1.279964957 | E184: 1.00008461 | F184: 0.01300797311 | G184: 1 | H184: 0 | I184: 4997.068483 | J184: 1.570596209 | K184: 1.993857598 | L184: 1.045418015 | M184: 1.001112985 | N184: 0.04715831242 | O184: 0.9980790046 | P184: 0.02423689213 | Q184: 16.19589518 | R184: -106.7724261 | S184: 73.22757391 | U184: 1000000000 | V184: 107163904 | X184: 29.71713924 | Y184: -32.79246635 | AA184: 35.64406611 | AB184: -73.97995974 | AD184: 0 | AE184: 0
A185: 10411.5 | B185: 10.4115 | C185: 3.505773649 | D185: 1.281535599 | E185: 1.000085585 | F185: 0.0130827303 | G185: 1 | H185: 0 | I185: 5025.790041 | J185: 1.570597353 | K185: 2.002441137 | L185: 1.047901245 | M185: 1.001125808 | N185: 0.04742895824 | O185: 0.9980568657 | P185: 0.02437676641 | Q185: 16.13780763 | R185: -106.739442 | S185: 73.26055803 | U185: 1000000000 | V185: 108399332.2 | X185: 29.7045596 | Y185: -32.66576015 | AA185: 35.5985582 | AB185: -74.07368182 | AD185: 0 | AE185: 0
A186: 10471 | B186: 10.471 | C186: 3.524182701 | D186: 1.283089836 | E186: 1.000086566 | F186: 0.01315748733 | G186: 1 | H186: 0 | I186: 5054.511598 | J186: 1.570598484 | K186: 2.011036918 | L186: 1.050363261 | M186: 1.001138705 | N186: 0.04769959711 | O186: 0.9980346001 | P186: 0.02451665048 | Q186: 16.08011575 | R186: -106.7067328 | S186: 73.29326724 | U186: 1000000000 | V186: 109641841 | X186: 29.69215628 | Y186: -32.54026823 | AA186: 35.55326964 | AB186: -74.16646453 | AD186: 0 | AE186: 0
A187: 10532 | B187: 10.532 | C187: 3.543064591 | D187: 1.284666484 | E187: 1.000087577 | F187: 0.01323412884 | G187: 1 | H187: 0 | I187: 5083.957228 | J187: 1.57059963 | K187: 2.019861945 | L187: 1.052865576 | M187: 1.001152004 | N187: 0.04797705154 | O187: 0.9980116416 | P187: 0.02466007128 | Q187: 16.02137493 | R187: -106.6734848 | S187: 73.32651523 | U187: 1000000000 | V187: 110923024 | X187: 29.67961996 | Y187: -32.41285877 | AA187: 35.50706514 | AB187: -74.260626 | AD187: 0 | AE187: 0
A188: 10593 | B188: 10.593 | C188: 3.561955196 | D188: 1.286226413 | E188: 1.000088595 | F188: 0.0133107702 | G188: 1 | H188: 0 | I188: 5113.402859 | J188: 1.570600762 | K188: 2.028699509 | L188: 1.055346105 | M188: 1.001165379 | N188: 0.04825449858 | O188: 0.9979885499 | P188: 0.02480350249 | Q188: 15.96303935 | R188: -106.6405265 | S188: 73.3594735 | U188: 1000000000 | V188: 112211649 | X188: 29.66726223 | Y188: -32.28669639 | AA188: 35.4610873 | AB188: -74.35383011 | AD188: 0 | AE188: 0
A189: 10654 | B189: 10.654 | C189: 3.580854377 | D189: 1.28776988 | E189: 1.000089618 | F189: 0.0133874114 | G189: 1 | H189: 0 | I189: 5142.848489 | J189: 1.570601882 | K189: 2.037549448 | L189: 1.057805101 | M189: 1.001178831 | N189: 0.04853193819 | O189: 0.997965325 | P189: 0.02494694418 | Q189: 15.90510378 | R189: -106.6078582 | S189: 73.3921418 | U189: 1000000000 | V189: 113507716 | X189: 29.65507977 | Y189: -32.16176659 | AA189: 35.41533418 | AB189: -74.44609161 | AD189: 0 | AE189: 0
A190: 10715 | B190: 10.715 | C190: 3.599761999 | D190: 1.289297136 | E190: 1.000090647 | F190: 0.01346405245 | G190: 1 | H190: 0 | I190: 5172.29412 | J190: 1.570602989 | K190: 2.0464116 | L190: 1.060242813 | M190: 1.001192361 | N190: 0.04880937032 | O190: 0.997941967 | P190: 0.02509039641 | Q190: 15.84756306 | R190: -106.57548 | S190: 73.42452001 | U190: 1000000000 | V190: 114811225 | X190: 29.64306938 | Y190: -32.03805506 | AA190: 35.36980385 | AB190: -74.53742494 | AD190: 0 | AE190: 0
A191: 10777.5 | B191: 10.7775 | C191: 3.619143179 | D191: 1.290845392 | E191: 1.000091708 | F191: 0.01354257794 | G191: 1 | H191: 0 | I191: 5202.463823 | J191: 1.57060411 | K191: 2.055504177 | L191: 1.062718653 | M191: 1.001206303 | N191: 0.04909361675 | O191: 0.9979178964 | P191: 0.02523738714 | Q191: 15.78901166 | R191: -106.5426065 | S191: 73.45739347 | U191: 1000000000 | V191: 116154506.2 | X191: 29.6309388 | Y191: -31.91255026 | AA191: 35.32338304 | AB191: -74.63005627 | AD191: 0 | AE191: 0
A192: 10840 | B192: 10.84 | C192: 3.638532942 | D192: 1.292377151 | E192: 1.000092774 | F192: 0.01362110327 | G192: 1 | H192: 0 | I192: 5232.633526 | J192: 1.570605218 | K192: 2.064609243 | L192: 1.06517267 | M192: 1.001220326 | N192: 0.04937785525 | O192: 0.9978936861 | P192: 0.02538438907 | Q192: 15.73086413 | R192: -106.5100376 | S192: 73.48996239 | U192: 1000000000 | V192: 117505600 | X192: 29.6189822 | Y192: -31.78829459 | AA192: 35.2771921 | AB192: -74.72174302 | AD192: 0 | AE192: 0
A193: 10902.5 | B193: 10.9025 | C193: 3.657931152 | D193: 1.293892668 | E193: 1.000093847 | F193: 0.01369962843 | G193: 1 | H193: 0 | I193: 5262.803229 | J193: 1.570606314 | K193: 2.073726633 | L193: 1.067605123 | M193: 1.00123443 | N193: 0.04966208576 | O193: 0.9978693359 | P193: 0.02553140226 | Q193: 15.67311523 | R193: -106.4777731 | S193: 73.52222694 | U193: 1000000000 | V193: 118864506.2 | X193: 29.60719635 | Y193: -31.66527328 | AA193: 35.23122905 | AB193: -74.81249978 | AD193: 0 | AE193: 0
A194: 10965 | B194: 10.965 | C194: 3.677337674 | D194: 1.295392192 | E194: 1.000094926 | F194: 0.01377815343 | G194: 1 | H194: 0 | I194: 5292.972933 | J194: 1.570607397 | K194: 2.082856186 | L194: 1.070016266 | M194: 1.001248615 | N194: 0.04994630824 | O194: 0.997844846 | P194: 0.02567842678 | Q194: 15.61575981 | R194: -106.4458127 | S194: 73.55418734 | U194: 1000000000 | V194: 120231225 | X194: 29.59557806 | Y194: -31.54347174 | AA194: 35.18549192 | AB194: -74.90234092 | AD194: 0 | AE194: 0
A195: 11028.75 | B195: 11.02875 | C195: 3.697140756 | D195: 1.296905485 | E195: 1.000096033 | F195: 0.01385824874 | G195: 1 | H195: 0 | I195: 5323.74603 | J195: 1.570608489 | K195: 2.092180694 | L195: 1.07245394 | M195: 1.001263166 | N195: 0.05023620684 | O195: 0.9978197222 | P195: 0.02582840352 | Q195: 15.5576574 | R195: -106.413526 | S195: 73.58647396 | U195: 1000000000 | V195: 121633326.6 | X195: 29.58389682 | Y195: -31.42047588 | AA195: 35.13907075 | AB195: -74.99305016 | AD195: 0 | AE195: 0
A196: 11092.5 | B196: 11.0925 | C196: 3.716952213 | D196: 1.29840265 | E196: 1.000097147 | F196: 0.01393834388 | G196: 1 | H196: 0 | I196: 5354.519127 | J196: 1.570609569 | K196: 2.101517524 | L196: 1.074869967 | M196: 1.001277802 | N196: 0.050526097 | O196: 0.997794453 | P196: 0.02597839218 | Q196: 15.49995383 | R196: -106.3815551 | S196: 73.61844494 | U196: 1000000000 | V196: 123043556.2 | X196: 29.57238347 | Y196: -31.29871906 | AA196: 35.09288054 | AB196: -75.082836 | AD196: 0 | AE196: 0
A197: 11156.25 | B197: 11.15625 | C197: 3.736771914 | D197: 1.299883937 | E197: 1.000098266 | F197: 0.01401843884 | G197: 1 | H197: 0 | I197: 5385.292225 | J197: 1.570610636 | K197: 2.110866512 | L197: 1.077264607 | M197: 1.001292522 | N197: 0.05081597866 | O197: 0.9977690384 | P197: 0.02612839283 | Q197: 15.44264393 | R197: -106.3498992 | S197: 73.65010078 | U197: 1000000000 | V197: 124461914.1 | X197: 29.56103485 | Y197: -31.17818645 | AA197: 35.04691925 | AB197: -75.17171277 | AD197: 0 | AE197: 0
A198: 11220 | B198: 11.22 | C198: 3.756599727 | D198: 1.30134959 | E198: 1.000099393 | F198: 0.01409853362 | G198: 1 | H198: 0 | I198: 5416.065322 | J198: 1.570611691 | K198: 2.120227498 | L198: 1.079638115 | M198: 1.001307327 | N198: 0.05110585177 | O198: 0.9977434783 | P198: 0.02627840555 | Q198: 15.38572263 | R198: -106.3185579 | S198: 73.6814421 | U198: 1000000000 | V198: 125888400 | X198: 29.5498479 | Y198: -31.05886339 | AA198: 35.00118489 | AB198: -75.2596945 | AD198: 0 | AE198: 0
A199: 11285.5 | B199: 11.2855 | C199: 3.776980149 | D199: 1.302839445 | E199: 1.000100556 | F199: 0.0141808269 | G199: 1 | H199: 0 | I199: 5447.683171 | J199: 1.570612763 | K199: 2.129857782 | L199: 1.082055034 | M199: 1.001322625 | N199: 0.05140367323 | O199: 0.9977170652 | P199: 0.02643254889 | Q199: 15.32763826 | R199: -106.2866831 | S199: 73.7133169 | U199: 1000000000 | V199: 127362510.2 | X199: 29.53851908 | Y199: -30.93750946 | AA199: 34.95442935 | AB199: -75.34917364 | AD199: 0 | AE199: 0
A200: 11351 | B200: 11.351 | C200: 3.797368865 | D200: 1.304313305 | E200: 1.000101727 | F200: 0.01426311998 | G200: 1 | H200: 0 | I200: 5479.30102 | J200: 1.570613822 | K200: 2.139500396 | L200: 1.084450181 | M200: 1.001338012 | N200: 0.05170148556 | O200: 0.9976904985 | P200: 0.02658670512 | Q200: 15.26995354 | R200: -106.2551388 | S200: 73.7448612 | U200: 1000000000 | V200: 128845201 | X200: 29.52735456 | Y200: -30.81740174 | AA200: 34.90790915 | AB200: -75.43773706 | AD200: 0 | AE200: 0
A201: 11416.5 | B201: 11.4165 | C201: 3.817765741 | D201: 1.30577142 | E201: 1.000102904 | F201: 0.01434541286 | G201: 1 | H201: 0 | I201: 5510.918869 | J201: 1.570614869 | K201: 2.149155173 | L201: 1.086823821 | M201: 1.001353488 | N201: 0.05199928871 | O201: 0.9976637783 | P201: 0.0267408743 | Q201: 15.21266323 | R201: -106.2239241 | S201: 73.7760759 | U201: 1000000000 | V201: 130336472.2 | X201: 29.51635122 | Y201: -30.69852502 | AA201: 34.86162217 | AB201: -75.52539908 | AD201: 0 | AE201: 0
A202: 11482 | B202: 11.482 | C202: 3.838170648 | D202: 1.307214034 | E202: 1.000104088 | F202: 0.01442770556 | G202: 1 | H202: 0 | I202: 5542.536718 | J202: 1.570615904 | K202: 2.15882195 | L202: 1.089176217 | M202: 1.001369053 | N202: 0.05229708263 | O202: 0.9976369046 | P202: 0.02689505652 | Q202: 15.15576221 | R202: -106.193038 | S202: 73.80696196 | U202: 1000000000 | V202: 131836324 | X202: 29.50550602 | Y202: -30.58086428 | AA202: 34.81556636 | AB202: -75.61217376 | AD202: 0 | AE202: 0
... 433 more rows

Sheet Bode Plot Management (hidden)
J1: Single or dual output (MODE) | N1: 3.3V or 5V fixed (FB1/2)
A2: =CHOOSE(BODE_PLOT_TYPE,"BODE_PLOT_Ch1","BODE_PLOT_Ch2") -> BODE_PLOT_Ch1 | J2: With/without dither (DITH) | N2: With/without VOUT connected to VCCX
J3: FPWM or DEM (DEMB)
J4: Shunt or inductor DCR current sensing
F6: =INDIRECT(A2) -> 0

Sheet Efficiency Calculations (hidden)
A1: BUCK CONTROLLER POWER DESIGN TOOL
H2: =AV19 -> 0.8805274611 | I2: 10% load
H3: =AV59 -> 0.9348077082 | I3: 50% load | AP3: =IF(MODE=1,(Qg_Q1+Qg_Q2)*Fsw*Vin,(Qg_Q1+Qg_Q2+Qg_Q3+Qg_Q4)*Fsw*Vin) -> 0.418176
H4: =AV109 -> 0.9177533228 | I4: 100% load | AO4: I_VCC | AP4: =(Qg_Q1+Qg_Q2)*Fsw*1000 -> 26.928 | AQ4: mA | AR4: =AP4*5/1000 -> 0.13464
A6: Enter the values of your design and MOSFET datasheet specifications below. Note that thermal resistance (θJA) will change when components are placed on the PCB
G7: Operating Point Condtions | R7: Filter Inductor | V7: Cout | Y7: Cin | AB7: High-side BUCK "Control" MOSFET Losses | AH7: Low-side BUCK "Sync" MOSFET Losses | AL7: External Diode | AM7: Diode/FET | AN7: Sense Rs | AO7: Controller IC Losses | AT7: RESULTS | AZ7: Consolidated Buck/Boost Efficiency & Losses
A8: Input Parameters | G8: Step | H8: Vin | I8: Mode | J8: Iout | K8: Iout/ phase | L8: Iin | M8: Duty Cycle BUCK Leg | N8: Ripple Current pk-pk | O8: Peak Inductor Current | P8: Valley Inductor Current | Q8: SW node voltage at Q1 turn-on | R8: Irms Lf | S8: DCR Loss | T8: Core Loss | U8: Total Inductor Loss | V8: Irms Cout | W8: Cout ESR Loss | X8: Total Cout Loss | Y8: Irms Cin | Z8: Cin ESR Loss | AA8: Total Cin Loss | AB8: Irms | AC8: RDS(on) Loss | AD8: Transition Loss (not including capacitive loss) | AE8: MOSFET Output Capacitance Loss | AF8: Dead Time Loss | AG8: Total Control MOSFET Loss | AH8: Irms | AI8: RDS(on) Loss | AJ8: Deadtime Loss | AK8: Total Sync MOSFET Loss | AL8: Deadtime Loss | AM8: Reverse Recovery Loss | AN8: Isense Shunt Loss | AO8: IQ Loss | AP8: Switching Current Loss | AQ8: Switching Current Diss | AR8: LDO Loss Saved from Gate Drive Current (ext VCC) | AS8: Total IC Loss | AT8: Total Loss | AU8: Pout | AV8: EFF, h | AW8: =IF(Vin>Vout,"Buck ''CONTROL'' MOSFET Temp Rise","Boost ''CONTROL'' MOSFET Temp Rise") -> Buck ''CONTROL'' MOSFET Temp Rise | AX8: =IF(Vin>Vout,"Buck ''SYNC'' MOSFET Temp Rise","Boost ''SYNC'' MOSFET Temp Rise") -> Buck ''SYNC'' MOSFET Temp Rise | AZ8: h | BA8: Inductor Cu & Core Loss | BB8: Total MOSFET Loss | BC8: Control MOSFET Loss | BD8: SYNC MOSFET Loss | BE8: Shunt Loss
A9: Design | B9: Input Value | C9: Units | D9: Description | G9: 0 | H9: =Vin -> 12 | I9: =MODE -> 2 | J9: 0 | K9: =Iout*G9/100/Number_of_Phases -> 0 | L9: =Vout*K9/(Vin*Efficiency) -> 0 | M9: =(Vout+(Rdson2+Rs+Rdcr)*K9)/(Vin+(Rs+Rdson2-Rdson1)*K9) -> 0.275 | N9: =(Vin-(Rdson1+Rdcr)*K9-Vout)*M9/(Fsw*Lf) -> 2.471590909 | O9: =K9+N9/2 -> 1.235795455 | P9: =K9-N9/2 -> -1.235795455 | Q9: =IF(MIN(Vin,-P9/(Coss_Q1+Coss_Q2)*0.00000002)<0,0,MIN(Vin,-P9/(Coss_Q1+Coss_Q2)*0.00000002)) -> 12 | R9: =SQRT(K9^2+(N9^2)/12) -> 0.7134868383 | S9: =R9^2*Rdcr -> 0.001425377712 | T9: =Core_Loss_Ch1 -> 0.15 | U9: =(T9+S9*(1+Ltc*(Ta-25)))/(1-S9*Ltc*ThetaCa) -> 0.1514426467 | V9: =N9/SQRT(12) -> 0.7134868383 | W9: =RCoutEsr*V9^2 -> 0.002545317342 | X9: =W9 -> 0.002545317342 | Y9: =SQRT(M9*(1-M9))*SQRT(K9^2+(N9^2)/12) -> 0.3185820601 | Z9: =RCinEsr*Y9^2 -> 0.00101494529 | AA9: =Z9 -> 0.00101494529 | AB9: =SQRT(M9)*SQRT(K9^2+(N9^2)/12) -> 0.3741556546 | AC9: =Rdson1*AB9^2 -> 0.001217934348 | AD9: =(Vin*K9/2)*Fsw*(Tr_buck+Tf_buck) -> 0 | AE9: =(0.5*Coss_Q1*(Vin-Q9)^2-0.5*Coss_Q2*(Vin-Q9)^2+(Qoss_Q2*(Vin-Q9)/Vin)*Vin)*Fsw -> 0 | AF9: =IF(K9>N9/2,0,ABS(K9-N9/2)*Vsd_Q1*Deadtime*Fsw) -> 0.00532875 | AG9: =(AF9+AE9+AD9+AC9*(1+RdsonTopTc*Ta-RdsonTopTc*25))/(1-AC9*RdsonTopTc*ThetaJA_Q1) -> 0.006548279423 | AH9: =SQRT((1-M9))*SQRT(K9^2+(N9^2)/12) -> 0.6075121519 | AI9: =Rdson2*AH9^2 -> 0.001402469856 | AJ9: =IF(K9<N9/2,Deadtime*Fsw*IF(VfdSky_Q2>0,0,Vsd_Q2)*(K9+N9/2),2*Deadtime*Fsw*IF(VfdSky_Q2>0,0,Vsd_Q2)*K9) -> 0.00532875 | AK9: =(AJ9+AI9*(1+RdsonBotTc*Ta-RdsonBotTc*25))/(1-AI9*RdsonBotTc*ThetaJA_Q2) -> 0.006733108452 | AL9: =2*Deadtime*Fsw*IF(VfdSky_Q2>0,VfdSky_Q2,Vsd_Q2)*K9 -> 0 | AM9: =IF(QrrSky_Q2>0,QrrSky_Q2,Qrr_Q2*K9/(Iout/Number_of_Phases))*Fsw*Vin -> 0 | AN9: =Rs*R9^2 -> 0.001272658671 | AO9: =Iq*Vin -> 0.00042 | AP9: =IF(Ext_VCC=1,(Qg_Q1+Qg_Q2)*Fsw*VCC,(Qg_Q1+Qg_Q2)*Fsw*Vin) -> 0.323136 | AQ9: =(Vin-VCC)*Fsw*(Qg_Q1+Qg_Q2)+(RdsonDRT+RdsonDRT2)*Fsw*Qg_Q1*VCC/(RdsonDRT+2*Rgate1+RdsonDRT2)+(RdsonDRB+RdsonDRB2)*Fsw*Qg_Q2*VCC/(RdsonDRB+2*Rgate2+RdsonDRB2) -> 0.26928 | AR9: =(Qg_Q1+Qg_Q2)*Fsw*(Vin-VCC) -> 0.188496 | AS9: =SUM(AO9:AP9) -> 0.323556 | AT9: =SUM(U9,X9,AA9,AG9,AK9,AL9,AM9,AS9,AN9) -> 0.4931129559 | AU9: =Vout*K9 -> 0 | AV9: =AU9/(AU9+AT9) -> 0 | AW9: =ThetaJA_Q1*BC9 -> 0.3274139712 | AX9: =ThetaJA_Q2*BD9 -> 0.3366554226 | AZ9: =AV9*100 -> 0 | BA9: =U9 -> 0.1514426467 | BB9: =AG9+AK9+AM9 -> 0.01328138788 | BC9: =AG9+AM9*0.66 -> 0.006548279423 | BD9: =AK9+AM9*0.33 -> 0.006733108452 | BE9: =AN9 -> 0.001272658671
G10: 1 | H10: 12 | I10: 2 | J10: =Iout*G10/100 -> 0.28 | K10: 0.14 | L10: 0.04277777778 | M10: 0.2751138699 | N10: 2.47215675 | O10: =K10+N10/2 -> 1.376078375 | P10: =K10-N10/2 -> -1.096078375 | Q10: 12 | R10: =SQRT(K10^2+(N10^2)/12) -> 0.7272527643 | S10: 0.001480910433 | T10: 0.15 | U10: 0.1514988589 | V10: =N10/SQRT(12) -> 0.7136501827 | W10: 0.002546482916 | X10: =W10 -> 0.002546482916 | Y10: =SQRT(M10*(1-M10))*SQRT(K10^2+(N10^2)/12) -> 0.3247704587 | Z10: 0.001054758508 | AA10: =Z10 -> 0.001054758508 | AB10: =SQRT(M10)*SQRT(K10^2+(N10^2)/12) -> 0.3814535172 | AC10: 0.001265909036 | AD10: 0.005975953556 | AE10: 0 | AF10: 0.004726289954 | AG10: 0.01197118343 | AH10: 0.6191847846 | AI10: 0.00145688123 | AJ10: 0.005933649954 | AK10: 0.007392685237 | AL10: 0.00120736 | AM10: 0.00102432 | AN10: 0.001322241458 | AO10: 0.00042 | AP10: 0.323136 | AQ10: 0.26928 | AR10: 0.188496 | AS10: 0.323556 | AT10: 0.5015738905 | AU10: 0.462 | AV10: =AU10/(AU10+AT10) -> 0.4794650463 | AW10: 0.6323617316 | AX10: 0.3865355419 | AZ10: =AV10*100 -> 47.94650463 | BA10: 0.1514988589 | BB10: 0.02038818867 | BC10: 0.01264723463 | BD10: 0.007730710837 | BE10: 0.001322241458
A11: Vin | B11: =Vin -> 12 | C11: V | D11: Vin | G11: 2 | H11: 12 | I11: 2 | J11: 0.56 | K11: 0.28 | L11: 0.08555555556 | M11: 0.2752277461 | N11: 2.47272227 | O11: 1.516361135 | P11: -0.9563611351 | Q11: 12 | R11: 0.766765687 | S11: 0.001646202933 | T11: 0.15 | U11: 0.1516661768 | V11: 0.7138134342 | W11: 0.002547648094 | X11: 0.002547648094 | Y11: 0.3424597665 | Z11: 0.001172786917 | AA11: 0.001172786917 | AB11: 0.4022617852 | AC11: 0.001407786531 | AD11: 0.01195190711 | AE11: 0 | AF11: 0.004123829215 | AG11: 0.01748844686 | AH11: 0.6527749038 | AI11: 0.001619237285 | AJ11: 0.006538549215 | AK11: 0.008160429234 | AL11: 0.00241472 | AM11: 0.00204864 | AN11: 0.001469824047 | AO11: 0.00042 | AP11: 0.323136 | AQ11: 0.26928 | AR11: 0.188496 | AS11: 0.323556 | AT11: 0.5105246719 | AU11: 0.924 | AV11: 0.6441157953 | AW11: 0.9420274629 | AX11: 0.4418240217 | AZ11: 64.41157953 | BA11: 0.1516661768 | BB11: 0.02769751609 | BC11: 0.01884054926 | BD11: 0.008836480434 | BE11: 0.001469824047
A12: Vout | B12: =Vout -> 3.3 | C12: V | D12: Vout | G12: 3 | H12: 12 | I12: 2 | J12: 0.84 | K12: 0.42 | L12: 0.1283333333 | M12: 0.2753416287 | N12: 2.473287469 | O12: 1.656643734 | P12: -0.8166437343 | Q12: 12 | R12: 0.8283493075 | S12: 0.001921255211 | T12: 0.15 | U12: 0.1519446092 | V12: 0.7139765929 | W12: 0.002548812876 | X12: 0.002548812876 | Y12: 0.3700122554 | Z12: 0.001369090691 | AA12: 0.001369090691 | AB12: 0.4346597762 | AC12: 0.001643683353 | AD12: 0.01792786067 | AE12: 0 | AF12: 0.003521367782 | AG12: 0.02310050579 | AH12: 0.7051478244 | AI12: 0.001889487126 | AJ12: 0.007143447782 | AK12: 0.009036349721 | AL12: 0.00362208 | AM12: 0.00307296 | AN12: 0.001715406438 | AO12: 0.00042 | AP12: 0.323136 | AQ12: 0.26928 | AR12: 0.188496 | AS12: 0.323556 | AT12: 0.5199658147 | AU12: 1.386 | AV12: 0.7271903774 | AW12: 1.256432969 | AX12: 0.5025213261 | AZ12: 72.71903774 | BA12: 0.1519446092 | BB12: 0.03520981551 | BC12: 0.02512865939 | BD12: 0.01005042652 | BE12: 0.001715406438
A13: Fsw | B13: =Fsw/1000 -> 440 | C13: kHz | D13: Switching Frequency | G13: 4 | H13: 12 | I13: 2 | J13: 1.12 | K13: 0.56 | L13: 0.1711111111 | M13: 0.2754555177 | N13: 2.473852345 | O13: 1.796926173 | P13: -0.6769261727 | Q13: 12 | R13: 0.9075215988 | S13: 0.002306067266 | T13: 0.15 | U13: 0.1523341707 | V13: 0.7141396588 | W13: 0.002549977261 | X13: 0.002549977261 | Y13: 0.4054293964 | Z13: 0.001643729954 | AA13: 0.001643729954 | AB13: 0.4763023322 | AC13: 0.001973716031 | AD13: 0.02390381422 | AE13: 0 | AF13: 0.002918905657 | AG13: 0.0288078076 | AH13: 0.7724840067 | AI13: 0.002267579854 | AJ13: 0.007748345657 | AK13: 0.01002046995 | AL13: 0.00482944 | AM13: 0.00409728 | AN13: 0.002058988631 | AO13: 0.00042 | AP13: 0.323136 | AQ13: 0.26928 | AR13: 0.188496 | AS13: 0.323556 | AT13: 0.5298978641 | AU13: 1.848 | AV13: 0.7771570125 | AW13: 1.57560062 | AX13: 0.5686286177 | AZ13: 77.71570125 | BA13: 0.1523341707 | BB13: 0.04292555755 | BC13: 0.0315120124 | BD13: 0.01137257235 | BE13: 0.002058988631
A14: Iout | B14: =Iout -> 28 | C14: A | D14: Max Output Current | G14: 5 | H14: 12 | I14: 2 | J14: 1.4 | K14: 0.7 | L14: 0.2138888889 | M14: 0.2755694131 | N14: 2.474416901 | O14: 1.93720845 | P14: -0.5372084503 | Q14: 12 | R14: 1.000114118 | S14: 0.0028006391 | T14: 0.15 | U14: 0.1528348819 | V14: 0.7143026318 | W14: 0.002551141249 | X14: 0.002551141249 | Y14: 0.4468517398 | Z14: 0.001996764774 | AA14: 0.001996764774 | AB14: 0.5250069635 | AC14: 0.002398001112 | AD14: 0.02987976778 | AE14: 0 | AF14: 0.002316442838 | AG14: 0.03461081108 | AH14: 0.8512320119 | AI14: 0.002753464565 | AJ14: 0.008353242838 | AK14: 0.01111282716 | AL14: 0.0060368 | AM14: 0.0051216 | AN14: 0.002500570625 | AO14: 0.00042 | AP14: 0.323136 | AQ14: 0.26928 | AR14: 0.188496 | AS14: 0.323556 | AT14: 0.5403213968 | AU14: 2.31 | AV14: 0.8104349224 | AW14: 1.899553354 | AX14: 0.6401477579 | AZ14: 81.04349224 | BA14: 0.1528348819 | BB14: 0.05084523824 | BC14: 0.03799106708 | BD14: 0.01280295516 | BE14: 0.002500570625
A15: Ta | B15: =Ta -> 25 | C15: °C | D15: Ambient Temperature | G15: 6 | H15: 12 | I15: 2 | J15: 1.68 | K15: 0.84 | L15: 0.2566666667 | M15: 0.2756833148 | N15: 2.474981134 | O15: 2.077490567 | P15: -0.3974905671 | Q15: 10.16599916 | R15: 1.102751544 | S15: 0.00340497071 | T15: 0.15 | U15: 0.1534467693 | V15: 0.714465512 | W15: 0.002552304839 | X15: 0.002552304839 | Y15: 0.492773291 | Z15: 0.002428255163 | AA15: 0.002428255163 | AB15: 0.5790058019 | AC15: 0.002916655152 | AD15: 0.03585572134 | AE15: 0.004699685485 | AF15: 0.001713979325 | AG15: 0.0452124151 | AH15: 0.9385165152 | AI15: 0.003347090347 | AJ15: 0.008958139325 | AK15: 0.01231347253 | AL15: 0.00724416 | AM15: 0.00614592 | AN15: 0.00304015242 | AO15: 0.00042 | AP15: 0.323136 | AQ15: 0.26928 | AR15: 0.188496 | AS15: 0.323556 | AT15: 0.5559394493 | AU15: 2.772 | AV15: 0.8329478472 | AW15: 2.463436115 | AX15: 0.7170813067 | AZ15: 83.29478472 | BA15: 0.1534467693 | BB15: 0.06367180764 | BC15: 0.0492687223 | BD15: 0.01434162613 | BE15: 0.00304015242
A16: Vcc | B16: =VCC -> 5 | C16: V | D16: Subregulated VCC Voltage | G16: 7 | H16: 12 | I16: 2 | J16: 1.96 | K16: 0.98 | L16: 0.2994444444 | M16: 0.2757972229 | N16: 2.475545046 | O16: 2.217772523 | P16: -0.2577725231 | Q16: 6.59264765 | R16: 1.212886477 | S16: 0.004119062098 | T16: 0.15 | U16: 0.1541698649 | V16: 0.7146282994 | W16: 0.002553468032 | X16: 0.002553468032 | Y16: 0.5420572922 | Z16: 0.002938261081 | AA16: 0.002938261081 | AB16: 0.6369643093 | AC16: 0.003529794722 | AD16: 0.04183167489 | AE16: 0.01304033544 | AF16: 0.00111151512 | AG16: 0.05955536381 | AH16: 1.032167658 | AI16: 0.004048406285 | AJ16: 0.00956303512 | AK16: 0.01362247126 | AL16: 0.00845152 | AM16: 0.00717024 | AN16: 0.003677734016 | AO16: 0.00042 | AP16: 0.323136 | AQ16: 0.26928 | AR16: 0.188496 | AS16: 0.323556 | AT16: 0.5756949231 | AU16: 3.234 | AV16: 0.8488868703 | AW16: 3.214386111 | AX16: 0.7994325232 | AZ16: 84.88868703 | BA16: 0.1541698649 | BB16: 0.08034807508 | BC16: 0.06428772221 | BD16: 0.01598865046 | BE16: 0.003677734016
A17: Components | B17: Input Value | C17: Units | D17: Description | G17: 8 | H17: 12 | I17: 2 | J17: 2.24 | K17: 1.12 | L17: 0.3422222222 | M17: 0.2759111374 | N17: 2.476108637 | O17: 2.358054318 | P17: -0.1180543183 | Q17: 3.019292027 | R17: 1.328655774 | S17: 0.004942913262 | T17: 0.15 | U17: 0.1550042071 | V17: 0.7147909939 | W17: 0.002554630825 | X17: 0.002554630825 | Y17: 0.5938722449 | Z17: 0.003526842433 | AA17: 0.003526842433 | AB17: 0.6979062617 | AC17: 0.004237536406 | AD17: 0.04780762845 | AE17: 0.02030228144 | AF17: 0.0005090502204 | AG17: 0.0729182953 | AH17: 1.130598521 | AI17: 0.004857361457 | AJ17: 0.01016793022 | AK17: 0.01503990253 | AL17: 0.00965888 | AM17: 0.00819456 | AN17: 0.004413315412 | AO17: 0.00042 | AP17: 0.323136 | AQ17: 0.26928 | AR17: 0.188496 | AS17: 0.323556 | AT17: 0.5948666335 | AU17: 3.696 | AV17: 0.8613644552 | AW17: 3.916335245 | AX17: 0.8872053663 | AZ17: 86.13644552 | BA17: 0.1550042071 | BB17: 0.09615275783 | BC17: 0.0783267049 | BD17: 0.01774410733 | BE17: 0.004413315412
A18: L | B18: =Lf*1000000 -> 2.2 | C18: uH | D18: Filter Inductance | G18: 9 | H18: 12 | I18: 2 | J18: 2.52 | K18: 1.26 | L18: 0.385 | M18: 0.2760250583 | N18: 2.476671905 | O18: 2.498335953 | P18: 0.0216640474 | Q18: 0 | R18: 1.448709303 | S18: 0.005876524203 | T18: 0.15 | U18: 0.1559498396 | V18: 0.7149535956 | W18: 0.002555793219 | X18: 0.002555793219 | Y18: 0.6476155548 | Z18: 0.004194059069 | AA18: 0.004194059069 | AB18: 0.7611241535 | AC18: 0.0050399968 | AD18: 0.053783582 | AE18: 0.02559744 | AF18: 0 | AG18: 0.084506201 | AH18: 1.232659185 | AI18: 0.005773904934 | AJ18: 0.01086624 | AK18: 0.01665938287 | AL18: 0.01086624 | AM18: 0.00921888 | AN18: 0.00524689661 | AO18: 0.00042 | AP18: 0.323136 | AQ18: 0.26928 | AR18: 0.188496 | AS18: 0.323556 | AT18: 0.6127532924 | AU18: 4.158 | AV18: 0.8715604738 | AW18: 4.52953309 | AX18: 0.9850806636 | AZ18: 87.15604738 | BA18: 0.1559498396 | BB18: 0.1103844639 | BC18: 0.0905906618 | BD18: 0.01970161327 | BE18: 0.00524689661
A19: Rdcr | B19: =Rdcr*1000 -> 2.8 | C19: mW | D19: Inductor DCR at 25°C | G19: 10 | H19: 12 | I19: 2 | J19: 2.8 | K19: 1.4 | L19: 0.4277777778 | M19: 0.2761389856 | N19: 2.477234852 | O19: 2.638617426 | P19: 0.1613825739 | Q19: 0 | R19: 1.572065852 | S19: 0.00691989492 | T19: 0.15 | U19: 0.1570068126 | V19: 0.7151161044 | W19: 0.002556955214 | X19: 0.002556955214 | Y19: 0.7028492573 | Z19: 0.004939970785 | AA19: 0.004939970785 | AB19: 0.8261037559 | AC19: 0.005937292515 | AD19: 0.05975953556 | AE19: 0.02559744 | AF19: 0 | AG19: 0.09140280511 | AH19: 1.337513973 | AI19: 0.006797985783 | AJ19: 0.0120736 | AK19: 0.01889727847 | AL19: 0.0120736 | AM19: 0.0102432 | AN19: 0.006178477607 | AO19: 0.00042 | AP19: 0.323136 | AQ19: 0.26928 | AR19: 0.188496 | AS19: 0.323556 | AT19: 0.6268550998 | AU19: 4.62 | AV19: 0.8805274611 | AW19: 4.908165856 | AX19: 1.113876723 | AZ19: 88.05274611 | BA19: 0.1570068126 | BB19: 0.1205432836 | BC19: 0.09816331711 | BD19: 0.02227753447 | BE19: 0.006178477607
A20: LTc | B20: =Ltc*1000000 -> 4000 | C20: ppm | D20: Inductor Series Resistance Temp Co | G20: 11 | H20: 12 | I20: 2 | J20: 3.08 | K20: 1.54 | L20: 0.4705555556 | M20: 0.2762529192 | N20: 2.477797477 | O20: 2.778898739 | P20: 0.3011012613 | Q20: 0 | R20: 1.698005701 | S20: 0.008073025412 | T20: 0.15 | U20: 0.1581751816 | V20: 0.7152785203 | W20: 0.002558116808 | X20: 0.002558116808 | Y20: 0.7592520875 | Z20: 0.005764637323 | AA20: 0.005764637323 | AB20: 0.892467854 | AC20: 0.006929540173 | AD20: 0.06573548911 | AE20: 0.02559744 | AF20: 0 | AG20: 0.09839884103 | AH20: 1.444549927 | AI20: 0.007929553066 | AJ20: 0.01328096 | AK20: 0.02124420448 | AL20: 0.01328096 | AM20: 0.01126752 | AN20: 0.007208058404 | AO20: 0.00042 | AP20: 0.323136 | AQ20: 0.26928 | AR20: 0.188496 | AS20: 0.323556 | AT20: 0.6414535196 | AU20: 5.082 | AV20: 0.8879254427 | AW20: 5.291770212 | AX20: 1.248124304 | AZ20: 88.79254427 | BA20: 0.1581751816 | BB20: 0.1309105655 | BC20: 0.1058354042 | BD20: 0.02496248608 | BE20: 0.007208058404
A21: ThetaCa | B21: =ThetaCa -> 20 | C21: °C/W | D21: Core to Ambient Thermal Resistance | G21: 12 | H21: 12 | I21: 2 | J21: 3.36 | K21: 1.68 | L21: 0.5133333333 | M21: 0.2763668593 | N21: 2.478359781 | O21: 2.91917989 | P21: 0.4408201096 | Q21: 0 | R21: 1.825994414 | S21: 0.009335915681 | T21: 0.15 | U21: 0.1594550084 | V21: 0.7154408433 | W21: 0.002559278001 | X21: 0.002559278001 | Y21: 0.8165854744 | Z21: 0.006668118371 | AA21: 0.006668118371 | AB21: 0.9599363251 | AC21: 0.00801685641 | AD21: 0.07171144267 | AE21: 0.02559744 | AF21: 0 | AG21: 0.1054948866 | AH21: 1.553311898 | AI21: 0.009168555838 | AJ21: 0.01448832 | AK21: 0.02370033541 | AL21: 0.01448832 | AM21: 0.01229184 | AN21: 0.008335639001 | AO21: 0.00042 | AP21: 0.323136 | AQ21: 0.26928 | AR21: 0.188496 | AS21: 0.323556 | AT21: 0.6565494257 | AU21: 5.544 | AV21: 0.8941143146 | AW21: 5.680375048 | AX21: 1.38783213 | AZ21: 89.41143146 | BA21: 0.1594550084 | BB21: 0.141487062 | BC21: 0.113607501 | BD21: 0.02775664261 | BE21: 0.008335639001
A22: Cin | B22: =Cin*1000000 -> 1000 | C22: μF | D22: Input Capacitance | G22: 13 | H22: 12 | I22: 2 | J22: 3.64 | K22: 1.82 | L22: 0.5561111111 | M22: 0.2764808057 | N22: 2.478921763 | O22: 3.059460881 | P22: 0.5805391187 | Q22: 0 | R22: 1.95562976 | S22: 0.01070856572 | T22: 0.15 | U22: 0.1608463604 | V22: 0.7156030735 | W22: 0.002560438794 | X22: 0.002560438794 | Y22: 0.8746698555 | Z22: 0.007650473561 | AA22: 0.007650473561 | AB22: 1.028298331 | AC22: 0.009199357875 | AD22: 0.07768739623 | AE22: 0.02559744 | AF22: 0 | AG22: 0.112691532 | AH22: 1.663457334 | AI22: 0.01051494315 | AJ22: 0.01569568 | AK22: 0.02626585995 | AL22: 0.01569568 | AM22: 0.01331616 | AN22: 0.009561219397 | AO22: 0.00042 | AP22: 0.323136 | AQ22: 0.26928 | AR22: 0.188496 | AS22: 0.323556 | AT22: 0.6721437242 | AU22: 6.006 | AV22: 0.8993517133 | AW22: 6.074009882 | AX22: 1.533009638 | AZ22: 89.93517133 | BA22: 0.1608463604 | BB22: 0.152273552 | BC22: 0.1214801976 | BD22: 0.03066019275 | BE22: 0.009561219397
A23: RCinEsr | B23: =RCinEsr*1000 -> 10 | C23: mW | D23: Input Capacitor ESR | G23: 14 | H23: 12 | I23: 2 | J23: 3.92 | K23: 1.96 | L23: 0.5988888889 | M23: 0.2765947585 | N23: 2.479483422 | O23: 3.199741711 | P23: 0.7202582888 | Q23: 0 | R23: 2.086604859 | S23: 0.01219097554 | T23: 0.15 | U23: 0.1623493113 | V23: 0.7157652107 | W23: 0.002561599184 | X23: 0.002561599184 | Y23: 0.933368227 | Z23: 0.008711762471 | AA23: 0.008711762471 | AB23: 1.097393004 | AC23: 0.01047716123 | AD23: 0.08366334978 | AE23: 0.02559744 | AF23: 0 | AG23: 0.1199893806 | AH23: 1.774724889 | AI23: 0.01196866404 | AJ23: 0.01690304 | AK23: 0.02894098101 | AL23: 0.01690304 | AM23: 0.01434048 | AN23: 0.01088479959 | AO23: 0.00042 | AP23: 0.323136 | AQ23: 0.26928 | AR23: 0.188496 | AS23: 0.323556 | AT23: 0.6882373542 | AU23: 6.468 | AV23: 0.9038269247 | AW23: 6.472704871 | AX23: 1.683666971 | AZ23: 90.38269247 | BA23: 0.1623493113 | BB23: 0.1632708416 | BC23: 0.1294540974 | BD23: 0.03367333941 | BE23: 0.01088479959
A24: Cout | B24: =Cout*1000000 -> 564 | C24: μF | D24: Output Capcitance | G24: 15 | H24: 12 | I24: 2 | J24: 4.2 | K24: 2.1 | L24: 0.6416666667 | M24: 0.2767087177 | N24: 2.48004476 | O24: 3.34002238 | P24: 0.8599776198 | Q24: 0 | R24: 2.218682455 | S24: 0.01378314514 | T24: 0.15 | U24: 0.1639639402 | V24: 0.715927255 | W24: 0.002562759172 | X24: 0.002562759172 | Y24: 0.9925746635 | Z24: 0.009852044626 | AA24: 0.009852044626 | AB24: 1.167095971 | AC24: 0.01185038315 | AD24: 0.08963930334 | AE24: 0.02559744 | AF24: 0 | AG24: 0.1273890483 | AH24: 1.886912512 | AI24: 0.01352966755 | AJ24: 0.0181104 | AK24: 0.03172591577 | AL24: 0.0181104 | AM24: 0.0153648 | AN24: 0.01230637959 | AO24: 0.00042 | AP24: 0.323136 | AQ24: 0.26928 | AR24: 0.188496 | AS24: 0.323556 | AT24: 0.7048312877 | AU24: 6.93 | AV24: 0.9076821398 | AW24: 6.876490815 | AX24: 1.839814988 | AZ24: 90.76821398 | BA24: 0.1639639402 | BB24: 0.1744797641 | BC24: 0.1375298163 | BD24: 0.03679629977 | BE24: 0.01230637959
A25: RCoutEsr | B25: =Cout_ESR*1000 -> 5 | C25: mW | D25: Output Capacitor ESR | G25: 16 | H25: 12 | I25: 2 | J25: 4.48 | K25: 2.24 | L25: 0.6844444444 | M25: 0.2768226832 | N25: 2.480605777 | O25: 3.480302888 | P25: 0.9996971117 | Q25: 0 | R25: 2.351676796 | S25: 0.0154850745 | T25: 0.15 | U25: 0.1656903327 | V25: 0.7160892064 | W25: 0.002563918758 | X25: 0.002563918758 | Y25: 1.05220623 | Z25: 0.0110713795 | AA25: 0.0110713795 | AB25: 1.237309852 | AC25: 0.01331914032 | AD25: 0.09561525689 | AE25: 0.02559744 | AF25: 0 | AG25: 0.1348911641 | AH25: 1.999862016 | AI25: 0.01519790271 | AJ25: 0.01931776 | AK25: 0.03462089571 | AL25: 0.01931776 | AM25: 0.01638912 | AN25: 0.01382595938 | AO25: 0.00042 | AP25: 0.323136 | AQ25: 0.26928 | AR25: 0.188496 | AS25: 0.323556 | AT25: 0.7219265301 | AU25: 7.392 | AV25: 0.9110262427 | AW25: 7.285399164 | AX25: 2.001465266 | AZ25: 91.10262427 | BA25: 0.1656903327 | BB25: 0.1859011798 | BC25: 0.1457079833 | BD25: 0.04002930531 | BE25: 0.01382595938
A26: Top Driver | B26: Input Value | C26: Units | D26: Description | G26: 17 | H26: 12 | I26: 2 | J26: 4.76 | K26: 2.38 | L26: 0.7272222222 | M26: 0.2769366552 | N26: 2.481166471 | O26: 3.620583235 | P26: 1.139416765 | Q26: 0 | R26: 2.485440723 | S26: 0.01729676365 | T26: 0.15 | U26: 0.1675285798 | V26: 0.7162510649 | W26: 0.00256507794 | X26: 0.00256507794 | Y26: 1.112197217 | Z26: 0.01236982649 | AA26: 0.01236982649 | AB26: 1.307957496 | AC26: 0.01488354945 | AD26: 0.1015912104 | AE26: 0.02559744 | AF26: 0 | AG26: 0.1424963703 | AH26: 2.113448078 | AI26: 0.01697331855 | AJ26: 0.02052512 | AK26: 0.03762616674 | AL26: 0.02052512 | AM26: 0.01741344 | AN26: 0.01544353897 | AO26: 0.00042 | AP26: 0.323136 | AQ26: 0.26928 | AR26: 0.188496 | AS26: 0.323556 | AT26: 0.7395241202 | AU26: 7.854 | AV26: 0.9139440223 | AW26: 7.699462033 | AX26: 2.168630097 | AZ26: 91.39440223 | BA26: 0.1675285798 | BB26: 0.197535977 | BC26: 0.1539892407 | BD26: 0.04337260194 | BE26: 0.01544353897
A27: RdsonDRT | B27: =RdsonDRT -> 1 | C27: W | D27: Drain to Source Resistance of pullup Top FET Driver | G27: 18 | H27: 12 | I27: 2 | J27: 5.04 | K27: 2.52 | L27: 0.77 | M27: 0.2770506335 | N27: 2.481726843 | O27: 3.760863422 | P27: 1.279136578 | Q27: 0 | R27: 2.619856359 | S27: 0.01921821256 | T27: 0.15 | U27: 0.1694787789 | V27: 0.7164128305 | W27: 0.002566236719 | X27: 0.002566236719 | Y27: 1.172494989 | Z27: 0.01374744498 | AA27: 0.01374744498 | AB27: 1.378977101 | AC27: 0.01654372725 | AD27: 0.107567164 | AE27: 0.02559744 | AF27: 0 | AG27: 0.1502053224 | AH27: 2.227570313 | AI27: 0.0188558641 | AJ27: 0.02173248 | AK27: 0.04074198918 | AL27: 0.02173248 | AM27: 0.01843776 | AN27: 0.01715911836 | AO27: 0.00042 | AP27: 0.323136 | AQ27: 0.26928 | AR27: 0.188496 | AS27: 0.323556 | AT27: 0.7576251306 | AU27: 8.316 | AV27: 0.9165024872 | AW27: 8.118712202 | AX27: 2.341322499 | AZ27: 91.65024872 | BA27: 0.1694787789 | BB27: 0.2093850716 | BC27: 0.162374244 | BD27: 0.04682644998 | BE27: 0.01715911836
A28: RdsonDRT2 | B28: =RdsonDRT2 -> 0.5 | C28: W | D28: Drain to Source Resistance of pulldown Top FET Driver | G28: 19 | H28: 12 | I28: 2 | J28: 5.32 | K28: 2.66 | L28: 0.8127777778 | M28: 0.2771646182 | N28: 2.482286894 | O28: 3.901143447 | P28: 1.418856553 | Q28: 0 | R28: 2.75482831 | S28: 0.02124942125 | T28: 0.15 | U28: 0.1715410331 | V28: 0.7165745031 | W28: 0.002567395093 | X28: 0.002567395093 | Y28: 1.233056944 | Z28: 0.01520429427 | AA28: 0.01520429427 | AB28: 1.450318651 | AC28: 0.01829979044 | AD28: 0.1135431176 | AE28: 0.02559744 | AF28: 0 | AG28: 0.1580186898 | AH28: 2.342147482 | AI28: 0.02084548835 | AJ28: 0.02293984 | AK28: 0.0439686379 | AL28: 0.02293984 | AM28: 0.01946208 | AN28: 0.01897269755 | AO28: 0.00042 | AP28: 0.323136 | AQ28: 0.26928 | AR28: 0.188496 | AS28: 0.323556 | AT28: 0.7762306677 | AU28: 8.778 | AV28: 0.9187552934 | AW28: 8.543183129 | AX28: 2.519556215 | AZ28: 91.87552934 | BA28: 0.1715410331 | BB28: 0.2214494077 | BC28: 0.1708636626 | BD28: 0.0503911243 | BE28: 0.01897269755
A29: Bottom Driver | B29: Input Value | C29: Units | D29: Description | G29: 20 | H29: 12 | I29: 2 | J29: 5.6 | K29: 2.8 | L29: 0.8555555556 | M29: 0.2772786094 | N29: 2.482846622 | O29: 4.041423311 | P29: 1.558576689 | Q29: 0 | R29: 2.890278639 | S29: 0.02339038971 | T29: 0.15 | U29: 0.1737154515 | V29: 0.7167360828 | W29: 0.002568553062 | X29: 0.002568553062 | Y29: 1.293848275 | Z29: 0.0167404336 | AA29: 0.0167404336 | AB29: 1.521941281 | AC29: 0.02015185578 | AD29: 0.1195190711 | AE29: 0.02559744 | AF29: 0 | AG29: 0.1659371552 | AH29: 2.457113215 | AI29: 0.02294214033 | AJ29: 0.0241472 | AK29: 0.04730640236 | AL29: 0.0241472 | AM29: 0.0204864 | AN29: 0.02088427653 | AO29: 0.00042 | AP29: 0.323136 | AQ29: 0.26928 | AR29: 0.188496 | AS29: 0.323556 | AT29: 0.7953418722 | AU29: 9.24 | AV29: 0.9207459116 | AW29: 8.972908961 | AX29: 2.703345718 | AZ29: 92.07459116 | BA29: 0.1737154515 | BB29: 0.2337299576 | BC29: 0.1794581792 | BD29: 0.05406691436 | BE29: 0.02088427653
A30: RdsonDRB | B30: =RdsonDRB -> 1 | C30: W | D30: Drain to Source Resistance of pullup Bottom FET Driver | G30: 21 | H30: 12 | I30: 2 | J30: 5.88 | K30: 2.94 | L30: 0.8983333333 | M30: 0.2773926069 | N30: 2.483406028 | O30: 4.181703014 | P30: 1.698296986 | Q30: 0 | R30: 3.02614311 | S30: 0.02564111795 | T30: 0.15 | U30: 0.1760021493 | V30: 0.7168975695 | W30: 0.002569710626 | X30: 0.002569710626 | Y30: 1.354840292 | Z30: 0.01835592217 | AA30: 0.01835592217 | AB30: 1.593811307 | AC30: 0.02210004 | AD30: 0.1254950247 | AE30: 0.02559744 | AF30: 0 | AG30: 0.1739614155 | AH30: 2.572412806 | AI30: 0.02514576904 | AJ30: 0.02535456 | AK30: 0.05075558669 | AL30: 0.02535456 | AM30: 0.02151072 | AN30: 0.02289385531 | AO30: 0.00042 | AP30: 0.323136 | AQ30: 0.26928 | AR30: 0.188496 | AS30: 0.323556 | AT30: 0.8149599196 | AU30: 9.702 | AV30: 0.9225099339 | AW30: 9.407924536 | AX30: 2.892706215 | AZ30: 92.25099339 | BA30: 0.1760021493 | BB30: 0.2462277222 | BC30: 0.1881584907 | BD30: 0.05785412429 | BE30: 0.02289385531
A31: RdsonDRB2 | B31: 1 | C31: W | D31: Drain to Source Resistance of pulldown Bottom FET Driver | G31: 22 | H31: 12 | I31: 2 | J31: 6.16 | K31: 3.08 | L31: 0.9411111111 | M31: 0.2775066107 | N31: 2.483965113 | O31: 4.321982556 | P31: 1.838017444 | Q31: 0 | R31: 3.162368346 | S31: 0.02800160596 | T31: 0.15 | U31: 0.1784012477 | V31: 0.7170589633 | W31: 0.002570867784 | X31: 0.002570867784 | Y31: 1.41600915 | Z31: 0.02005081914 | AA31: 0.02005081914 | AB31: 1.665900739 | AC31: 0.02414445988 | AD31: 0.1314709782 | AE31: 0.02559744 | AF31: 0 | AG31: 0.1820921816 | AH31: 2.688000797 | AI31: 0.02745632348 | AJ31: 0.02656192 | AK31: 0.05431650981 | AL31: 0.02656192 | AM31: 0.02253504 | AN31: 0.02500143389 | AO31: 0.00042 | AP31: 0.323136 | AQ31: 0.26928 | AR31: 0.188496 | AS31: 0.323556 | AT31: 0.8350860199 | AU31: 10.164 | AV31: 0.9240767807 | AW31: 9.848265399 | AX31: 3.087653651 | AZ31: 92.40767807 | BA31: 0.1784012477 | BB31: 0.2589437314 | BC31: 0.196965308 | BD31: 0.06175307301 | BE31: 0.02500143389
A32: Deadtime | B32: Input Value | C32: Units | D32: Description | G32: 23 | H32: 12 | I32: 2 | J32: 6.44 | K32: 3.22 | L32: 0.9838888889 | M32: 0.277620621 | N32: 2.484523875 | O32: 4.462261938 | P32: 1.977738062 | Q32: 0 | R32: 3.298909654 | S32: 0.03047185374 | T32: 0.15 | U32: 0.1809128738 | V32: 0.7172202641 | W32: 0.002572024536 | X32: 0.002572024536 | Y32: 1.477334883 | Z32: 0.02182518357 | AA32: 0.02182518357 | AB32: 1.73818614 | AC32: 0.02628523219 | AD32: 0.1374469318 | AE32: 0.02559744 | AF32: 0 | AG32: 0.1903301786 | AH32: 2.803839127 | AI32: 0.02987375263 | AJ32: 0.02776928 | AK32: 0.05798950546 | AL32: 0.02776928 | AM32: 0.02355936 | AN32: 0.02720701227 | AO32: 0.00042 | AP32: 0.323136 | AQ32: 0.26928 | AR32: 0.188496 | AS32: 0.323556 | AT32: 0.8557214182 | AU32: 10.626 | AV32: 0.9254709824 | AW32: 10.29396781 | AX32: 3.288204713 | AZ32: 92.54709824 | BA32: 0.1809128738 | BB32: 0.271879044 | BC32: 0.2058793562 | BD32: 0.06576409426 | BE32: 0.02720701227
A33: Deadtime | B33: =Deadtime*1000000000 -> 14 | C33: ns | D33: Total Deadtime | G33: 24 | H33: 12 | I33: 2 | J33: 6.72 | K33: 3.36 | L33: 1.026666667 | M33: 0.2777346377 | N33: 2.485082315 | O33: 4.602541158 | P33: 2.117458842 | Q33: 0 | R33: 3.435729351 | S33: 0.03305186129 | T33: 0.15 | U33: 0.1835371609 | V33: 0.7173814719 | W33: 0.002573180881 | X33: 0.002573180881 | Y33: 1.538800654 | Z33: 0.02367907452 | AA33: 0.02367907452 | AB33: 1.810647745 | AC33: 0.02852247374 | AD33: 0.1434228853 | AE33: 0.02559744 | AF33: 0 | AG33: 0.1986761461 | AH33: 2.919895703 | AI33: 0.03239800549 | AJ33: 0.02897664 | AK33: 0.06177492235 | AL33: 0.02897664 | AM33: 0.02458368 | AN33: 0.02951059044 | AO33: 0.00042 | AP33: 0.323136 | AQ33: 0.26928 | AR33: 0.188496 | AS33: 0.323556 | AT33: 0.8768673952 | AU33: 11.088 | AV33: 0.9267131539 | AW33: 10.74506875 | AX33: 3.494376837 | AZ33: 92.67131539 | BA33: 0.1835371609 | BB33: 0.2850347485 | BC33: 0.2149013749 | BD33: 0.06988753675 | BE33: 0.02951059044
A34: IQ | B34: Input Value | C34: Units | D34: Description | G34: 25 | H34: 12 | I34: 2 | J34: 7 | K34: 3.5 | L34: 1.069444444 | M34: 0.2778486607 | N34: 2.485640434 | O34: 4.742820217 | P34: 2.257179783 | Q34: 0 | R34: 3.572795455 | S34: 0.03574162862 | T34: 0.15 | U34: 0.1862742482 | V34: 0.7175425867 | W34: 0.002574336819 | X34: 0.002574336819 | Y34: 1.600392169 | Z34: 0.02561255095 | AA34: 0.02561255095 | AB34: 1.883268781 | AC34: 0.03085630132 | AD34: 0.1493988389 | AE34: 0.02559744 | AF34: 0 | AG34: 0.2071308385 | AH34: 3.036143288 | AI34: 0.03502903104 | AJ34: 0.030184 | AK34: 0.06567312422 | AL34: 0.030184 | AM34: 0.025608 | AN34: 0.03191216841 | AO34: 0.00042 | AP34: 0.323136 | AQ34: 0.26928 | AR34: 0.188496 | AS34: 0.323556 | AT34: 0.8985252671 | AU34: 11.55 | AV34: 0.927820746 | AW34: 11.20160593 | AX34: 3.706188211 | AZ34: 92.7820746 | BA34: 0.1862742482 | BB34: 0.2984119628 | BC34: 0.2240321185 | BD34: 0.07412376422 | BE34: 0.03191216841
A35: IQ | B35: =Iq*1000 -> 0.035 | C35: mA | D35: Quiescent Current Of Controller (Not Switching!) | G35: 26 | H35: 12 | I35: 2 | J35: 7.28 | K35: 3.64 | L35: 1.112222222 | M35: 0.2779626902 | N35: 2.48619823 | O35: 4.883099115 | P35: 2.396900885 | Q35: 0 | R35: 3.710080655 | S35: 0.03854115572 | T35: 0.15 | U35: 0.1891242812 | V35: 0.7177036086 | W35: 0.002575492349 | X35: 0.002575492349 | Y35: 1.662097223 | Z35: 0.02762567179 | AA35: 0.02762567179 | AB35: 1.956034922 | AC35: 0.03328683176 | AD35: 0.1553747925 | AE35: 0.02559744 | AF35: 0 | AG35: 0.215695025 | AH35: 3.15255862 | AI35: 0.03776677824 | AJ35: 0.03139136 | AK35: 0.06968448998 | AL35: 0.03139136 | AM35: 0.02663232 | AN35: 0.03441174617 | AO35: 0.00042 | AP35: 0.323136 | AQ35: 0.26928 | AR35: 0.188496 | AS35: 0.323556 | AT35: 0.9206963865 | AU35: 12.012 | AV35: 0.928808629 | AW35: 11.66361781 | AX35: 3.923657779 | AZ35: 92.8808629 | BA35: 0.1891242812 | BB35: 0.312011835 | BC35: 0.2332723562 | BD35: 0.07847315558 | BE35: 0.03441174617
A36: High-side FET | B36: Input Value | C36: Units | D36: Description | G36: 27 | H36: 12 | I36: 2 | J36: 7.56 | K36: 3.78 | L36: 1.155 | M36: 0.278076726 | N36: 2.486755703 | O36: 5.023377852 | P36: 2.536622148 | Q36: 0 | R36: 3.8475615 | S36: 0.04145044258 | T36: 0.15 | U36: 0.1920874112 | V36: 0.7178645374 | W36: 0.00257664747 | X36: 0.00257664747 | Y36: 1.723905331 | Z36: 0.02971849591 | AA36: 0.02971849591 | AB36: 2.028933865 | AC36: 0.03581418188 | AD36: 0.161350746 | AE36: 0.02559744 | AF36: 0 | AG36: 0.2243694898 | AH36: 3.269121727 | AI36: 0.04061119608 | AJ36: 0.03259872 | AK36: 0.0738094138 | AL36: 0.03259872 | AM36: 0.02765664 | AN36: 0.03700932374 | AO36: 0.00042 | AP36: 0.323136 | AQ36: 0.26928 | AR36: 0.188496 | AS36: 0.323556 | AT36: 0.943382142 | AU36: 12.474 | AV36: 0.9296895526 | AW36: 12.13114361 | AX36: 4.14680525 | AZ36: 92.96895526 | BA36: 0.1920874112 | BB36: 0.3258355436 | BC36: 0.2426228722 | BD36: 0.082936105 | BE36: 0.03700932374
A37: RdsonTop | B37: =Rdson1*1000 -> 8.7 | C37: mW | D37: Drain-Source Resistance of Top FET | G37: 28 | H37: 12 | I37: 2 | J37: 7.84 | K37: 3.92 | L37: 1.197777778 | M37: 0.2781907682 | N37: 2.487312855 | O37: 5.163656428 | P37: 2.676343572 | Q37: 0 | R37: 3.98521774 | S37: 0.04446948922 | T37: 0.15 | U37: 0.195163796 | V37: 0.7180253732 | W37: 0.002577802183 | X37: 0.002577802183 | Y37: 1.78580744 | Z37: 0.03189108212 | AA37: 0.03189108212 | AB37: 2.101954989 | AC37: 0.03843846854 | AD37: 0.1673266996 | AE37: 0.02559744 | AF37: 0 | AG37: 0.2331550326 | AH37: 3.385815361 | AI37: 0.04356223351 | AJ37: 0.03380608 | AK37: 0.07804830521 | AL37: 0.03380608 | AM37: 0.02868096 | AN37: 0.03970490109 | AO37: 0.00042 | AP37: 0.323136 | AQ37: 0.26928 | AR37: 0.188496 | AS37: 0.323556 | AT37: 0.9665839592 | AU37: 12.936 | AV37: 0.9304745102 | AW37: 12.60422331 | AX37: 4.375651101 | AZ37: 93.04745102 | BA37: 0.195163796 | BB37: 0.3398842978 | BC37: 0.2520844662 | BD37: 0.08751302201 | BE37: 0.03970490109
A38: RdsonTopTc | B38: =RdsonTopTc*1000000 -> 4000 | C38: ppm | D38: Drain to Source Resistance Temp Co | G38: 29 | H38: 12 | I38: 2 | J38: 8.12 | K38: 4.06 | L38: 1.240555556 | M38: 0.2783048168 | N38: 2.487869685 | O38: 5.303934842 | P38: 2.816065158 | Q38: 0 | R38: 4.123031809 | S38: 0.04759829563 | T38: 0.15 | U38: 0.1983535991 | V38: 0.718186116 | W38: 0.002578956486 | X38: 0.002578956486 | Y38: 1.847795692 | Z38: 0.03414348919 | AA38: 0.03414348919 | AB38: 2.175089074 | AC38: 0.04115980859 | AD38: 0.1733026531 | AE38: 0.02559744 | AF38: 0 | AG38: 0.2420524684 | AH38: 3.502624561 | AI38: 0.0466198395 | AJ38: 0.03501344 | AK38: 0.08240158927 | AL38: 0.03501344 | AM38: 0.02970528 | AN38: 0.04249847824 | AO38: 0.00042 | AP38: 0.323136 | AQ38: 0.26928 | AR38: 0.188496 | AS38: 0.323556 | AT38: 0.9903033007 | AU38: 13.398 | AV38: 0.9311730313 | AW38: 13.08289766 | AX38: 4.610216584 | AZ38: 93.11730313 | BA38: 0.1983535991 | BB38: 0.3541593376 | BC38: 0.2616579532 | BD38: 0.09220433167 | BE38: 0.04249847824
A39: QgTop | B39: =Qg_Q1*1000000000 -> 31 | C39: nC | D39: Gate Charge Of Top FET | G39: 30 | H39: 12 | I39: 2 | J39: 8.4 | K39: 4.2 | L39: 1.283333333 | M39: 0.2784188719 | N39: 2.488426192 | O39: 5.444213096 | P39: 2.955786904 | Q39: 0 | R39: 4.260988392 | S39: 0.05083686181 | T39: 0.15 | U39: 0.2016569905 | V39: 0.7183467658 | W39: 0.00258011038 | X39: 0.00258011038 | Y39: 1.909863237 | Z39: 0.03647577582 | AA39: 0.03647577582 | AB39: 2.248328086 | AC39: 0.0439783189 | AD39: 0.1792786067 | AE39: 0.02559744 | AF39: 0 | AG39: 0.251062628 | AH39: 3.619536281 | AI39: 0.04978396299 | AJ39: 0.0362208 | AK39: 0.08686970664 | AL39: 0.0362208 | AM39: 0.0307296 | AN39: 0.04539005519 | AO39: 0.00042 | AP39: 0.323136 | AQ39: 0.26928 | AR39: 0.188496 | AS39: 0.323556 | AT39: 1.014541667 | AU39: 13.86 | AV39: 0.9317934166 | AW39: 13.5672082 | AX39: 4.850523732 | AZ39: 93.17934166 | BA39: 0.2016569905 | BB39: 0.3686619347 | BC39: 0.271344164 | BD39: 0.09701047464 | BE39: 0.04539005519
A40: QgdTop | B40: =Qgd_Q1*1000000000 -> 9.7 | C40: nC | D40: Gate to Drain Charge | G40: 31 | H40: 12 | I40: 2 | J40: 8.68 | K40: 4.34 | L40: 1.326111111 | M40: 0.2785329333 | N40: 2.488982377 | O40: 5.584491188 | P40: 3.095508812 | Q40: 0 | R40: 4.399074081 | S40: 0.05418518776 | T40: 0.15 | U40: 0.2050741463 | V40: 0.7185073226 | W40: 0.002581263863 | X40: 0.002581263863 | Y40: 1.972004074 | Z40: 0.03888800066 | AA40: 0.03888800066 | AB40: 2.321664988 | AC40: 0.04689411635 | AD40: 0.1852545602 | AE40: 0.02559744 | AF40: 0 | AG40: 0.2601863585 | AH40: 3.736539101 | AI40: 0.05305455293 | AJ40: 0.03742816 | AK40: 0.09145311375 | AL40: 0.03742816 | AM40: 0.03175392 | AN40: 0.04837963193 | AO40: 0.00042 | AP40: 0.323136 | AQ40: 0.26928 | AR40: 0.188496 | AS40: 0.323556 | AT40: 1.039300595 | AU40: 14.322 | AV40: 0.9323429297 | AW40: 14.05719728 | AX40: 5.096595367 | AZ40: 93.23429297 | BA40: 0.2050741463 | BB40: 0.3833933922 | BC40: 0.2811439457 | BD40: 0.1019319073 | BE40: 0.04837963193
A41: QgsTop | B41: =Qgs_Q1*1000000000 -> 9 | C41: nC | G41: 32 | H41: =Vin -> 12 | I41: =MODE -> 2 | J41: 8.96 | K41: =Iout*G41/100/Number_of_Phases -> 4.48 | L41: =Vout*K41/(Vin*Efficiency) -> 1.368888889 | M41: =(Vout+(Rdson2+Rs+Rdcr)*K41)/(Vin+(Rs+Rdson2-Rdson1)*K41) -> 0.278647001 | N41: =(Vin-(Rdson1+Rdcr)*K41-Vout)*M41/(Fsw*Lf) -> 2.489538239 | O41: 5.72476912 | P41: 3.23523088 | Q41: =IF(MIN(Vin,-P41/(Coss_Q1+Coss_Q2)*0.00000002)<0,0,MIN(Vin,-P41/(Coss_Q1+Coss_Q2)*0.00000002)) -> 0 | R41: 4.53727709 | S41: =R41^2*Rdcr -> 0.05764327348 | T41: =Core_Loss_Ch1 -> 0.15 | U41: =(T41+S41*(1+Ltc*(Ta-25)))/(1-S41*Ltc*ThetaCa) -> 0.2086052486 | V41: 0.7186677863 | W41: 0.002582416935 | X41: 0.002582416935 | Y41: 2.034212927 | Z41: 0.0413802223 | AA41: 0.0413802223 | AB41: 2.395093592 | AC41: =Rdson1*AB41^2 -> 0.04990731786 | AD41: =(Vin*K41/2)*Fsw*(Tr_buck+Tf_buck) -> 0.1912305138 | AE41: =(0.5*Coss_Q1*(Vin-Q41)^2-0.5*Coss_Q2*(Vin-Q41)^2+(Qoss_Q2*(Vin-Q41)/Vin)*Vin)*Fsw -> 0.02559744 | AF41: =IF(K41>N41/2,0,ABS(K41-N41/2)*Vsd_Q1*Deadtime*Fsw) -> 0 | AG41: =(AF41+AE41+AD41+AC41*(1+RdsonTopTc*Ta-RdsonTopTc*25))/(1-AC41*RdsonTopTc*ThetaJA_Q1) -> 0.2694245227 | AH41: =SQRT((1-M41))*SQRT(K41^2+(N41^2)/12) -> 3.85362298 | AI41: =Rdson2*AH41^2 -> 0.05643155827 | AJ41: =IF(K41<N41/2,Deadtime*Fsw*IF(VfdSky_Q2>0,0,Vsd_Q2)*(K41+N41/2),2*Deadtime*Fsw*IF(VfdSky_Q2>0,0,Vsd_Q2)*K41) -> 0.03863552 | AK41: =(AJ41+AI41*(1+RdsonBotTc*Ta-RdsonBotTc*25))/(1-AI41*RdsonBotTc*ThetaJA_Q2) -> 0.0961522829 | AL41: =2*Deadtime*Fsw*IF(VfdSky_Q2>0,VfdSky_Q2,Vsd_Q2)*K41 -> 0.03863552 | AM41: =IF(QrrSky_Q2>0,QrrSky_Q2,Qrr_Q2*K41/(Iout/Number_of_Phases))*Fsw*Vin -> 0.03277824 | AN41: =Rs*R41^2 -> 0.05146720847 | AO41: =Iq*Vin -> 0.00042 | AP41: =IF(Ext_VCC=1,(Qg_Q1+Qg_Q2)*Fsw*VCC,(Qg_Q1+Qg_Q2)*Fsw*Vin) -> 0.323136 | AQ41: 0.26928 | AR41: =(Qg_Q1+Qg_Q2)*Fsw*(Vin-VCC) -> 0.188496 | AS41: =SUM(AO41:AP41) -> 0.323556 | AT41: =SUM(U41,X41,AA41,AG41,AK41,AL41,AM41,AS41,AN41) -> 1.064581662 | AU41: =Vout*K41 -> 14.784 | AV41: 0.9328279537 | AW41: =ThetaJA_Q1*BC41 -> 14.55290806 | AX41: =ThetaJA_Q2*BD41 -> 5.348455105 | AZ41: 93.28279537 | BA41: =U41 -> 0.2086052486 | BB41: =AG41+AK41+AM41 -> 0.3983550456 | BC41: =AG41+AM41*0.66 -> 0.2910581611 | BD41: =AK41+AM41*0.33 -> 0.1069691021 | BE41: =AN41 -> 0.05146720847
A42: RGateTop | B42: =Rgate1 -> 0.5 | C42: W | D42: Gate Resistance | G42: 33 | H42: 12 | I42: 2 | J42: =Iout*G42/100 -> 9.24 | K42: 4.62 | L42: 1.411666667 | M42: 0.2787610752 | N42: 2.49009378 | O42: 5.86504689 | P42: 3.37495311 | Q42: 0 | R42: 4.675587013 | S42: 0.06121111897 | T42: 0.15 | U42: 0.2122504862 | V42: 0.718828157 | W42: 0.002583569596 | X42: 0.002583569596 | Y42: 2.096485137 | Z42: 0.0439524993 | AA42: 0.0439524993 | AB42: 2.468608438 | AC42: 0.05301804031 | AD42: 0.1972064673 | AE42: 0.02559744 | AF42: 0 | AG42: 0.2787780003 | AH42: 3.970779054 | AI42: 0.05991492793 | AJ42: 0.03984288 | AK42: 0.1009677025 | AL42: 0.03984288 | AM42: 0.03380256 | AN42: 0.0546527848 | AO42: 0.00042 | AP42: 0.323136 | AQ42: 0.26928 | AR42: 0.188496 | AS42: 0.323556 | AT42: 1.090386483 | AU42: 15.246 | AV42: 0.9332541206 | AW42: 15.0543845 | AX42: 5.606127363 | AZ42: 93.32541206 | BA42: 0.2122504862 | BB42: 0.4135482628 | BC42: 0.3010876899 | BD42: 0.1121225473 | BE42: 0.0546527848
A43: GfsTop | B43: =Gfs_Q1 -> 50 | C43: S | D43: Transconductance of Top FET | G43: 34 | H43: 12 | I43: 2 | J43: 9.52 | K43: 4.76 | L43: 1.454444444 | M43: 0.2788751558 | N43: 2.490648997 | O43: 6.005324499 | P43: 3.514675501 | Q43: 0 | R43: 4.813994637 | S43: 0.06488872423 | T43: 0.15 | U43: 0.2160100536 | V43: 0.7189884346 | W43: 0.002584721845 | X43: 0.002584721845 | Y43: 2.158816577 | Z43: 0.04660489012 | AA43: 0.04660489012 | AB43: 2.542204687 | AC43: 0.05622640065 | AD43: 0.2031824209 | AE43: 0.02559744 | AF43: 0 | AG43: 0.2882476875 | AH43: 4.087999474 | AI43: 0.06350461085 | AJ43: 0.04105024 | AK43: 0.1058998769 | AL43: 0.04105024 | AM43: 0.03482688 | AN43: 0.05793636092 | AO43: 0.00042 | AP43: 0.323136 | AQ43: 0.26928 | AR43: 0.188496 | AS43: 0.323556 | AT43: 1.116716711 | AU43: 15.708 | AV43: 0.9336264182 | AW43: 15.56167142 | AX43: 5.869637367 | AZ43: 93.36264182 | BA43: 0.2160100536 | BB43: 0.4289744445 | BC43: 0.3112334283 | BD43: 0.1173927473 | BE43: 0.05793636092
A44: VthTop | B44: =Vth_Q1 -> 2.9 | C44: V | D44: Threshold Voltage of Top FET | G44: 35 | H44: 12 | I44: 2 | J44: 9.8 | K44: 4.9 | L44: 1.497222222 | M44: 0.2789892428 | N44: 2.491203893 | O44: 6.145601947 | P44: 3.654398053 | Q44: 0 | R44: 4.95249177 | S44: 0.06867608926 | T44: 0.15 | U44: 0.219884152 | V44: 0.7191486191 | W44: 0.002585873682 | X44: 0.002585873682 | Y44: 2.221203575 | Z44: 0.04933745321 | AA44: 0.04933745321 | AB44: 2.615878038 | AC44: 0.0595325158 | AD44: 0.2091583745 | AE44: 0.02559744 | AF44: 0 | AG44: 0.2978344976 | AH44: 4.205277259 | AI44: 0.06720055595 | AJ44: 0.0422576 | AK44: 0.1109493272 | AL44: 0.0422576 | AM44: 0.0358512 | AN44: 0.06131793684 | AO44: 0.00042 | AP44: 0.323136 | AQ44: 0.26928 | AR44: 0.188496 | AS44: 0.323556 | AT44: 1.143574041 | AU44: 16.17 | AV44: 0.9339492795 | AW44: 16.07481448 | AX44: 6.139011162 | AZ44: 93.39492795 | BA44: 0.219884152 | BB44: 0.4446350249 | BC44: 0.3214962896 | BD44: 0.1227802232 | BE44: 0.06131793684
A45: VspTop | B45: =Vsp_Q1 -> 3.18 | C45: V | G45: 36 | H45: 12 | I45: 2 | J45: 10.08 | K45: 5.04 | L45: 1.54 | M45: 0.2791033362 | N45: 2.491758466 | O45: 6.285879233 | P45: 3.794120767 | Q45: 0 | R45: 5.091071107 | S45: 0.07257321406 | T45: 0.15 | U45: 0.2238729886 | V45: 0.7193087106 | W45: 0.002587025106 | X45: 0.002587025106 | Y45: 2.283642856 | Z45: 0.05215024694 | AA45: 0.05215024694 | AB45: 2.689624653 | AC45: 0.06293650271 | AD45: 0.215134328 | AE45: 0.02559744 | AF45: 0 | AG45: 0.3075393611 | AH45: 4.322606187 | AI45: 0.07100271215 | AJ45: 0.04346496 | AK45: 0.1161165907 | AL45: 0.04346496 | AM45: 0.03687552 | AN45: 0.06479751255 | AO45: 0.00042 | AP45: 0.323136 | AQ45: 0.26928 | AR45: 0.188496 | AS45: 0.323556 | AT45: 1.170960205 | AU45: 16.632 | AV45: 0.9342266572 | AW45: 16.59386021 | AX45: 6.414275616 | AZ45: 93.42266572 | BA45: 0.2238729886 | BB45: 0.4605314718 | BC45: 0.3318772043 | BD45: 0.1282855123 | BE45: 0.06479751255
A46: VsdTop | B46: =Vsd_Q1 -> 0.7 | C46: V | G46: 37 | H46: 12 | I46: 2 | J46: 10.36 | K46: 5.18 | L46: 1.582777778 | M46: 0.2792174359 | N46: 2.492312717 | O46: 6.426156358 | P46: 3.933843642 | Q46: 0 | R46: 5.229726114 | S46: 0.07658009863 | T46: 0.15 | U46: 0.2279767774 | V46: 0.719468709 | W46: 0.002588176116 | X46: 0.002588176116 | Y46: 2.346131489 | Z46: 0.05504332964 | AA46: 0.05504332964 | AB46: 2.763441099 | AC46: 0.06643847836 | AD46: 0.2211102816 | AE46: 0.02559744 | AF46: 0 | AG46: 0.3173632259 | AH46: 4.439980689 | AI46: 0.07491102836 | AJ46: 0.04467232 | AK46: 0.1214022214 | AL46: 0.04467232 | AM46: 0.03789984 | AN46: 0.06837508806 | AO46: 0.00042 | AP46: 0.323136 | AQ46: 0.26928 | AR46: 0.188496 | AS46: 0.323556 | AT46: 1.198876978 | AU46: 17.094 | AV46: 0.9344620871 | AW46: 17.11885601 | AX46: 6.69545843 | AZ46: 93.44620871 | BA46: 0.2279767774 | BB46: 0.4766652873 | BC46: 0.3423771203 | BD46: 0.1339091686 | BE46: 0.06837508806
A47: θJATop | B47: =ThetaJA_Q1 -> 50 | C47: °C/W | D47: Junction to Ambient Resistance | G47: 38 | H47: 12 | I47: 2 | J47: 10.64 | K47: 5.32 | L47: 1.625555556 | M47: 0.2793315421 | N47: 2.492866645 | O47: 6.566433323 | P47: 4.073566677 | Q47: 0 | R47: 5.368450926 | S47: 0.08069674296 | T47: 0.15 | U47: 0.2321957381 | V47: 0.7196286143 | W47: 0.002589326713 | X47: 0.002589326713 | Y47: 2.408666842 | Z47: 0.05801675956 | AA47: 0.05801675956 | AB47: 2.837324296 | AC47: 0.07003855971 | AD47: 0.2270862351 | AE47: 0.02559744 | AF47: 0 | AG47: 0.3273070578 | AH47: 4.557395767 | AI47: 0.07892545349 | AJ47: 0.04587968 | AK47: 0.1268067902 | AL47: 0.04587968 | AM47: 0.03892416 | AN47: 0.07205066336 | AO47: 0.00042 | AP47: 0.323136 | AQ47: 0.26928 | AR47: 0.188496 | AS47: 0.323556 | AT47: 1.227326176 | AU47: 17.556 | AV47: 0.9346587413 | AW47: 17.64985017 | AX47: 6.982588149 | AZ47: 93.46587413 | BA47: 0.2321957381 | BB47: 0.493038008 | BC47: 0.3529970034 | BD47: 0.139651763 | BE47: 0.07205066336
A48: Low-side FET | B48: Input Value | C48: Units | D48: Description | G48: 39 | H48: 12 | I48: 2 | J48: 10.92 | K48: 5.46 | L48: 1.668333333 | M48: 0.2794456547 | N48: 2.493420251 | O48: 6.706710125 | P48: 4.213289875 | Q48: 0 | R48: 5.507240269 | S48: 0.08492314706 | T48: 0.15 | U48: 0.2365300975 | V48: 0.7197884265 | W48: 0.002590476895 | X48: 0.002590476895 | Y48: 2.471246546 | Z48: 0.06107059493 | AA48: 0.06107059493 | AB48: 2.911271471 | AC48: 0.07373686375 | AD48: 0.2330621887 | AE48: 0.02559744 | AF48: 0 | AG48: 0.3373718407 | AH48: 4.674846928 | AI48: 0.08304593643 | AJ48: 0.04708704 | AK48: 0.1323308849 | AL48: 0.04708704 | AM48: 0.03994848 | AN48: 0.07582423845 | AO48: 0.00042 | AP48: 0.323136 | AQ48: 0.26928 | AR48: 0.188496 | AS48: 0.323556 | AT48: 1.256309653 | AU48: 18.018 | AV48: 0.9348194734 | AW48: 18.18689188 | AX48: 7.275694164 | AZ48: 93.48194734 | BA48: 0.2365300975 | BB48: 0.5096512056 | BC48: 0.3637378375 | BD48: 0.1455138833 | BE48: 0.07582423845
A49: RdsonBot | B49: =Rdson2*1000 -> 3.8 | C49: mW | D49: Drain-Source Resistance of Low-side FET | G49: 40 | H49: 12 | I49: 2 | J49: 11.2 | K49: 5.6 | L49: 1.711111111 | M49: 0.2795597736 | N49: 2.493973534 | O49: 6.846986767 | P49: 4.353013233 | Q49: 0 | R49: 5.646089384 | S49: 0.08925931093 | T49: 0.15 | U49: 0.2409800883 | V49: 0.7199481456 | W49: 0.002591626662 | X49: 0.002591626662 | Y49: 2.533868463 | Z49: 0.0642048939 | AA49: 0.0642048939 | AB49: 2.985280123 | AC49: 0.07753350749 | AD49: 0.2390381422 | AE49: 0.02559744 | AF49: 0 | AG49: 0.3475585768 | AH49: 4.792330114 | AI49: 0.08727242609 | AJ49: 0.0482944 | AK49: 0.1379751106 | AL49: 0.0482944 | AM49: 0.0409728 | AN49: 0.07969581333 | AO49: 0.00042 | AP49: 0.323136 | AQ49: 0.26928 | AR49: 0.188496 | AS49: 0.323556 | AT49: 1.28582931 | AU49: 18.48 | AV49: 0.9349468576 | AW49: 18.73003124 | AX49: 7.574806731 | AZ49: 93.49468576 | BA49: 0.2409800883 | BB49: 0.5265064875 | BC49: 0.3746006248 | BD49: 0.1514961346 | BE49: 0.07969581333
A50: RdsonBotTc | B50: =RdsonBotTc*1000000 -> 4000 | C50: ppm | D50: Drain To Source Resitance Temp Co | G50: 41 | H50: 12 | I50: 2 | J50: 11.48 | K50: 5.74 | L50: 1.753888889 | M50: 0.279673899 | N50: 2.494526495 | O50: 6.987263247 | P50: 4.492736753 | Q50: 0 | R50: 5.784993967 | S50: 0.09370523457 | T50: 0.15 | U50: 0.2455459498 | V50: 0.7201077716 | W50: 0.002592776014 | X50: 0.002592776014 | Y50: 2.596530658 | Z50: 0.06741971457 | AA50: 0.06741971457 | AB50: 3.059347988 | AC50: 0.08142860795 | AD50: 0.2450140958 | AE50: 0.02559744 | AF50: 0 | AG50: 0.357868287 | AH50: 4.909841657 | AI50: 0.09160487136 | AJ50: 0.04950176 | AK50: 0.1437400898 | AL50: 0.04950176 | AM50: 0.04199712 | AN50: 0.08366538801 | AO50: 0.00042 | AP50: 0.323136 | AQ50: 0.26928 | AR50: 0.188496 | AS50: 0.323556 | AT50: 1.315887085 | AU50: 18.942 | AV50: 0.9350432214 | AW50: 19.27931931 | AX50: 7.879956972 | AZ50: 93.50432214 | BA50: 0.2455459498 | BB50: 0.5436054969 | BC50: 0.3855863862 | BD50: 0.1575991394 | BE50: 0.08366538801
A51: QgBot | B51: =Qg_Q2*1000000000 -> 30.2 | C51: nC | D51: Gate Charge Of Top FET | G51: 42 | H51: 12 | I51: 2 | J51: 11.76 | K51: 5.88 | L51: 1.796666667 | M51: 0.2797880307 | N51: 2.495079133 | O51: 7.127539566 | P51: 4.632460434 | Q51: 0 | R51: 5.923950117 | S51: 0.09826091797 | T51: 0.15 | U51: 0.250227928 | V51: 0.7202673045 | W51: 0.00259392495 | X51: 0.00259392495 | Y51: 2.659231374 | Z51: 0.07071511499 | AA51: 0.07071511499 | AB51: 3.133473013 | AC51: 0.08542228215 | AD51: 0.2509900493 | AE51: 0.02559744 | AF51: 0 | AG51: 0.3683020112 | AH51: 5.02737823 | AI51: 0.09604322111 | AJ51: 0.05070912 | AK51: 0.1496264626 | AL51: 0.05070912 | AM51: 0.04302144 | AN51: 0.08773296247 | AO51: 0.00042 | AP51: 0.323136 | AQ51: 0.26928 | AR51: 0.188496 | AS51: 0.323556 | AT51: 1.346484964 | AU51: 19.404 | AV51: 0.9351106749 | AW51: 19.83480808 | AX51: 8.19117689 | AZ51: 93.51106749 | BA51: 0.250227928 | BB51: 0.5609499137 | BC51: 0.3966961616 | BD51: 0.1638235378 | BE51: 0.08773296247
A52: RGateBot | B52: =Rgate2 -> 0.5 | C52: W | D52: Gate Resistance | G52: 43 | H52: 12 | I52: 2 | J52: 12.04 | K52: 6.02 | L52: 1.839444444 | M52: 0.2799021689 | N52: 2.495631448 | O52: 7.267815724 | P52: 4.772184276 | Q52: 0 | R52: 6.062954288 | S52: 0.1029263611 | T52: 0.15 | U52: 0.2550262753 | V52: 0.7204267443 | W52: 0.002595073469 | X52: 0.002595073469 | Y52: 2.721969015 | Z52: 0.07409115316 | AA52: 0.07409115316 | AB52: 3.207653332 | AC52: 0.08951464713 | AD52: 0.2569660029 | AE52: 0.02559744 | AF52: 0 | AG52: 0.3788608083 | AH52: 5.144936812 | AI52: 0.1005874242 | AJ52: 0.05191648 | AK52: 0.1556348867 | AL52: 0.05191648 | AM52: 0.04404576 | AN52: 0.09189853673 | AO52: 0.00042 | AP52: 0.323136 | AQ52: 0.26928 | AR52: 0.188496 | AS52: 0.323556 | AT52: 1.377624974 | AU52: 19.866 | AV52: 0.9351511347 | AW52: 20.3965505 | AX52: 8.508499375 | AZ52: 93.51511347 | BA52: 0.2550262753 | BB52: 0.578541455 | BC52: 0.4079310099 | BD52: 0.1701699875 | BE52: 0.09189853673
A53: VsdBot | B53: =Vsd_Q2 -> 0.7 | C53: V | D53: Diode Forward Voltage of Bottom FET Body Diode | G53: 44 | H53: 12 | I53: 2 | J53: 12.32 | K53: 6.16 | L53: 1.882222222 | M53: 0.2800163134 | N53: 2.496183441 | O53: 7.408091721 | P53: 4.911908279 | Q53: 0 | R53: 6.20200325 | S53: 0.1077015641 | T53: 0.15 | U53: 0.2599412504 | V53: 0.7205860909 | W53: 0.002596221572 | X53: 0.002596221572 | Y53: 2.784742125 | Z53: 0.07754788701 | AA53: 0.07754788701 | AB53: 3.281887247 | AC53: 0.09370581994 | AD53: 0.2629419565 | AE53: 0.02559744 | AF53: 0 | AG53: 0.3895457573 | AH53: 5.262514647 | AI53: 0.1052374296 | AJ53: 0.05312384 | AK53: 0.161766038 | AL53: 0.05312384 | AM53: 0.04507008 | AN53: 0.09616211079 | AO53: 0.00042 | AP53: 0.323136 | AQ53: 0.26928 | AR53: 0.188496 | AS53: 0.323556 | AT53: 1.409309185 | AU53: 20.328 | AV53: 0.9351663459 | AW53: 20.96460051 | AX53: 8.831958219 | AZ53: 93.51663459 | BA53: 0.2599412504 | BB53: 0.5963818753 | BC53: 0.4192920101 | BD53: 0.1766391644 | BE53: 0.09616211079
A54: QrrBot | B54: =Qrr_Q2*1000000000 -> 19.4 | C54: nC | D54: Reverse Recovery Charge of Body Diode | G54: 45 | H54: 12 | I54: 2 | J54: 12.6 | K54: 6.3 | L54: 1.925 | M54: 0.2801304644 | N54: 2.496735112 | O54: 7.548367556 | P54: 5.051632444 | Q54: 0 | R54: 6.341094058 | S54: 0.1125865268 | T54: 0.15 | U54: 0.264973119 | V54: 0.7207453444 | W54: 0.002597369257 | X54: 0.002597369257 | Y54: 2.847549375 | Z54: 0.08108537442 | AA54: 0.08108537442 | AB54: 3.356173205 | AC54: 0.09799591767 | AD54: 0.26891791 | AE54: 0.02559744 | AF54: 0 | AG54: 0.4003579568 | AH54: 5.380109225 | AI54: 0.109993186 | AJ54: 0.0543312 | AK54: 0.1680206105 | AL54: 0.0543312 | AM54: 0.0460944 | AN54: 0.1005236846 | AO54: 0.00042 | AP54: 0.323136 | AQ54: 0.26928 | AR54: 0.188496 | AS54: 0.323556 | AT54: 1.441539715 | AU54: 20.79 | AV54: 0.9351579003 | AW54: 21.53901304 | AX54: 9.161588124 | AZ54: 93.51579003 | BA54: 0.264973119 | BB54: 0.6144729672 | BC54: 0.4307802608 | BD54: 0.1832317625 | BE54: 0.1005236846
A55: TrrBot | B55: =Trr_Q2*1000000000 -> 40 | C55: ns | D55: Reverse Recovery Time of Body Diode | G55: 46 | H55: 12 | I55: 2 | J55: 12.88 | K55: 6.44 | L55: 1.967777778 | M55: 0.2802446217 | N55: 2.497286459 | O55: 7.68864323 | P55: 5.19135677 | Q55: 0 | R55: 6.480224017 | S55: 0.1175812493 | T55: 0.15 | U55: 0.2701221533 | V55: 0.7209045047 | W55: 0.002598516525 | X55: 0.002598516525 | Y55: 2.910389548 | Z55: 0.08470367322 | AA55: 0.08470367322 | AB55: 3.430509787 | AC55: 0.1023850574 | AD55: 0.2748938636 | AE55: 0.02559744 | AF55: 0 | AG55: 0.4112985256 | AH55: 5.497718245 | AI55: 0.1148546424 | AJ55: 0.05553856 | AK55: 0.1743993167 | AL55: 0.05553856 | AM55: 0.04711872 | AN55: 0.1049832583 | AO55: 0.00042 | AP55: 0.323136 | AQ55: 0.26928 | AR55: 0.188496 | AS55: 0.323556 | AT55: 1.474318724 | AU55: 21.252 | AV55: 0.9351272531 | AW55: 22.11984404 | AX55: 9.497424713 | AZ55: 93.51272531 | BA55: 0.2701221533 | BB55: 0.6328165623 | BC55: 0.4423968808 | BD55: 0.1899484943 | BE55: 0.1049832583
A56: θJABot | B56: =ThetaJA_Q2 -> 50 | C56: °C/W | D56: Junction to Ambient Resistance | G56: 47 | H56: 12 | I56: 2 | J56: 13.16 | K56: 6.58 | L56: 2.010555556 | M56: 0.2803587855 | N56: 2.497837484 | O56: 7.828918742 | P56: 5.331081258 | Q56: 0 | R56: 6.619390657 | S56: 0.1226857315 | T56: 0.15 | U56: 0.2753886319 | V56: 0.7210635719 | W56: 0.002599663374 | X56: 0.002599663374 | Y56: 2.973261529 | Z56: 0.08840284119 | AA56: 0.08840284119 | AB56: 3.504895692 | AC56: 0.1068733562 | AD56: 0.2808698171 | AE56: 0.02559744 | AF56: 0 | AG56: 0.4223686033 | AH56: 5.615339603 | AI56: 0.1198217477 | AJ56: 0.05674592 | AK56: 0.1809028877 | AL56: 0.05674592 | AM56: 0.04814304 | AN56: 0.1095408317 | AO56: 0.00042 | AP56: 0.323136 | AQ56: 0.26928 | AR56: 0.188496 | AS56: 0.323556 | AT56: 1.507648419 | AU56: 21.714 | AV56: 0.9350757366 | AW56: 22.70715049 | AX56: 9.839504545 | AZ56: 93.50757366 | BA56: 0.2753886319 | BB56: 0.651414531 | BC56: 0.4541430097 | BD56: 0.1967900909 | BE56: 0.1095408317
A57: Bottom Schottky | B57: Input Value | C57: Units | D57: Std Units | G57: 48 | H57: 12 | I57: 2 | J57: 13.44 | K57: 6.72 | L57: 2.053333333 | M57: 0.2804729557 | N57: 2.498388186 | O57: 7.969194093 | P57: 5.470805907 | Q57: 0 | R57: 6.758591714 | S57: 0.1278999735 | T57: 0.15 | U57: 0.2807728406 | V57: 0.7212225459 | W57: 0.002600809804 | X57: 0.002600809804 | Y57: 3.036164291 | Z57: 0.09218293605 | AA57: 0.09218293605 | AB57: 3.579329725 | AC57: 0.1114609312 | AD57: 0.2868457707 | AE57: 0.02559744 | AF57: 0 | AG57: 0.4335693506 | AH57: 5.732971365 | AI57: 0.1248944506 | AJ57: 0.05795328 | AK57: 0.1875320736 | AL57: 0.05795328 | AM57: 0.04916736 | AN57: 0.1141964049 | AO57: 0.00042 | AP57: 0.323136 | AQ57: 0.26928 | AR57: 0.188496 | AS57: 0.323556 | AT57: 1.541531056 | AU57: 22.176 | AV57: 0.9350045731 | AW57: 23.30099041 | AX57: 10.18786512 | AZ57: 93.50045731 | BA57: 0.2807728406 | BB57: 0.6702687842 | BC57: 0.4660198082 | BD57: 0.2037573024 | BE57: 0.1141964049
A58: VfdSky | B58: =VfdSky_Q2 -> 0 | C58: V | D58: Diode Forward Voltage | G58: 49 | H58: 12 | I58: 2 | J58: 13.72 | K58: 6.86 | L58: 2.096111111 | M58: 0.2805871322 | N58: 2.498938565 | O58: 8.109469283 | P58: 5.610530717 | Q58: 0 | R58: 6.897825104 | S58: 0.1332239753 | T58: 0.15 | U58: 0.2862750715 | V58: 0.7213814267 | W58: 0.002601955814 | X58: 0.002601955814 | Y58: 3.099096892 | Z58: 0.09604401544 | AA58: 0.09604401544 | AB58: 3.653810788 | AC58: 0.1161478995 | AD58: 0.2928217242 | AE58: 0.02559744 | AF58: 0 | AG58: 0.4449019491 | AH58: 5.850611754 | AI58: 0.1300727 | AJ58: 0.05916064 | AK58: 0.1942876437 | AL58: 0.05916064 | AM58: 0.05019168 | AN58: 0.1189499779 | AO58: 0.00042 | AP58: 0.323136 | AQ58: 0.26928 | AR58: 0.188496 | AS58: 0.323556 | AT58: 1.575968933 | AU58: 22.638 | AV58: 0.9349148858 | AW58: 23.90142289 | AX58: 10.5425449 | AZ58: 93.49148858 | BA58: 0.2862750715 | BB58: 0.6893812727 | BC58: 0.4780284579 | BD58: 0.2108508981 | BE58: 0.1189499779
A59: QrrSky | B59: =QrrSky_Q2*1000000000 -> 0 | C59: nC | D59: Diode Reverse Recovery Charge | G59: 50 | H59: 12 | I59: 2 | J59: 14 | K59: 7 | L59: 2.138888889 | M59: 0.2807013152 | N59: 2.499488622 | O59: 8.249744311 | P59: 5.750255689 | Q59: 0 | R59: 7.037088907 | S59: 0.1386577368 | T59: 0.15 | U59: 0.2918956237 | V59: 0.7215402144 | W59: 0.002603101405 | X59: 0.002603101405 | Y59: 3.162058459 | Z59: 0.099986137 | AA59: 0.099986137 | AB59: 3.728337866 | AC59: 0.1209343782 | AD59: 0.2987976778 | AE59: 0.02559744 | AF59: 0 | AG59: 0.4563676024 | AH59: 5.96825913 | AI59: 0.1353564448 | AJ59: 0.060368 | AK59: 0.2011703864 | AL59: 0.060368 | AM59: 0.051216 | AN59: 0.1238015507 | AO59: 0.00042 | AP59: 0.323136 | AQ59: 0.26928 | AR59: 0.188496 | AS59: 0.323556 | AT59: 1.610964402 | AU59: 23.1 | AV59: 0.9348077082 | AW59: 24.50850812 | AX59: 10.90358332 | AZ59: 93.48077082 | BA59: 0.2918956237 | BB59: 0.7087539888 | BC59: 0.4901701624 | BD59: 0.2180716664 | BE59: 0.1238015507
A60: Ireverse | B60: =Ireverse -> 0 | C60: mA | D60: Reverse Leakage Current | G60: 51 | H60: 12 | I60: 2 | J60: 14.28 | K60: 7.14 | L60: 2.181666667 | M60: 0.2808155045 | N60: 2.500038356 | O60: 8.390019178 | P60: 5.889980822 | Q60: 0 | R60: 7.176381352 | S60: 0.1442012581 | T60: 0.15 | U60: 0.2976348031 | V60: 0.7216989089 | W60: 0.002604246575 | X60: 0.002604246575 | Y60: 3.22504819 | Z60: 0.1040093583 | AA60: 0.1040093583 | AB60: 3.802910025 | AC60: 0.1258204845 | AD60: 0.3047736313 | AE60: 0.02559744 | AF60: 0 | AG60: 0.4679675363 | AH60: 6.085911982 | AI60: 0.1407456337 | AJ60: 0.06157536 | AK60: 0.2081811101 | AL60: 0.06157536 | AM60: 0.05224032 | AN60: 0.1287511233 | AO60: 0.00042 | AP60: 0.323136 | AQ60: 0.26928 | AR60: 0.188496 | AS60: 0.323556 | AT60: 1.646519858 | AU60: 23.562 | AV60: 0.9346839931 | AW60: 25.12230738 | AX60: 11.27102079 | AZ60: 93.46839931 | BA60: 0.2976348031 | BB60: 0.7283889665 | BC60: 0.5024461475 | BD60: 0.2254204157 | BE60: 0.1287511233
A61: Controller | B61: Input Value | C61: Units | D61: Std Units | G61: 52 | H61: 12 | I61: 2 | J61: 14.56 | K61: 7.28 | L61: 2.224444444 | M61: 0.2809297003 | N61: 2.500587767 | O61: 8.530293883 | P61: 6.029706117 | Q61: 0 | R61: 7.315700805 | S61: 0.1498545391 | T61: 0.15 | U61: 0.3034929225 | V61: 0.7218575101 | W61: 0.002605391325 | X61: 0.002605391325 | Y61: 3.288065339 | Z61: 0.1081137367 | AA61: 0.1081137367 | AB61: 3.877526401 | AC61: 0.1308063356 | AD61: 0.3107495849 | AE61: 0.02559744 | AF61: 0 | AG61: 0.4797029988 | AH61: 6.203568914 | AI61: 0.1462402156 | AJ61: 0.06278272 | AK61: 0.2153206431 | AL61: 0.06278272 | AM61: 0.05326464 | AN61: 0.1337986957 | AO61: 0.00042 | AP61: 0.323136 | AQ61: 0.26928 | AR61: 0.188496 | AS61: 0.323556 | AT61: 1.682637748 | AU61: 24.024 | AV61: 0.9345446198 | AW61: 25.74288306 | AX61: 11.64489872 | AZ61: 93.45446198 | BA61: 0.3034929225 | BB61: 0.7482882819 | BC61: 0.5148576612 | BD61: 0.2328979743 | BE61: 0.1337986957
A62: θJA | B62: 30 | C62: °C/W | D62: Junction to Ambient Resistance | G62: 53 | H62: 12 | I62: 2 | J62: 14.84 | K62: 7.42 | L62: 2.267222222 | M62: 0.2810439025 | N62: 2.501136855 | O62: 8.670568427 | P62: 6.169431573 | Q62: 0 | R62: 7.45504575 | S62: 0.15561758 | T62: 0.15 | U62: 0.3094703015 | V62: 0.7220160182 | W62: 0.002606535653 | X62: 0.002606535653 | Y62: 3.351109217 | Z62: 0.1122993298 | AA62: 0.1122993298 | AB62: 3.952186193 | AC62: 0.1358920486 | AD62: 0.3167255385 | AE62: 0.02559744 | AF62: 0 | AG62: 0.4915752609 | AH62: 6.321228633 | AI62: 0.1518401394 | AJ62: 0.06399008 | AK62: 0.2225898337 | AL62: 0.06399008 | AM62: 0.05428896 | AN62: 0.1389442678 | AO62: 0.00042 | AP62: 0.323136 | AQ62: 0.26928 | AR62: 0.188496 | AS62: 0.323556 | AT62: 1.719320569 | AU62: 24.486 | AV62: 0.9343904012 | AW62: 26.37029873 | AX62: 12.02525953 | AZ62: 93.43904012 | BA62: 0.3094703015 | BB62: 0.7684540546 | BC62: 0.5274059745 | BD62: 0.2405051905 | BE62: 0.1389442678
A63: Theta Ja | B63: 2 | C63: °C/W | D63: Junction to Ambient Resistance | G63: 54 | H63: 12 | I63: 2 | J63: 15.12 | K63: 7.56 | L63: 2.31 | M63: 0.2811581111 | N63: 2.50168562 | O63: 8.81084281 | P63: 6.30915719 | Q63: 0 | R63: 7.594414784 | S63: 0.1614903806 | T63: 0.15 | U63: 0.3155672668 | V63: 0.722174433 | W63: 0.002607679559 | X63: 0.002607679559 | Y63: 3.414179184 | Z63: 0.116566195 | AA63: 0.116566195 | AB63: 4.026888659 | AC63: 0.1410777407 | AD63: 0.322701492 | AE63: 0.02559744 | AF63: 0 | AG63: 0.503585617 | AH63: 6.438889939 | AI63: 0.1575453538 | AJ63: 0.06519744 | AK63: 0.2299895509 | AL63: 0.06519744 | AM63: 0.05531328 | AN63: 0.1441878398 | AO63: 0.00042 | AP63: 0.323136 | AQ63: 0.26928 | AR63: 0.188496 | AS63: 0.323556 | AT63: 1.756570869 | AU63: 24.948 | AV63: 0.9342220896 | AW63: 27.00461909 | AX63: 12.41214666 | AZ63: 93.42220896 | BA63: 0.3155672668 | BB63: 0.7888884479 | BC63: 0.5400923818 | BD63: 0.2482429333 | BE63: 0.1441878398
